Workbook

Sheet Veiledning
B2: NV-GHG | E2: Versjon 2.4
E3: Oppdatert 08.02.2021 | M3: Kontaktpersoner ved spørsmål eller kommentarer til verktøyet:
H4: Dette regnskapet er utarbeidet av:
H5: Navn: | M5: Nye Veier: | N5: Maarten Lohne van der Eynden, | Q5: maarten.eynden@nyeveier.no
H6: Firma: | M6: NIRAS Norge: | N6: Ragnhild Stamer Ekerholt, | Q6: raek@niras.com
H7: Stilling: | N7: Julie Gade Gørbitz, | Q7: jugg@niras.com
H8: E-post:
H9: Telefon:
H10: Kvalitetssikrer:
B13: Introduksjon
B14: NV-GHG er et verktøy for å beregne klimagassutslipp fra veiprosjekter i en tidlig fase. Verktøyet er utviklet av NIRAS Norge AS for Nye Veier AS. I tilfeller der det er tvetydigheter eller motstridende innhold i den norske og engelske utgaven av verktøyet, er det den norske utgaven som gjelder. Verktøyet har tre hovedformål: - Baseline (beregne baseline for nye prosjekter på det tidspunktet strekningen tildeles Nye Veier) - Budsjett (klimagassbudsjett for planlagt bygget løsning - for enkelte strekninger vil dette påkreves av entreprenør) - Resultat (beregning av klimagassutslipp fra ferdig bygget løsning - for enkelte strekninger vil dette påkreves av entreprenør) Verktøyet er ment å gi en god oversikt over de viktigste kildene til prosjektets totale klimagassutslipp, samt formidle utslippsdrivende prosesser og aktiviteter på en tydelig måte, slik at tiltak kan iverksettes der potensialet for utslippsreduksjoner er størst. Det er lagt stor vekt på at verktøyet skal være brukervennlig, både for byggherre, rådgiver og entreprenør. Det er derfor kun nødvendig å fylle inn data i fanen 'Prosjektbeskrivelse og inndata'. Dersom brukeren av verktøyet ønsker å legge inn prosjektspesifikke verdier ut over dette, kan dette gjøres i fanene 'Transport og energibehov', 'Beregningsfaktorer' og 'Utslippsfaktorer'. Alle faner der det er mulig å gjøre endringer har grønn farge. Blå faner inneholder resultater.
B26: De ulike fanene
B27: Prosjektbeskrivelse og inndata
B28: Her legges det inn informasjon om lengder, arealer og mengder for å kunne beregne klimagassutslipp i prosjektet. Verktøyet vil kunne estimere klimagassutslipp basert på informasjonen i denne fanen alene. I tabellen 'Om strekningen' legges det inn overordnet informasjon om strekningen som kreves for å kunne beregne samlede mengder. I tabellen 'Arealbruksendringer' fylles det inn prosentvis fordeling mellom de ulike arealtypene som beslaglegges i prosjektet. Summen av disse skal være 100 %. I tabellen 'Inndata' legges det inn mer detaljert informasjon om ulike konstruksjoner, massehåndtering, veityper, osv. Enheter velges fra nedtrekksmenyen.
B31: Resultat
B32: Resultatene er fremstilt i tabeller og grafisk i resultatfanen. Tallene hentes fra beregningsfanen.
B34: Sensitivitetsanalyse
B35: Sensitivitetsanalysen viser hvilke utslag en prosentvis endring i én eller flere innsatsfaktorer vil gi på totale utslipp. Sensitivitetsanalysen gir dermed et bilde på hvilke tiltak og endringer som vil ha størst effekt på det totale klimagassutslippet, både negativt og positivt.
B37: Beregninger
B38: Beregningsfanen samler all informasjon fra 'Prosjektbeskrivelse og inndata' og de ulike enhets- og faktorfanene. Her multipliseres mengder og aktiviteter med utslippsfaktorene slik at vi sitter igjen med klimagassutslipp knyttet til de ulike hoved- og underaktivitetene. Beregningsfanen skiller mellom byggefase og drift, slik at det fremkommer tydelig hvilke utslipp som er knyttet til byggeperioden (år 0) og hvilke som er knyttet til drift og vedlikehold gjennom hele analyseperioden. Verdier fra beregningsfanen benyttes videre i resultatfanen.
B41: 13 enhetsfaner for følgende kategorier: Hovedvei, Sidevei, Anleggsvei, Tunnel enkeltløp, Tunnel dobbeltløp, Betongbru, Stålbru, Kulvert, Vegetasjon og arealbeslag, Sprengning, Tillegg vei, Drift og vedlikehold, Reasfaltering
B42: Enhetsfanene bygger på informasjon fra beregningsfaktorfanen for å beregne mengder og energiforbruk for en gitt skalerbar enhet. For eksempel tar tunnelfanene utgangspunkt i valgt tunnelprofil for å beregne mengder og energibruk per meter, mens veifanene beregner per kvadratmeter slik at disse endres dynamisk med endret veibredde. Enhetsfanene inkluderer materialer, transportavstander og anleggsarbeid. Verdier fra enhetsfanene benyttes videre i beregningsfanen.
B45: Transport og energibehov
B46: Fanen samler alle beregningsfaktorer knyttet til transport, slik som arbeidshastigheter for ulike maskiner, transportavstander og energiforbruk. Alle faktorer kan tilpasses prosjektet ved å legge inn prosjektspesifikke verdier - husk å legge inn dokumentasjon i kolonnen 'Dokumentasjon prosjektspesifikke verdier'! Beregningene leser alltid verdier fra kolonnen 'Verdi benyttet i beregninger', som er linket opp mot kolonnen for standardverdi og prosjektspesifikk verdi. Standardverdiene hentes dersom cellen for prosjektspesifikke verdier står tom. Dersom det legges inn en prosjektspesifikk verdi vil denne overstyre standardverdien. Det er i tillegg mulig å skille mellom ulike brensler ved å endre prosentandeler på henholdsvis fossil diesel, biodiesel og elektrisk/hydrogen for de ulike maskintypene. Merk at effektforbruk må fylles inn dersom det benyttes elektriske maskiner.
B50: Utslippsfaktorer
B51: Fanen gir en oversik over alle utslippsfaktorer benyttet i prosjektet. Utslippsfaktorfanen blir brukt av beregningsfanen, der faktorene multipliseres med mengder for å gi et samlet resultat, fremstilt i resultatfanen. Alle standard utslippsfaktorer er ment å representere bransjestandard for hvert materiale, men på grunn av ulike produksjonsmetoder og -steder vil dette variere mellom produsenter og materialer innenfor samme materialgruppe. Faktorene kan derfor tilpasses prosjektet ved å legge inn prosjektspesifikke verdier - husk å legge inn dokumentasjon i kolonnen 'Dokumentasjon prosjektspesifikke verdier'! Vær oppmerksom på enheten til utslippsfaktorene ved bruk av prosjektspesifikke verdier. Dersom enheten til en utslippsfaktorer er i kg CO2e/kg og du ønsker å benytte en utslippsfaktor med enhet kg CO2e/m3, må denne omregnes til kg CO2/kg vha. massetettheten til det gitte materialet (se i beregningsfaktorfanen). Formel for omgjøring er som følger: Utslippsfaktor [kg CO2e/kg] = utslippsfaktor [kg CO2e/m3] / massetetthet [kg/m3]. Beregningene leser alltid verdier fra kolonnen 'Verdi benyttet i beregninger', som er linket opp mot kolonnen for standardverdi og prosjektspesifikk verdi. Standardverdiene hentes dersom cellen for prosjektspesifikke verdier står tom. Dersom det legges inn prosjektspesifikk verdi vil denne overskrive standardverdien. Dersom det benyttes prosjektspesifikke utslippsfaktorer skal disse dokumenteres med en gyldig EPD.
B58: Beregningsfaktorer
B59: Fanen samler alle beregningsfaktorer som ikke er knyttet til transport, slik som massetettheter, materialtykkelser, levetider, osv. Alle faktorer kan tilpasses prosjektet ved å legge inn prosjektspesifikke verdier - husk å legge inn dokumentasjon i kolonnen 'Dokumentasjon prosjektspesifikke verdier'! Beregningene leser alltid verdier fra kolonnen 'Verdi benyttet i beregninger', som er linket opp mot kolonnen for standardverdi og prosjektspesifikk verdi. Standardverdiene hentes dersom cellen for prosjektspesifikke verdier står tom. Dersom det legges inn prosjektspesifikk verdi vil denne overskrive standardverdien.
B63: Enheter
B64: Følgende enheter benyttes i regneverktøyet:
B66: Forkortelse | C66: Betydning | D66: Kategori | E66: Kommentar
B67: km | C67: Kilometer | D67: Avstand
B68: m | C68: Meter | D68: Avstand
B69: h | C69: Time | D69: Tid
B70: t | C70: Tonn | D70: Vekt
B71: kg | C71: Kilogram | D71: Vekt
B72: tkm | C72: Tonnkilometer | D72: Transportarbeid | E72: Én tonnkilometer tilsvarer å frakte ett tonn last én kilometer
B73: L | C73: Liter | D73: Volum
B74: m3 | C74: Kubikkmeter | D74: Volum
B75: m2 | C75: Kvadratmeter | D75: Areal
B76: kWh | C76: Kilowattimer | D76: Energi | E76: Elektrisk energi
B77: kW | C77: Kilowatt | D77: Effekt | E77: Elektrisk effekt
B78: stk | C78: Stykk | D78: Mengde
B79: år | C79: År | D79: Tid
B80: ÅDT | C80: Årsdøgntrafikk

Sheet Prosjektbeskrivelse og inndata
B2: Om strekningen | J2: Inndata
B3: Prosjektinformasjon | C3: Mengde | D3: Beskrivelse | G3: Kommentar | J3: Kalkylepost (fra anslagsrapport) | K3: Beskrivelse | L3: Mengde | M3: Definert enhet (velges fra nedtrekksmeny) | N3: Kommentar
B4: Lengde hovedstrekning [m] | C4: =F35 -> 0 | D4: Summen av hovedvei, tunnel og bru
B5: Gjennomsnittlig bredde på anleggsbelte [m] | D5: Til beregning av vegetasjonsrydding
B6: Antall enkeltløpstunneler | D6: Til beregning av tunnelportaler
B7: Antall dobbeltløpstunneler | D7: Til beregning av tunnelportaler
B8: Antall kulverter | D8: Til beregning av anleggsarbeid
B9: Gjennomsnittsbredde hovedvei
B10: Gjennomsnittsbredde sidevei
B11: Gjennomsnittsbredde anleggsvei
B12: Gjennomsnittsbredde betongbruer
B13: Gjennomsnittsbredde stålbruer
B14: Analyseperiode [år] | C14: 60 | D14: Standard 60 år
B15: ÅDT | D15: Gjennomsnittlig ÅDT, opprinnelig
B16: Delta ÅDT | D16: Endring i ÅDT fra opprinnelig strekning
B17: Belysning hovedvei | C17: Ja | D17: Er hovedvei belyst
B18: Belysning sidevei | C18: Nei | D18: Er sidevei belyst
B20: Arealbruksendringer
B21: Totalt arealbeslag [m2] | C21: =E35*C5 -> 0
B23: Naturtype | C23: Andel [%] | D23: Kommentar
B24: Skog - lav bonitet
B25: Skog - middels bonitet
B26: Skog - høy bonitet
B27: Myr
B28: Jordbruksareal
B29: Utbygd areal
B30: Sum | C30: =SUM(C24:C29) -> 0 | D30: Må være 100 %! | V30: Fjerning av vegetasjonsdekke (m2) | W30: m2
B31: Dersom boniteten er ukjent skal skogarealer føres på 'middels bonitet' | V31: Sprengning i dagen (m3) | W31: m3
V32: Sprengning tunnel (m3) | W32: m3
B33: Prosentfordeling mellom tunnel, bru og vei i dagen på hovedstrekning | V33: Jordmasser til linja (m3) | W33: m3
C34: Tunnel | D34: Bru | E34: Vei i dagen | F34: Totalt | V34: Jordmasser til deponi (m3) | W34: m3
B35: Lengde [m] | F35: =C35+D35+E35 -> 0 | V35: Sprengstein til linja (m3) | W35: m3
B36: Andel [%] | C36: =IFERROR(C35/C4,0) -> 0 | D36: =IFERROR(D35/C4,0) -> 0 | E36: =IFERROR(E35/(C4),0) -> 0 | F36: =C36+D36+E36 -> 0 | V36: Sprengstein til deponi (m3) | W36: m3
V37: Sprengstein til linja via pukkverk (m3) | W37: m3
V38: Hovedvei (m) | W38: m
V39: Sidevei (m) | W39: m
V40: Anleggsvei (m) | W40: m
V41: Betongbru (m) | W41: m2
V42: Stålbru (m) | W42: m2
V43: Tunnel enkeltløp (m) | W43: m
V44: Tunnel dobbeltløp (m) | W44: m
V45: Betongkulvert (m2) | W45: m2
V49: Belysning valg
V50: Ja
V51: Nei

Sheet Beregningsfaktorer
B2: Størrelse | C2: Enhet | D2: Verdi benyttet i beregninger | E2: Standard-verdi | F2: Prosjekt-spesifikk verdi | G2: Kommentar | H2: Dokumentasjon standardverdi | I2: Evt. lenke dokumentasjon standardverdi | J2: Dokumentasjon prosjektspesifikk verdi | K2: Evt. lenke dokumentasjon prosjektsesifikk verdi
B3: Massetettheter
B4: Betong | C4: kg/m3 | D4: =IF(F4="",E4,F4) -> 2400 | E4: 2400 | H4: Norsk betongforening Publikasjon 37: Lavkarbonbetong (2015)
B5: Stål, armeringsstål | C5: kg/m3 | D5: 7850 | E5: 7850 | H5: "Metode for beregning av energiforbruk og klimagassutslipp for vegprosjekter", Hammervold (2009) s. 8, Engineering Toolbox | I5: https://www.engineeringtoolbox.com/metal-alloys-densities-d_50.html
B6: Skjelettasfalt | C6: kg/m3 | D6: 2500 | E6: 2500 | H6: "Metode for beregning av energiforbruk og klimagassutslipp for vegprosjekter", Hammervold (2009) s. 34
B7: Asfaltgrusbetong | C7: kg/m3 | D7: 2500 | E7: 2500 | H7: "Metode for beregning av energiforbruk og klimagassutslipp for vegprosjekter", Hammervold (2009) s. 34
B8: Asfaltgrus | C8: kg/m3 | D8: 2400 | E8: 2400 | H8: Klimamodul EFFEKT 6.74
B9: Pukk/grus frostsikring | C9: kg/m3 | D9: 1550 | E9: 1550 | H9: Anbefalt verdi i samkjøringsprosjekt, snitt av minimums- og maksimumsverdi (1,4-1,7) i EPDer
B10: Pukk/grus forsterkningslag | C10: kg/m3 | D10: 1550 | E10: 1550 | H10: Anbefalt verdi i samkjøringsprosjekt, snitt av minimums- og maksimumsverdi (1,4-1,7) i EPDer
B11: XPS | C11: kg/m3 | D11: 35 | E11: 35 | H11: VegLCA (kommunikasjon med leverandører)
B12: XPS-/betongelement til frostsikring i tunnel | C12: kg/m3 | D12: 1808.75 | E12: 1808.75 | H12: EPD XPS-/betongelement Ølen betong
B13: Topeka | C13: kg/m3 | D13: 2500 | E13: 2500 | H13: "Metode for beregning av energiforbruk og klimagassutslipp for vegprosjekter", Hammervold (2009) s. 34, bruker samme som asfaltbetong
B14: Jord, grus, leire fra vegetasjonsrydding | C14: kg/m3 | D14: 1300 | E14: 1300 | H14: "Metode for beregning av energiforbruk og klimagassutslipp for vegprosjekter", Hammervold (2009) s. 32
B15: Myr fra vegetasjonsrydding | C15: kg/m3 | D15: 150 | E15: 150 | H15: Utredning myr, Hadsel kommune (Asplan Viak, 2017)
B16: Fast fjell | C16: kg/m3 | D16: 2650 | E16: 2650 | H16: "Metode for beregning av energiforbruk og klimagassutslipp for vegprosjekter", Hammervold (2009) s. 32
B17: Masser fra grøfterensk | C17: kg/m3 | D17: 1300 | E17: 1300 | H17: "Metode for beregning av energiforbruk og klimagassutslipp for vegprosjekter", Hammervold (2009) s. 32, antar samme type masser som fra vegetasjonsrydding
B18: Materialtykkelser/-mengder
B19: Slitelag tykkelse | C19: m | D19: =IF(F19="",E19,F19) -> 0.045 | E19: 0.045 | H19: Statens Vegvesen håndbok N200
B20: Bindlag tykkelse | C20: m | D20: =IF(F20="",E20,F20) -> 0.035 | E20: 0.035 | H20: Statens Vegvesen håndbok N200
B21: Bærelag tykkelse | C21: m | D21: 0.13 | E21: 0.13 | H21: Statens Vegvesen håndbok N200
B22: Forsterkningslag tykkelse | C22: m | D22: 0.45 | E22: 0.45 | H22: Statens Vegvesen håndbok N200
B23: Frostsikringslag vei tykkelse | C23: m | D23: 1.74 | E23: 1.74 | H23: Statens Vegvesen håndbok N200
B24: Topeka tykkelse | C24: m | D24: 0.012 | E24: 0.012 | H24: Statens Vegvesen håndbok R762
B25: Frostsikringselement tunnel tykkelse | C25: m | D25: 0.2 | E25: 0.2 | H25: EPD XPS-/betongelement Ølen betong
B26: Betongtykkelse til betongbru | C26: m | D26: =IF(F26="",E26,F26) -> 1.29 | E26: 1.29 | H26: "Metode for beregning av energiforbruk og klimagassutslipp for vegprosjekter", Hammervold (2009) s. 47, gjennomsnitt for samtlige betongbruer, ikke vektet etter areal av bru
B27: Betongtykkelse til stålbru | C27: m | D27: =IF(F27="",E27,F27) -> 0.743 | E27: 0.743 | H27: "Metode for beregning av energiforbruk og klimagassutslipp for vegprosjekter", Hammervold (2009) s. 47, gjennomsnitt for samtlige stålbruer, ikke vektet etter areal av bru
B28: Armeringsstål til betongbru | C28: kg/m2 | D28: =IF(F28="",E28,F28) -> 231 | E28: 231 | H28: "Metode for beregning av energiforbruk og klimagassutslipp for vegprosjekter", Hammervold (2009) s. 47, gjennomsnitt for samtlige betongbruer, ikke vektet etter areal av bru
B29: Armeringsstål til stålbru | C29: kg/m2 | D29: 125 | E29: 125 | H29: "Metode for beregning av energiforbruk og klimagassutslipp for vegprosjekter", Hammervold (2009) s. 47, gjennomsnitt for samtlige stålbruer, ikke vektet etter areal av bru
B30: Konstruksjonsstål til betongbru | C30: kg/m2 | D30: 0 | E30: 0 | H30: "Metode for beregning av energiforbruk og klimagassutslipp for vegprosjekter", Hammervold (2009) s. 47, gjennomsnitt for samtlige betongbruer, ikke vektet etter areal av bru
B31: Konstruksjonsstål til stålbru | C31: kg/m2 | D31: 219 | E31: 219 | H31: "Metode for beregning av energiforbruk og klimagassutslipp for vegprosjekter", Hammervold (2009) s. 47, gjennomsnitt for samtlige stålbruer, ikke vektet etter areal av bru
B32: Sikringsbolter til tunnel | C32: kg/m | D32: 44 | E32: 44 | G32: Gjelder for tunnelprofil T9,5 | H32: "Metode for beregning av energiforbruk og klimagassutslipp for vegprosjekter", Hammervold (2009) s. 8 i vedlegg 1
B33: Sprengstoff til sprengning i dagen | C33: kg/fm3 | D33: 1 | E33: 1 | G33: EFFEKT og Metoderapport oppgir ikke kilden de har brukt, og verdien bør derfor sokumenteres bedre i samtlige verktøy | H33: "Metode for beregning av energiforbruk og klimagassutslipp for vegprosjekter", Hammervold (2009) og dokumentasjon EFFEKT 2015 (SVV Rapport 358)
B34: Sprengstoff til sprengning tunnel | C34: kg/fm3 | D34: 2.2 | E34: 2.2 | G34: EFFEKT og Metoderapport oppgir ikke kilden de har brukt, og verdien bør derfor sokumenteres bedre i samtlige verktøy | H34: "Metode for beregning av energiforbruk og klimagassutslipp for vegprosjekter", Hammervold (2009) og dokumentasjon EFFEKT 2015 (SVV Rapport 358)
B35: Kulverter
B36: Betongtykkelse kulvertelementer | C36: m | D36: =IF(F36="",E36,F36) -> 0.24 | E36: 0.24 | H36: Prefabrikkerte kulvertelementer, Statens vegvesen | I36: https://www.vegvesen.no/fag/teknologi/bruer/bruprosjektering/prefabrikkerte-kulvertelementer/_attachment/1361322?_ts=15d081de438&fast_title=Grunnlag%2C+beregningsforutsetninger+og+eksempel.pdf
B37: Høyde på kulverter | C37: m | D37: =IF(F37="",E37,F37) -> 3.2 | E37: 3.2 | H37: Prefabrikkerte kulvertelementer, Statens vegvesen | I37: https://www.vegvesen.no/fag/teknologi/bruer/bruprosjektering/prefabrikkerte-kulvertelementer/_attachment/1361322?_ts=15d081de438&fast_title=Grunnlag%2C+beregningsforutsetninger+og+eksempel.pdf
B38: Gjennomsnittsbredde kulverter | C38: m | D38: 10 | E38: 10 | H38: NIRAS' erfaringstall
B39: Forholdstall mellom betong og armering | C39: kg/kg | D39: 13 | E39: 13 | H39: Tar utgangspunkt i "Metode for beregning av energiforbruk og klimagassutslipp for vegprosjekter", Hammervold (2009), s. 8 i Vedlegg 1, der andelen betong er 13 ganger høyere enn andelen armering for samme volum.
B40: Arbeidshastighet tårnkran | C40: h/stk | D40: =IF(F40="",E40,F40) -> 18 | E40: 18 | H40: NIRAS' erfaringstall
B41: Tunneler | M41: Tunnelprofil | N41: Teoretisk sprengningsprofil | P41: Normalprofil | R41: Veibredder
B42: Tunnelprofil enkeltløp | C42: - | D42: =IF(F42="",E42,F42) -> 10.5 | E42: 10.5 | H42: Typisk tunnelprofil | N42: Areal [m2] | O42: Buelengde [m] | P42: Areal [m2] | Q42: Buelengde [m] | R42: Kjørebane [m] | S42: Skulder [m]
B43: Tunnelprofil dobbeltløp | C43: - | D43: =IF(F43="",E43,F43) -> 9.5 | E43: 9.5 | H43: Typisk tunnelprofil | M43: 4 | N43: 20.32 | O43: 12.13 | P43: 13.57 | Q43: 9.85 | R43: 3 | S43: 1
B44: Betongmengde per portal enkeltløp | C44: m3/stk | D44: 357.6140684 | E44: =VLOOKUP(D42,M43:O53,3,FALSE)/O47*340 -> 357.6140684 | G44: Gjelder standard tunnel med portallengde 13 m på hver side | H44: "Metode for beregning av energiforbruk og klimagassutslipp for vegprosjekter", Hammervold (2009), s. 8 i Vedlegg 1. | M44: 5.5 | N44: 39.1 | O44: 17.12 | P44: 29.72 | Q44: 14.55 | R44: 3.5 | S44: 2
B45: Betongmengde per portal dobbeltløp | C45: m3/stk | D45: 340 | E45: =VLOOKUP(D43,M43:O53,3,FALSE)/O47*340 -> 340 | G45: Gjelder standard tunnel med portallengde 13 m på hver side | H45: "Metode for beregning av energiforbruk og klimagassutslipp for vegprosjekter", Hammervold (2009), s. 8 i Vedlegg 1. | M45: 7.5 | N45: 51.56 | O45: 18.88 | P45: 40.46 | Q45: 16.3 | R45: 5 | S45: 2.5
B46: Armering per portal enkeltløp | C46: kg/stk | D46: 65211.97719 | E46: =VLOOKUP(D42,M43:O53,3,FALSE)/O47*62000 -> 65211.97719 | G46: Gjelder standard tunnel med portallengde 13 m på hver side | H46: "Metode for beregning av energiforbruk og klimagassutslipp for vegprosjekter", Hammervold (2009), s. 8 i Vedlegg 1. | M46: 8.5 | N46: 61.92 | O46: 20.56 | P46: 49.66 | Q46: 17.99 | R46: 6.5 | S46: 2
B47: Armering per portal dobbeltløp | C47: kg/stk | D47: 62000 | E47: =VLOOKUP(D43,M43:O53,3,FALSE)/O47*62000 -> 62000 | G47: Gjelder standard tunnel med portallengde 13 m på hver side | H47: Metode for beregning av energiforbruk og klimagassutslipp for vegprosjekter, Hammervold (2009), s. 8 i Vedlegg 1. | M47: 9.5 | N47: 66.62 | O47: 21.04 | P47: 53.61 | Q47: 18.46 | R47: 7 | S47: 2.5
B48: Andel under sjø for enkeltløpstunnel | C48: % | D48: =IF(F48="",E48,F48) -> 0 | E48: 0 | G48: For beregning av strømforbruk vifter og pumper | H48: - | M48: 10.5 | N48: 74.59 | O48: 22.13 | P48: 60.64 | Q48: 19.55 | R48: 8 | S48: 2.5
B49: Andel under sjø for dobbeltløpstunnel | C49: % | D49: =IF(F49="",E49,F49) -> 0 | E49: 0 | G49: For beregning av strømforbruk vifter og pumper | H49: - | M49: 11.5 | N49: 85.92 | O49: 23.75 | P49: 70.89 | Q49: 21.18 | R49: 9.5 | S49: 2
B50: Drift- og vedlikeholdsintervaller | M50: 12.5 | N50: 91.32 | O50: 24.32 | P50: 75.49 | Q50: 21.73 | R50: 10 | S50: 2.5
B51: Utskiftningsintervall reasfaltering | C51: år | D51: =IF(F51="",E51,F51) -> 7 | E51: 7 | H51: NIRAS' erfaringstall | M51: 13 | N51: 95.69 | O51: 24.86 | P51: 79.39 | Q51: 22.28 | R51: 10.5 | S51: 2.5
B52: Utskiftningsintervall autovern | C52: år | D52: 30 | E52: 30 | H52: Håndbok N101 Rekkverk og vegens sideområder (2014) s. 63 | M52: 13.5 | N52: 100.52 | O52: 25.46 | P52: 83.73 | Q52: 22.88 | R52: 11 | S52: 2.5
B53: Utskiftningsintervall lyktestolper | C53: år | D53: 30 | E53: 30 | H53: Håndbok V124 (2014) tabell 4.5 s. 51 | M53: 14 | N53: 104.58 | O53: 25.96 | P53: 87.35 | Q53: 23.88 | R53: 11.5 | S53: 2.5
B54: Driftsintervall kantklipp | C54: år | D54: 1 | E54: 1 | H54: NIRAS' erfaringstall.
B55: Driftsintervall grøfterensk | C55: år | D55: 3 | E55: 3 | H55: NIRAS' erfaringstall.
B56: Driftsintervall feiing | C56: år | D56: 1 | E56: 1 | H56: NIRAS' erfaringstall.
B57: Driftsintervall salting | C57: år | D57: 1 | E57: 1 | H57: NIRAS' erfaringstall.
B58: Driftsintervall brøyting | C58: år | D58: 1 | E58: 1 | H58: NIRAS' erfaringstall.
B59: Reasfaltering, drift og vedlikehold
B60: Andel til reasfaltering | C60: % | D60: =IF(F60="",E60,F60) -> 0.6 | E60: 0.6 | H60: NIRAS' erfaringstall
B61: Elforbruk belysning i dagen | C61: kWh/(stk*år) | D61: =IF(F61="",E61,F61) -> 1600 | E61: 1600 | H61: Samkjøringsprosjekt. Basert på Håndbok V124 - teknisk planlegging av veg- og tunnelbelysning. Forbruk: 400 W, 4100 brenntimer/år. Konservativt, mest representativt for høy ÅDT.
B62: Elforbruk belysning i tunnel | C62: kWh/(lm*år) | D62: =IF(F62="",E62,F62) -> 34 | E62: 34 | H62: Antar likt som for vei i dagen basert på at det er det som gjøres i "Metode for beregning av energiforbruk og klimagassutslipp for vegprosjekter", Hammervold (2009) og dokumentasjon for EFFEKT 6.6
B63: Elforbruk viftedrift oversjøisk enkeltløpstunnel | C63: kWh/(ÅDT*km*år) | D63: =IF(F63="",E63,F63) -> 3.7 | E63: 3.7 | G63: Bruker samme formel som tunnel dobbeltløp | H63: "Metode for beregning av energiforbruk og klimagassutslipp for vegprosjekter", Hammervold (2009) s. 46
B64: Elforbruk viftedrift undersjøisk enkeltløpstunnel | C64: kWh/(ÅDT*km*år) | D64: 14.6 | E64: 14.6 | G64: Bruker samme formel som tunnel dobbeltløp | H64: "Metode for beregning av energiforbruk og klimagassutslipp for vegprosjekter", Hammervold (2009) s. 46
B65: Elforbruk viftedrift oversjøisk dobbeltløpstunnel | C65: kWh/(ÅDT*km*år) | D65: 3.7 | E65: 3.7 | H65: "Metode for beregning av energiforbruk og klimagassutslipp for vegprosjekter", Hammervold (2009) s. 46
B66: Elforbruk viftedrift undersjøisk dobbeltløpstunnel | C66: kWh/(ÅDT*km*år) | D66: 14.6 | E66: 14.6 | H66: "Metode for beregning av energiforbruk og klimagassutslipp for vegprosjekter", Hammervold (2009) s. 46
B67: Elforbruk pumpedrift oversjøisk tunnel | C67: kWh/(m*år) | D67: 0 | E67: 0 | G67: Per tunnelløp | H67: "Metode for beregning av energiforbruk og klimagassutslipp for vegprosjekter", Hammervold (2009) s. 45/46
B68: Elforbruk pumpedrift undersjøisk tunnel | C68: kWh/(m*år) | D68: 18 | E68: 18 | G68: Per tunnelløp | H68: "Metode for beregning av energiforbruk og klimagassutslipp for vegprosjekter", Hammervold (2009) s. 45/46
B69: Saltforbruk | C69: tonn/(km*år) | D69: =IF(F69="",E69,F69) -> 10.5 | E69: 10.5 | H69: Mengderapportering vinteren 2018/2019, SVV rapport 362. Landsgjennomsnitt for riksvei
B70: Km brøyting per km vei per år | C70: km/(km*år) | D70: =IF(F70="",E70,F70) -> 724.7 | E70: 724.7 | H70: Mengderapportering vinteren 2018/2019, SVV rapport 362. Landsgjennomsnitt for riksvei
B71: Km salting per km vei per år for tofelt | C71: km/(km*år) | D71: =IF(F71="",E71,F71) -> 100 | E71: 100 | G71: Salter to felt per tur | H71: NIRAS' erfaringstall.
B72: Renset volum ved grøfterensk | C72: m3/m | D72: =IF(F72="",E72,F72) -> 0.133 | E72: 0.133 | H72: NIRAS' erfaringstall.
B73: Annet
B74: Lyktestolper inkludert fundament | C74: kg/stk | D74: =IF(F74="",E74,F74) -> 227 | E74: 227 | H74: Produsentinformasjon fra Vik Ørsta AS. Produktkatalog 2020 s. 17 og s. 44
B75: Antall lyktestolper per belysningsrekke per km hovedvei | C75: stk/km | D75: =IF('Prosjektbeskrivelse og inndata'!C17="Nei",0,IF(F75="",E75,F75)) -> 21.25 | E75: 21.25 | H75: Kilde belysningsklasse: Håndbok V124 (2014) tabell 3.2, s. 25. Kilde historisk effektforbruk: Håndbok 264 (2008) tabell 7.1 s. 66
B76: Antall lyktestolper per belysningsrekke per km sidevei | C76: stk/km | D76: =IF('Prosjektbeskrivelse og inndata'!C18="Nei",0,IF(F76="",E76,F76)) -> 0 | E76: 21.25 | H76: Kilde belysningsklasse: Håndbok V124 (2014) tabell 3.2, s. 25. Kilde historisk effektforbruk: Håndbok 264 (2008) tabell 7.1 s. 66
B77: Autovern | C77: kg/m | D77: =IF(F77="",E77,F77) -> 16.5 | E77: 16.5 | G77: Stålet har krav til fasthet, men gjenvinningsgrad og leverandør kan variere da de handler inn stål i bulk på et stort stålmarked. Ikke noe "finere" kvalitet på stålet til rekkverk enn stålet på autovern. For firefeltsvei må rekkverkmengden ganges med 4. | H77: Forutsetter styrkeklasse H1 ihht. tabell 3.1 og rundskriv om rekkverk 110 km/t. Forenkler til å beregne med samme rekkverkstandard på bruer. Tar utgangspunkt i Vik Ørsta W3 siderekkverk, med vekt 12,5 kg/m + 16 kg per stolpe. jf telefonsamtale representant Ørsta Vik desember 2016. Rekkverket Vik EP H1 CC4 har stolpeavstand på 4 m -> Samlet vekt blir 12,5 + 16/4 = 16,5 kg/m.
B78: Antall kjørefelt enkeltløpstunnel | C78: stk | D78: 2 | E78: 2 | H78: NIRAS' erfaringstall.
B79: Antall kjørefelt dobbeltløpstunnel | C79: stk | D79: 4 | E79: 4 | H79: NIRAS' erfaringstall.
B80: Antall kjørefelt hovedvei | C80: stk | D80: 4 | E80: 4 | H80: NIRAS' erfaringstall.
B81: Antall kjørefelt sidevei | C81: stk | D81: 2 | E81: 2 | H81: NIRAS' erfaringstall.
B82: Antall belysningsrekker hovedvei | C82: stk | D82: 2 | E82: 2 | H82: NIRAS' erfaringstall.
B83: Antall belysningsrekker sidevei | C83: stk | D83: 1 | E83: 1 | H83: NIRAS' erfaringstall.
B84: Antall autovern hovedvei | C84: stk | D84: 4 | E84: 4 | H84: NIRAS' erfaringstall.
B85: Antall autovern sidevei | C85: stk | D85: 2 | E85: 2 | H85: NIRAS' erfaringstall.
B86: Antall grøfter hovedvei | C86: stk | D86: 3 | E86: 3 | H86: NIRAS' erfaringstall.
B87: Antall grøfter sidevei | C87: stk | D87: 2 | E87: 2 | H87: NIRAS' erfaringstall.
B88: Antall veimerkinger hovedvei | C88: stk | D88: 5 | E88: 5 | H88: NIRAS' erfaringstall.
B89: Antall veimerkinger sidevei | C89: stk | D89: 3 | E89: 3 | H89: NIRAS' erfaringstall.
B90: Tykkelse på vegetasjonslag som fjernes | C90: m | D90: 0.3 | E90: 0.3 | H90: NIRAS' erfaringstall.

Sheet Transport og energibehov
B2: Størrelse | C2: Enhet | D2: Verdi benyttet i beregninger | E2: Standardverdi | F2: Prosjekt-spesifikk verdi | G2: Enhet | H2: Verdi benyttet i beregninger | I2: Standardverdi | J2: Prosjekt-spesifikk verdi | K2: Enhet | L2: Andel el/ hydrogen | M2: Andel biodiesel | N2: Andel diesel | O2: Kommentar | P2: Dokumentasjon standardverdi | Q2: Dokumentasjon prosjektspesifikke verdier | R2: Evt. lenke for dokumentasjon
B3: Transportavstand materialer [én vei]
B4: Transport i linja | C4: km | D4: =IF(F4="",E4,F4) -> 1 | E4: 1 | O4: Disse verdiene er meget generelle og det anbefales å benytte prosjektspesifikke verdier så langt det er mulig | P4: Estimert basert på erfaringstall
B5: Transport til deponi/lager | C5: km | D5: =IF(F5="",E5,F5) -> 15 | E5: 15 | P5: Estimert basert på erfaringstall
B6: Transport til pukkverk | C6: km | D6: 15 | E6: 15 | P6: Estimert basert på erfaringstall
B7: Asfaltbetong (Agb) og skjelettasfalt (Ska) | C7: km | D7: 30 | E7: 30 | P7: Estimert basert på erfaringstall
B8: Asfaltert grus (Ag) | C8: km | D8: 30 | E8: 30 | P8: Estimert basert på erfaringstall
B9: Kult til frost- og forsterkningslag | C9: km | D9: 15 | E9: 15 | P9: Estimert basert på erfaringstall
B10: Betong | C10: km | D10: 40 | E10: 40 | P10: Estimert basert på erfaringstall
B11: Stål | C11: km | D11: 400 | E11: 400 | P11: Estimert basert på erfaringstall
B12: Armeringsstål | C12: km | D12: 400 | E12: 400 | P12: Estimert basert på erfaringstall
B13: Fuktsikring bru (Topeka) | C13: km | D13: 70 | E13: 70 | P13: Estimert basert på erfaringstall
B14: Frostsikringselementer tunnel | C14: km | D14: 70 | E14: 70 | P14: Estimert basert på erfaringstall
B15: Salt | C15: km | D15: 500 | E15: 500 | P15: Samme verdi som VegLCA. Løselig basert på typiske land for import av salt. SaltImportøren importerer hovedsakelig fra Europa og Middelhavsområdet, CG Rieber fra Tyskland, Nederland og Israel og Mesta fra blant annet Tunisia, Italia, Danmark og Marokko. | R15: SaltImport: https://produktguiden.veier24.no/products/62-saltimport-asCG Rieber: https://www.gcrieber-salt.no/markeder/veivedlikehold/ Mesta: https://www.miljoklagenemnda.no/assets/files/Sak_2014_2_mesta.pdf
B16: Energiforbruk og -kilder massetransport (snitt inkl. returkjøring) | C16: Diesel (liter pr. km /lastens størrelse i tonn) | G16: Elektrisitet (kWh pr. km /lastens størrelse i tonn) | K16: Fordeling mellom brensler
B17: Massetransport i linja | C17: L/tkm | D17: =IF(F17="",E17,F17) -> 0.02 | E17: 0.02 | G17: kWh/tkm | H17: =IF(J17="",0,J17) -> 0 | I17: Ingen standardverdi | K17: % | L17: 0 | M17: 0.07 | N17: =1-L17-M17 -> 0.93 | O17: Tilsvarer for eksempel lastekapasitet 30 tonn og forbruk 0,6 L/km. Dersom ikke annet er oppgitt, benytt fordelingen 93 % fossil diesel, 7 % biodiesel | P17: NIRAS' erfaringstall.
B18: Massetransport til deponi/lager | C18: L/tkm | D18: =IF(F18="",E18,F18) -> 0.02 | E18: 0.02 | G18: kWh/tkm | H18: =IF(J18="",0,J18) -> 0 | I18: Ingen standardverdi | K18: % | L18: 0 | M18: 0.07 | N18: =1-L18-M18 -> 0.93 | O18: Tilsvarer for eksempel lastekapasitet 30 tonn og forbruk 0,6 L/km. Dersom ikke annet er oppgitt, benytt fordelingen 93 % fossil diesel, 7 % biodiesel | P18: NIRAS' erfaringstall.
B19: Massetransport til pukkverk | C19: L/tkm | D19: 0.02 | E19: 0.02 | G19: kWh/tkm | H19: 0 | I19: Ingen standardverdi | K19: % | L19: 0 | M19: 0.07 | N19: 0.93 | O19: Tilsvarer for eksempel lastekapasitet 30 tonn og forbruk 0,6 L/km. Dersom ikke annet er oppgitt, benytt fordelingen 93 % fossil diesel, 7 % biodiesel | P19: NIRAS' erfaringstall.
B20: Asfaltbetong (Agb) og skjelettasfalt (Ska) | C20: L/tkm | D20: 0.02 | E20: 0.02 | G20: kWh/tkm | H20: 0 | I20: Ingen standardverdi | K20: % | L20: 0 | M20: 0.07 | N20: 0.93 | O20: Tilsvarer for eksempel lastekapasitet 30 tonn og forbruk 0,6 L/km. Dersom ikke annet er oppgitt, benytt fordelingen 93 % fossil diesel, 7 % biodiesel | P20: NIRAS' erfaringstall.
B21: Asfaltert grus (Ag) | C21: L/tkm | D21: =IF(F21="",E21,F21) -> 0.02 | E21: 0.02 | G21: kWh/tkm | H21: 0 | I21: Ingen standardverdi | K21: % | L21: 0 | M21: 0.07 | N21: 0.93 | O21: Tilsvarer for eksempel lastekapasitet 30 tonn og forbruk 0,6 L/km. Dersom ikke annet er oppgitt, benytt fordelingen 93 % fossil diesel, 7 % biodiesel | P21: NIRAS' erfaringstall.
B22: Kult til frost- og forsterkningslag | C22: L/tkm | D22: 0.02 | E22: 0.02 | G22: kWh/tkm | H22: =IF(J22="",0,J22) -> 0 | I22: Ingen standardverdi | K22: % | L22: 0 | M22: 0.07 | N22: 0.93 | O22: Tilsvarer for eksempel lastekapasitet 30 tonn og forbruk 0,6 L/km. Dersom ikke annet er oppgitt, benytt fordelingen 93 % fossil diesel, 7 % biodiesel | P22: NIRAS' erfaringstall.
B23: Energiforbruk og -kilder massetransport (snitt inkl. returkjøring) | C23: Diesel (liter pr. km /lastens størrelse i tonn) | G23: Elektrisitet (kWh pr. km /lastens størrelse i tonn) | K23: Fordeling mellom brensler
B24: Betong | C24: L/tkm | D24: =IF(F24="",E24,F24) -> 0.02 | E24: 0.02 | G24: kWh/tkm | H24: =IF(J24="",0,J24) -> 0 | I24: Ingen standardverdi | K24: % | L24: 0 | M24: 0.07 | N24: 0.93 | O24: Tilsvarer for eksempel lastekapasitet 30 tonn og forbruk 0,6 L/km. Dersom ikke annet er oppgitt, benytt fordelingen 93 % fossil diesel, 7 % biodiesel | P24: NIRAS' erfaringstall.
B25: Stål | C25: L/tkm | D25: =IF(F25="",E25,F25) -> 0.02 | E25: 0.02 | G25: kWh/tkm | H25: =IF(J25="",0,J25) -> 0 | I25: Ingen standardverdi | K25: % | L25: 0 | M25: 0.07 | N25: 0.93 | O25: Tilsvarer for eksempel lastekapasitet 30 tonn og forbruk 0,6 L/km. Dersom ikke annet er oppgitt, benytt fordelingen 93 % fossil diesel, 7 % biodiesel | P25: NIRAS' erfaringstall.
B26: Armeringsstål | C26: L/tkm | D26: =IF(F26="",E26,F26) -> 0.02 | E26: 0.02 | G26: kWh/tkm | H26: 0 | I26: Ingen standardverdi | K26: % | L26: 0 | M26: 0.07 | N26: 0.93 | O26: Tilsvarer for eksempel lastekapasitet 30 tonn og forbruk 0,6 L/km. Dersom ikke annet er oppgitt, benytt fordelingen 93 % fossil diesel, 7 % biodiesel | P26: NIRAS' erfaringstall.
B27: Topeka | C27: L/tkm | D27: =IF(F27="",E27,F27) -> 0.02 | E27: 0.02 | G27: kWh/tkm | H27: 0 | I27: Ingen standardverdi | K27: % | L27: 0 | M27: 0.07 | N27: 0.93 | O27: Tilsvarer for eksempel lastekapasitet 30 tonn og forbruk 0,6 L/km. Dersom ikke annet er oppgitt, benytt fordelingen 93 % fossil diesel, 7 % biodiesel | P27: NIRAS' erfaringstall.
B28: Frostsikringselementer tunnel | C28: L/tkm | D28: 0.02 | E28: 0.02 | G28: kWh/tkm | H28: 0 | I28: Ingen standardverdi | K28: % | L28: 0 | M28: 0.07 | N28: 0.93 | O28: Tilsvarer for eksempel lastekapasitet 30 tonn og forbruk 0,6 L/km. Dersom ikke annet er oppgitt, benytt fordelingen 93 % fossil diesel, 7 % biodiesel | P28: NIRAS' erfaringstall.
B29: Transport av andre masser/materialer med lastebil | C29: L/tkm | D29: 0.02 | E29: =0.6/30 -> 0.02 | G29: kWh/tkm | H29: =IF(J29="",0,J29) -> 0 | I29: Ingen standardverdi | K29: % | L29: 0 | M29: 0.07 | N29: =1-L29-M29 -> 0.93 | O29: Tilsvarer for eksempel lastekapasitet 30 tonn og forbruk 0,6 L/km. Dersom ikke annet er oppgitt, benytt fordelingen 93 % fossil diesel, 7 % biodiesel | P29: NIRAS' erfaringstall.
B30: Energiforbruk og -kilder anleggsarbeid | C30: Diesel | G30: Elektrisitet | K30: Fordeling mellom brensler
B31: Energiforbruk veivals | C31: L/h | D31: =IF(F31="",E31,F31) -> 3 | E31: 3 | G31: kW | H31: =IF(J31="",0,J31) -> 0 | I31: Ingen standardverdi | K31: % | L31: 0 | M31: 0.07 | N31: =1-M31-L31 -> 0.93 | O31: Dersom ikke annet er oppgitt, benytt fordelingen 93 % fossil diesel, 7 % biodiesel | P31: NIRAS' erfaringstall.
B32: Energiforbruk traktor | C32: L/h | D32: 5 | E32: 5 | G32: kW | H32: =IF(J32="",0,J32) -> 0 | I32: Ingen standardverdi | K32: % | L32: 0 | M32: 0.07 | N32: =1-M32-L32 -> 0.93 | O32: Dersom ikke annet er oppgitt, benytt fordelingen 93 % fossil diesel, 7 % biodiesel | P32: NIRAS' erfaringstall.
B33: Energiforbruk asfaltutlegger | C33: L/h | D33: 3 | E33: 3 | G33: kW | H33: 0 | I33: Ingen standardverdi | K33: % | L33: 0 | M33: 0.07 | N33: 0.93 | O33: Dersom ikke annet er oppgitt, benytt fordelingen 93 % fossil diesel, 7 % biodiesel | P33: NIRAS' erfaringstall.
B34: Energiforbruk gravemaskin | C34: L/h | D34: 20 | E34: 20 | G34: kW | H34: 0 | I34: Ingen standardverdi | K34: % | L34: 0 | M34: 0.07 | N34: 0.93 | O34: Dersom ikke annet er oppgitt, benytt fordelingen 93 % fossil diesel, 7 % biodiesel | P34: NIRAS' erfaringstall.
B35: Energiforbruk grovknuser | C35: L/h | D35: 25 | E35: 25 | G35: kW | H35: 0 | I35: Ingen standardverdi | K35: % | L35: 0 | M35: 0.07 | N35: 0.93 | O35: Dersom ikke annet er oppgitt, benytt fordelingen 93 % fossil diesel, 7 % biodiesel | P35: NIRAS' erfaringstall.
B36: Energiforbruk finknuser | C36: L/h | D36: =IF(F36="",E36,F36) -> 25 | E36: 25 | G36: kW | H36: 0 | I36: Ingen standardverdi | K36: % | L36: 0 | M36: 0.07 | N36: 0.93 | O36: Dersom ikke annet er oppgitt, benytt fordelingen 93 % fossil diesel, 7 % biodiesel | P36: NIRAS' erfaringstall.
B37: Energiforbruk tårnkran til bru og kulvert | C37: L/h | D37: =IF(F37="",0,F37) -> 0 | E37: Ingen standardverdi | G37: kW | H37: =IF(J37="",I37,J37) -> 48.6 | I37: 48.6 | K37: % | L37: 1 | M37: 0 | N37: =1-M37-L37 -> 0 | O37: Dersom ikke annet er oppgitt, benytt 100 % el | P37: Datablad Potain MDT 178 - 54 kVA. Antar PF 0,9.
B38: Energiforbruk veimerking | C38: L/m | D38: =IF(F38="",E38,F38) -> 0.0059 | E38: 0.0059 | G38: kW | H38: =IF(J38="",0,J38) -> 0 | I38: Ingen standardverdi | K38: % | L38: 0 | M38: 0.07 | N38: 0.93 | O38: Dersom ikke annet er oppgitt, benytt fordelingen 93 % fossil diesel, 7 % biodiesel | P38: NIRAS' erfaringstall.
B39: Energiforbruk etablering av grøft | C39: L/m | D39: 40 | E39: 40 | G39: kWh/m | H39: 0 | I39: Ingen standardverdi | K39: % | L39: 0 | M39: 0.07 | N39: 0.93 | O39: Dersom ikke annet er oppgitt, benytt 100 % el | P39: Straume, Krogsæter, NOTAT: Utredning og kravspesifikasjon til EFFEKT 6.6, Del 3: Videreutvikling av Klimamodulen. Lukket grøft til drenering "Grave grøfteprofil, nedsetting kummer, planering for rør i grøft og stikkrenner, omfylling og gjenfylling. 1 maskintime pr meter grøft"
B40: Energiforbruk anleggsarbeid autovern | C40: L/m | D40: 0.4 | E40: 0.4 | G40: kWh/m | H40: =IF(J40="",0,J40) -> 0 | I40: Ingen standardverdi | K40: % | L40: 0 | M40: 0.07 | N40: 0.93 | O40: Dersom ikke annet er oppgitt, benytt fordelingen 93 % fossil diesel, 7 % biodiesel | P40: Antar at aggregat bakpå en lastebil bruker 4 L/t på utsetting av autovern, og at det legges 80 m autovern per dag for fire-felts vei. Én dag defineres som 8 timer. Da får man 32 liter diesel/dag. 32 liter diesel per dag / 80 m autovern per dag => 0,4 liter diesel/m. Tallet er verifisert av Marianne Gjerde i Arvid Gjerde AS, som i mailkommunikasjon den 14.04.20 sier at deres pelerigg bruker 0,42 liter pr meter montert rekkverk i snitt på ett år.
B41: Energiforbruk hjullaster/traktor til kantklipp | C41: L/h | D41: 7.5 | E41: 7.5 | G41: kW | H41: =IF(J41="",0,J41) -> 0 | I41: Ingen standardverdi | K41: % | L41: 0 | M41: 0.07 | N41: =1-M41-L41 -> 0.93 | O41: Verdi burde verifiseres med flere kilder. Dersom ikke annet er oppgitt, benytt fordelingen 93 % fossil diesel, 7 % biodiesel | P41: NIRAS' erfaringstall.
B42: Energiforbruk hjullaster/traktor til feiing | C42: L/h | D42: =IF(F42="",E42,F42) -> 7.5 | E42: 7.5 | G42: kW | H42: =IF(J42="",0,J42) -> 0 | I42: Ingen standardverdi | K42: % | L42: 0 | M42: 0.07 | N42: =1-M42-L42 -> 0.93 | O42: Verdi burde verifiseres med flere kilder. Forbruk er per felt. Dersom ikke annet er oppgitt, benytt fordelingen 93 % fossil diesel, 7 % biodiesel. | P42: NIRAS' erfaringstall.
B43: Energiforbruk saltbil | C43: L/km | D43: 0.64 | E43: 0.64 | G43: kWh/km | H43: =IF(J43="",0,J43) -> 0 | I43: Ingen standardverdi | K43: % | L43: 0 | M43: 0.07 | N43: =1-M43-L43 -> 0.93 | O43: Forbruk er per to felt. Dersom ikke annet er oppgitt, benytt fordelingen 93 % fossil diesel, 7 % biodiesel | P43: Gjennomsnitt for vintervedlikeholdskjøretøy fra "Life cycle assessment of winter road maintenance", Vignisdottir et. Al, The International Journal of Life Cycle Assessment (2020)
B44: Energiforbruk brøytebil | C44: L/km | D44: 0.64 | E44: 0.64 | G44: kWh/km | H44: =IF(J44="",0,J44) -> 0 | I44: Ingen standardverdi | K44: % | L44: 0 | M44: 0.07 | N44: =1-M44-L44 -> 0.93 | O44: Forbruk er per brøyterunde. Dersom ikke annet er oppgitt, benytt fordelingen 93 % fossil diesel, 7 % biodiesel | P44: Gjennomsnitt for vintervedlikeholdskjøretøy fra "Life cycle assessment of winter road maintenance", Vignisdottir et. Al, The International Journal of Life Cycle Assessment (2020)
B45: Arbeidshastighet anleggsmaskiner
B46: Arbeidshastighet veivals | C46: t/h | D46: =IF(F46="",E46,F46) -> 75 | E46: 75 | O46: Faktoren er satt for å få ca. samme dieselforbruk som i VegLCA: 0,04 L/m2 asfalt lagt. | P46: Samkjøringsprosjektet mellom NV-GHG og VegLCA
B47: Arbeidshastighet traktor | C47: t/h | D47: 300 | E47: 300 | P47: NIRAS' erfaringstall.
B48: Arbeidshastighet asfaltutlegger | C48: t/h | D48: 3.75 | E48: 3.75 | O48: Faktoren er satt for å få ca. samme dieselforbruk som i VegLCA: 0,8 L/tonn asfalt lagt. | P48: Samkjøringsprosjektet mellom NV-GHG og VegLCA
B49: Arbeidshastighet gravemaskin | C49: t/h | D49: 150 | E49: 150 | P49: NIRAS' erfaringstall.
B50: Arbeidshastighet grovknuser | C50: t/h | D50: 125 | E50: 125 | P50: NIRAS' erfaringstall.
B51: Arbeidshastighet finknuser | C51: t/h | D51: 250 | E51: 250 | P51: NIRAS' erfaringstall.
B52: Arbeidshastighet kran første 400 m2 av bru | C52: m2/h | D52: 1.666666667 | E52: =400/240 -> 1.666666667 | O52: Verdi burde verifiseres med flere kilder. Store variasjoner avhengig av brutype, fundamenteringsforhold (geologi) og bruens størrelse. Faktoren kan sannsynligvis variere med pluss/minus 60 % avhengig av forholdene | P52: NIRAS' erfaringstall.
B53: Arbeidshastighet kran resterende del av bru | C53: m2/h | D53: 3.333333333 | E53: =400/120 -> 3.333333333 | O53: Verdi burde verifiseres med flere kilder. Store variasjoner avhengig av brutype, fundamenteringsforhold (geologi) og bruens størrelse. Faktoren kan sannsynligvis variere med pluss/minus 60 % avhengig av forholdene | P53: NIRAS' erfaringstall.
B54: Arbeidshastighet kran kulvert | C54: h/stk | D54: 18 | E54: 18 | O54: For en prefabrikert elementkulvert ca. 10 timer. For en plasstøpt ca 25 timer. Bruker 18 timer som et gjennomsnitt. Verdi burde verifiseres med flere kilder. | P54: NIRAS' erfaringstall.
B55: Arbeidshastighet gravemaskin grøfterensk | C55: m/h | D55: 300 | E55: 300 | P55: NIRAS' erfaringstall.
B56: Arbeidshastighet traktor/hjullaster feiing | C56: m/h | D56: 2000 | E56: 2000 | P56: NIRAS' erfaringstall.
B57: Arbeidshastighet traktor/hjullaster kantklipp | C57: m/h | D57: 7500 | E57: =1000/(8/60) -> 7500 | P57: Arbeidshastighet er gjennomsnitt av verdier oppgitt av Maskinimportøren den 15.04.20, som sier deres traktor til kantklipping bruker ca. 8 min på å klippe 1-1,25 m kant i 1 km

Sheet Utslippsfaktorer
B2: Innsatsfaktor | C2: Enhet | D2: Utslippsfaktor brukt i beregninger | E2: Standard utslippsfaktor | F2: Prosjektspesifikk utslippsfaktor | G2: Kommentar | H2: Dokumentasjon standardverdi | I2: Dokumentasjon prosjektspesifikk verdi
B3: Materialer
B4: Aluminium | C4: kg CO2e/kg | D4: =IF(F4="",E4,F4) -> - | E4: - | G4: Brukes ikke i denne versjonen
B5: Armeringsstål | C5: kg CO2e/kg | D5: =IF(F5="",E5,F5) -> 0.6186 | E5: 0.6186 | H5: Gjennomsnitt av tre EPD'er på det norske markedet; NEPD-2084-939-EN (A1-A4), NEPD-2083-939-EN (A1-A4) og NEPD-2082-939-EN (A1-A4)
B6: Asfaltgrusbetong (Agb) | C6: kg CO2e/kg | D6: 0.0512 | E6: 0.0512 | H6: NEPD-1390-456-NO (A1-A3). Bransjegjennomsnitt, EPD utarbeidet av EBA (Entreprenørforeningen Bygg og Anlegg) v/Lemminkainen Norge AS, Skanska Asfalt AS, Peab Asfalt AS, NCC Industry og Veidekke Industri AS
B7: Skjelettasfalt (Ska) | C7: kg CO2e/kg | D7: =IF(F7="",E7,F7) -> 0.0657 | E7: 0.0657 | H7: NEPD-1391-456-NO (A1-A3). Bransjegjennomsnitt, EPD utarbeidet av EBA (Entreprenørforeningen Bygg og Anlegg) v/Lemminkainen Norge AS, Skanska Asfalt AS, Peab Asfalt AS, NCC Industry og Veidekke Industri AS
B8: Asfaltgrus (Ag) | C8: kg CO2e/kg | D8: 0.0488 | E8: 0.0488 | H8: NEPD-1489-456-NO (A1-A3). Bransjegjennomsnitt, EPD utarbeidet av EBA (Entreprenørforeningen Bygg og Anlegg) v/Lemminkainen Norge AS, Skanska Asfalt AS, Peab Asfalt AS, NCC Industry og Veidekke Industri AS
B9: Topeka | C9: kg CO2e/kg | D9: =IF(F9="",E9,F9) -> 0.184 | E9: 0.184 | H9: Antatt likt som støpeasfalt; 'Mastic asphalt' hentet fra Ecoinvent v3 med nordisk el-mix 2012-2016 i produksjon. Som VegLCA.
B10: Betong | C10: kg CO2e/kg | D10: 0.1375 | E10: 0.1375 | G10: Baseline: =410/2400 | H10: NB 37 (2019). Bransjereferanse for B35. NB 37 sier at ved omgjøring fra kg/kg til kg/m3 skal densiteten 2400 kg/m3 brukes.
B11: PE-skum | C11: kg CO2e/kg | D11: - | E11: - | G11: Brukes ikke i denne versjonen
B12: Salt | C12: kg CO2e/kg | D12: 0.179 | E12: 0.179 | H12: EcoInvent; "Sodium chloride, powder {RER} | production | Conseq, U"
B13: Sprøytebetong | C13: kg CO2e/kg | D13: 0.2524 | E13: 0.2524 | H13: NEPD-1509-512-EN (A1-A4).
B14: Stål | C14: kg CO2e/kg | D14: 2.1235 | E14: 2.1235 | H14: Gjennomsnitt av tre EPD'er på det norske markedet; NEPD-1914-839-EN (A1-A4), NEPD-1915-839-EN (A1-A4) og NEPD-1928-851-SE (A1-A4)
B15: XPS | C15: kg CO2e/kg | D15: 3.711 | E15: 3.711 | H15: NEPD-396-274-NO (A1-A4). Sundolitt, Brødrene Sunde AS. 33mm tykkelse
B16: XPS/betongelement | C16: kg CO2e/m2 | D16: 66.815 | E16: 66.815 | H16: NEPD-351-243-NO (A1-A4). Elementene består av 150mm betong og 50mm XPS kpa isolasjon, til sammen 200mm tykkelse.
B17: Energi
B18: Biodiesel (WTT) | C18: kg CO2e/liter | D18: 1.92 | E18: 1.92 | H18: NS-EN 16258:2012. Tabell A.1 Biodiesel "well to tank"
B19: Fossil diesel forbrenning (TTW) | C19: kg CO2e/liter | D19: 2.67 | E19: 2.67 | H19: NS-EN 16258:2012. Tabell A.1 Diesel "tank to wheel"
B20: Fossil diesel (WTW) | C20: kg CO2e/liter | D20: 3.24 | E20: 3.24 | H20: NS-EN 16258-2012. Tabell A.1 Diesel "well to wheel"
B21: Sprengstoff (CTG) | C21: kg CO2e/kg | D21: 2.678 | E21: 2.678 | H21: NEPD-1591-615-EN (A1-A4).
B22: Sprengstoff detonering | C22: kg CO2e/kg | D22: 0.152 | E22: 0.152 | H22: NEPD-1591-615-EN (A5-2).
B23: Elektrisitet anleggsfase, norsk miks | C23: kg CO2e/kWh | D23: =IF(F23="",E23,F23) -> 0.02638 | E23: 0.02638 | H23: NS 3720:2018. Utslipp for år 2020 er estimert med utgangspunkt i utslipp for 2015 der det antas at den årlige reduksjonen er lineær frem mot 2050.
B24: Elektrisitet 55 år, europeisk miks | C24: kg CO2e/kWh | D24: =IF(F24="",E24,F24) -> 0.136 | E24: 0.136 | H24: NS 3720:2018. Estimerte utslipp i år 2075.
B25: Arealbruk
B26: Skog - lav bonitet | C26: kg CO2e/m2 | D26: =IF(F26="",E26,F26) -> 60.4 | E26: =12+48.4 -> 60.4 | H26: "Metode for beregning av CO2-utslipp knyttet til arealbeslag ved vegbygging" (Asplan Viak, 2015). Tabell 3
B27: Skog - middels bonitet | C27: kg CO2e/m2 | D27: =IF(F27="",E27,F27) -> 68.7 | E27: =20.3+48.4 -> 68.7 | H27: "Metode for beregning av CO2-utslipp knyttet til arealbeslag ved vegbygging" (Asplan Viak, 2015). Tabell 3
B28: Skog - høy bonitet | C28: kg CO2e/m2 | D28: =IF(F28="",E28,F28) -> 80.3 | E28: =31.9+48.4 -> 80.3 | H28: "Metode for beregning av CO2-utslipp knyttet til arealbeslag ved vegbygging" (Asplan Viak, 2015). Tabell 3
B29: Myr | C29: kg CO2e/m2 | D29: =IF(F29="",E29,F29) -> 201.9 | E29: =201.9 -> 201.9 | H29: "Metode for beregning av CO2-utslipp knyttet til arealbeslag ved vegbygging" (Asplan Viak, 2015). Tabell 3
B30: Jordbruksareal | C30: kg CO2e/m2 | D30: =IF(F30="",E30,F30) -> 55.1 | E30: =55.1 -> 55.1 | H30: "Metode for beregning av CO2-utslipp knyttet til arealbeslag ved vegbygging" (Asplan Viak, 2015). Tabell 3

Sheet Resultat
B3: Tabell 1: Utslipp over livsløpet i tonn CO2e
B4: Kategori | C4: Totalt over analyseperiode | D4: År i livsløpet
D5: 0 | E5: 1 | F5: 2 | G5: 3 | H5: 4 | I5: 5 | J5: 6 | K5: 7 | L5: 8 | M5: 9 | N5: 10 | O5: 11 | P5: 12 | Q5: 13 | R5: 14 | S5: 15 | T5: 16 | U5: 17 | V5: 18 | W5: 19 | X5: 20 | Y5: 21 | Z5: 22 | AA5: 23 | AB5: 24 | AC5: 25 | AD5: 26 | AE5: 27 | AF5: 28 | AG5: 29 | AH5: 30 | AI5: 31 | AJ5: 32 | AK5: 33 | AL5: 34 | AM5: 35 | AN5: 36 | AO5: 37 | AP5: 38 | AQ5: 39 | AR5: 40 | AS5: 41 | AT5: 42 | AU5: 43 | AV5: 44 | AW5: 45 | AX5: 46 | AY5: 47 | AZ5: 48 | BA5: 49 | BB5: 50 | BC5: 51 | BD5: 52 | BE5: 53 | BF5: 54 | BG5: 55 | BH5: 56 | BI5: 57 | BJ5: 58 | BK5: 59 | BL5: 60
B6: Byggefase | C6: =SUMIF($D$5:$BL$5,"<=" & 'Prosjektbeskrivelse og inndata'!$C$14,D6:BL6) -> 0 | D6: =IFERROR(SUMIF(Beregninger!G:G,"År 0",Beregninger!M:M),"Ikke definert") -> 0 | E6: 0 | F6: 0 | G6: 0 | H6: 0 | I6: 0 | J6: 0 | K6: 0 | L6: 0 | M6: 0 | N6: 0 | O6: 0 | P6: 0 | Q6: 0 | R6: 0 | S6: 0 | T6: 0 | U6: 0 | V6: 0 | W6: 0 | X6: 0 | Y6: 0 | Z6: 0 | AA6: 0 | AB6: 0 | AC6: 0 | AD6: 0 | AE6: 0 | AF6: 0 | AG6: 0 | AH6: 0 | AI6: 0 | AJ6: 0 | AK6: 0 | AL6: 0 | AM6: 0 | AN6: 0 | AO6: 0 | AP6: 0 | AQ6: 0 | AR6: 0 | AS6: 0 | AT6: 0 | AU6: 0 | AV6: 0 | AW6: 0 | AX6: 0 | AY6: 0 | AZ6: 0 | BA6: 0 | BB6: 0 | BC6: 0 | BD6: 0 | BE6: 0 | BF6: 0 | BG6: 0 | BH6: 0 | BI6: 0 | BJ6: 0 | BK6: 0 | BL6: 0
B7: Arealbruk | C7: =SUMIF($D$5:$BL$5,"<=" & 'Prosjektbeskrivelse og inndata'!$C$14,D7:BL7) -> 0 | D7: =C147 -> 0 | E7: 0 | F7: 0 | G7: 0 | H7: 0 | I7: 0 | J7: 0 | K7: 0 | L7: 0 | M7: 0 | N7: 0 | O7: 0 | P7: 0 | Q7: 0 | R7: 0 | S7: 0 | T7: 0 | U7: 0 | V7: 0 | W7: 0 | X7: 0 | Y7: 0 | Z7: 0 | AA7: 0 | AB7: 0 | AC7: 0 | AD7: 0 | AE7: 0 | AF7: 0 | AG7: 0 | AH7: 0 | AI7: 0 | AJ7: 0 | AK7: 0 | AL7: 0 | AM7: 0 | AN7: 0 | AO7: 0 | AP7: 0 | AQ7: 0 | AR7: 0 | AS7: 0 | AT7: 0 | AU7: 0 | AV7: 0 | AW7: 0 | AX7: 0 | AY7: 0 | AZ7: 0 | BA7: 0 | BB7: 0 | BC7: 0 | BD7: 0 | BE7: 0 | BF7: 0 | BG7: 0 | BH7: 0 | BI7: 0 | BJ7: 0 | BK7: 0 | BL7: 0
B8: Drift | C8: =SUMIF($D$5:$BL$5,"<=" & 'Prosjektbeskrivelse og inndata'!$C$14,D8:BL8) -> 0 | D8: 0 | E8: =SUMIFS(Beregninger!O$126:O$311,Beregninger!$H$126:$H$311,Resultat!$B8) -> 0 | F8: =SUMIFS(Beregninger!P$126:P$311,Beregninger!$H$126:$H$311,Resultat!$B8) -> 0 | G8: =SUMIFS(Beregninger!Q$126:Q$311,Beregninger!$H$126:$H$311,Resultat!$B8) -> 0 | H8: =SUMIFS(Beregninger!R$126:R$311,Beregninger!$H$126:$H$311,Resultat!$B8) -> 0 | I8: =SUMIFS(Beregninger!S$126:S$311,Beregninger!$H$126:$H$311,Resultat!$B8) -> 0 | J8: =SUMIFS(Beregninger!T$126:T$311,Beregninger!$H$126:$H$311,Resultat!$B8) -> 0 | K8: =SUMIFS(Beregninger!U$126:U$311,Beregninger!$H$126:$H$311,Resultat!$B8) -> 0 | L8: =SUMIFS(Beregninger!V$126:V$311,Beregninger!$H$126:$H$311,Resultat!$B8) -> 0 | M8: =SUMIFS(Beregninger!W$126:W$311,Beregninger!$H$126:$H$311,Resultat!$B8) -> 0 | N8: =SUMIFS(Beregninger!X$126:X$311,Beregninger!$H$126:$H$311,Resultat!$B8) -> 0 | O8: =SUMIFS(Beregninger!Y$126:Y$311,Beregninger!$H$126:$H$311,Resultat!$B8) -> 0 | P8: =SUMIFS(Beregninger!Z$126:Z$311,Beregninger!$H$126:$H$311,Resultat!$B8) -> 0 | Q8: =SUMIFS(Beregninger!AA$126:AA$311,Beregninger!$H$126:$H$311,Resultat!$B8) -> 0 | R8: =SUMIFS(Beregninger!AB$126:AB$311,Beregninger!$H$126:$H$311,Resultat!$B8) -> 0 | S8: =SUMIFS(Beregninger!AC$126:AC$311,Beregninger!$H$126:$H$311,Resultat!$B8) -> 0 | T8: =SUMIFS(Beregninger!AD$126:AD$311,Beregninger!$H$126:$H$311,Resultat!$B8) -> 0 | U8: =SUMIFS(Beregninger!AE$126:AE$311,Beregninger!$H$126:$H$311,Resultat!$B8) -> 0 | V8: =SUMIFS(Beregninger!AF$126:AF$311,Beregninger!$H$126:$H$311,Resultat!$B8) -> 0 | W8: =SUMIFS(Beregninger!AG$126:AG$311,Beregninger!$H$126:$H$311,Resultat!$B8) -> 0 | X8: =SUMIFS(Beregninger!AH$126:AH$311,Beregninger!$H$126:$H$311,Resultat!$B8) -> 0 | Y8: =SUMIFS(Beregninger!AI$126:AI$311,Beregninger!$H$126:$H$311,Resultat!$B8) -> 0 | Z8: =SUMIFS(Beregninger!AJ$126:AJ$311,Beregninger!$H$126:$H$311,Resultat!$B8) -> 0 | AA8: =SUMIFS(Beregninger!AK$126:AK$311,Beregninger!$H$126:$H$311,Resultat!$B8) -> 0 | AB8: =SUMIFS(Beregninger!AL$126:AL$311,Beregninger!$H$126:$H$311,Resultat!$B8) -> 0 | AC8: =SUMIFS(Beregninger!AM$126:AM$311,Beregninger!$H$126:$H$311,Resultat!$B8) -> 0 | AD8: =SUMIFS(Beregninger!AN$126:AN$311,Beregninger!$H$126:$H$311,Resultat!$B8) -> 0 | AE8: =SUMIFS(Beregninger!AO$126:AO$311,Beregninger!$H$126:$H$311,Resultat!$B8) -> 0 | AF8: =SUMIFS(Beregninger!AP$126:AP$311,Beregninger!$H$126:$H$311,Resultat!$B8) -> 0 | AG8: =SUMIFS(Beregninger!AQ$126:AQ$311,Beregninger!$H$126:$H$311,Resultat!$B8) -> 0 | AH8: =SUMIFS(Beregninger!AR$126:AR$311,Beregninger!$H$126:$H$311,Resultat!$B8) -> 0 | AI8: =SUMIFS(Beregninger!AS$126:AS$311,Beregninger!$H$126:$H$311,Resultat!$B8) -> 0 | AJ8: =SUMIFS(Beregninger!AT$126:AT$311,Beregninger!$H$126:$H$311,Resultat!$B8) -> 0 | AK8: =SUMIFS(Beregninger!AU$126:AU$311,Beregninger!$H$126:$H$311,Resultat!$B8) -> 0 | AL8: =SUMIFS(Beregninger!AV$126:AV$311,Beregninger!$H$126:$H$311,Resultat!$B8) -> 0 | AM8: =SUMIFS(Beregninger!AW$126:AW$311,Beregninger!$H$126:$H$311,Resultat!$B8) -> 0 | AN8: =SUMIFS(Beregninger!AX$126:AX$311,Beregninger!$H$126:$H$311,Resultat!$B8) -> 0 | AO8: =SUMIFS(Beregninger!AY$126:AY$311,Beregninger!$H$126:$H$311,Resultat!$B8) -> 0 | AP8: =SUMIFS(Beregninger!AZ$126:AZ$311,Beregninger!$H$126:$H$311,Resultat!$B8) -> 0 | AQ8: =SUMIFS(Beregninger!BA$126:BA$311,Beregninger!$H$126:$H$311,Resultat!$B8) -> 0 | AR8: =SUMIFS(Beregninger!BB$126:BB$311,Beregninger!$H$126:$H$311,Resultat!$B8) -> 0 | AS8: =SUMIFS(Beregninger!BC$126:BC$311,Beregninger!$H$126:$H$311,Resultat!$B8) -> 0 | AT8: =SUMIFS(Beregninger!BD$126:BD$311,Beregninger!$H$126:$H$311,Resultat!$B8) -> 0 | AU8: =SUMIFS(Beregninger!BE$126:BE$311,Beregninger!$H$126:$H$311,Resultat!$B8) -> 0 | AV8: =SUMIFS(Beregninger!BF$126:BF$311,Beregninger!$H$126:$H$311,Resultat!$B8) -> 0 | AW8: =SUMIFS(Beregninger!BG$126:BG$311,Beregninger!$H$126:$H$311,Resultat!$B8) -> 0 | AX8: =SUMIFS(Beregninger!BH$126:BH$311,Beregninger!$H$126:$H$311,Resultat!$B8) -> 0 | AY8: =SUMIFS(Beregninger!BI$126:BI$311,Beregninger!$H$126:$H$311,Resultat!$B8) -> 0 | AZ8: =SUMIFS(Beregninger!BJ$126:BJ$311,Beregninger!$H$126:$H$311,Resultat!$B8) -> 0 | BA8: =SUMIFS(Beregninger!BK$126:BK$311,Beregninger!$H$126:$H$311,Resultat!$B8) -> 0 | BB8: =SUMIFS(Beregninger!BL$126:BL$311,Beregninger!$H$126:$H$311,Resultat!$B8) -> 0 | BC8: =SUMIFS(Beregninger!BM$126:BM$311,Beregninger!$H$126:$H$311,Resultat!$B8) -> 0 | BD8: =SUMIFS(Beregninger!BN$126:BN$311,Beregninger!$H$126:$H$311,Resultat!$B8) -> 0 | BE8: =SUMIFS(Beregninger!BO$126:BO$311,Beregninger!$H$126:$H$311,Resultat!$B8) -> 0 | BF8: =SUMIFS(Beregninger!BP$126:BP$311,Beregninger!$H$126:$H$311,Resultat!$B8) -> 0 | BG8: =SUMIFS(Beregninger!BQ$126:BQ$311,Beregninger!$H$126:$H$311,Resultat!$B8) -> 0 | BH8: =SUMIFS(Beregninger!BR$126:BR$311,Beregninger!$H$126:$H$311,Resultat!$B8) -> 0 | BI8: =SUMIFS(Beregninger!BS$126:BS$311,Beregninger!$H$126:$H$311,Resultat!$B8) -> 0 | BJ8: =SUMIFS(Beregninger!BT$126:BT$311,Beregninger!$H$126:$H$311,Resultat!$B8) -> 0 | BK8: =SUMIFS(Beregninger!BU$126:BU$311,Beregninger!$H$126:$H$311,Resultat!$B8) -> 0 | BL8: =SUMIFS(Beregninger!BV$126:BV$311,Beregninger!$H$126:$H$311,Resultat!$B8) -> 0
B9: Vedlikehold | C9: =SUMIF($D$5:$BL$5,"<=" & 'Prosjektbeskrivelse og inndata'!$C$14,D9:BL9) -> 0 | D9: 0 | E9: =SUMIFS(Beregninger!O$126:O$311,Beregninger!$H$126:$H$311,Resultat!$B9) -> 0 | F9: =SUMIFS(Beregninger!P$126:P$311,Beregninger!$H$126:$H$311,Resultat!$B9) -> 0 | G9: =SUMIFS(Beregninger!Q$126:Q$311,Beregninger!$H$126:$H$311,Resultat!$B9) -> 0 | H9: =SUMIFS(Beregninger!R$126:R$311,Beregninger!$H$126:$H$311,Resultat!$B9) -> 0 | I9: =SUMIFS(Beregninger!S$126:S$311,Beregninger!$H$126:$H$311,Resultat!$B9) -> 0 | J9: =SUMIFS(Beregninger!T$126:T$311,Beregninger!$H$126:$H$311,Resultat!$B9) -> 0 | K9: =SUMIFS(Beregninger!U$126:U$311,Beregninger!$H$126:$H$311,Resultat!$B9) -> 0 | L9: =SUMIFS(Beregninger!V$126:V$311,Beregninger!$H$126:$H$311,Resultat!$B9) -> 0 | M9: =SUMIFS(Beregninger!W$126:W$311,Beregninger!$H$126:$H$311,Resultat!$B9) -> 0 | N9: =SUMIFS(Beregninger!X$126:X$311,Beregninger!$H$126:$H$311,Resultat!$B9) -> 0 | O9: =SUMIFS(Beregninger!Y$126:Y$311,Beregninger!$H$126:$H$311,Resultat!$B9) -> 0 | P9: =SUMIFS(Beregninger!Z$126:Z$311,Beregninger!$H$126:$H$311,Resultat!$B9) -> 0 | Q9: =SUMIFS(Beregninger!AA$126:AA$311,Beregninger!$H$126:$H$311,Resultat!$B9) -> 0 | R9: =SUMIFS(Beregninger!AB$126:AB$311,Beregninger!$H$126:$H$311,Resultat!$B9) -> 0 | S9: =SUMIFS(Beregninger!AC$126:AC$311,Beregninger!$H$126:$H$311,Resultat!$B9) -> 0 | T9: =SUMIFS(Beregninger!AD$126:AD$311,Beregninger!$H$126:$H$311,Resultat!$B9) -> 0 | U9: =SUMIFS(Beregninger!AE$126:AE$311,Beregninger!$H$126:$H$311,Resultat!$B9) -> 0 | V9: =SUMIFS(Beregninger!AF$126:AF$311,Beregninger!$H$126:$H$311,Resultat!$B9) -> 0 | W9: =SUMIFS(Beregninger!AG$126:AG$311,Beregninger!$H$126:$H$311,Resultat!$B9) -> 0 | X9: =SUMIFS(Beregninger!AH$126:AH$311,Beregninger!$H$126:$H$311,Resultat!$B9) -> 0 | Y9: =SUMIFS(Beregninger!AI$126:AI$311,Beregninger!$H$126:$H$311,Resultat!$B9) -> 0 | Z9: =SUMIFS(Beregninger!AJ$126:AJ$311,Beregninger!$H$126:$H$311,Resultat!$B9) -> 0 | AA9: =SUMIFS(Beregninger!AK$126:AK$311,Beregninger!$H$126:$H$311,Resultat!$B9) -> 0 | AB9: =SUMIFS(Beregninger!AL$126:AL$311,Beregninger!$H$126:$H$311,Resultat!$B9) -> 0 | AC9: =SUMIFS(Beregninger!AM$126:AM$311,Beregninger!$H$126:$H$311,Resultat!$B9) -> 0 | AD9: =SUMIFS(Beregninger!AN$126:AN$311,Beregninger!$H$126:$H$311,Resultat!$B9) -> 0 | AE9: =SUMIFS(Beregninger!AO$126:AO$311,Beregninger!$H$126:$H$311,Resultat!$B9) -> 0 | AF9: =SUMIFS(Beregninger!AP$126:AP$311,Beregninger!$H$126:$H$311,Resultat!$B9) -> 0 | AG9: =SUMIFS(Beregninger!AQ$126:AQ$311,Beregninger!$H$126:$H$311,Resultat!$B9) -> 0 | AH9: =SUMIFS(Beregninger!AR$126:AR$311,Beregninger!$H$126:$H$311,Resultat!$B9) -> 0 | AI9: =SUMIFS(Beregninger!AS$126:AS$311,Beregninger!$H$126:$H$311,Resultat!$B9) -> 0 | AJ9: =SUMIFS(Beregninger!AT$126:AT$311,Beregninger!$H$126:$H$311,Resultat!$B9) -> 0 | AK9: =SUMIFS(Beregninger!AU$126:AU$311,Beregninger!$H$126:$H$311,Resultat!$B9) -> 0 | AL9: =SUMIFS(Beregninger!AV$126:AV$311,Beregninger!$H$126:$H$311,Resultat!$B9) -> 0 | AM9: =SUMIFS(Beregninger!AW$126:AW$311,Beregninger!$H$126:$H$311,Resultat!$B9) -> 0 | AN9: =SUMIFS(Beregninger!AX$126:AX$311,Beregninger!$H$126:$H$311,Resultat!$B9) -> 0 | AO9: =SUMIFS(Beregninger!AY$126:AY$311,Beregninger!$H$126:$H$311,Resultat!$B9) -> 0 | AP9: =SUMIFS(Beregninger!AZ$126:AZ$311,Beregninger!$H$126:$H$311,Resultat!$B9) -> 0 | AQ9: =SUMIFS(Beregninger!BA$126:BA$311,Beregninger!$H$126:$H$311,Resultat!$B9) -> 0 | AR9: =SUMIFS(Beregninger!BB$126:BB$311,Beregninger!$H$126:$H$311,Resultat!$B9) -> 0 | AS9: =SUMIFS(Beregninger!BC$126:BC$311,Beregninger!$H$126:$H$311,Resultat!$B9) -> 0 | AT9: =SUMIFS(Beregninger!BD$126:BD$311,Beregninger!$H$126:$H$311,Resultat!$B9) -> 0 | AU9: =SUMIFS(Beregninger!BE$126:BE$311,Beregninger!$H$126:$H$311,Resultat!$B9) -> 0 | AV9: =SUMIFS(Beregninger!BF$126:BF$311,Beregninger!$H$126:$H$311,Resultat!$B9) -> 0 | AW9: =SUMIFS(Beregninger!BG$126:BG$311,Beregninger!$H$126:$H$311,Resultat!$B9) -> 0 | AX9: =SUMIFS(Beregninger!BH$126:BH$311,Beregninger!$H$126:$H$311,Resultat!$B9) -> 0 | AY9: =SUMIFS(Beregninger!BI$126:BI$311,Beregninger!$H$126:$H$311,Resultat!$B9) -> 0 | AZ9: =SUMIFS(Beregninger!BJ$126:BJ$311,Beregninger!$H$126:$H$311,Resultat!$B9) -> 0 | BA9: =SUMIFS(Beregninger!BK$126:BK$311,Beregninger!$H$126:$H$311,Resultat!$B9) -> 0 | BB9: =SUMIFS(Beregninger!BL$126:BL$311,Beregninger!$H$126:$H$311,Resultat!$B9) -> 0 | BC9: =SUMIFS(Beregninger!BM$126:BM$311,Beregninger!$H$126:$H$311,Resultat!$B9) -> 0 | BD9: =SUMIFS(Beregninger!BN$126:BN$311,Beregninger!$H$126:$H$311,Resultat!$B9) -> 0 | BE9: =SUMIFS(Beregninger!BO$126:BO$311,Beregninger!$H$126:$H$311,Resultat!$B9) -> 0 | BF9: =SUMIFS(Beregninger!BP$126:BP$311,Beregninger!$H$126:$H$311,Resultat!$B9) -> 0 | BG9: =SUMIFS(Beregninger!BQ$126:BQ$311,Beregninger!$H$126:$H$311,Resultat!$B9) -> 0 | BH9: =SUMIFS(Beregninger!BR$126:BR$311,Beregninger!$H$126:$H$311,Resultat!$B9) -> 0 | BI9: =SUMIFS(Beregninger!BS$126:BS$311,Beregninger!$H$126:$H$311,Resultat!$B9) -> 0 | BJ9: =SUMIFS(Beregninger!BT$126:BT$311,Beregninger!$H$126:$H$311,Resultat!$B9) -> 0 | BK9: =SUMIFS(Beregninger!BU$126:BU$311,Beregninger!$H$126:$H$311,Resultat!$B9) -> 0 | BL9: =SUMIFS(Beregninger!BV$126:BV$311,Beregninger!$H$126:$H$311,Resultat!$B9) -> 0
B10: Reasfaltering | C10: =SUMIF($D$5:$BL$5,"<=" & 'Prosjektbeskrivelse og inndata'!$C$14,D10:BL10) -> 0 | D10: 0 | E10: =SUMIFS(Beregninger!O$126:O$311,Beregninger!$H$126:$H$311,Resultat!$B10) -> 0 | F10: =SUMIFS(Beregninger!P$126:P$311,Beregninger!$H$126:$H$311,Resultat!$B10) -> 0 | G10: =SUMIFS(Beregninger!Q$126:Q$311,Beregninger!$H$126:$H$311,Resultat!$B10) -> 0 | H10: =SUMIFS(Beregninger!R$126:R$311,Beregninger!$H$126:$H$311,Resultat!$B10) -> 0 | I10: =SUMIFS(Beregninger!S$126:S$311,Beregninger!$H$126:$H$311,Resultat!$B10) -> 0 | J10: =SUMIFS(Beregninger!T$126:T$311,Beregninger!$H$126:$H$311,Resultat!$B10) -> 0 | K10: =SUMIFS(Beregninger!U$126:U$311,Beregninger!$H$126:$H$311,Resultat!$B10) -> 0 | L10: =SUMIFS(Beregninger!V$126:V$311,Beregninger!$H$126:$H$311,Resultat!$B10) -> 0 | M10: =SUMIFS(Beregninger!W$126:W$311,Beregninger!$H$126:$H$311,Resultat!$B10) -> 0 | N10: =SUMIFS(Beregninger!X$126:X$311,Beregninger!$H$126:$H$311,Resultat!$B10) -> 0 | O10: =SUMIFS(Beregninger!Y$126:Y$311,Beregninger!$H$126:$H$311,Resultat!$B10) -> 0 | P10: =SUMIFS(Beregninger!Z$126:Z$311,Beregninger!$H$126:$H$311,Resultat!$B10) -> 0 | Q10: =SUMIFS(Beregninger!AA$126:AA$311,Beregninger!$H$126:$H$311,Resultat!$B10) -> 0 | R10: =SUMIFS(Beregninger!AB$126:AB$311,Beregninger!$H$126:$H$311,Resultat!$B10) -> 0 | S10: =SUMIFS(Beregninger!AC$126:AC$311,Beregninger!$H$126:$H$311,Resultat!$B10) -> 0 | T10: =SUMIFS(Beregninger!AD$126:AD$311,Beregninger!$H$126:$H$311,Resultat!$B10) -> 0 | U10: =SUMIFS(Beregninger!AE$126:AE$311,Beregninger!$H$126:$H$311,Resultat!$B10) -> 0 | V10: =SUMIFS(Beregninger!AF$126:AF$311,Beregninger!$H$126:$H$311,Resultat!$B10) -> 0 | W10: =SUMIFS(Beregninger!AG$126:AG$311,Beregninger!$H$126:$H$311,Resultat!$B10) -> 0 | X10: =SUMIFS(Beregninger!AH$126:AH$311,Beregninger!$H$126:$H$311,Resultat!$B10) -> 0 | Y10: =SUMIFS(Beregninger!AI$126:AI$311,Beregninger!$H$126:$H$311,Resultat!$B10) -> 0 | Z10: =SUMIFS(Beregninger!AJ$126:AJ$311,Beregninger!$H$126:$H$311,Resultat!$B10) -> 0 | AA10: =SUMIFS(Beregninger!AK$126:AK$311,Beregninger!$H$126:$H$311,Resultat!$B10) -> 0 | AB10: =SUMIFS(Beregninger!AL$126:AL$311,Beregninger!$H$126:$H$311,Resultat!$B10) -> 0 | AC10: =SUMIFS(Beregninger!AM$126:AM$311,Beregninger!$H$126:$H$311,Resultat!$B10) -> 0 | AD10: =SUMIFS(Beregninger!AN$126:AN$311,Beregninger!$H$126:$H$311,Resultat!$B10) -> 0 | AE10: =SUMIFS(Beregninger!AO$126:AO$311,Beregninger!$H$126:$H$311,Resultat!$B10) -> 0 | AF10: =SUMIFS(Beregninger!AP$126:AP$311,Beregninger!$H$126:$H$311,Resultat!$B10) -> 0 | AG10: =SUMIFS(Beregninger!AQ$126:AQ$311,Beregninger!$H$126:$H$311,Resultat!$B10) -> 0 | AH10: =SUMIFS(Beregninger!AR$126:AR$311,Beregninger!$H$126:$H$311,Resultat!$B10) -> 0 | AI10: =SUMIFS(Beregninger!AS$126:AS$311,Beregninger!$H$126:$H$311,Resultat!$B10) -> 0 | AJ10: =SUMIFS(Beregninger!AT$126:AT$311,Beregninger!$H$126:$H$311,Resultat!$B10) -> 0 | AK10: =SUMIFS(Beregninger!AU$126:AU$311,Beregninger!$H$126:$H$311,Resultat!$B10) -> 0 | AL10: =SUMIFS(Beregninger!AV$126:AV$311,Beregninger!$H$126:$H$311,Resultat!$B10) -> 0 | AM10: =SUMIFS(Beregninger!AW$126:AW$311,Beregninger!$H$126:$H$311,Resultat!$B10) -> 0 | AN10: =SUMIFS(Beregninger!AX$126:AX$311,Beregninger!$H$126:$H$311,Resultat!$B10) -> 0 | AO10: =SUMIFS(Beregninger!AY$126:AY$311,Beregninger!$H$126:$H$311,Resultat!$B10) -> 0 | AP10: =SUMIFS(Beregninger!AZ$126:AZ$311,Beregninger!$H$126:$H$311,Resultat!$B10) -> 0 | AQ10: =SUMIFS(Beregninger!BA$126:BA$311,Beregninger!$H$126:$H$311,Resultat!$B10) -> 0 | AR10: =SUMIFS(Beregninger!BB$126:BB$311,Beregninger!$H$126:$H$311,Resultat!$B10) -> 0 | AS10: =SUMIFS(Beregninger!BC$126:BC$311,Beregninger!$H$126:$H$311,Resultat!$B10) -> 0 | AT10: =SUMIFS(Beregninger!BD$126:BD$311,Beregninger!$H$126:$H$311,Resultat!$B10) -> 0 | AU10: =SUMIFS(Beregninger!BE$126:BE$311,Beregninger!$H$126:$H$311,Resultat!$B10) -> 0 | AV10: =SUMIFS(Beregninger!BF$126:BF$311,Beregninger!$H$126:$H$311,Resultat!$B10) -> 0 | AW10: =SUMIFS(Beregninger!BG$126:BG$311,Beregninger!$H$126:$H$311,Resultat!$B10) -> 0 | AX10: =SUMIFS(Beregninger!BH$126:BH$311,Beregninger!$H$126:$H$311,Resultat!$B10) -> 0 | AY10: =SUMIFS(Beregninger!BI$126:BI$311,Beregninger!$H$126:$H$311,Resultat!$B10) -> 0 | AZ10: =SUMIFS(Beregninger!BJ$126:BJ$311,Beregninger!$H$126:$H$311,Resultat!$B10) -> 0 | BA10: =SUMIFS(Beregninger!BK$126:BK$311,Beregninger!$H$126:$H$311,Resultat!$B10) -> 0 | BB10: =SUMIFS(Beregninger!BL$126:BL$311,Beregninger!$H$126:$H$311,Resultat!$B10) -> 0 | BC10: =SUMIFS(Beregninger!BM$126:BM$311,Beregninger!$H$126:$H$311,Resultat!$B10) -> 0 | BD10: =SUMIFS(Beregninger!BN$126:BN$311,Beregninger!$H$126:$H$311,Resultat!$B10) -> 0 | BE10: =SUMIFS(Beregninger!BO$126:BO$311,Beregninger!$H$126:$H$311,Resultat!$B10) -> 0 | BF10: =SUMIFS(Beregninger!BP$126:BP$311,Beregninger!$H$126:$H$311,Resultat!$B10) -> 0 | BG10: =SUMIFS(Beregninger!BQ$126:BQ$311,Beregninger!$H$126:$H$311,Resultat!$B10) -> 0 | BH10: =SUMIFS(Beregninger!BR$126:BR$311,Beregninger!$H$126:$H$311,Resultat!$B10) -> 0 | BI10: =SUMIFS(Beregninger!BS$126:BS$311,Beregninger!$H$126:$H$311,Resultat!$B10) -> 0 | BJ10: =SUMIFS(Beregninger!BT$126:BT$311,Beregninger!$H$126:$H$311,Resultat!$B10) -> 0 | BK10: =SUMIFS(Beregninger!BU$126:BU$311,Beregninger!$H$126:$H$311,Resultat!$B10) -> 0 | BL10: =SUMIFS(Beregninger!BV$126:BV$311,Beregninger!$H$126:$H$311,Resultat!$B10) -> 0
B11: Totalt | C11: =SUMIF($D$5:$BL$5,"<=" & 'Prosjektbeskrivelse og inndata'!$C$14,D11:BL11) -> 0 | D11: =SUM(D6:D10) -> 0 | E11: 0 | F11: 0 | G11: 0 | H11: 0 | I11: 0 | J11: 0 | K11: 0 | L11: 0 | M11: 0 | N11: 0 | O11: 0 | P11: 0 | Q11: 0 | R11: 0 | S11: 0 | T11: 0 | U11: 0 | V11: 0 | W11: 0 | X11: 0 | Y11: 0 | Z11: 0 | AA11: 0 | AB11: 0 | AC11: 0 | AD11: 0 | AE11: 0 | AF11: 0 | AG11: 0 | AH11: 0 | AI11: 0 | AJ11: =SUM(AJ6:AJ10) -> 0 | AK11: 0 | AL11: 0 | AM11: 0 | AN11: 0 | AO11: 0 | AP11: 0 | AQ11: 0 | AR11: 0 | AS11: 0 | AT11: 0 | AU11: 0 | AV11: 0 | AW11: 0 | AX11: 0 | AY11: 0 | AZ11: 0 | BA11: 0 | BB11: 0 | BC11: 0 | BD11: 0 | BE11: 0 | BF11: 0 | BG11: 0 | BH11: 0 | BI11: 0 | BJ11: 0 | BK11: 0 | BL11: 0
B38: Tabell 2: Utslipp fordelt på fysiske enheter og fase (i tonn CO2e)
B39: Kategori | C39: Betong | D39: Stål | E39: Armeringsstål | F39: Asfalt | G39: Frostsikring tunnel | H39: Sprengning | I39: Diesel | J39: Salt | K39: Elektrisitet | L39: Arealbruk | M39: Total
B40: Vei i dagen | C40: =SUMIFS(Beregninger!M:M,Beregninger!H:H,B40,Beregninger!I:I,Resultat!C39) -> 0 | D40: =SUMIFS(Beregninger!M:M,Beregninger!H:H,Resultat!B40,Beregninger!I:I,D39) -> 0 | E40: =SUMIFS(Beregninger!M:M,Beregninger!H:H,Resultat!B40,Beregninger!I:I,E39) -> 0 | F40: =SUMIFS(Beregninger!M:M,Beregninger!H:H,Resultat!B40,Beregninger!I:I,F39) -> 0 | G40: =SUMIFS(Beregninger!M:M,Beregninger!H:H,Resultat!B40,Beregninger!I:I,G39) -> 0 | H40: =SUMIFS(Beregninger!M:M,Beregninger!H:H,Resultat!B40,Beregninger!I:I,H39) -> 0 | I40: =SUMIFS(Beregninger!M:M,Beregninger!H:H,B40,Beregninger!I:I,I39)+SUMIFS(Beregninger!M:M,Beregninger!H:H,B40,Beregninger!I:I,Beregninger!I5) -> 0 | J40: =SUMIFS(Beregninger!M:M,Beregninger!H:H,Resultat!B40,Beregninger!I:I,J39) -> 0 | K40: =SUMIFS(Beregninger!M:M,Beregninger!H:H,Resultat!B40,Beregninger!I:I,K39) -> 0 | L40: =C147 -> 0 | M40: =SUM(C40:L40) -> 0
B41: Tunnel | C41: =SUMIFS(Beregninger!M:M,Beregninger!H:H,B41,Beregninger!I:I,Resultat!C39) -> 0 | D41: =SUMIFS(Beregninger!M:M,Beregninger!H:H,B41,Beregninger!I:I,D39) -> 0 | E41: =SUMIFS(Beregninger!M:M,Beregninger!H:H,B41,Beregninger!I:I,Resultat!E39) -> 0 | F41: =SUMIFS(Beregninger!M:M,Beregninger!H:H,B41,Beregninger!I:I,F39) -> 0 | G41: =SUMIFS(Beregninger!M:M,Beregninger!H:H,B41,Beregninger!I:I,G39) -> 0 | H41: =SUMIFS(Beregninger!M:M,Beregninger!H:H,B41,Beregninger!I:I,H39) -> 0 | I41: =SUMIFS(Beregninger!M:M,Beregninger!H:H,B41,Beregninger!I:I,I39)+SUMIFS(Beregninger!M:M,Beregninger!H:H,B41,Beregninger!I:I,Beregninger!I5) -> 0 | J41: =SUMIFS(Beregninger!M:M,Beregninger!H:H,B41,Beregninger!I:I,J39) -> 0 | K41: =SUMIFS(Beregninger!M:M,Beregninger!H:H,B41,Beregninger!I:I,K39) -> 0 | L41: 0 | M41: =SUM(C41:L41) -> 0
B42: Bru | C42: =SUMIFS(Beregninger!M:M,Beregninger!H:H,B42,Beregninger!I:I,Resultat!C39) -> 0 | D42: =SUMIFS(Beregninger!M:M,Beregninger!H:H,B42,Beregninger!I:I,D39) -> 0 | E42: =SUMIFS(Beregninger!M:M,Beregninger!H:H,B42,Beregninger!I:I,E39) -> 0 | F42: =SUMIFS(Beregninger!M:M,Beregninger!H:H,B42,Beregninger!I:I,F39) -> 0 | G42: =SUMIFS(Beregninger!M:M,Beregninger!H:H,B42,Beregninger!I:I,G39) -> 0 | H42: =SUMIFS(Beregninger!M:M,Beregninger!H:H,B42,Beregninger!I:I,H39) -> 0 | I42: =SUMIFS(Beregninger!M:M,Beregninger!H:H,B42,Beregninger!I:I,I39)+SUMIFS(Beregninger!M:M,Beregninger!H:H,B42,Beregninger!I:I,Beregninger!I5) -> 0 | J42: =SUMIFS(Beregninger!M:M,Beregninger!H:H,B42,Beregninger!I:I,J39) -> 0 | K42: =SUMIFS(Beregninger!M:M,Beregninger!H:H,B42,Beregninger!I:I,K39) -> 0 | L42: 0 | M42: 0
B43: Kulvert | C43: =SUMIFS(Beregninger!M:M,Beregninger!H:H,B43,Beregninger!I:I,C39) -> 0 | D43: =SUMIFS(Beregninger!M:M,Beregninger!H:H,B43,Beregninger!I:I,D39) -> 0 | E43: =SUMIFS(Beregninger!M:M,Beregninger!H:H,B43,Beregninger!I:I,E39) -> 0 | F43: =SUMIFS(Beregninger!M:M,Beregninger!H:H,B43,Beregninger!I:I,F39) -> 0 | G43: =SUMIFS(Beregninger!M:M,Beregninger!H:H,B43,Beregninger!I:I,G39) -> 0 | H43: =SUMIFS(Beregninger!M:M,Beregninger!H:H,B43,Beregninger!I:I,H39) -> 0 | I43: =SUMIFS(Beregninger!M:M,Beregninger!H:H,B43,Beregninger!I:I,I39)+SUMIFS(Beregninger!M:M,Beregninger!H:H,B43,Beregninger!I:I,Beregninger!I5) -> 0 | J43: =SUMIFS(Beregninger!M:M,Beregninger!H:H,B43,Beregninger!I:I,J39) -> 0 | K43: =SUMIFS(Beregninger!M:M,Beregninger!H:H,B43,Beregninger!I:I,K39) -> 0 | L43: 0 | M43: 0
B44: Byggefase | C44: =SUM(C40:C43) -> 0 | D44: =SUM(D40:D43) -> 0 | E44: =SUM(E40:E43) -> 0 | F44: 0 | G44: 0 | H44: 0 | I44: 0 | J44: 0 | K44: 0 | L44: 0 | M44: =SUM(C44:L44) -> 0
B45: Arealbruk | C45: 0 | D45: 0 | E45: 0 | F45: 0 | G45: 0 | H45: 0 | I45: 0 | J45: 0 | K45: 0 | L45: =SUM(L40:L43) -> 0 | M45: =SUM(C45:L45) -> 0
B46: Byggefase med arealbruk | C46: =SUM(C40:C43) -> 0 | D46: 0 | E46: 0 | F46: 0 | G46: 0 | H46: 0 | I46: 0 | J46: 0 | K46: 0 | L46: 0 | M46: =SUM(C46:L46) -> 0
B47: Drift og vedlikehold totalt | C47: =SUMIF(Beregninger!$I$126:$I$311,Resultat!C39,Beregninger!$N$126:$N$311) -> 0 | D47: =SUMIF(Beregninger!$I$126:$I$311,Resultat!D39,Beregninger!$N$126:$N$311) -> 0 | E47: =SUMIF(Beregninger!$I$126:$I$311,Resultat!E39,Beregninger!$N$126:$N$311) -> 0 | F47: =SUMIF(Beregninger!$I$126:$I$311,Resultat!F39,Beregninger!$N$126:$N$311) -> 0 | G47: =SUMIF(Beregninger!$I$126:$I$311,Resultat!G39,Beregninger!$N$126:$N$311) -> 0 | H47: =SUMIF(Beregninger!$I$126:$I$311,Resultat!H39,Beregninger!$N$126:$N$311) -> 0 | I47: =SUMIF(Beregninger!$I$126:$I$311,I39,Beregninger!$N$126:$N$311)+SUMIF(Beregninger!$I$126:$I$311,Beregninger!I128,Beregninger!$N$126:$N$311) -> 0 | J47: =SUMIF(Beregninger!$I$126:$I$311,Resultat!J39,Beregninger!$N$126:$N$311) -> 0 | K47: =SUMIF(Beregninger!$I$126:$I$311,Resultat!K39,Beregninger!$N$126:$N$311) -> 0 | L47: =SUMIF(Beregninger!$I$126:$I$311,Resultat!L39,Beregninger!$N$126:$N$311) -> 0 | M47: 0
B48: Totalt | C48: =SUM(C46:C47) -> 0 | D48: 0 | E48: 0 | F48: 0 | G48: 0 | H48: 0 | I48: 0 | J48: 0 | K48: 0 | L48: 0 | M48: 0
B49: Prosent av byggefase | C49: =IFERROR(C44/M44,"Ikke relevant") -> Ikke relevant | D49: =IFERROR(D44/M44,"Ikke relevant") -> Ikke relevant | E49: =IFERROR(E44/M44,"Ikke relevant") -> Ikke relevant | F49: =IFERROR(F44/M44,"Ikke relevant") -> Ikke relevant | G49: =IFERROR(G44/M44,"Ikke relevant") -> Ikke relevant | H49: =IFERROR(H44/M44,"Ikke relevant") -> Ikke relevant | I49: =IFERROR(I44/M44,"Ikke relevant") -> Ikke relevant | J49: =IFERROR(J44/M44,"Ikke relevant") -> Ikke relevant | K49: =IFERROR(K44/M44,"Ikke relevant") -> Ikke relevant | L49: =IFERROR(L44/M44,"Ikke relevant") -> Ikke relevant | M49: =IFERROR(SUM(C49:L49),"Ikke relevant") -> 0
B50: Prosent av d&v-fase | C50: =IFERROR(C47/M47,"Ikke relevant") -> Ikke relevant | D50: =IFERROR(D47/M47,"Ikke relevant") -> Ikke relevant | E50: =IFERROR(E47/M47,"Ikke relevant") -> Ikke relevant | F50: =IFERROR(F47/M47,"Ikke relevant") -> Ikke relevant | G50: =IFERROR(G47/M47,"Ikke relevant") -> Ikke relevant | H50: =IFERROR(H47/M47,"Ikke relevant") -> Ikke relevant | I50: =IFERROR(I47/M47,"Ikke relevant") -> Ikke relevant | J50: =IFERROR(J47/M47,"Ikke relevant") -> Ikke relevant | K50: =IFERROR(K47/M47,"Ikke relevant") -> Ikke relevant | L50: =IFERROR(L47/M47,"Ikke relevant") -> Ikke relevant | M50: =IFERROR(SUM(C50:L50),"Ikke relevant") -> 0
E71: NB! Dersom enkelte innsatsfaktorer er så små at de ikke vises i prosentfordelingen, fjern disse fra figur ved å velge 'select data'.
B97: Tabell 3: Direkte utslipp knyttet til diesel og sprengning (i tonn CO2e)
B98: Byggefase | E98: Drift- og vedlikeholdsfase
B99: Fjerning av vegetasjon | E99: Drift
B100: Fjerning av vegetasjonsdekke | D100: =(Beregninger!M4)/Utslippsfaktorer!D20*Utslippsfaktorer!D19 -> 0 | E100: Kantklipp | H100: =((Beregninger!M133+Beregninger!M174)*ROUNDDOWN('Prosjektbeskrivelse og inndata'!C14/Beregningsfaktorer!D54,0))/Utslippsfaktorer!D20*Utslippsfaktorer!D19 -> 0
B101: Anleggsarbeid knyttet til sprengning | D101: =(Beregninger!M9+Beregninger!M14)/Utslippsfaktorer!D20*Utslippsfaktorer!D19 -> 0 | E101: Grøfterensk og jordtransport | H101: =((Beregninger!M136+Beregninger!M139+Beregninger!M177+Beregninger!M180)*ROUNDDOWN('Prosjektbeskrivelse og inndata'!C14/Beregningsfaktorer!D55,0))/Utslippsfaktorer!D20*Utslippsfaktorer!D19 -> 0
B102: Sum fjerning av vegetasjon | D102: =SUM(D100:D101) -> 0 | E102: Feiing | H102: =((Beregninger!M142+Beregninger!M183+Beregninger!M215+Beregninger!M247+Beregninger!M279+Beregninger!M299)*ROUNDDOWN('Prosjektbeskrivelse og inndata'!C14/Beregningsfaktorer!D56,0))/Utslippsfaktorer!D20*Utslippsfaktorer!D19 -> 0
B103: Transport av materialer | E103: Salting og salttransport | H103: =((Beregninger!M145+Beregninger!M149+Beregninger!M186+Beregninger!M190+Beregninger!M218+Beregninger!M222+Beregninger!M250+Beregninger!M254)*ROUNDDOWN('Prosjektbeskrivelse og inndata'!C14/Beregningsfaktorer!D57,0))/Utslippsfaktorer!D20*Utslippsfaktorer!D19 -> 0
B104: Materialer til vei i dagen | D104: =(Beregninger!M37+Beregninger!M48+Beregninger!M55)/Utslippsfaktorer!D20*Utslippsfaktorer!D19 -> 0 | E104: Brøyting | H104: =((Beregninger!M152+Beregninger!M193+Beregninger!M225+Beregninger!M257)*ROUNDDOWN('Prosjektbeskrivelse og inndata'!C14/Beregningsfaktorer!D58,0))/Utslippsfaktorer!D20*Utslippsfaktorer!D19 -> 0
B105: Materialer til bru | D105: =(Beregninger!M68+Beregninger!M82)/Utslippsfaktorer!D20*Utslippsfaktorer!D19 -> 0 | E105: Sum drift | H105: =SUM(H100:H104) -> 0
B106: Materialer til tunnel | D106: =(Beregninger!M96+Beregninger!M110)/Utslippsfaktorer!D20*Utslippsfaktorer!D19 -> 0 | E106: Vedlikehold
B107: Materialer til kulvert | D107: =(Beregninger!M118)/Utslippsfaktorer!D20*Utslippsfaktorer!D19 -> 0 | E107: Utskiftning og transport av lyktestolper | H107: =((Beregninger!M163+Beregninger!M204+Beregninger!M236+Beregninger!M268)*ROUNDDOWN('Prosjektbeskrivelse og inndata'!C14/Beregningsfaktorer!D53,0))/Utslippsfaktorer!D20*Utslippsfaktorer!D19 -> 0
B108: Sum transport av materialer | D108: =SUM(D104:D107) -> 0 | E108: Utskiftning og transport av autovern | H108: =((Beregninger!M156+Beregninger!M159+Beregninger!M197+Beregninger!M200+Beregninger!M229+Beregninger!M232+Beregninger!M261+Beregninger!M264+Beregninger!M283+Beregninger!M286+Beregninger!M303+Beregninger!M306)*ROUNDDOWN('Prosjektbeskrivelse og inndata'!C14/Beregningsfaktorer!D52,0))/Utslippsfaktorer!D20*Utslippsfaktorer!D19 -> 0
B109: Transport av masser | E109: Sum vedlikehold | H109: =SUM(H107:H108) -> 0
B110: Jordmasser til linja | D110: =(Beregninger!M17)/Utslippsfaktorer!D20*Utslippsfaktorer!D19 -> 0 | E110: Reasfaltering
B111: Jordmasser deponi | D111: =(Beregninger!M20)/Utslippsfaktorer!D20*Utslippsfaktorer!D19 -> 0 | E111: Utskiftning og transport av asfalt | H111: =((Beregninger!M127+Beregninger!M130+Beregninger!M168+Beregninger!M171+Beregninger!M209+Beregninger!M212+Beregninger!M241+Beregninger!M244+Beregninger!M273+Beregninger!M276+Beregninger!M293+Beregninger!M296)*ROUNDDOWN('Prosjektbeskrivelse og inndata'!C14/Beregningsfaktorer!D51,0))/Utslippsfaktorer!D20*Utslippsfaktorer!D19 -> 0
B112: Sprengstein til linja | D112: =(Beregninger!M23)/Utslippsfaktorer!D20*Utslippsfaktorer!D19 -> 0 | E112: Sum reasfaltering | H112: =H111 -> 0
B113: Sprengstein til deponi | D113: =(Beregninger!M26)/Utslippsfaktorer!D20*Utslippsfaktorer!D19 -> 0 | E113: Sum drift- og vedlikeholdsfase | H113: =H105+H109+H112 -> 0
B114: Sprengstein til linja via pukkverk | D114: =(Beregninger!M29)/Utslippsfaktorer!D20*Utslippsfaktorer!D19 -> 0
B115: Sum transport av masser | D115: =SUM(D110:D114) -> 0
B116: Anleggsarbeid
B117: Anleggsarbeid vei i dagen | D117: =(Beregninger!M40+Beregninger!M51+Beregninger!M58)/Utslippsfaktorer!D20*Utslippsfaktorer!D19 -> 0
B118: Anleggsarbeid bru | D118: =(Beregninger!M71+Beregninger!M85)/Utslippsfaktorer!D20*Utslippsfaktorer!D19 -> 0
B119: Anleggsarbeid tunnel | D119: =(Beregninger!M99+Beregninger!M113)/Utslippsfaktorer!D20*Utslippsfaktorer!D19 -> 0
B120: Anleggsarbeid kulvert | D120: =(Beregninger!M121)/Utslippsfaktorer!D20*Utslippsfaktorer!D19 -> 0
B121: Sum anleggsarbeid | D121: =SUM(D117:D120) -> 0
B122: Sprengning
B123: Sprengning i dagen | D123: =Beregninger!M8 -> 0
B124: Sprengning tunnel | D124: =Beregninger!M13 -> 0
B125: Sum sprengning | D125: =SUM(D123:D124) -> 0
B126: Sum byggefase | D126: =D102+D108+D115+D121+D125 -> 0 | E126: Direkte utslipp fra bygging, drift og vedlikehold | H126: =D126+H113 -> 0
B131: Tabell 4: Andel direkte utslipp av totale utslipp
B132: Andel av byggefase | D132: =IFERROR(D126/M44,"Ikke relevant") -> Ikke relevant
B133: Andel av drift- og vedlikeholdsfase | D133: =IFERROR(H113/M47,"Ikke relevant") -> Ikke relevant
B134: Andel direkte utslipp | D134: =IFERROR(H126/M48,"Ikke relevant") -> Ikke relevant
B135: Andel indirekte utslipp | D135: =IFERROR(1-D134,"Ikke relevant") -> Ikke relevant
B139: Tabell 6: Utslipp fra arealbruksendringer
B140: Arealtype | C140: tonn CO2e
B141: Skog - lav bonitet | C141: =(('Prosjektbeskrivelse og inndata'!C21*'Prosjektbeskrivelse og inndata'!C24)*Utslippsfaktorer!D26)/1000 -> 0
B142: Skog - middels bonitet | C142: =(('Prosjektbeskrivelse og inndata'!C21*'Prosjektbeskrivelse og inndata'!C25)*Utslippsfaktorer!D27)/1000 -> 0
B143: Skog - høy bonitet | C143: =(('Prosjektbeskrivelse og inndata'!C21*'Prosjektbeskrivelse og inndata'!C26)*Utslippsfaktorer!D28)/1000 -> 0
B144: Myr | C144: =(('Prosjektbeskrivelse og inndata'!C21*'Prosjektbeskrivelse og inndata'!C27)*Utslippsfaktorer!D29)/1000 -> 0
B145: Jordbruksareal | C145: =(('Prosjektbeskrivelse og inndata'!C21*'Prosjektbeskrivelse og inndata'!C28)*Utslippsfaktorer!D30)/1000 -> 0
B146: Utbygd areal | C146: -
B147: Sum | C147: =SUM(C141:C146) -> 0
B148: Utbygd areal settes lik 0
H153: Tabell 5: Direkte utslipp i ikke-kvotepliktig sektor
H154: Byggefase | K154: =D102+D108+D115+D121 -> 0
H155: Drift- og vedlikeholdsfase | K155: =H105+H109+H112 -> 0
H156: Sum bygge- og drift og vedlikeholdsfase | K156: =SUM(K154:K155) -> 0
H157: I denne sammenhengen er dette summen av direkte utslipp minus direkte utslipp fra sprengning.

Sheet Sensitivitetsanalyse
B3: Sensitivitetsanalyse
F4: Prosentvis endring: | H4: 0.1
B6: Opprinnelige utslipp | F6: Økning | J6: Reduksjon
B7: Innsatsfaktorer | D7: Opprinnelige utslipp [tonn CO2e] | F7: Utslipp etter økning [tonn CO2e] | G7: Ny total [tonn CO2e] | H7: Økning i total [%] | J7: Utslipp etter reduksjon [tonn CO2e] | K7: Ny total [tonn CO2e] | L7: Reduksjon i total [%]
B8: Utslipp byggefase
B9: Betong | D9: =Resultat!C44 -> 0 | F9: =D9*(1+H4) -> 0 | G9: =F9+SUM(D9:D18)-D9 -> 0 | H9: =(G9/Resultat!M44)-1 ->  | J9: =D9*(1-H4) -> 0 | K9: =J9+SUM(D9:D18)-D9 -> 0 | L9: =(K9/Resultat!M44)-1 -> 
B10: Stål | D10: =Resultat!D44 -> 0 | F10: =D10*(1+H4) -> 0 | G10: =F10+SUM(D9:D18)-D10 -> 0 | H10: =(G10/Resultat!M44)-1 ->  | J10: =D10*(1-H4) -> 0 | K10: =J10+SUM(D9:D18)-D10 -> 0 | L10: =(K10/Resultat!M44)-1 -> 
B11: Armeringsstål | D11: =Resultat!E44 -> 0 | F11: =D11*(1+H4) -> 0 | G11: =F11+SUM(D9:D18)-D11 -> 0 | H11: =(G11/Resultat!M44)-1 ->  | J11: =D11*(1-H4) -> 0 | K11: =J11+SUM(D9:D18)-D11 -> 0 | L11: =(K11/Resultat!M44)-1 -> 
B12: Asfalt | D12: =Resultat!F44 -> 0 | F12: =D12*(1+H4) -> 0 | G12: =F12+SUM(D9:D18)-D12 -> 0 | H12: =(G12/Resultat!M44)-1 ->  | J12: =D12*(1-H4) -> 0 | K12: =J12+SUM(D9:D18)-D12 -> 0 | L12: =(K12/Resultat!M44)-1 -> 
B13: Frostsikring tunnel | D13: =Resultat!G44 -> 0 | F13: =D13*(1+H4) -> 0 | G13: =F13+SUM(D9:D18)-D13 -> 0 | H13: =(G13/Resultat!M44)-1 ->  | J13: =D13*(1-H4) -> 0 | K13: =J13+SUM(D9:D18)-D13 -> 0 | L13: =(K13/Resultat!M44)-1 -> 
B14: Sprengning | D14: =Resultat!H44 -> 0 | F14: =D14*(1+H4) -> 0 | G14: =F14+SUM(D9:D18)-D14 -> 0 | H14: =(G14/Resultat!M44)-1 ->  | J14: =D14*(1-H4) -> 0 | K14: =J14+SUM(D9:D18)-D14 -> 0 | L14: =(K14/Resultat!M44)-1 -> 
B15: Diesel | D15: =Resultat!I44 -> 0 | F15: =D15*(1+H4) -> 0 | G15: =F15+SUM(D9:D18)-D15 -> 0 | H15: =(G15/Resultat!M44)-1 ->  | J15: =D15*(1-H4) -> 0 | K15: =J15+SUM(D9:D18)-D15 -> 0 | L15: =(K15/Resultat!M44)-1 -> 
B16: Salt | D16: =Resultat!J44 -> 0 | F16: =D16*(1+H4) -> 0 | G16: =F16+SUM(D9:D18)-D16 -> 0 | H16: =(G16/Resultat!M44)-1 ->  | J16: =D16*(1-H4) -> 0 | K16: =J16+SUM(D9:D18)-D16 -> 0 | L16: =(K16/Resultat!M44)-1 -> 
B17: Elektrisitet | D17: =Resultat!K44 -> 0 | F17: =D17*(1+H4) -> 0 | G17: =F17+SUM(D9:D18)-D17 -> 0 | H17: =(G17/Resultat!M44)-1 ->  | J17: =D17*(1-H4) -> 0 | K17: =J17+SUM(D9:D18)-D17 -> 0 | L17: =(K17/Resultat!M44)-1 -> 
B18: Arealbruk | D18: =Resultat!L44 -> 0 | F18: =D18*(1+H4) -> 0 | G18: =F18+SUM(D9:D18)-D18 -> 0 | H18: =(G18/Resultat!M44)-1 ->  | J18: =D18*(1-H4) -> 0 | K18: =J18+SUM(D9:D18)-D18 -> 0 | L18: =(K18/Resultat!M44)-1 -> 
B19: Utslipp driftsfase
B20: Betong | D20: =Resultat!C47 -> 0 | F20: =D20*(1+H4) -> 0 | G20: =F20+SUM(D20:D28)-D20 -> 0 | H20: =(G20/Resultat!M47)-1 ->  | J20: =D20*(1-H4) -> 0 | K20: =J20+SUM(D20:D28)-D20 -> 0 | L20: =(K20/Resultat!M47)-1 -> 
B21: Stål | D21: =Resultat!D47 -> 0 | F21: =D21*(1+H4) -> 0 | G21: =F21+SUM(D20:D28)-D21 -> 0 | H21: =(G21/Resultat!M47)-1 ->  | J21: =D21*(1-H4) -> 0 | K21: =J21+SUM(D20:D28)-D21 -> 0 | L21: =(K21/Resultat!M47)-1 -> 
B22: Armeringsstål | D22: =Resultat!E47 -> 0 | F22: =D22*(1+H4) -> 0 | G22: =F22+SUM(D20:D28)-D22 -> 0 | H22: =(G22/Resultat!M47)-1 ->  | J22: =D22*(1-H4) -> 0 | K22: =J22+SUM(D20:D28)-D22 -> 0 | L22: =(K22/Resultat!M47)-1 -> 
B23: Asfalt | D23: =Resultat!F47 -> 0 | F23: =D23*(1+H4) -> 0 | G23: =F23+SUM(D20:D28)-D23 -> 0 | H23: =(G23/Resultat!M47)-1 ->  | J23: =D23*(1-H4) -> 0 | K23: =J23+SUM(D20:D28)-D23 -> 0 | L23: =(K23/Resultat!M47)-1 -> 
B24: Frostsikring tunnel | D24: =Resultat!G47 -> 0 | F24: =D24*(1+H4) -> 0 | G24: =F24+SUM(D20:D28)-D24 -> 0 | H24: =(G24/Resultat!M47)-1 ->  | J24: =D24*(1-H4) -> 0 | K24: =J24+SUM(D20:D28)-D24 -> 0 | L24: =(K24/Resultat!M47)-1 -> 
B25: Sprengning | D25: =Resultat!H47 -> 0 | F25: =D25*(1+H4) -> 0 | G25: =F25+SUM(D20:D28)-D25 -> 0 | H25: =(G25/Resultat!M47)-1 ->  | J25: =D25*(1-H4) -> 0 | K25: =J25+SUM(D20:D28)-D25 -> 0 | L25: =(K25/Resultat!M47)-1 -> 
B26: Diesel | D26: =Resultat!I47 -> 0 | F26: =D26*(1+H4) -> 0 | G26: =F26+SUM(D20:D28)-D26 -> 0 | H26: =(G26/Resultat!M47)-1 ->  | J26: =D26*(1-H4) -> 0 | K26: =J26+SUM(D20:D28)-D26 -> 0 | L26: =(K26/Resultat!M47)-1 -> 
B27: Salt | D27: =Resultat!J47 -> 0 | F27: =D27*(1+H4) -> 0 | G27: =F27+SUM(D20:D28)-D27 -> 0 | H27: =(G27/Resultat!M47)-1 ->  | J27: =D27*(1-H4) -> 0 | K27: =J27+SUM(D20:D28)-D27 -> 0 | L27: =(K27/Resultat!M47)-1 -> 
B28: Elektrisitet | D28: =Resultat!K47 -> 0 | F28: =D28*(1+H4) -> 0 | G28: =F28+SUM(D20:D28)-D28 -> 0 | H28: =(G28/Resultat!M47)-1 ->  | J28: =D28*(1-H4) -> 0 | K28: =J28+SUM(D20:D28)-D28 -> 0 | L28: =(K28/Resultat!M47)-1 -> 

Sheet Beregninger
B1: Definert enhet | C1: Summert fra inndata | D1: Fysisk faktor input | E1: Summert output | F1: Fysisk enhet output | G1: Livsløp | H1: Element | I1: Innsatstype | J1: Tag utslippsfaktor | K1: Utslippsfaktor | L1: Enhet | M1: Tonn CO2e
A2: Byggefase
B4: Fjerning av vegetasjonsdekke (m2) | C4: =SUMIF('Prosjektbeskrivelse og inndata'!$M:$M,B4,'Prosjektbeskrivelse og inndata'!$L:$L) -> 0 | D4: Anleggsarbeid diesel | E4: =C4*'Vegetasjon og arealbeslag'!F11 -> 0 | F4: liter diesel | G4: År 0 | H4: Vei i dagen | I4: Diesel | J4: =Utslippsfaktorer!B20 -> Fossil diesel (WTW) | K4: =SUMIF(Utslippsfaktorer!B:B,Beregninger!J4,Utslippsfaktorer!D:D) -> 3.24 | L4: =VLOOKUP(J4,Utslippsfaktorer!B:C,2,FALSE) -> kg CO2e/liter | M4: =(E4*K4)/1000 -> 0
D5: Anleggsarbeid biodiesel | E5: =C4*'Vegetasjon og arealbeslag'!G11 -> 0 | F5: liter biodiesel | G5: År 0 | H5: Vei i dagen | I5: Biodiesel | J5: =Utslippsfaktorer!B18 -> Biodiesel (WTT) | K5: =SUMIF(Utslippsfaktorer!B:B,Beregninger!J5,Utslippsfaktorer!D:D) -> 1.92 | L5: =VLOOKUP(J5,Utslippsfaktorer!B:C,2,FALSE) -> kg CO2e/liter | M5: =(E5*K5)/1000 -> 0
D6: Anleggsarbeid elektrisk/hydrogen | E6: =C4*'Vegetasjon og arealbeslag'!H11 -> 0 | F6: kWh | G6: År 0 | H6: Vei i dagen | I6: Elektrisitet | J6: =Utslippsfaktorer!B23 -> Elektrisitet anleggsfase, norsk miks | K6: =SUMIF(Utslippsfaktorer!B:B,Beregninger!J6,Utslippsfaktorer!D:D) -> 0.02638 | L6: =VLOOKUP(J6,Utslippsfaktorer!B:C,2,FALSE) -> kg CO2e/kWh | M6: =(E6*K6)/1000 -> 0
B7: Sprengning i dagen (m3) | C7: =SUMIF('Prosjektbeskrivelse og inndata'!$M:$M,B7,'Prosjektbeskrivelse og inndata'!$L:$L) -> 0 | D7: Sprengstoff (indirekte utslipp) | E7: =C7*Sprengning!D6 -> 0 | F7: kg tovex | G7: År 0 | H7: Vei i dagen | I7: Sprengning | J7: =Utslippsfaktorer!B21 -> Sprengstoff (CTG) | K7: =SUMIF(Utslippsfaktorer!B:B,Beregninger!J7,Utslippsfaktorer!D:D) -> 2.678 | L7: =VLOOKUP(J7,Utslippsfaktorer!B:C,2,FALSE) -> kg CO2e/kg | M7: 0
D8: Sprengstoff (direkte utslipp) | E8: =C7*Sprengning!D6 -> 0 | F8: kg tovex | G8: År 0 | H8: Vei i dagen | I8: Sprengning | J8: =Utslippsfaktorer!B22 -> Sprengstoff detonering | K8: =SUMIF(Utslippsfaktorer!B:B,Beregninger!J8,Utslippsfaktorer!D:D) -> 0.152 | L8: =VLOOKUP(J8,Utslippsfaktorer!B:C,2,FALSE) -> kg CO2e/kg | M8: 0
D9: Anleggsarbeid diesel | E9: =C7*Sprengning!D15 -> 0 | F9: liter diesel | G9: År 0 | H9: Vei i dagen | I9: Diesel | J9: =Utslippsfaktorer!B20 -> Fossil diesel (WTW) | K9: =SUMIF(Utslippsfaktorer!B:B,Beregninger!J9,Utslippsfaktorer!D:D) -> 3.24 | L9: =VLOOKUP(J9,Utslippsfaktorer!B:C,2,FALSE) -> kg CO2e/liter | M9: 0
D10: Anleggsarbeid biodiesel | E10: =C7*Sprengning!E15 -> 0 | F10: liter biodiesel | G10: År 0 | H10: Vei i dagen | I10: Biodiesel | J10: =Utslippsfaktorer!B18 -> Biodiesel (WTT) | K10: =SUMIF(Utslippsfaktorer!B:B,Beregninger!J10,Utslippsfaktorer!D:D) -> 1.92 | L10: =VLOOKUP(J10,Utslippsfaktorer!B:C,2,FALSE) -> kg CO2e/liter | M10: 0
D11: Anleggsarbeid elektrisk/hydrogen | E11: =C7*Sprengning!F15 -> 0 | F11: kWh | G11: År 0 | H11: Vei i dagen | I11: Elektrisitet | J11: =Utslippsfaktorer!B23 -> Elektrisitet anleggsfase, norsk miks | K11: =SUMIF(Utslippsfaktorer!B:B,Beregninger!J11,Utslippsfaktorer!D:D) -> 0.02638 | L11: =VLOOKUP(J11,Utslippsfaktorer!B:C,2,FALSE) -> kg CO2e/kWh | M11: 0
B12: Sprengning tunnel (m3) | C12: =SUMIF('Prosjektbeskrivelse og inndata'!$M:$M,B12,'Prosjektbeskrivelse og inndata'!$L:$L) -> 0 | D12: Sprengstoff (indirekte utslipp) | E12: =C12*Sprengning!D5 -> 0 | F12: kg tovex | G12: År 0 | H12: Tunnel | I12: Sprengning | J12: =Utslippsfaktorer!B21 -> Sprengstoff (CTG) | K12: =SUMIF(Utslippsfaktorer!B:B,Beregninger!J12,Utslippsfaktorer!D:D) -> 2.678 | L12: =VLOOKUP(J12,Utslippsfaktorer!B:C,2,FALSE) -> kg CO2e/kg | M12: 0
D13: Sprengstoff (direkte utslipp) | E13: =C12*Sprengning!D5 -> 0 | F13: kg tovex | G13: År 0 | H13: Tunnel | I13: Sprengning | J13: =Utslippsfaktorer!B22 -> Sprengstoff detonering | K13: =SUMIF(Utslippsfaktorer!B:B,Beregninger!J13,Utslippsfaktorer!D:D) -> 0.152 | L13: =VLOOKUP(J13,Utslippsfaktorer!B:C,2,FALSE) -> kg CO2e/kg | M13: 0
D14: Anleggsarbeid diesel | E14: =C12*Sprengning!D15 -> 0 | F14: liter diesel | G14: År 0 | H14: Tunnel | I14: Diesel | J14: =Utslippsfaktorer!B20 -> Fossil diesel (WTW) | K14: =SUMIF(Utslippsfaktorer!B:B,Beregninger!J14,Utslippsfaktorer!D:D) -> 3.24 | L14: =VLOOKUP(J14,Utslippsfaktorer!B:C,2,FALSE) -> kg CO2e/liter | M14: 0
D15: Anleggsarbeid biodiesel | E15: =C12*Sprengning!E15 -> 0 | F15: liter biodiesel | G15: År 0 | H15: Tunnel | I15: Biodiesel | J15: =Utslippsfaktorer!B18 -> Biodiesel (WTT) | K15: =SUMIF(Utslippsfaktorer!B:B,Beregninger!J15,Utslippsfaktorer!D:D) -> 1.92 | L15: =VLOOKUP(J15,Utslippsfaktorer!B:C,2,FALSE) -> kg CO2e/liter | M15: 0
D16: Anleggsarbeid elektrisk/hydrogen | E16: =C12*Sprengning!F15 -> 0 | F16: kWh | G16: År 0 | H16: Tunnel | I16: Elektrisitet | J16: =Utslippsfaktorer!B23 -> Elektrisitet anleggsfase, norsk miks | K16: =SUMIF(Utslippsfaktorer!B:B,Beregninger!J16,Utslippsfaktorer!D:D) -> 0.02638 | L16: =VLOOKUP(J16,Utslippsfaktorer!B:C,2,FALSE) -> kg CO2e/kWh | M16: 0
B17: Jordmasser til linja (m3) | C17: =SUMIF('Prosjektbeskrivelse og inndata'!$M:$M,B17,'Prosjektbeskrivelse og inndata'!$L:$L) -> 0 | D17: Transport diesel | E17: =C17*'Vegetasjon og arealbeslag'!F5/Beregningsfaktorer!D90 -> 0 | F17: liter diesel | G17: År 0 | H17: Vei i dagen | I17: Diesel | J17: =Utslippsfaktorer!B20 -> Fossil diesel (WTW) | K17: =SUMIF(Utslippsfaktorer!B:B,Beregninger!J17,Utslippsfaktorer!D:D) -> 3.24 | L17: =VLOOKUP(J17,Utslippsfaktorer!B:C,2,FALSE) -> kg CO2e/liter | M17: 0
D18: Transport biodiesel | E18: =C17*'Vegetasjon og arealbeslag'!G5/Beregningsfaktorer!D90 -> 0 | F18: liter biodiesel | G18: År 0 | H18: Vei i dagen | I18: Biodiesel | J18: =Utslippsfaktorer!B18 -> Biodiesel (WTT) | K18: =SUMIF(Utslippsfaktorer!B:B,Beregninger!J18,Utslippsfaktorer!D:D) -> 1.92 | L18: =VLOOKUP(J18,Utslippsfaktorer!B:C,2,FALSE) -> kg CO2e/liter | M18: 0
D19: Transport elektrisk/hydrogen | E19: =C17*'Vegetasjon og arealbeslag'!H5/Beregningsfaktorer!D90 -> 0 | F19: kWh | G19: År 0 | H19: Vei i dagen | I19: Elektrisitet | J19: =Utslippsfaktorer!B23 -> Elektrisitet anleggsfase, norsk miks | K19: =SUMIF(Utslippsfaktorer!B:B,Beregninger!J19,Utslippsfaktorer!D:D) -> 0.02638 | L19: =VLOOKUP(J19,Utslippsfaktorer!B:C,2,FALSE) -> kg CO2e/kWh | M19: 0
B20: Jordmasser til deponi (m3) | C20: =SUMIF('Prosjektbeskrivelse og inndata'!$M:$M,B20,'Prosjektbeskrivelse og inndata'!$L:$L) -> 0 | D20: Transport diesel | E20: =C20*'Vegetasjon og arealbeslag'!F6/Beregningsfaktorer!D90 -> 0 | F20: liter diesel | G20: År 0 | H20: Vei i dagen | I20: Diesel | J20: =Utslippsfaktorer!B20 -> Fossil diesel (WTW) | K20: =SUMIF(Utslippsfaktorer!B:B,Beregninger!J20,Utslippsfaktorer!D:D) -> 3.24 | L20: =VLOOKUP(J20,Utslippsfaktorer!B:C,2,FALSE) -> kg CO2e/liter | M20: 0
D21: Transport biodiesel | E21: =C20*'Vegetasjon og arealbeslag'!G6/Beregningsfaktorer!D90 -> 0 | F21: liter biodiesel | G21: År 0 | H21: Vei i dagen | I21: Biodiesel | J21: =Utslippsfaktorer!B18 -> Biodiesel (WTT) | K21: =SUMIF(Utslippsfaktorer!B:B,Beregninger!J21,Utslippsfaktorer!D:D) -> 1.92 | L21: =VLOOKUP(J21,Utslippsfaktorer!B:C,2,FALSE) -> kg CO2e/liter | M21: 0
D22: Transport elektrisk/hydrogen | E22: =C20*'Vegetasjon og arealbeslag'!H6/Beregningsfaktorer!D90 -> 0 | F22: kWh | G22: År 0 | H22: Vei i dagen | I22: Elektrisitet | J22: =Utslippsfaktorer!B23 -> Elektrisitet anleggsfase, norsk miks | K22: =SUMIF(Utslippsfaktorer!B:B,Beregninger!J22,Utslippsfaktorer!D:D) -> 0.02638 | L22: =VLOOKUP(J22,Utslippsfaktorer!B:C,2,FALSE) -> kg CO2e/kWh | M22: 0
B23: Sprengstein til linja (m3) | C23: =SUMIF('Prosjektbeskrivelse og inndata'!$M:$M,B23,'Prosjektbeskrivelse og inndata'!$L:$L) -> 0 | D23: Transport diesel | E23: =C23*Sprengning!F7 -> 0 | F23: liter diesel | G23: År 0 | H23: Vei i dagen | I23: Diesel | J23: =Utslippsfaktorer!B20 -> Fossil diesel (WTW) | K23: =SUMIF(Utslippsfaktorer!B:B,Beregninger!J23,Utslippsfaktorer!D:D) -> 3.24 | L23: =VLOOKUP(J23,Utslippsfaktorer!B:C,2,FALSE) -> kg CO2e/liter | M23: 0
D24: Transport biodiesel | E24: =C23*Sprengning!G7 -> 0 | F24: liter biodiesel | G24: År 0 | H24: Vei i dagen | I24: Biodiesel | J24: =Utslippsfaktorer!B18 -> Biodiesel (WTT) | K24: =SUMIF(Utslippsfaktorer!B:B,Beregninger!J24,Utslippsfaktorer!D:D) -> 1.92 | L24: =VLOOKUP(J24,Utslippsfaktorer!B:C,2,FALSE) -> kg CO2e/liter | M24: 0
D25: Transport elektrisk/hydrogen | E25: =C23*Sprengning!H7 -> 0 | F25: kWh | G25: År 0 | H25: Vei i dagen | I25: Elektrisitet | J25: =Utslippsfaktorer!B23 -> Elektrisitet anleggsfase, norsk miks | K25: =SUMIF(Utslippsfaktorer!B:B,Beregninger!J25,Utslippsfaktorer!D:D) -> 0.02638 | L25: =VLOOKUP(J25,Utslippsfaktorer!B:C,2,FALSE) -> kg CO2e/kWh | M25: 0
B26: Sprengstein til deponi (m3) | C26: =SUMIF('Prosjektbeskrivelse og inndata'!$M:$M,B26,'Prosjektbeskrivelse og inndata'!$L:$L) -> 0 | D26: Transport diesel | E26: =C26*Sprengning!F8 -> 0 | F26: liter diesel | G26: År 0 | H26: Vei i dagen | I26: Diesel | J26: =Utslippsfaktorer!B20 -> Fossil diesel (WTW) | K26: =SUMIF(Utslippsfaktorer!B:B,Beregninger!J26,Utslippsfaktorer!D:D) -> 3.24 | L26: =VLOOKUP(J26,Utslippsfaktorer!B:C,2,FALSE) -> kg CO2e/liter | M26: 0
D27: Transport biodiesel | E27: =C26*Sprengning!G8 -> 0 | F27: liter biodiesel | G27: År 0 | H27: Vei i dagen | I27: Biodiesel | J27: =Utslippsfaktorer!B18 -> Biodiesel (WTT) | K27: =SUMIF(Utslippsfaktorer!B:B,Beregninger!J27,Utslippsfaktorer!D:D) -> 1.92 | L27: =VLOOKUP(J27,Utslippsfaktorer!B:C,2,FALSE) -> kg CO2e/liter | M27: 0
D28: Transport elektrisk/hydrogen | E28: =C26*Sprengning!H8 -> 0 | F28: kWh | G28: År 0 | H28: Vei i dagen | I28: Elektrisitet | J28: =Utslippsfaktorer!B23 -> Elektrisitet anleggsfase, norsk miks | K28: =SUMIF(Utslippsfaktorer!B:B,Beregninger!J28,Utslippsfaktorer!D:D) -> 0.02638 | L28: =VLOOKUP(J28,Utslippsfaktorer!B:C,2,FALSE) -> kg CO2e/kWh | M28: 0
B29: Sprengstein til linja via pukkverk (m3) | C29: =SUMIF('Prosjektbeskrivelse og inndata'!$M:$M,B29,'Prosjektbeskrivelse og inndata'!$L:$L) -> 0 | D29: Transport diesel | E29: =C29*Sprengning!F9 -> 0 | F29: liter diesel | G29: År 0 | H29: Vei i dagen | I29: Diesel | J29: =Utslippsfaktorer!B20 -> Fossil diesel (WTW) | K29: =SUMIF(Utslippsfaktorer!B:B,Beregninger!J29,Utslippsfaktorer!D:D) -> 3.24 | L29: =VLOOKUP(J29,Utslippsfaktorer!B:C,2,FALSE) -> kg CO2e/liter | M29: 0
D30: Transport biodiesel | E30: =C29*Sprengning!G9 -> 0 | F30: liter biodiesel | G30: År 0 | H30: Vei i dagen | I30: Biodiesel | J30: =Utslippsfaktorer!B18 -> Biodiesel (WTT) | K30: =SUMIF(Utslippsfaktorer!B:B,Beregninger!J30,Utslippsfaktorer!D:D) -> 1.92 | L30: =VLOOKUP(J30,Utslippsfaktorer!B:C,2,FALSE) -> kg CO2e/liter | M30: 0
D31: Transport elektrisk/hydrogen | E31: =C29*Sprengning!H9 -> 0 | F31: kWh | G31: År 0 | H31: Vei i dagen | I31: Elektrisitet | J31: =Utslippsfaktorer!B23 -> Elektrisitet anleggsfase, norsk miks | K31: =SUMIF(Utslippsfaktorer!B:B,Beregninger!J31,Utslippsfaktorer!D:D) -> 0.02638 | L31: =VLOOKUP(J31,Utslippsfaktorer!B:C,2,FALSE) -> kg CO2e/kWh | M31: 0
B32: Hovedvei (m) | C32: =SUMIF('Prosjektbeskrivelse og inndata'!$M:$M,B32,'Prosjektbeskrivelse og inndata'!$L:$L) -> 0 | D32: Slitelag skjelettasfalt (Ska) | E32: =C32*Hovedvei!D5*'Prosjektbeskrivelse og inndata'!C9 -> 0 | F32: kg skjelettasfalt | G32: År 0 | H32: Vei i dagen | I32: Asfalt | J32: =Utslippsfaktorer!B7 -> Skjelettasfalt (Ska) | K32: =SUMIF(Utslippsfaktorer!B:B,Beregninger!J32,Utslippsfaktorer!D:D) -> 0.0657 | L32: =VLOOKUP(J32,Utslippsfaktorer!B:C,2,FALSE) -> kg CO2e/kg | M32: =(E32*K32)/1000 -> 0
D33: Bindlag skjelettasfalt (Ska) | E33: =C32*Hovedvei!D6*'Prosjektbeskrivelse og inndata'!C9 -> 0 | F33: kg skjelettasfalt | G33: År 0 | H33: Vei i dagen | I33: Asfalt | J33: =Utslippsfaktorer!B7 -> Skjelettasfalt (Ska) | K33: =SUMIF(Utslippsfaktorer!B:B,Beregninger!J33,Utslippsfaktorer!D:D) -> 0.0657 | L33: =VLOOKUP(J33,Utslippsfaktorer!B:C,2,FALSE) -> kg CO2e/kg | M33: 0
D34: Bærelag asfaltgrus (Ag) | E34: =C32*Hovedvei!D7*'Prosjektbeskrivelse og inndata'!C9 -> 0 | F34: kg asfaltgrus | G34: År 0 | H34: Vei i dagen | I34: Asfalt | J34: =Utslippsfaktorer!B8 -> Asfaltgrus (Ag) | K34: =SUMIF(Utslippsfaktorer!B:B,Beregninger!J34,Utslippsfaktorer!D:D) -> 0.0488 | L34: =VLOOKUP(J34,Utslippsfaktorer!B:C,2,FALSE) -> kg CO2e/kg | M34: 0
D35: Lyktestolper | E35: =C32*'Tillegg vei'!D5*Beregningsfaktorer!D82 -> 0 | F35: kg stål | G35: År 0 | H35: Vei i dagen | I35: Stål | J35: =Utslippsfaktorer!B14 -> Stål | K35: =SUMIF(Utslippsfaktorer!B:B,Beregninger!J35,Utslippsfaktorer!D:D) -> 2.1235 | L35: =VLOOKUP(J35,Utslippsfaktorer!B:C,2,FALSE) -> kg CO2e/kg | M35: 0
D36: Autovern/rekkverk | E36: =C32*'Tillegg vei'!D7*Beregningsfaktorer!D84 -> 0 | F36: kg stål | G36: År 0 | H36: Vei i dagen | I36: Stål | J36: =Utslippsfaktorer!B14 -> Stål | K36: =SUMIF(Utslippsfaktorer!B:B,Beregninger!J36,Utslippsfaktorer!D:D) -> 2.1235 | L36: =VLOOKUP(J36,Utslippsfaktorer!B:C,2,FALSE) -> kg CO2e/kg | M36: 0
D37: Transport diesel | E37: =C32*(((SUM(Hovedvei!E5:E7)*'Prosjektbeskrivelse og inndata'!C9)+(('Tillegg vei'!E5*Beregningsfaktorer!D82)+('Tillegg vei'!E7*Beregningsfaktorer!D84)))) -> 0 | F37: liter diesel | G37: År 0 | H37: Vei i dagen | I37: Diesel | J37: =Utslippsfaktorer!B20 -> Fossil diesel (WTW) | K37: =SUMIF(Utslippsfaktorer!B:B,Beregninger!J37,Utslippsfaktorer!D:D) -> 3.24 | L37: =VLOOKUP(J37,Utslippsfaktorer!B:C,2,FALSE) -> kg CO2e/liter | M37: 0
D38: Transport biodiesel | E38: =C32*(((SUM(Hovedvei!F5:F7)*'Prosjektbeskrivelse og inndata'!C9)+(('Tillegg vei'!F5*Beregningsfaktorer!D82)+('Tillegg vei'!F7*Beregningsfaktorer!D84)))) -> 0 | F38: liter biodiesel | G38: År 0 | H38: Vei i dagen | I38: Biodiesel | J38: =Utslippsfaktorer!B18 -> Biodiesel (WTT) | K38: =SUMIF(Utslippsfaktorer!B:B,Beregninger!J38,Utslippsfaktorer!D:D) -> 1.92 | L38: =VLOOKUP(J38,Utslippsfaktorer!B:C,2,FALSE) -> kg CO2e/liter | M38: 0
D39: Transport elektrisk/hydrogen | E39: =C32*(((SUM(Hovedvei!G5:G7)*'Prosjektbeskrivelse og inndata'!C9)+(('Tillegg vei'!G5*Beregningsfaktorer!D82)+('Tillegg vei'!G7*Beregningsfaktorer!D84)))) -> 0 | F39: kWh | G39: År 0 | H39: Vei i dagen | I39: Elektrisitet | J39: =Utslippsfaktorer!B23 -> Elektrisitet anleggsfase, norsk miks | K39: =SUMIF(Utslippsfaktorer!B:B,Beregninger!J39,Utslippsfaktorer!D:D) -> 0.02638 | L39: =VLOOKUP(J39,Utslippsfaktorer!B:C,2,FALSE) -> kg CO2e/kWh | M39: 0
D40: Anleggsarbeid diesel | E40: =C32*(((SUM(Hovedvei!E15:E28)*'Prosjektbeskrivelse og inndata'!C9)+(('Tillegg vei'!D12*Beregningsfaktorer!D84)+('Tillegg vei'!D13*Beregningsfaktorer!D88)+('Tillegg vei'!D14*Beregningsfaktorer!D86)))) -> 0 | F40: liter diesel | G40: År 0 | H40: Vei i dagen | I40: Diesel | J40: =Utslippsfaktorer!B20 -> Fossil diesel (WTW) | K40: =SUMIF(Utslippsfaktorer!B:B,Beregninger!J40,Utslippsfaktorer!D:D) -> 3.24 | L40: =VLOOKUP(J40,Utslippsfaktorer!B:C,2,FALSE) -> kg CO2e/liter | M40: 0
D41: Anleggsarbeid biodiesel | E41: =C32*(((SUM(Hovedvei!F15:F28)*'Prosjektbeskrivelse og inndata'!C9)+(('Tillegg vei'!E12*Beregningsfaktorer!D84)+('Tillegg vei'!E13*Beregningsfaktorer!D88)+('Tillegg vei'!E14*Beregningsfaktorer!D86)))) -> 0 | F41: liter biodiesel | G41: År 0 | H41: Vei i dagen | I41: Biodiesel | J41: =Utslippsfaktorer!B18 -> Biodiesel (WTT) | K41: =SUMIF(Utslippsfaktorer!B:B,Beregninger!J41,Utslippsfaktorer!D:D) -> 1.92 | L41: =VLOOKUP(J41,Utslippsfaktorer!B:C,2,FALSE) -> kg CO2e/liter | M41: 0
D42: Anleggsarbeid elektrisk/hydrogen | E42: =C32*(((SUM(Hovedvei!G15:G28)*'Prosjektbeskrivelse og inndata'!C9)+(('Tillegg vei'!F12*Beregningsfaktorer!D84)+('Tillegg vei'!F13*Beregningsfaktorer!D88)+('Tillegg vei'!F14*Beregningsfaktorer!D86)))) -> 0 | F42: kWh | G42: År 0 | H42: Vei i dagen | I42: Elektrisitet | J42: =Utslippsfaktorer!B23 -> Elektrisitet anleggsfase, norsk miks | K42: =SUMIF(Utslippsfaktorer!B:B,Beregninger!J42,Utslippsfaktorer!D:D) -> 0.02638 | L42: =VLOOKUP(J42,Utslippsfaktorer!B:C,2,FALSE) -> kg CO2e/kWh | M42: 0
B43: Sidevei (m) | C43: =SUMIF('Prosjektbeskrivelse og inndata'!$M:$M,B43,'Prosjektbeskrivelse og inndata'!$L:$L) -> 0 | D43: Slitelag asfaltgrusbetong (Agb) | E43: =C43*Sidevei!D5*'Prosjektbeskrivelse og inndata'!C10 -> 0 | F43: kg asfaltgrusbetong | G43: År 0 | H43: Vei i dagen | I43: Asfalt | J43: =Utslippsfaktorer!B6 -> Asfaltgrusbetong (Agb) | K43: =SUMIF(Utslippsfaktorer!B:B,Beregninger!J43,Utslippsfaktorer!D:D) -> 0.0512 | L43: =VLOOKUP(J43,Utslippsfaktorer!B:C,2,FALSE) -> kg CO2e/kg | M43: 0
D44: Bindlag asfaltgrusbetong (Agb) | E44: =C43*Sidevei!D6*'Prosjektbeskrivelse og inndata'!C10 -> 0 | F44: kg asfaltgrusbetong | G44: År 0 | H44: Vei i dagen | I44: Asfalt | J44: =Utslippsfaktorer!B6 -> Asfaltgrusbetong (Agb) | K44: =SUMIF(Utslippsfaktorer!B:B,Beregninger!J44,Utslippsfaktorer!D:D) -> 0.0512 | L44: =VLOOKUP(J44,Utslippsfaktorer!B:C,2,FALSE) -> kg CO2e/kg | M44: 0
D45: Bærelag asfaltgrus (Ag) | E45: =C43*Sidevei!D7*'Prosjektbeskrivelse og inndata'!C10 -> 0 | F45: kg asfaltgrus | G45: År 0 | H45: Vei i dagen | I45: Asfalt | J45: =Utslippsfaktorer!B8 -> Asfaltgrus (Ag) | K45: =SUMIF(Utslippsfaktorer!B:B,Beregninger!J45,Utslippsfaktorer!D:D) -> 0.0488 | L45: =VLOOKUP(J45,Utslippsfaktorer!B:C,2,FALSE) -> kg CO2e/kg | M45: 0
D46: Lyktestolper | E46: =C43*'Tillegg vei'!D6*Beregningsfaktorer!D83 -> 0 | F46: kg stål | G46: År 0 | H46: Vei i dagen | I46: Stål | J46: =Utslippsfaktorer!B14 -> Stål | K46: =SUMIF(Utslippsfaktorer!B:B,Beregninger!J46,Utslippsfaktorer!D:D) -> 2.1235 | L46: =VLOOKUP(J46,Utslippsfaktorer!B:C,2,FALSE) -> kg CO2e/kg | M46: 0
D47: Autovern/rekkverk | E47: =C43*'Tillegg vei'!D7*Beregningsfaktorer!D85 -> 0 | F47: kg stål | G47: År 0 | H47: Vei i dagen | I47: Stål | J47: =Utslippsfaktorer!B14 -> Stål | K47: =SUMIF(Utslippsfaktorer!B:B,Beregninger!J47,Utslippsfaktorer!D:D) -> 2.1235 | L47: =VLOOKUP(J47,Utslippsfaktorer!B:C,2,FALSE) -> kg CO2e/kg | M47: 0
D48: Transport diesel | E48: =C43*(((SUM(Sidevei!E5:E7)*'Prosjektbeskrivelse og inndata'!C10)+(('Tillegg vei'!E6*Beregningsfaktorer!D83)+('Tillegg vei'!E7*Beregningsfaktorer!D85)))) -> 0 | F48: liter diesel | G48: År 0 | H48: Vei i dagen | I48: Diesel | J48: =Utslippsfaktorer!B20 -> Fossil diesel (WTW) | K48: =SUMIF(Utslippsfaktorer!B:B,Beregninger!J48,Utslippsfaktorer!D:D) -> 3.24 | L48: =VLOOKUP(J48,Utslippsfaktorer!B:C,2,FALSE) -> kg CO2e/liter | M48: 0
D49: Transport biodiesel | E49: =C43*(((SUM(Sidevei!F5:F7)*'Prosjektbeskrivelse og inndata'!C10)+(('Tillegg vei'!F6*Beregningsfaktorer!D83)+('Tillegg vei'!F7*Beregningsfaktorer!D85)))) -> 0 | F49: liter biodiesel | G49: År 0 | H49: Vei i dagen | I49: Biodiesel | J49: =Utslippsfaktorer!B18 -> Biodiesel (WTT) | K49: =SUMIF(Utslippsfaktorer!B:B,Beregninger!J49,Utslippsfaktorer!D:D) -> 1.92 | L49: =VLOOKUP(J49,Utslippsfaktorer!B:C,2,FALSE) -> kg CO2e/liter | M49: 0
D50: Transport elektrisk/hydrogen | E50: =C43*(((SUM(Sidevei!G5:G7)*'Prosjektbeskrivelse og inndata'!C10)+(('Tillegg vei'!G6*Beregningsfaktorer!D83)+('Tillegg vei'!G7*Beregningsfaktorer!D85)))) -> 0 | F50: kWh | G50: År 0 | H50: Vei i dagen | I50: Elektrisitet | J50: =Utslippsfaktorer!B23 -> Elektrisitet anleggsfase, norsk miks | K50: =SUMIF(Utslippsfaktorer!B:B,Beregninger!J50,Utslippsfaktorer!D:D) -> 0.02638 | L50: =VLOOKUP(J50,Utslippsfaktorer!B:C,2,FALSE) -> kg CO2e/kWh | M50: 0
D51: Anleggsarbeid diesel | E51: =C43*(((SUM(Sidevei!E15:E28)*'Prosjektbeskrivelse og inndata'!C10)+(('Tillegg vei'!D12*Beregningsfaktorer!D85)+('Tillegg vei'!D13*Beregningsfaktorer!D89)+('Tillegg vei'!D14*Beregningsfaktorer!D87)))) -> 0 | F51: liter diesel | G51: År 0 | H51: Vei i dagen | I51: Diesel | J51: =Utslippsfaktorer!B20 -> Fossil diesel (WTW) | K51: =SUMIF(Utslippsfaktorer!B:B,Beregninger!J51,Utslippsfaktorer!D:D) -> 3.24 | L51: =VLOOKUP(J51,Utslippsfaktorer!B:C,2,FALSE) -> kg CO2e/liter | M51: 0
D52: Anleggsarbeid biodiesel | E52: =C43*(((SUM(Sidevei!F15:F28)*'Prosjektbeskrivelse og inndata'!C10)+(('Tillegg vei'!E12*Beregningsfaktorer!D85)+('Tillegg vei'!E13*Beregningsfaktorer!D89)+('Tillegg vei'!E14*Beregningsfaktorer!D87)))) -> 0 | F52: liter biodiesel | G52: År 0 | H52: Vei i dagen | I52: Biodiesel | J52: =Utslippsfaktorer!B18 -> Biodiesel (WTT) | K52: =SUMIF(Utslippsfaktorer!B:B,Beregninger!J52,Utslippsfaktorer!D:D) -> 1.92 | L52: =VLOOKUP(J52,Utslippsfaktorer!B:C,2,FALSE) -> kg CO2e/liter | M52: 0
D53: Anleggsarbeid elektrisk/hydrogen | E53: =C43*(((SUM(Sidevei!G15:G28)*'Prosjektbeskrivelse og inndata'!C10)+(('Tillegg vei'!F12*Beregningsfaktorer!D85)+('Tillegg vei'!F13*Beregningsfaktorer!D89)+('Tillegg vei'!F14*Beregningsfaktorer!D87)))) -> 0 | F53: kWh | G53: År 0 | H53: Vei i dagen | I53: Elektrisitet | J53: =Utslippsfaktorer!B23 -> Elektrisitet anleggsfase, norsk miks | K53: =SUMIF(Utslippsfaktorer!B:B,Beregninger!J53,Utslippsfaktorer!D:D) -> 0.02638 | L53: =VLOOKUP(J53,Utslippsfaktorer!B:C,2,FALSE) -> kg CO2e/kWh | M53: 0
B54: Anleggsvei (m) | C54: =SUMIF('Prosjektbeskrivelse og inndata'!$M:$M,B54,'Prosjektbeskrivelse og inndata'!$L:$L) -> 0 | D54: Bærelag asfaltgrus (Ag) | E54: =C54*Anleggsvei!D5*'Prosjektbeskrivelse og inndata'!C11 -> 0 | F54: kg asfaltgrus | G54: År 0 | H54: Vei i dagen | I54: Asfalt | J54: =Utslippsfaktorer!B8 -> Asfaltgrus (Ag) | K54: =SUMIF(Utslippsfaktorer!B:B,Beregninger!J54,Utslippsfaktorer!D:D) -> 0.0488 | L54: =VLOOKUP(J54,Utslippsfaktorer!B:C,2,FALSE) -> kg CO2e/kg | M54: 0
D55: Transport diesel | E55: =C54*(SUM(Anleggsvei!E5:E6)*'Prosjektbeskrivelse og inndata'!C11) -> 0 | F55: liter diesel | G55: År 0 | H55: Vei i dagen | I55: Diesel | J55: =Utslippsfaktorer!B20 -> Fossil diesel (WTW) | K55: =SUMIF(Utslippsfaktorer!B:B,Beregninger!J55,Utslippsfaktorer!D:D) -> 3.24 | L55: =VLOOKUP(J55,Utslippsfaktorer!B:C,2,FALSE) -> kg CO2e/liter | M55: 0
D56: Transport biodiesel | E56: =C54*(SUM(Anleggsvei!F5:F6)*'Prosjektbeskrivelse og inndata'!C11) -> 0 | F56: liter biodiesel | G56: År 0 | H56: Vei i dagen | I56: Biodiesel | J56: =Utslippsfaktorer!B18 -> Biodiesel (WTT) | K56: =SUMIF(Utslippsfaktorer!B:B,Beregninger!J56,Utslippsfaktorer!D:D) -> 1.92 | L56: =VLOOKUP(J56,Utslippsfaktorer!B:C,2,FALSE) -> kg CO2e/liter | M56: 0
D57: Transport elektrisk/hydrogen | E57: =C54*(SUM(Anleggsvei!G5:G6)*'Prosjektbeskrivelse og inndata'!C11) -> 0 | F57: kWh | G57: År 0 | H57: Vei i dagen | I57: Elektrisitet | J57: =Utslippsfaktorer!B23 -> Elektrisitet anleggsfase, norsk miks | K57: =SUMIF(Utslippsfaktorer!B:B,Beregninger!J57,Utslippsfaktorer!D:D) -> 0.02638 | L57: =VLOOKUP(J57,Utslippsfaktorer!B:C,2,FALSE) -> kg CO2e/kWh | M57: 0
D58: Anleggsarbeid diesel | E58: =C54*(SUM(Anleggsvei!E12:E16)*'Prosjektbeskrivelse og inndata'!C11) -> 0 | F58: liter diesel | G58: År 0 | H58: Vei i dagen | I58: Diesel | J58: =Utslippsfaktorer!B20 -> Fossil diesel (WTW) | K58: =SUMIF(Utslippsfaktorer!B:B,Beregninger!J58,Utslippsfaktorer!D:D) -> 3.24 | L58: =VLOOKUP(J58,Utslippsfaktorer!B:C,2,FALSE) -> kg CO2e/liter | M58: 0
D59: Anleggsarbeid biodiesel | E59: =C54*(SUM(Anleggsvei!F12:F16)*'Prosjektbeskrivelse og inndata'!C11) -> 0 | F59: liter biodiesel | G59: År 0 | H59: Vei i dagen | I59: Biodiesel | J59: =Utslippsfaktorer!B18 -> Biodiesel (WTT) | K59: =SUMIF(Utslippsfaktorer!B:B,Beregninger!J59,Utslippsfaktorer!D:D) -> 1.92 | L59: =VLOOKUP(J59,Utslippsfaktorer!B:C,2,FALSE) -> kg CO2e/liter | M59: 0
D60: Anleggsarbeid elektrisk/hydrogen | E60: =C54*(SUM(Anleggsvei!G12:G16)*'Prosjektbeskrivelse og inndata'!C11) -> 0 | F60: kWh | G60: År 0 | H60: Vei i dagen | I60: Elektrisitet | J60: =Utslippsfaktorer!B23 -> Elektrisitet anleggsfase, norsk miks | K60: =SUMIF(Utslippsfaktorer!B:B,Beregninger!J60,Utslippsfaktorer!D:D) -> 0.02638 | L60: =VLOOKUP(J60,Utslippsfaktorer!B:C,2,FALSE) -> kg CO2e/kWh | M60: 0
B61: Betongbru (m) | C61: =SUMIF('Prosjektbeskrivelse og inndata'!$M:$M,B61,'Prosjektbeskrivelse og inndata'!$L:$L) -> 0 | D61: Betong | E61: =C61*Betongbru!E5*'Prosjektbeskrivelse og inndata'!C12 -> 0 | F61: kg betong | G61: År 0 | H61: Bru | I61: Betong | J61: =Utslippsfaktorer!B10 -> Betong | K61: =SUMIF(Utslippsfaktorer!B:B,Beregninger!J61,Utslippsfaktorer!D:D) -> 0.1375 | L61: =VLOOKUP(J61,Utslippsfaktorer!B:C,2,FALSE) -> kg CO2e/kg | M61: 0
D62: Armeringsstål | E62: =C61*Betongbru!E6*'Prosjektbeskrivelse og inndata'!C12 -> 0 | F62: kg armeringsstål | G62: År 0 | H62: Bru | I62: Armeringsstål | J62: =Utslippsfaktorer!B5 -> Armeringsstål | K62: =SUMIF(Utslippsfaktorer!B:B,Beregninger!J62,Utslippsfaktorer!D:D) -> 0.6186 | L62: =VLOOKUP(J62,Utslippsfaktorer!B:C,2,FALSE) -> kg CO2e/kg | M62: 0
D63: Slitelag skjelettasfalt (Ska) | E63: =C61*Betongbru!E7*'Prosjektbeskrivelse og inndata'!C12 -> 0 | F63: kg skjelettasfalt | G63: År 0 | H63: Bru | I63: Asfalt | J63: =Utslippsfaktorer!B7 -> Skjelettasfalt (Ska) | K63: =SUMIF(Utslippsfaktorer!B:B,Beregninger!J63,Utslippsfaktorer!D:D) -> 0.0657 | L63: =VLOOKUP(J63,Utslippsfaktorer!B:C,2,FALSE) -> kg CO2e/kg | M63: 0
D64: Bindlag skjelettasfalt (Ska) | E64: =C61*Betongbru!E8*'Prosjektbeskrivelse og inndata'!C12 -> 0 | F64: kg skjelettasfalt | G64: År 0 | H64: Bru | I64: Asfalt | J64: =Utslippsfaktorer!B7 -> Skjelettasfalt (Ska) | K64: =SUMIF(Utslippsfaktorer!B:B,Beregninger!J64,Utslippsfaktorer!D:D) -> 0.0657 | L64: =VLOOKUP(J64,Utslippsfaktorer!B:C,2,FALSE) -> kg CO2e/kg | M64: 0
D65: Fuktisolering (Topeka) | E65: =C61*Betongbru!E9*'Prosjektbeskrivelse og inndata'!C12 -> 0 | F65: kg topeka | G65: År 0 | H65: Bru | I65: Asfalt | J65: =Utslippsfaktorer!B9 -> Topeka | K65: =SUMIF(Utslippsfaktorer!B:B,Beregninger!J65,Utslippsfaktorer!D:D) -> 0.184 | L65: =VLOOKUP(J65,Utslippsfaktorer!B:C,2,FALSE) -> kg CO2e/kg | M65: 0
D66: Lyktestolper | E66: =C61*'Tillegg vei'!D5*Beregningsfaktorer!D82 -> 0 | F66: kg stål | G66: År 0 | H66: Bru | I66: Stål | J66: =Utslippsfaktorer!B14 -> Stål | K66: =SUMIF(Utslippsfaktorer!B:B,Beregninger!J66,Utslippsfaktorer!D:D) -> 2.1235 | L66: =VLOOKUP(J66,Utslippsfaktorer!B:C,2,FALSE) -> kg CO2e/kg | M66: 0
D67: Autovern/rekkverk | E67: =C61*'Tillegg vei'!D7*Beregningsfaktorer!D84 -> 0 | F67: kg stål | G67: År 0 | H67: Bru | I67: Stål | J67: =Utslippsfaktorer!B14 -> Stål | K67: =SUMIF(Utslippsfaktorer!B:B,Beregninger!J67,Utslippsfaktorer!D:D) -> 2.1235 | L67: =VLOOKUP(J67,Utslippsfaktorer!B:C,2,FALSE) -> kg CO2e/kg | M67: 0
D68: Transport diesel | E68: =C61*(((SUM(Betongbru!F5:F9)*'Prosjektbeskrivelse og inndata'!C12)+(('Tillegg vei'!E5*Beregningsfaktorer!D82)+('Tillegg vei'!E7*Beregningsfaktorer!D84)))) -> 0 | F68: liter diesel | G68: År 0 | H68: Bru | I68: Diesel | J68: =Utslippsfaktorer!B20 -> Fossil diesel (WTW) | K68: =SUMIF(Utslippsfaktorer!B:B,Beregninger!J68,Utslippsfaktorer!D:D) -> 3.24 | L68: =VLOOKUP(J68,Utslippsfaktorer!B:C,2,FALSE) -> kg CO2e/liter | M68: 0
D69: Transport biodiesel | E69: =C61*(((SUM(Betongbru!G5:G9)*'Prosjektbeskrivelse og inndata'!C12)+(('Tillegg vei'!F5*Beregningsfaktorer!D82)+('Tillegg vei'!F7*Beregningsfaktorer!D84)))) -> 0 | F69: liter biodiesel | G69: År 0 | H69: Bru | I69: Biodiesel | J69: =Utslippsfaktorer!B18 -> Biodiesel (WTT) | K69: =SUMIF(Utslippsfaktorer!B:B,Beregninger!J69,Utslippsfaktorer!D:D) -> 1.92 | L69: =VLOOKUP(J69,Utslippsfaktorer!B:C,2,FALSE) -> kg CO2e/liter | M69: 0
D70: Transport elektrisk/hydrogen | E70: =C61*(((SUM(Betongbru!H5:H9)*'Prosjektbeskrivelse og inndata'!C12)+(('Tillegg vei'!G5*Beregningsfaktorer!D82)+('Tillegg vei'!G7*Beregningsfaktorer!D84)))) -> 0 | F70: kWh | G70: År 0 | H70: Bru | I70: Elektrisitet | J70: =Utslippsfaktorer!B23 -> Elektrisitet anleggsfase, norsk miks | K70: =SUMIF(Utslippsfaktorer!B:B,Beregninger!J70,Utslippsfaktorer!D:D) -> 0.02638 | L70: =VLOOKUP(J70,Utslippsfaktorer!B:C,2,FALSE) -> kg CO2e/kWh | M70: =(E70*K70)/1000 -> 0
D71: Anleggsarbeid diesel | E71: =C61*(((SUM(Betongbru!E17:E26)*'Prosjektbeskrivelse og inndata'!C12)+(('Tillegg vei'!D12*Beregningsfaktorer!D84)+('Tillegg vei'!D13*Beregningsfaktorer!D88)))) -> 0 | F71: liter diesel | G71: År 0 | H71: Bru | I71: Diesel | J71: =Utslippsfaktorer!B20 -> Fossil diesel (WTW) | K71: =SUMIF(Utslippsfaktorer!B:B,Beregninger!J71,Utslippsfaktorer!D:D) -> 3.24 | L71: =VLOOKUP(J71,Utslippsfaktorer!B:C,2,FALSE) -> kg CO2e/liter | M71: 0
D72: Anleggsarbeid biodiesel | E72: =C61*(((SUM(Betongbru!F17:F26)*'Prosjektbeskrivelse og inndata'!C12)+(('Tillegg vei'!E12*Beregningsfaktorer!D84)+('Tillegg vei'!E13*Beregningsfaktorer!D88)))) -> 0 | F72: liter biodiesel | G72: År 0 | H72: Bru | I72: Biodiesel | J72: =Utslippsfaktorer!B18 -> Biodiesel (WTT) | K72: =SUMIF(Utslippsfaktorer!B:B,Beregninger!J72,Utslippsfaktorer!D:D) -> 1.92 | L72: =VLOOKUP(J72,Utslippsfaktorer!B:C,2,FALSE) -> kg CO2e/liter | M72: 0
D73: Anleggsarbeid elektrisk/hydrogen | E73: =C61*(((SUM(Betongbru!G17:G26)*'Prosjektbeskrivelse og inndata'!C12)+(('Tillegg vei'!F12*Beregningsfaktorer!D84)+('Tillegg vei'!F13*Beregningsfaktorer!D88)))) -> 0 | F73: kWh | G73: År 0 | H73: Bru | I73: Elektrisitet | J73: =Utslippsfaktorer!B23 -> Elektrisitet anleggsfase, norsk miks | K73: =SUMIF(Utslippsfaktorer!B:B,Beregninger!J73,Utslippsfaktorer!D:D) -> 0.02638 | L73: =VLOOKUP(J73,Utslippsfaktorer!B:C,2,FALSE) -> kg CO2e/kWh | M73: 0
B74: Stålbru (m) | C74: =SUMIF('Prosjektbeskrivelse og inndata'!$M:$M,B74,'Prosjektbeskrivelse og inndata'!$L:$L) -> 0 | D74: Betong | E74: =C74*Stålbru!E5*'Prosjektbeskrivelse og inndata'!C13 -> 0 | F74: kg betong | G74: År 0 | H74: Bru | I74: Betong | J74: =Utslippsfaktorer!B10 -> Betong | K74: =SUMIF(Utslippsfaktorer!B:B,Beregninger!J74,Utslippsfaktorer!D:D) -> 0.1375 | L74: =VLOOKUP(J74,Utslippsfaktorer!B:C,2,FALSE) -> kg CO2e/kg | M74: 0
D75: Armeringsstål | E75: =C74*Stålbru!E6*'Prosjektbeskrivelse og inndata'!C13 -> 0 | F75: kg armeringsstål | G75: År 0 | H75: Bru | I75: Armeringsstål | J75: =Utslippsfaktorer!B5 -> Armeringsstål | K75: =SUMIF(Utslippsfaktorer!B:B,Beregninger!J75,Utslippsfaktorer!D:D) -> 0.6186 | L75: =VLOOKUP(J75,Utslippsfaktorer!B:C,2,FALSE) -> kg CO2e/kg | M75: 0
D76: Konstruksjonsstål | E76: =C74*Stålbru!E7*'Prosjektbeskrivelse og inndata'!C13 -> 0 | F76: kg stål | G76: År 0 | H76: Bru | I76: Stål | J76: =Utslippsfaktorer!B14 -> Stål | K76: =SUMIF(Utslippsfaktorer!B:B,Beregninger!J76,Utslippsfaktorer!D:D) -> 2.1235 | L76: =VLOOKUP(J76,Utslippsfaktorer!B:C,2,FALSE) -> kg CO2e/kg | M76: 0
D77: Slitelag skjelettasfalt (Ska) | E77: =C74*Stålbru!E8*'Prosjektbeskrivelse og inndata'!C13 -> 0 | F77: kg skjelettasfalt | G77: År 0 | H77: Bru | I77: Asfalt | J77: =Utslippsfaktorer!B7 -> Skjelettasfalt (Ska) | K77: =SUMIF(Utslippsfaktorer!B:B,Beregninger!J77,Utslippsfaktorer!D:D) -> 0.0657 | L77: =VLOOKUP(J77,Utslippsfaktorer!B:C,2,FALSE) -> kg CO2e/kg | M77: 0
D78: Bindlag skjelettasfalt (Ska) | E78: =C74*Stålbru!E9*'Prosjektbeskrivelse og inndata'!C13 -> 0 | F78: kg skjelettasfalt | G78: År 0 | H78: Bru | I78: Asfalt | J78: =Utslippsfaktorer!B7 -> Skjelettasfalt (Ska) | K78: =SUMIF(Utslippsfaktorer!B:B,Beregninger!J78,Utslippsfaktorer!D:D) -> 0.0657 | L78: =VLOOKUP(J78,Utslippsfaktorer!B:C,2,FALSE) -> kg CO2e/kg | M78: 0
D79: Fuktisolering (Topeka) | E79: =C74*Stålbru!E10*'Prosjektbeskrivelse og inndata'!C13 -> 0 | F79: kg topeka | G79: År 0 | H79: Bru | I79: Asfalt | J79: =Utslippsfaktorer!B9 -> Topeka | K79: =SUMIF(Utslippsfaktorer!B:B,Beregninger!J79,Utslippsfaktorer!D:D) -> 0.184 | L79: =VLOOKUP(J79,Utslippsfaktorer!B:C,2,FALSE) -> kg CO2e/kg | M79: 0
D80: Lyktestolper | E80: =C74*'Tillegg vei'!D5*Beregningsfaktorer!D82 -> 0 | F80: kg stål | G80: År 0 | H80: Bru | I80: Stål | J80: =Utslippsfaktorer!B14 -> Stål | K80: =SUMIF(Utslippsfaktorer!B:B,Beregninger!J80,Utslippsfaktorer!D:D) -> 2.1235 | L80: =VLOOKUP(J80,Utslippsfaktorer!B:C,2,FALSE) -> kg CO2e/kg | M80: 0
D81: Autovern/rekkverk | E81: =C74*'Tillegg vei'!D7*Beregningsfaktorer!D84 -> 0 | F81: kg stål | G81: År 0 | H81: Bru | I81: Stål | J81: =Utslippsfaktorer!B14 -> Stål | K81: =SUMIF(Utslippsfaktorer!B:B,Beregninger!J81,Utslippsfaktorer!D:D) -> 2.1235 | L81: =VLOOKUP(J81,Utslippsfaktorer!B:C,2,FALSE) -> kg CO2e/kg | M81: 0
D82: Transport diesel | E82: =C74*(((SUM(Stålbru!F5:F10)*'Prosjektbeskrivelse og inndata'!C13)+(('Tillegg vei'!E5*Beregningsfaktorer!D82)+('Tillegg vei'!E7*Beregningsfaktorer!D84)))) -> 0 | F82: liter diesel | G82: År 0 | H82: Bru | I82: Diesel | J82: =Utslippsfaktorer!B20 -> Fossil diesel (WTW) | K82: =SUMIF(Utslippsfaktorer!B:B,Beregninger!J82,Utslippsfaktorer!D:D) -> 3.24 | L82: =VLOOKUP(J82,Utslippsfaktorer!B:C,2,FALSE) -> kg CO2e/liter | M82: 0
D83: Transport biodiesel | E83: =C74*(((SUM(Stålbru!G5:G10)*'Prosjektbeskrivelse og inndata'!C13)+(('Tillegg vei'!F5*Beregningsfaktorer!D82)+('Tillegg vei'!F7*Beregningsfaktorer!D84)))) -> 0 | F83: liter biodiesel | G83: År 0 | H83: Bru | I83: Biodiesel | J83: =Utslippsfaktorer!B18 -> Biodiesel (WTT) | K83: =SUMIF(Utslippsfaktorer!B:B,Beregninger!J83,Utslippsfaktorer!D:D) -> 1.92 | L83: =VLOOKUP(J83,Utslippsfaktorer!B:C,2,FALSE) -> kg CO2e/liter | M83: 0
D84: Transport elektrisk/hydrogen | E84: =C74*(((SUM(Stålbru!H5:H10)*'Prosjektbeskrivelse og inndata'!C13)+(('Tillegg vei'!G5*Beregningsfaktorer!D82)+('Tillegg vei'!G7*Beregningsfaktorer!D84)))) -> 0 | F84: kWh | G84: År 0 | H84: Bru | I84: Elektrisitet | J84: =Utslippsfaktorer!B23 -> Elektrisitet anleggsfase, norsk miks | K84: =SUMIF(Utslippsfaktorer!B:B,Beregninger!J84,Utslippsfaktorer!D:D) -> 0.02638 | L84: =VLOOKUP(J84,Utslippsfaktorer!B:C,2,FALSE) -> kg CO2e/kWh | M84: 0
D85: Anleggsarbeid diesel | E85: =C74*(((SUM(Stålbru!E18:E27)*'Prosjektbeskrivelse og inndata'!C13)+(('Tillegg vei'!D12*Beregningsfaktorer!D84)+('Tillegg vei'!D13*Beregningsfaktorer!D88)))) -> 0 | F85: liter diesel | G85: År 0 | H85: Bru | I85: Diesel | J85: =Utslippsfaktorer!B20 -> Fossil diesel (WTW) | K85: =SUMIF(Utslippsfaktorer!B:B,Beregninger!J85,Utslippsfaktorer!D:D) -> 3.24 | L85: =VLOOKUP(J85,Utslippsfaktorer!B:C,2,FALSE) -> kg CO2e/liter | M85: 0
D86: Anleggsarbeid biodiesel | E86: =C74*(((SUM(Stålbru!F18:F27)*'Prosjektbeskrivelse og inndata'!C13)+(('Tillegg vei'!E12*Beregningsfaktorer!D84)+('Tillegg vei'!E13*Beregningsfaktorer!D88)))) -> 0 | F86: liter biodiesel | G86: År 0 | H86: Bru | I86: Biodiesel | J86: =Utslippsfaktorer!B18 -> Biodiesel (WTT) | K86: =SUMIF(Utslippsfaktorer!B:B,Beregninger!J86,Utslippsfaktorer!D:D) -> 1.92 | L86: =VLOOKUP(J86,Utslippsfaktorer!B:C,2,FALSE) -> kg CO2e/liter | M86: 0
D87: Anleggsarbeid elektrisk/hydrogen | E87: =C74*(((SUM(Stålbru!G16:G27)*'Prosjektbeskrivelse og inndata'!C13)+(('Tillegg vei'!F12*Beregningsfaktorer!D84)+('Tillegg vei'!F13*Beregningsfaktorer!D88)))) -> 0 | F87: kWh | G87: År 0 | H87: Bru | I87: Elektrisitet | J87: =Utslippsfaktorer!B23 -> Elektrisitet anleggsfase, norsk miks | K87: =SUMIF(Utslippsfaktorer!B:B,Beregninger!J87,Utslippsfaktorer!D:D) -> 0.02638 | L87: =VLOOKUP(J87,Utslippsfaktorer!B:C,2,FALSE) -> kg CO2e/kWh | M87: 0
B88: Tunnel enkeltløp (m) | C88: =SUMIF('Prosjektbeskrivelse og inndata'!$M:$M,B88,'Prosjektbeskrivelse og inndata'!$L:$L) -> 0 | D88: Betong | E88: =C88*'Tunnel enkeltløp'!F10 -> 0 | F88: kg betong | G88: År 0 | H88: Tunnel | I88: Betong | J88: =Utslippsfaktorer!B10 -> Betong | K88: =SUMIF(Utslippsfaktorer!B:B,Beregninger!J88,Utslippsfaktorer!D:D) -> 0.1375 | L88: =VLOOKUP(J88,Utslippsfaktorer!B:C,2,FALSE) -> kg CO2e/kg | M88: 0
D89: Armeringsstål | E89: =C88*'Tunnel enkeltløp'!F11 -> 0 | F89: kg armeringsstål | G89: År 0 | H89: Tunnel | I89: Armeringsstål | J89: =Utslippsfaktorer!B5 -> Armeringsstål | K89: =SUMIF(Utslippsfaktorer!B:B,Beregninger!J89,Utslippsfaktorer!D:D) -> 0.6186 | L89: =VLOOKUP(J89,Utslippsfaktorer!B:C,2,FALSE) -> kg CO2e/kg | M89: 0
D90: Sikringsbolter | E90: =C88*'Tunnel enkeltløp'!F12 -> 0 | F90: kg stål | G90: År 0 | H90: Tunnel | I90: Stål | J90: =Utslippsfaktorer!B14 -> Stål | K90: =SUMIF(Utslippsfaktorer!B:B,Beregninger!J90,Utslippsfaktorer!D:D) -> 2.1235 | L90: =VLOOKUP(J90,Utslippsfaktorer!B:C,2,FALSE) -> kg CO2e/kg | M90: 0
D91: Frostsikring | E91: =C88*'Tunnel enkeltløp'!G13 -> 0 | F91: m2 isolasjon | G91: År 0 | H91: Tunnel | I91: Frostsikring tunnel | J91: =Utslippsfaktorer!B16 -> XPS/betongelement | K91: =SUMIF(Utslippsfaktorer!B:B,Beregninger!J91,Utslippsfaktorer!D:D) -> 66.815 | L91: =VLOOKUP(J91,Utslippsfaktorer!B:C,2,FALSE) -> kg CO2e/m2 | M91: =(E91*K91)/1000 -> 0
D92: Slitelag skjelettasfalt (Ska) | E92: =C88*'Tunnel enkeltløp'!F14 -> 0 | F92: kg skjelettasfalt | G92: År 0 | H92: Tunnel | I92: Asfalt | J92: =Utslippsfaktorer!B7 -> Skjelettasfalt (Ska) | K92: =SUMIF(Utslippsfaktorer!B:B,Beregninger!J92,Utslippsfaktorer!D:D) -> 0.0657 | L92: =VLOOKUP(J92,Utslippsfaktorer!B:C,2,FALSE) -> kg CO2e/kg | M92: 0
D93: Bindlag skjelettasfalt (Ska) | E93: =C88*'Tunnel enkeltløp'!F15 -> 0 | F93: kg skjelettasfalt | G93: År 0 | H93: Tunnel | I93: Asfalt | J93: =Utslippsfaktorer!B7 -> Skjelettasfalt (Ska) | K93: =SUMIF(Utslippsfaktorer!B:B,Beregninger!J93,Utslippsfaktorer!D:D) -> 0.0657 | L93: =VLOOKUP(J93,Utslippsfaktorer!B:C,2,FALSE) -> kg CO2e/kg | M93: 0
D94: Bærelag asfaltgrus (Ag) | E94: =C88*'Tunnel enkeltløp'!F16 -> 0 | F94: kg asfaltgrus | G94: År 0 | H94: Tunnel | I94: Asfalt | J94: =Utslippsfaktorer!B8 -> Asfaltgrus (Ag) | K94: =SUMIF(Utslippsfaktorer!B:B,Beregninger!J94,Utslippsfaktorer!D:D) -> 0.0488 | L94: =VLOOKUP(J94,Utslippsfaktorer!B:C,2,FALSE) -> kg CO2e/kg | M94: 0
D95: Autovern/rekkverk | E95: =C88*'Tillegg vei'!D7*Beregningsfaktorer!D84 -> 0 | F95: kg stål | G95: År 0 | H95: Tunnel | I95: Stål | J95: =Utslippsfaktorer!B14 -> Stål | K95: =SUMIF(Utslippsfaktorer!B:B,Beregninger!J95,Utslippsfaktorer!D:D) -> 2.1235 | L95: =VLOOKUP(J95,Utslippsfaktorer!B:C,2,FALSE) -> kg CO2e/kg | M95: 0
D96: Transport diesel | E96: =C88*(((SUM('Tunnel enkeltløp'!H10:H18))+('Tillegg vei'!E7*Beregningsfaktorer!D84))) -> 0 | F96: liter diesel | G96: År 0 | H96: Tunnel | I96: Diesel | J96: =Utslippsfaktorer!B20 -> Fossil diesel (WTW) | K96: =SUMIF(Utslippsfaktorer!B:B,Beregninger!J96,Utslippsfaktorer!D:D) -> 3.24 | L96: =VLOOKUP(J96,Utslippsfaktorer!B:C,2,FALSE) -> kg CO2e/liter | M96: 0
D97: Transport biodiesel | E97: =C88*(((SUM('Tunnel enkeltløp'!I10:I18))+('Tillegg vei'!F7*Beregningsfaktorer!D84))) -> 0 | F97: liter biodiesel | G97: År 0 | H97: Tunnel | I97: Biodiesel | J97: =Utslippsfaktorer!B18 -> Biodiesel (WTT) | K97: =SUMIF(Utslippsfaktorer!B:B,Beregninger!J97,Utslippsfaktorer!D:D) -> 1.92 | L97: =VLOOKUP(J97,Utslippsfaktorer!B:C,2,FALSE) -> kg CO2e/liter | M97: 0
D98: Transport elektrisk/hydrogen | E98: =C88*(((SUM('Tunnel enkeltløp'!J10:J18))+('Tillegg vei'!G7*Beregningsfaktorer!D84))) -> 0 | F98: kWh | G98: År 0 | H98: Tunnel | I98: Elektrisitet | J98: =Utslippsfaktorer!B23 -> Elektrisitet anleggsfase, norsk miks | K98: =SUMIF(Utslippsfaktorer!B:B,Beregninger!J98,Utslippsfaktorer!D:D) -> 0.02638 | L98: =VLOOKUP(J98,Utslippsfaktorer!B:C,2,FALSE) -> kg CO2e/kWh | M98: 0
D99: Anleggsarbeid diesel | E99: =C88*Beregningsfaktorer!D42*(((SUM('Tunnel enkeltløp'!E24:E37))+(('Tillegg vei'!D12*Beregningsfaktorer!D84)+('Tillegg vei'!D13*Beregningsfaktorer!D88)))) -> 0 | F99: liter diesel | G99: År 0 | H99: Tunnel | I99: Diesel | J99: =Utslippsfaktorer!B20 -> Fossil diesel (WTW) | K99: =SUMIF(Utslippsfaktorer!B:B,Beregninger!J99,Utslippsfaktorer!D:D) -> 3.24 | L99: =VLOOKUP(J99,Utslippsfaktorer!B:C,2,FALSE) -> kg CO2e/liter | M99: 0
D100: Anleggsarbeid biodiesel | E100: =C88*Beregningsfaktorer!D42*(((SUM('Tunnel enkeltløp'!F24:F37))+(('Tillegg vei'!E12*Beregningsfaktorer!D84)+('Tillegg vei'!E13*Beregningsfaktorer!D88)))) -> 0 | F100: liter biodiesel | G100: År 0 | H100: Tunnel | I100: Biodiesel | J100: =Utslippsfaktorer!B18 -> Biodiesel (WTT) | K100: =SUMIF(Utslippsfaktorer!B:B,Beregninger!J100,Utslippsfaktorer!D:D) -> 1.92 | L100: =VLOOKUP(J100,Utslippsfaktorer!B:C,2,FALSE) -> kg CO2e/liter | M100: 0
D101: Anleggsarbeid elektrisk/hydrogen | E101: =C88*Beregningsfaktorer!D42*(((SUM('Tunnel enkeltløp'!G24:G37))+(('Tillegg vei'!F12*Beregningsfaktorer!D84)+('Tillegg vei'!F13*Beregningsfaktorer!D88)))) -> 0 | F101: kWh | G101: År 0 | H101: Tunnel | I101: Elektrisitet | J101: =Utslippsfaktorer!B23 -> Elektrisitet anleggsfase, norsk miks | K101: =SUMIF(Utslippsfaktorer!B:B,Beregninger!J101,Utslippsfaktorer!D:D) -> 0.02638 | L101: =VLOOKUP(J101,Utslippsfaktorer!B:C,2,FALSE) -> kg CO2e/kWh | M101: 0
B102: Tunnel dobbeltløp (m) | C102: =SUMIF('Prosjektbeskrivelse og inndata'!$M:$M,B102,'Prosjektbeskrivelse og inndata'!$L:$L) -> 0 | D102: Betong | E102: =C102*'Tunnel dobbeltløp'!F10*2 -> 0 | F102: kg betong | G102: År 0 | H102: Tunnel | I102: Betong | J102: =Utslippsfaktorer!B10 -> Betong | K102: =SUMIF(Utslippsfaktorer!B:B,Beregninger!J102,Utslippsfaktorer!D:D) -> 0.1375 | L102: =VLOOKUP(J102,Utslippsfaktorer!B:C,2,FALSE) -> kg CO2e/kg | M102: 0
D103: Armeringsstål | E103: =C102*'Tunnel dobbeltløp'!F11*2 -> 0 | F103: kg armeringsstål | G103: År 0 | H103: Tunnel | I103: Armeringsstål | J103: =Utslippsfaktorer!B5 -> Armeringsstål | K103: =SUMIF(Utslippsfaktorer!B:B,Beregninger!J103,Utslippsfaktorer!D:D) -> 0.6186 | L103: =VLOOKUP(J103,Utslippsfaktorer!B:C,2,FALSE) -> kg CO2e/kg | M103: 0
D104: Sikringsbolter | E104: =C102*'Tunnel dobbeltløp'!F12*2 -> 0 | F104: kg stål | G104: År 0 | H104: Tunnel | I104: Stål | J104: =Utslippsfaktorer!B14 -> Stål | K104: =SUMIF(Utslippsfaktorer!B:B,Beregninger!J104,Utslippsfaktorer!D:D) -> 2.1235 | L104: =VLOOKUP(J104,Utslippsfaktorer!B:C,2,FALSE) -> kg CO2e/kg | M104: 0
D105: Frostsikring | E105: =C102*'Tunnel dobbeltløp'!G13*2 -> 0 | F105: m2 isolasjon | G105: År 0 | H105: Tunnel | I105: Frostsikring tunnel | J105: =Utslippsfaktorer!B16 -> XPS/betongelement | K105: =SUMIF(Utslippsfaktorer!B:B,Beregninger!J105,Utslippsfaktorer!D:D) -> 66.815 | L105: =VLOOKUP(J105,Utslippsfaktorer!B:C,2,FALSE) -> kg CO2e/m2 | M105: 0
D106: Slitelag skjelettasfalt (Ska) | E106: =C102*'Tunnel dobbeltløp'!F14*2 -> 0 | F106: kg skjelettasfalt | G106: År 0 | H106: Tunnel | I106: Asfalt | J106: =Utslippsfaktorer!B7 -> Skjelettasfalt (Ska) | K106: =SUMIF(Utslippsfaktorer!B:B,Beregninger!J106,Utslippsfaktorer!D:D) -> 0.0657 | L106: =VLOOKUP(J106,Utslippsfaktorer!B:C,2,FALSE) -> kg CO2e/kg | M106: 0
D107: Bindlag skjelettasfalt (Ska) | E107: =C102*'Tunnel dobbeltløp'!F15*2 -> 0 | F107: kg skjelettasfalt | G107: År 0 | H107: Tunnel | I107: Asfalt | J107: =Utslippsfaktorer!B7 -> Skjelettasfalt (Ska) | K107: =SUMIF(Utslippsfaktorer!B:B,Beregninger!J107,Utslippsfaktorer!D:D) -> 0.0657 | L107: =VLOOKUP(J107,Utslippsfaktorer!B:C,2,FALSE) -> kg CO2e/kg | M107: 0
D108: Bærelag asfaltgrus (Ag) | E108: =C102*'Tunnel dobbeltløp'!F16*2 -> 0 | F108: kg asfaltgrus | G108: År 0 | H108: Tunnel | I108: Asfalt | J108: =Utslippsfaktorer!B8 -> Asfaltgrus (Ag) | K108: =SUMIF(Utslippsfaktorer!B:B,Beregninger!J108,Utslippsfaktorer!D:D) -> 0.0488 | L108: =VLOOKUP(J108,Utslippsfaktorer!B:C,2,FALSE) -> kg CO2e/kg | M108: 0
D109: Autovern/rekkverk | E109: =C102*'Tillegg vei'!D7*Beregningsfaktorer!D84 -> 0 | F109: kg stål | G109: År 0 | H109: Tunnel | I109: Stål | J109: =Utslippsfaktorer!B14 -> Stål | K109: =SUMIF(Utslippsfaktorer!B:B,Beregninger!J109,Utslippsfaktorer!D:D) -> 2.1235 | L109: =VLOOKUP(J109,Utslippsfaktorer!B:C,2,FALSE) -> kg CO2e/kg | M109: 0
D110: Transport diesel | E110: =C102*(((SUM('Tunnel dobbeltløp'!H10:H18))+('Tillegg vei'!E7*Beregningsfaktorer!D84/2)))*2 -> 0 | F110: liter diesel | G110: År 0 | H110: Tunnel | I110: Diesel | J110: =Utslippsfaktorer!B20 -> Fossil diesel (WTW) | K110: =SUMIF(Utslippsfaktorer!B:B,Beregninger!J110,Utslippsfaktorer!D:D) -> 3.24 | L110: =VLOOKUP(J110,Utslippsfaktorer!B:C,2,FALSE) -> kg CO2e/liter | M110: 0
D111: Transport biodiesel | E111: =C102*(((SUM('Tunnel dobbeltløp'!I10:I18))+('Tillegg vei'!F7*Beregningsfaktorer!D84/2)))*2 -> 0 | F111: liter biodiesel | G111: År 0 | H111: Tunnel | I111: Biodiesel | J111: =Utslippsfaktorer!B18 -> Biodiesel (WTT) | K111: =SUMIF(Utslippsfaktorer!B:B,Beregninger!J111,Utslippsfaktorer!D:D) -> 1.92 | L111: =VLOOKUP(J111,Utslippsfaktorer!B:C,2,FALSE) -> kg CO2e/liter | M111: 0
D112: Transport elektrisk/hydrogen | E112: =C102*(((SUM('Tunnel dobbeltløp'!J10:J18))+('Tillegg vei'!G7*Beregningsfaktorer!D84/2)))*2 -> 0 | F112: kWh | G112: År 0 | H112: Tunnel | I112: Elektrisitet | J112: =Utslippsfaktorer!B23 -> Elektrisitet anleggsfase, norsk miks | K112: =SUMIF(Utslippsfaktorer!B:B,Beregninger!J112,Utslippsfaktorer!D:D) -> 0.02638 | L112: =VLOOKUP(J112,Utslippsfaktorer!B:C,2,FALSE) -> kg CO2e/kWh | M112: 0
D113: Anleggsarbeid diesel | E113: =C102*Beregningsfaktorer!D43*(((SUM('Tunnel dobbeltløp'!E24:E37))+(('Tillegg vei'!D12*Beregningsfaktorer!D84/2)+('Tillegg vei'!D13*Beregningsfaktorer!D88))))*2 -> 0 | F113: liter diesel | G113: År 0 | H113: Tunnel | I113: Diesel | J113: =Utslippsfaktorer!B20 -> Fossil diesel (WTW) | K113: =SUMIF(Utslippsfaktorer!B:B,Beregninger!J113,Utslippsfaktorer!D:D) -> 3.24 | L113: =VLOOKUP(J113,Utslippsfaktorer!B:C,2,FALSE) -> kg CO2e/liter | M113: 0
D114: Anleggsarbeid biodiesel | E114: =C102*Beregningsfaktorer!D43*(((SUM('Tunnel dobbeltløp'!F24:F37))+(('Tillegg vei'!E12*Beregningsfaktorer!D84/2)+('Tillegg vei'!E13*Beregningsfaktorer!D88))))*2 -> 0 | F114: liter biodiesel | G114: År 0 | H114: Tunnel | I114: Biodiesel | J114: =Utslippsfaktorer!B18 -> Biodiesel (WTT) | K114: =SUMIF(Utslippsfaktorer!B:B,Beregninger!J114,Utslippsfaktorer!D:D) -> 1.92 | L114: =VLOOKUP(J114,Utslippsfaktorer!B:C,2,FALSE) -> kg CO2e/liter | M114: 0
D115: Anleggsarbeid elektrisk/hydrogen | E115: =C102*Beregningsfaktorer!D43*(((SUM('Tunnel dobbeltløp'!G24:G37))+(('Tillegg vei'!F12*Beregningsfaktorer!D84/2)+('Tillegg vei'!F13*Beregningsfaktorer!D88))))*2 -> 0 | F115: kWh | G115: År 0 | H115: Tunnel | I115: Elektrisitet | J115: =Utslippsfaktorer!B23 -> Elektrisitet anleggsfase, norsk miks | K115: =SUMIF(Utslippsfaktorer!B:B,Beregninger!J115,Utslippsfaktorer!D:D) -> 0.02638 | L115: =VLOOKUP(J115,Utslippsfaktorer!B:C,2,FALSE) -> kg CO2e/kWh | M115: 0
B116: Betongkulvert (m2) | C116: =SUMIF('Prosjektbeskrivelse og inndata'!$M:$M,B116,'Prosjektbeskrivelse og inndata'!$L:$L) -> 0 | D116: Betong | E116: =C116*Kulvert!E5 -> 0 | F116: kg betong | G116: År 0 | H116: Kulvert | I116: Betong | J116: =Utslippsfaktorer!B10 -> Betong | K116: =SUMIF(Utslippsfaktorer!B:B,Beregninger!J116,Utslippsfaktorer!D:D) -> 0.1375 | L116: =VLOOKUP(J116,Utslippsfaktorer!B:C,2,FALSE) -> kg CO2e/kg | M116: 0
D117: Armeringsstål | E117: =C116*Kulvert!E6 -> 0 | F117: kg armeringsstål | G117: År 0 | H117: Kulvert | I117: Armeringsstål | J117: =Utslippsfaktorer!B5 -> Armeringsstål | K117: =SUMIF(Utslippsfaktorer!B:B,Beregninger!J117,Utslippsfaktorer!D:D) -> 0.6186 | L117: =VLOOKUP(J117,Utslippsfaktorer!B:C,2,FALSE) -> kg CO2e/kg | M117: 0
D118: Transport diesel | E118: =C116*(SUM(Kulvert!F5:F6)) -> 0 | F118: liter diesel | G118: År 0 | H118: Kulvert | I118: Diesel | J118: =Utslippsfaktorer!B20 -> Fossil diesel (WTW) | K118: =SUMIF(Utslippsfaktorer!B:B,Beregninger!J118,Utslippsfaktorer!D:D) -> 3.24 | L118: =VLOOKUP(J118,Utslippsfaktorer!B:C,2,FALSE) -> kg CO2e/liter | M118: 0
D119: Transport biodiesel | E119: =C116*(SUM(Kulvert!G5:G6)) -> 0 | F119: liter biodiesel | G119: År 0 | H119: Kulvert | I119: Biodiesel | J119: =Utslippsfaktorer!B18 -> Biodiesel (WTT) | K119: =SUMIF(Utslippsfaktorer!B:B,Beregninger!J119,Utslippsfaktorer!D:D) -> 1.92 | L119: =VLOOKUP(J119,Utslippsfaktorer!B:C,2,FALSE) -> kg CO2e/liter | M119: 0
D120: Transport elektrisk/hydrogen | E120: =C116*(SUM(Kulvert!H5:H6)) -> 0 | F120: kWh | G120: År 0 | H120: Kulvert | I120: Elektrisitet | J120: =Utslippsfaktorer!B23 -> Elektrisitet anleggsfase, norsk miks | K120: =SUMIF(Utslippsfaktorer!B:B,Beregninger!J120,Utslippsfaktorer!D:D) -> 0.02638 | L120: =VLOOKUP(J120,Utslippsfaktorer!B:C,2,FALSE) -> kg CO2e/kWh | M120: 0
D121: Anleggsarbeid diesel | F121: liter diesel | G121: År 0 | H121: Kulvert | I121: Diesel | J121: =Utslippsfaktorer!B20 -> Fossil diesel (WTW) | K121: =SUMIF(Utslippsfaktorer!B:B,Beregninger!J121,Utslippsfaktorer!D:D) -> 3.24 | L121: =VLOOKUP(J121,Utslippsfaktorer!B:C,2,FALSE) -> kg CO2e/liter | M121: 0
D122: Anleggsarbeid biodiesel | F122: liter biodiesel | G122: År 0 | H122: Kulvert | I122: Biodiesel | J122: =Utslippsfaktorer!B18 -> Biodiesel (WTT) | K122: =SUMIF(Utslippsfaktorer!B:B,Beregninger!J122,Utslippsfaktorer!D:D) -> 1.92 | L122: =VLOOKUP(J122,Utslippsfaktorer!B:C,2,FALSE) -> kg CO2e/liter | M122: 0
D123: Anleggsarbeid elektrisk/hydrogen | E123: ='Prosjektbeskrivelse og inndata'!C8*Kulvert!G11 -> 0 | F123: kWh | G123: År 0 | H123: Kulvert | I123: Elektrisitet | J123: =Utslippsfaktorer!B23 -> Elektrisitet anleggsfase, norsk miks | K123: =SUMIF(Utslippsfaktorer!B:B,Beregninger!J123,Utslippsfaktorer!D:D) -> 0.02638 | L123: =VLOOKUP(J123,Utslippsfaktorer!B:C,2,FALSE) -> kg CO2e/kWh | M123: 0
A124: Drift- og vedlikeholdsfase | G124: Drifts-intervall [år] | N124: Sum analyse-periode | O124: Verdi i år
O125: 1 | P125: 2 | Q125: 3 | R125: 4 | S125: 5 | T125: 6 | U125: 7 | V125: 8 | W125: 9 | X125: 10 | Y125: 11 | Z125: 12 | AA125: 13 | AB125: 14 | AC125: 15 | AD125: 16 | AE125: 17 | AF125: 18 | AG125: 19 | AH125: 20 | AI125: 21 | AJ125: 22 | AK125: 23 | AL125: 24 | AM125: 25 | AN125: 26 | AO125: 27 | AP125: 28 | AQ125: 29 | AR125: 30 | AS125: 31 | AT125: 32 | AU125: 33 | AV125: 34 | AW125: 35 | AX125: 36 | AY125: 37 | AZ125: 38 | BA125: 39 | BB125: 40 | BC125: 41 | BD125: 42 | BE125: 43 | BF125: 44 | BG125: 45 | BH125: 46 | BI125: 47 | BJ125: 48 | BK125: 49 | BL125: 50 | BM125: 51 | BN125: 52 | BO125: 53 | BP125: 54 | BQ125: 55 | BR125: 56 | BS125: 57 | BT125: 58 | BU125: 59 | BV125: 60
B126: Drift hovedvei (m) | C126: =SUMIF('Prosjektbeskrivelse og inndata'!$M:$M,B32,'Prosjektbeskrivelse og inndata'!$L:$L) -> 0 | D126: Asfalt til reasfaltering | E126: =C126*'Prosjektbeskrivelse og inndata'!C9*Reasfaltering!D8 -> 0 | F126: kg skjelettasfalt | G126: =Beregningsfaktorer!D51 -> 7 | H126: Reasfaltering | I126: Asfalt | J126: =Utslippsfaktorer!B7 -> Skjelettasfalt (Ska) | K126: =SUMIF(Utslippsfaktorer!B:B,Beregninger!J126,Utslippsfaktorer!D:D) -> 0.0657 | L126: =VLOOKUP(J126,Utslippsfaktorer!B:C,2,FALSE) -> kg CO2e/kg | M126: =(E126*K126)/1000 -> 0 | N126: =SUMIF($O$125:$BV$125,"<=" & 'Prosjektbeskrivelse og inndata'!$C$14,O126:BL126) -> 0 | O126: =IF(MOD(O$125,$G126)=0,$M126,"") ->  | U126: 0 | Y126: =IF(MOD(Y$125,$G126)=0,$M126,"") ->  | AB126: 0 | AI126: =IF(MOD(AI$125,$G126)=0,$M126,"") -> 0 | AP126: 0 | AS126: =IF(MOD(AS$125,$G126)=0,$M126,"") ->  | AW126: 0 | BC126: =IF(MOD(BC$125,$G126)=0,$M126,"") ->  | BD126: 0 | BK126: 0 | BM126: =IF(MOD(BM$125,$G126)=0,$M126,"") ->  | BR126: 0
D127: Transport av asfalt diesel | E127: =C126*'Prosjektbeskrivelse og inndata'!C9*Reasfaltering!E8 -> 0 | F127: liter diesel | G127: =Beregningsfaktorer!D51 -> 7 | H127: Reasfaltering | I127: Diesel | J127: =Utslippsfaktorer!B20 -> Fossil diesel (WTW) | K127: =SUMIF(Utslippsfaktorer!B:B,Beregninger!J127,Utslippsfaktorer!D:D) -> 3.24 | L127: =VLOOKUP(J127,Utslippsfaktorer!B:C,2,FALSE) -> kg CO2e/liter | M127: =(E127*K127)/1000 -> 0 | N127: =SUMIF($O$125:$BV$125,"<=" & 'Prosjektbeskrivelse og inndata'!$C$14,O127:BL127) -> 0 | U127: 0 | AB127: 0 | AI127: 0 | AP127: 0 | AW127: 0 | BD127: 0 | BK127: 0 | BR127: 0
D128: Transport av asfalt biodiesel | E128: =C126*'Prosjektbeskrivelse og inndata'!C9*Reasfaltering!F8 -> 0 | F128: liter biodiesel | G128: =Beregningsfaktorer!D51 -> 7 | H128: Reasfaltering | I128: Biodiesel | J128: =Utslippsfaktorer!B18 -> Biodiesel (WTT) | K128: =SUMIF(Utslippsfaktorer!B:B,Beregninger!J128,Utslippsfaktorer!D:D) -> 1.92 | L128: =VLOOKUP(J128,Utslippsfaktorer!B:C,2,FALSE) -> kg CO2e/liter | M128: 0 | N128: =SUMIF($O$125:$BV$125,"<=" & 'Prosjektbeskrivelse og inndata'!$C$14,O128:BL128) -> 0 | U128: 0 | AB128: 0 | AI128: 0 | AP128: 0 | AW128: 0 | BD128: 0 | BK128: 0 | BR128: 0
D129: Transport av asfalt elektrisk/hydrogen | E129: =C126*'Prosjektbeskrivelse og inndata'!C9*Reasfaltering!G8 -> 0 | F129: kWh | G129: =Beregningsfaktorer!D51 -> 7 | H129: Reasfaltering | I129: Elektrisitet | J129: =Utslippsfaktorer!B24 -> Elektrisitet 55 år, europeisk miks | K129: =SUMIF(Utslippsfaktorer!B:B,Beregninger!J129,Utslippsfaktorer!D:D) -> 0.136 | L129: =VLOOKUP(J129,Utslippsfaktorer!B:C,2,FALSE) -> kg CO2e/kWh | M129: 0 | N129: =SUMIF($O$125:$BV$125,"<=" & 'Prosjektbeskrivelse og inndata'!$C$14,O129:BL129) -> 0 | U129: 0 | AB129: 0 | AI129: 0 | AP129: 0 | AW129: 0 | BD129: 0 | BK129: 0 | BR129: 0
D130: Reasfaltering diesel | E130: =C126*'Prosjektbeskrivelse og inndata'!C9*Reasfaltering!E8 -> 0 | F130: liter diesel | G130: =Beregningsfaktorer!D51 -> 7 | H130: Reasfaltering | I130: Diesel | J130: =Utslippsfaktorer!B20 -> Fossil diesel (WTW) | K130: =SUMIF(Utslippsfaktorer!B:B,Beregninger!J130,Utslippsfaktorer!D:D) -> 3.24 | L130: =VLOOKUP(J130,Utslippsfaktorer!B:C,2,FALSE) -> kg CO2e/liter | M130: 0 | N130: =SUMIF($O$125:$BV$125,"<=" & 'Prosjektbeskrivelse og inndata'!$C$14,O130:BL130) -> 0 | U130: 0 | AB130: 0 | AI130: 0 | AP130: 0 | AW130: 0 | BD130: 0 | BK130: 0 | BR130: 0
D131: Reasfaltering biodiesel | E131: =C126*'Prosjektbeskrivelse og inndata'!C9*Reasfaltering!F8 -> 0 | F131: liter biodiesel | G131: =Beregningsfaktorer!D51 -> 7 | H131: Reasfaltering | I131: Biodiesel | J131: =Utslippsfaktorer!B18 -> Biodiesel (WTT) | K131: =SUMIF(Utslippsfaktorer!B:B,Beregninger!J131,Utslippsfaktorer!D:D) -> 1.92 | L131: =VLOOKUP(J131,Utslippsfaktorer!B:C,2,FALSE) -> kg CO2e/liter | M131: 0 | N131: =SUMIF($O$125:$BV$125,"<=" & 'Prosjektbeskrivelse og inndata'!$C$14,O131:BL131) -> 0 | U131: 0 | AB131: 0 | AI131: 0 | AP131: 0 | AW131: 0 | BD131: 0 | BK131: 0 | BR131: 0
D132: Reasfaltering elektrisk/hydrogen | E132: =C126*'Prosjektbeskrivelse og inndata'!C9*Reasfaltering!G8 -> 0 | F132: kWh | G132: =Beregningsfaktorer!D51 -> 7 | H132: Reasfaltering | I132: Elektrisitet | J132: =Utslippsfaktorer!B24 -> Elektrisitet 55 år, europeisk miks | K132: =SUMIF(Utslippsfaktorer!B:B,Beregninger!J132,Utslippsfaktorer!D:D) -> 0.136 | L132: =VLOOKUP(J132,Utslippsfaktorer!B:C,2,FALSE) -> kg CO2e/kWh | M132: 0 | N132: =SUMIF($O$125:$BV$125,"<=" & 'Prosjektbeskrivelse og inndata'!$C$14,O132:BL132) -> 0 | U132: 0 | AB132: 0 | AI132: 0 | AP132: 0 | AW132: 0 | BD132: 0 | BK132: 0 | BR132: 0
D133: Kantklipp diesel | E133: =C126*'Drift og vedlikehold'!E24*Beregningsfaktorer!D86 -> 0 | F133: liter diesel | G133: 1 | H133: Drift | I133: Diesel | J133: =Utslippsfaktorer!B20 -> Fossil diesel (WTW) | K133: =SUMIF(Utslippsfaktorer!B:B,Beregninger!J133,Utslippsfaktorer!D:D) -> 3.24 | L133: =VLOOKUP(J133,Utslippsfaktorer!B:C,2,FALSE) -> kg CO2e/liter | M133: 0 | N133: =SUMIF($O$125:$BV$125,"<=" & 'Prosjektbeskrivelse og inndata'!$C$14,O133:BL133) -> 0 | O133: 0 | P133: 0 | Q133: 0 | R133: 0 | S133: 0 | T133: 0 | U133: 0 | V133: 0 | W133: 0 | X133: 0 | Y133: 0 | Z133: 0 | AA133: 0 | AB133: 0 | AC133: 0 | AD133: 0 | AE133: 0 | AF133: 0 | AG133: 0 | AH133: 0 | AI133: 0 | AJ133: 0 | AK133: 0 | AL133: 0 | AM133: 0 | AN133: 0 | AO133: 0 | AP133: 0 | AQ133: 0 | AR133: 0 | AS133: 0 | AT133: 0 | AU133: 0 | AV133: 0 | AW133: 0 | AX133: 0 | AY133: 0 | AZ133: 0 | BA133: 0 | BB133: 0 | BC133: 0 | BD133: 0 | BE133: 0 | BF133: 0 | BG133: 0 | BH133: 0 | BI133: 0 | BJ133: 0 | BK133: 0 | BL133: 0 | BM133: 0 | BN133: 0 | BO133: 0 | BP133: 0 | BQ133: 0 | BR133: 0 | BS133: 0 | BT133: 0 | BU133: 0 | BV133: 0
D134: Kantklipp biodiesel | E134: =C126*'Drift og vedlikehold'!F24*Beregningsfaktorer!D86 -> 0 | F134: liter biodiesel | G134: 1 | H134: Drift | I134: Biodiesel | J134: =Utslippsfaktorer!B18 -> Biodiesel (WTT) | K134: =SUMIF(Utslippsfaktorer!B:B,Beregninger!J134,Utslippsfaktorer!D:D) -> 1.92 | L134: =VLOOKUP(J134,Utslippsfaktorer!B:C,2,FALSE) -> kg CO2e/liter | M134: 0 | N134: =SUMIF($O$125:$BV$125,"<=" & 'Prosjektbeskrivelse og inndata'!$C$14,O134:BL134) -> 0 | O134: 0 | P134: 0 | Q134: 0 | R134: 0 | S134: 0 | T134: 0 | U134: 0 | V134: 0 | W134: 0 | X134: 0 | Y134: 0 | Z134: 0 | AA134: 0 | AB134: 0 | AC134: 0 | AD134: 0 | AE134: 0 | AF134: 0 | AG134: 0 | AH134: 0 | AI134: 0 | AJ134: 0 | AK134: 0 | AL134: 0 | AM134: 0 | AN134: 0 | AO134: 0 | AP134: 0 | AQ134: 0 | AR134: 0 | AS134: 0 | AT134: 0 | AU134: 0 | AV134: 0 | AW134: 0 | AX134: 0 | AY134: 0 | AZ134: 0 | BA134: 0 | BB134: 0 | BC134: 0 | BD134: 0 | BE134: 0 | BF134: 0 | BG134: 0 | BH134: 0 | BI134: 0 | BJ134: 0 | BK134: 0 | BL134: 0 | BM134: 0 | BN134: 0 | BO134: 0 | BP134: 0 | BQ134: 0 | BR134: 0 | BS134: 0 | BT134: 0 | BU134: 0 | BV134: 0
D135: Kantklipp elektrisk/hydrogen | E135: =C126*'Drift og vedlikehold'!G24*Beregningsfaktorer!D86 -> 0 | F135: kWh | G135: 1 | H135: Drift | I135: Elektrisitet | J135: =Utslippsfaktorer!B24 -> Elektrisitet 55 år, europeisk miks | K135: =SUMIF(Utslippsfaktorer!B:B,Beregninger!J135,Utslippsfaktorer!D:D) -> 0.136 | L135: =VLOOKUP(J135,Utslippsfaktorer!B:C,2,FALSE) -> kg CO2e/kWh | M135: 0 | N135: =SUMIF($O$125:$BV$125,"<=" & 'Prosjektbeskrivelse og inndata'!$C$14,O135:BL135) -> 0 | O135: 0 | P135: 0 | Q135: 0 | R135: 0 | S135: 0 | T135: 0 | U135: 0 | V135: 0 | W135: 0 | X135: 0 | Y135: 0 | Z135: 0 | AA135: 0 | AB135: 0 | AC135: 0 | AD135: 0 | AE135: 0 | AF135: 0 | AG135: 0 | AH135: 0 | AI135: 0 | AJ135: 0 | AK135: 0 | AL135: 0 | AM135: 0 | AN135: 0 | AO135: 0 | AP135: 0 | AQ135: 0 | AR135: 0 | AS135: 0 | AT135: 0 | AU135: 0 | AV135: 0 | AW135: 0 | AX135: 0 | AY135: 0 | AZ135: 0 | BA135: 0 | BB135: 0 | BC135: 0 | BD135: 0 | BE135: 0 | BF135: 0 | BG135: 0 | BH135: 0 | BI135: 0 | BJ135: 0 | BK135: 0 | BL135: 0 | BM135: 0 | BN135: 0 | BO135: 0 | BP135: 0 | BQ135: 0 | BR135: 0 | BS135: 0 | BT135: 0 | BU135: 0 | BV135: 0
D136: Grøfterensk diesel | E136: =C126*'Drift og vedlikehold'!E25*Beregningsfaktorer!D86 -> 0 | F136: liter diesel | G136: =Beregningsfaktorer!D55 -> 3 | H136: Drift | I136: Diesel | J136: =Utslippsfaktorer!B20 -> Fossil diesel (WTW) | K136: =SUMIF(Utslippsfaktorer!B:B,Beregninger!J136,Utslippsfaktorer!D:D) -> 3.24 | L136: =VLOOKUP(J136,Utslippsfaktorer!B:C,2,FALSE) -> kg CO2e/liter | M136: 0 | N136: =SUMIF($O$125:$BV$125,"<=" & 'Prosjektbeskrivelse og inndata'!$C$14,O136:BL136) -> 0 | O136: =IF(MOD(O$125,$G136)=0,$M136,"") ->  | Q136: 0 | T136: 0 | W136: 0 | Y136: =IF(MOD(Y$125,$G136)=0,$M136,"") ->  | Z136: 0 | AC136: 0 | AF136: 0 | AI136: =IF(MOD(AI$125,$G136)=0,$M136,"") -> 0 | AL136: 0 | AO136: 0 | AR136: 0 | AS136: =IF(MOD(AS$125,$G136)=0,$M136,"") ->  | AU136: 0 | AX136: 0 | BA136: 0 | BC136: =IF(MOD(BC$125,$G136)=0,$M136,"") ->  | BD136: 0 | BG136: 0 | BJ136: 0 | BM136: =IF(MOD(BM$125,$G136)=0,$M136,"") -> 0 | BP136: 0 | BS136: 0 | BV136: 0
D137: Grøfterensk biodiesel | E137: =C126*'Drift og vedlikehold'!F25*Beregningsfaktorer!D86 -> 0 | F137: liter biodiesel | G137: =Beregningsfaktorer!D55 -> 3 | H137: Drift | I137: Biodiesel | J137: =Utslippsfaktorer!B18 -> Biodiesel (WTT) | K137: =SUMIF(Utslippsfaktorer!B:B,Beregninger!J137,Utslippsfaktorer!D:D) -> 1.92 | L137: =VLOOKUP(J137,Utslippsfaktorer!B:C,2,FALSE) -> kg CO2e/liter | M137: 0 | N137: =SUMIF($O$125:$BV$125,"<=" & 'Prosjektbeskrivelse og inndata'!$C$14,O137:BL137) -> 0 | Q137: 0 | T137: 0 | W137: 0 | Z137: 0 | AC137: 0 | AF137: 0 | AI137: 0 | AL137: 0 | AO137: 0 | AR137: 0 | AU137: 0 | AX137: 0 | BA137: 0 | BD137: 0 | BG137: 0 | BJ137: 0 | BM137: 0 | BP137: 0 | BS137: 0 | BV137: 0
D138: Grøfterensk elektrisk/hydrogen | E138: =C126*'Drift og vedlikehold'!G25*Beregningsfaktorer!D86 -> 0 | F138: kWh | G138: =Beregningsfaktorer!D55 -> 3 | H138: Drift | I138: Elektrisitet | J138: =Utslippsfaktorer!B24 -> Elektrisitet 55 år, europeisk miks | K138: =SUMIF(Utslippsfaktorer!B:B,Beregninger!J138,Utslippsfaktorer!D:D) -> 0.136 | L138: =VLOOKUP(J138,Utslippsfaktorer!B:C,2,FALSE) -> kg CO2e/kWh | M138: 0 | N138: =SUMIF($O$125:$BV$125,"<=" & 'Prosjektbeskrivelse og inndata'!$C$14,O138:BL138) -> 0 | Q138: 0 | T138: 0 | W138: 0 | Z138: 0 | AC138: 0 | AF138: 0 | AI138: 0 | AL138: 0 | AO138: 0 | AR138: 0 | AU138: 0 | AX138: 0 | BA138: 0 | BD138: 0 | BG138: 0 | BJ138: 0 | BM138: 0 | BP138: 0 | BS138: 0 | BV138: 0
D139: Transport jordmasser grøfterensk diesel | E139: =C126*'Drift og vedlikehold'!F15*Beregningsfaktorer!D86 -> 0 | F139: liter diesel | G139: =Beregningsfaktorer!D55 -> 3 | H139: Drift | I139: Diesel | J139: =Utslippsfaktorer!B20 -> Fossil diesel (WTW) | K139: =SUMIF(Utslippsfaktorer!B:B,Beregninger!J139,Utslippsfaktorer!D:D) -> 3.24 | L139: =VLOOKUP(J139,Utslippsfaktorer!B:C,2,FALSE) -> kg CO2e/liter | M139: 0 | N139: =SUMIF($O$125:$BV$125,"<=" & 'Prosjektbeskrivelse og inndata'!$C$14,O139:BL139) -> 0 | Q139: 0 | T139: 0 | W139: 0 | Z139: 0 | AC139: 0 | AF139: 0 | AI139: 0 | AL139: 0 | AO139: 0 | AR139: 0 | AU139: 0 | AX139: 0 | BA139: 0 | BD139: 0 | BG139: 0 | BJ139: 0 | BM139: 0 | BP139: 0 | BS139: 0 | BV139: 0
D140: Transport jordmasser grøfterensk biodiesel | E140: =C126*'Drift og vedlikehold'!G15*Beregningsfaktorer!D86 -> 0 | F140: liter biodiesel | G140: =Beregningsfaktorer!D55 -> 3 | H140: Drift | I140: Biodiesel | J140: =Utslippsfaktorer!B18 -> Biodiesel (WTT) | K140: =SUMIF(Utslippsfaktorer!B:B,Beregninger!J140,Utslippsfaktorer!D:D) -> 1.92 | L140: =VLOOKUP(J140,Utslippsfaktorer!B:C,2,FALSE) -> kg CO2e/liter | M140: 0 | N140: =SUMIF($O$125:$BV$125,"<=" & 'Prosjektbeskrivelse og inndata'!$C$14,O140:BL140) -> 0 | Q140: 0 | T140: 0 | W140: 0 | Z140: 0 | AC140: 0 | AF140: 0 | AI140: 0 | AL140: 0 | AO140: 0 | AR140: 0 | AU140: 0 | AX140: 0 | BA140: 0 | BD140: 0 | BG140: 0 | BJ140: 0 | BM140: 0 | BP140: 0 | BS140: 0 | BV140: 0
D141: Transport jordmasser grøfterensk elektrisk/hydrogen | E141: =C126*'Drift og vedlikehold'!H15*Beregningsfaktorer!D86 -> 0 | F141: kWh | G141: =Beregningsfaktorer!D55 -> 3 | H141: Drift | I141: Elektrisitet | J141: =Utslippsfaktorer!B24 -> Elektrisitet 55 år, europeisk miks | K141: =SUMIF(Utslippsfaktorer!B:B,Beregninger!J141,Utslippsfaktorer!D:D) -> 0.136 | L141: =VLOOKUP(J141,Utslippsfaktorer!B:C,2,FALSE) -> kg CO2e/kWh | M141: 0 | N141: =SUMIF($O$125:$BV$125,"<=" & 'Prosjektbeskrivelse og inndata'!$C$14,O141:BL141) -> 0 | Q141: 0 | T141: 0 | W141: 0 | Z141: 0 | AC141: 0 | AF141: 0 | AI141: 0 | AL141: 0 | AO141: 0 | AR141: 0 | AU141: 0 | AX141: 0 | BA141: 0 | BD141: 0 | BG141: 0 | BJ141: 0 | BM141: 0 | BP141: 0 | BS141: 0 | BV141: 0
D142: Feiing diesel | E142: =C126*'Drift og vedlikehold'!E26*Beregningsfaktorer!D80 -> 0 | F142: liter diesel | G142: 1 | H142: Drift | I142: Diesel | J142: =Utslippsfaktorer!B20 -> Fossil diesel (WTW) | K142: =SUMIF(Utslippsfaktorer!B:B,Beregninger!J142,Utslippsfaktorer!D:D) -> 3.24 | L142: =VLOOKUP(J142,Utslippsfaktorer!B:C,2,FALSE) -> kg CO2e/liter | M142: 0 | N142: =SUMIF($O$125:$BV$125,"<=" & 'Prosjektbeskrivelse og inndata'!$C$14,O142:BL142) -> 0 | O142: 0 | P142: 0 | Q142: 0 | R142: 0 | S142: 0 | T142: 0 | U142: 0 | V142: 0 | W142: 0 | X142: 0 | Y142: 0 | Z142: 0 | AA142: 0 | AB142: 0 | AC142: 0 | AD142: 0 | AE142: 0 | AF142: 0 | AG142: 0 | AH142: 0 | AI142: 0 | AJ142: 0 | AK142: 0 | AL142: 0 | AM142: 0 | AN142: 0 | AO142: 0 | AP142: 0 | AQ142: 0 | AR142: 0 | AS142: 0 | AT142: 0 | AU142: 0 | AV142: 0 | AW142: 0 | AX142: 0 | AY142: 0 | AZ142: 0 | BA142: 0 | BB142: 0 | BC142: 0 | BD142: 0 | BE142: 0 | BF142: 0 | BG142: 0 | BH142: 0 | BI142: 0 | BJ142: 0 | BK142: 0 | BL142: 0 | BM142: 0 | BN142: 0 | BO142: 0 | BP142: 0 | BQ142: 0 | BR142: 0 | BS142: 0 | BT142: 0 | BU142: 0 | BV142: 0
D143: Feiing biodiesel | E143: =C126*'Drift og vedlikehold'!F26*Beregningsfaktorer!D80 -> 0 | F143: liter biodiesel | G143: 1 | H143: Drift | I143: Biodiesel | J143: =Utslippsfaktorer!B18 -> Biodiesel (WTT) | K143: =SUMIF(Utslippsfaktorer!B:B,Beregninger!J143,Utslippsfaktorer!D:D) -> 1.92 | L143: =VLOOKUP(J143,Utslippsfaktorer!B:C,2,FALSE) -> kg CO2e/liter | M143: 0 | N143: =SUMIF($O$125:$BV$125,"<=" & 'Prosjektbeskrivelse og inndata'!$C$14,O143:BL143) -> 0 | O143: 0 | P143: 0 | Q143: 0 | R143: 0 | S143: 0 | T143: 0 | U143: 0 | V143: 0 | W143: 0 | X143: 0 | Y143: 0 | Z143: 0 | AA143: 0 | AB143: 0 | AC143: 0 | AD143: 0 | AE143: 0 | AF143: 0 | AG143: 0 | AH143: 0 | AI143: 0 | AJ143: 0 | AK143: 0 | AL143: 0 | AM143: 0 | AN143: 0 | AO143: 0 | AP143: 0 | AQ143: 0 | AR143: 0 | AS143: 0 | AT143: 0 | AU143: 0 | AV143: 0 | AW143: 0 | AX143: 0 | AY143: 0 | AZ143: 0 | BA143: 0 | BB143: 0 | BC143: 0 | BD143: 0 | BE143: 0 | BF143: 0 | BG143: 0 | BH143: 0 | BI143: 0 | BJ143: 0 | BK143: 0 | BL143: 0 | BM143: 0 | BN143: 0 | BO143: 0 | BP143: 0 | BQ143: 0 | BR143: 0 | BS143: 0 | BT143: 0 | BU143: 0 | BV143: 0
D144: Feiing elektrisk/hydrogen | E144: =C126*'Drift og vedlikehold'!G26*Beregningsfaktorer!D80 -> 0 | F144: kWh | G144: 1 | H144: Drift | I144: Elektrisitet | J144: =Utslippsfaktorer!B24 -> Elektrisitet 55 år, europeisk miks | K144: =SUMIF(Utslippsfaktorer!B:B,Beregninger!J144,Utslippsfaktorer!D:D) -> 0.136 | L144: =VLOOKUP(J144,Utslippsfaktorer!B:C,2,FALSE) -> kg CO2e/kWh | M144: 0 | N144: =SUMIF($O$125:$BV$125,"<=" & 'Prosjektbeskrivelse og inndata'!$C$14,O144:BL144) -> 0 | O144: 0 | P144: 0 | Q144: 0 | R144: 0 | S144: 0 | T144: 0 | U144: 0 | V144: 0 | W144: 0 | X144: 0 | Y144: 0 | Z144: 0 | AA144: 0 | AB144: 0 | AC144: 0 | AD144: 0 | AE144: 0 | AF144: 0 | AG144: 0 | AH144: 0 | AI144: 0 | AJ144: 0 | AK144: 0 | AL144: 0 | AM144: 0 | AN144: 0 | AO144: 0 | AP144: 0 | AQ144: 0 | AR144: 0 | AS144: 0 | AT144: 0 | AU144: 0 | AV144: 0 | AW144: 0 | AX144: 0 | AY144: 0 | AZ144: 0 | BA144: 0 | BB144: 0 | BC144: 0 | BD144: 0 | BE144: 0 | BF144: 0 | BG144: 0 | BH144: 0 | BI144: 0 | BJ144: 0 | BK144: 0 | BL144: 0 | BM144: 0 | BN144: 0 | BO144: 0 | BP144: 0 | BQ144: 0 | BR144: 0 | BS144: 0 | BT144: 0 | BU144: 0 | BV144: 0
D145: Salting diesel | E145: =C126*'Drift og vedlikehold'!E27*(Beregningsfaktorer!D80/2) -> 0 | F145: liter diesel | G145: 1 | H145: Drift | I145: Diesel | J145: =Utslippsfaktorer!B20 -> Fossil diesel (WTW) | K145: =SUMIF(Utslippsfaktorer!B:B,Beregninger!J145,Utslippsfaktorer!D:D) -> 3.24 | L145: =VLOOKUP(J145,Utslippsfaktorer!B:C,2,FALSE) -> kg CO2e/liter | M145: 0 | N145: =SUMIF($O$125:$BV$125,"<=" & 'Prosjektbeskrivelse og inndata'!$C$14,O145:BL145) -> 0 | O145: 0 | P145: 0 | Q145: 0 | R145: 0 | S145: 0 | T145: 0 | U145: 0 | V145: 0 | W145: 0 | X145: 0 | Y145: 0 | Z145: 0 | AA145: 0 | AB145: 0 | AC145: 0 | AD145: 0 | AE145: 0 | AF145: 0 | AG145: 0 | AH145: 0 | AI145: 0 | AJ145: 0 | AK145: 0 | AL145: 0 | AM145: 0 | AN145: 0 | AO145: 0 | AP145: 0 | AQ145: 0 | AR145: 0 | AS145: 0 | AT145: 0 | AU145: 0 | AV145: 0 | AW145: 0 | AX145: 0 | AY145: 0 | AZ145: 0 | BA145: 0 | BB145: 0 | BC145: 0 | BD145: 0 | BE145: 0 | BF145: 0 | BG145: 0 | BH145: 0 | BI145: 0 | BJ145: 0 | BK145: 0 | BL145: 0 | BM145: 0 | BN145: 0 | BO145: 0 | BP145: 0 | BQ145: 0 | BR145: 0 | BS145: 0 | BT145: 0 | BU145: 0 | BV145: 0
D146: Salting biodiesel | E146: =C126*'Drift og vedlikehold'!F27*(Beregningsfaktorer!D80/2) -> 0 | F146: liter biodiesel | G146: 1 | H146: Drift | I146: Biodiesel | J146: =Utslippsfaktorer!B18 -> Biodiesel (WTT) | K146: =SUMIF(Utslippsfaktorer!B:B,Beregninger!J146,Utslippsfaktorer!D:D) -> 1.92 | L146: =VLOOKUP(J146,Utslippsfaktorer!B:C,2,FALSE) -> kg CO2e/liter | M146: 0 | N146: =SUMIF($O$125:$BV$125,"<=" & 'Prosjektbeskrivelse og inndata'!$C$14,O146:BL146) -> 0 | O146: =IF(MOD(O$125,$G146)=0,$M146,"") -> 0 | P146: 0 | Q146: 0 | R146: 0 | S146: 0 | T146: 0 | U146: 0 | V146: 0 | W146: 0 | X146: 0 | Y146: =IF(MOD(Y$125,$G146)=0,$M146,"") -> 0 | Z146: 0 | AA146: 0 | AB146: 0 | AC146: 0 | AD146: 0 | AE146: 0 | AF146: 0 | AG146: 0 | AH146: 0 | AI146: =IF(MOD(AI$125,$G146)=0,$M146,"") -> 0 | AJ146: 0 | AK146: 0 | AL146: 0 | AM146: 0 | AN146: 0 | AO146: 0 | AP146: 0 | AQ146: 0 | AR146: 0 | AS146: =IF(MOD(AS$125,$G146)=0,$M146,"") -> 0 | AT146: 0 | AU146: 0 | AV146: 0 | AW146: 0 | AX146: 0 | AY146: 0 | AZ146: 0 | BA146: 0 | BB146: 0 | BC146: =IF(MOD(BC$125,$G146)=0,$M146,"") -> 0 | BD146: 0 | BE146: 0 | BF146: 0 | BG146: 0 | BH146: 0 | BI146: 0 | BJ146: 0 | BK146: 0 | BL146: 0 | BM146: =IF(MOD(BM$125,$G146)=0,$M146,"") -> 0 | BN146: 0 | BO146: 0 | BP146: 0 | BQ146: 0 | BR146: 0 | BS146: 0 | BT146: 0 | BU146: 0 | BV146: 0
D147: Salting elektrisk/hydrogen | E147: =C126*'Drift og vedlikehold'!G27*(Beregningsfaktorer!D80/2) -> 0 | F147: kWh | G147: 1 | H147: Drift | I147: Elektrisitet | J147: =Utslippsfaktorer!B24 -> Elektrisitet 55 år, europeisk miks | K147: =SUMIF(Utslippsfaktorer!B:B,Beregninger!J147,Utslippsfaktorer!D:D) -> 0.136 | L147: =VLOOKUP(J147,Utslippsfaktorer!B:C,2,FALSE) -> kg CO2e/kWh | M147: 0 | N147: =SUMIF($O$125:$BV$125,"<=" & 'Prosjektbeskrivelse og inndata'!$C$14,O147:BL147) -> 0 | O147: 0 | P147: 0 | Q147: 0 | R147: 0 | S147: 0 | T147: 0 | U147: 0 | V147: 0 | W147: 0 | X147: 0 | Y147: 0 | Z147: 0 | AA147: 0 | AB147: 0 | AC147: 0 | AD147: 0 | AE147: 0 | AF147: 0 | AG147: 0 | AH147: 0 | AI147: 0 | AJ147: 0 | AK147: 0 | AL147: 0 | AM147: 0 | AN147: 0 | AO147: 0 | AP147: 0 | AQ147: 0 | AR147: 0 | AS147: 0 | AT147: 0 | AU147: 0 | AV147: 0 | AW147: 0 | AX147: 0 | AY147: 0 | AZ147: 0 | BA147: 0 | BB147: 0 | BC147: 0 | BD147: 0 | BE147: 0 | BF147: 0 | BG147: 0 | BH147: 0 | BI147: 0 | BJ147: 0 | BK147: 0 | BL147: 0 | BM147: 0 | BN147: 0 | BO147: 0 | BP147: 0 | BQ147: 0 | BR147: 0 | BS147: 0 | BT147: 0 | BU147: 0 | BV147: 0
D148: Salt | E148: =C126*'Drift og vedlikehold'!E16 -> 0 | F148: kg salt | G148: 1 | H148: Drift | I148: Salt | J148: =Utslippsfaktorer!B12 -> Salt | K148: =SUMIF(Utslippsfaktorer!B:B,Beregninger!J148,Utslippsfaktorer!D:D) -> 0.179 | L148: =VLOOKUP(J148,Utslippsfaktorer!B:C,2,FALSE) -> kg CO2e/kg | M148: 0 | N148: =SUMIF($O$125:$BV$125,"<=" & 'Prosjektbeskrivelse og inndata'!$C$14,O148:BL148) -> 0 | O148: 0 | P148: 0 | Q148: 0 | R148: 0 | S148: 0 | T148: 0 | U148: 0 | V148: 0 | W148: 0 | X148: 0 | Y148: 0 | Z148: 0 | AA148: 0 | AB148: 0 | AC148: 0 | AD148: 0 | AE148: 0 | AF148: 0 | AG148: 0 | AH148: 0 | AI148: 0 | AJ148: 0 | AK148: 0 | AL148: 0 | AM148: 0 | AN148: 0 | AO148: 0 | AP148: 0 | AQ148: 0 | AR148: 0 | AS148: 0 | AT148: 0 | AU148: 0 | AV148: 0 | AW148: 0 | AX148: 0 | AY148: 0 | AZ148: 0 | BA148: 0 | BB148: 0 | BC148: 0 | BD148: 0 | BE148: 0 | BF148: 0 | BG148: 0 | BH148: 0 | BI148: 0 | BJ148: 0 | BK148: 0 | BL148: 0 | BM148: 0 | BN148: 0 | BO148: 0 | BP148: 0 | BQ148: 0 | BR148: 0 | BS148: 0 | BT148: 0 | BU148: 0 | BV148: 0
D149: Salttransport diesel | E149: =C126*'Drift og vedlikehold'!F16 -> 0 | F149: liter diesel | G149: 1 | H149: Drift | I149: Diesel | J149: =Utslippsfaktorer!B20 -> Fossil diesel (WTW) | K149: =SUMIF(Utslippsfaktorer!B:B,Beregninger!J149,Utslippsfaktorer!D:D) -> 3.24 | L149: =VLOOKUP(J149,Utslippsfaktorer!B:C,2,FALSE) -> kg CO2e/liter | M149: 0 | N149: =SUMIF($O$125:$BV$125,"<=" & 'Prosjektbeskrivelse og inndata'!$C$14,O149:BL149) -> 0 | O149: 0 | P149: 0 | Q149: 0 | R149: 0 | S149: 0 | T149: 0 | U149: 0 | V149: 0 | W149: 0 | X149: 0 | Y149: 0 | Z149: 0 | AA149: 0 | AB149: 0 | AC149: 0 | AD149: 0 | AE149: 0 | AF149: 0 | AG149: 0 | AH149: 0 | AI149: 0 | AJ149: 0 | AK149: 0 | AL149: 0 | AM149: 0 | AN149: 0 | AO149: 0 | AP149: 0 | AQ149: 0 | AR149: 0 | AS149: 0 | AT149: 0 | AU149: 0 | AV149: 0 | AW149: 0 | AX149: 0 | AY149: 0 | AZ149: 0 | BA149: 0 | BB149: 0 | BC149: 0 | BD149: 0 | BE149: 0 | BF149: 0 | BG149: 0 | BH149: 0 | BI149: 0 | BJ149: 0 | BK149: 0 | BL149: 0 | BM149: 0 | BN149: 0 | BO149: 0 | BP149: 0 | BQ149: 0 | BR149: 0 | BS149: 0 | BT149: 0 | BU149: 0 | BV149: 0
D150: Salttransport biodiesel | E150: =C126*'Drift og vedlikehold'!G16 -> 0 | F150: liter biodiesel | G150: 1 | H150: Drift | I150: Biodiesel | J150: =Utslippsfaktorer!B18 -> Biodiesel (WTT) | K150: =SUMIF(Utslippsfaktorer!B:B,Beregninger!J150,Utslippsfaktorer!D:D) -> 1.92 | L150: =VLOOKUP(J150,Utslippsfaktorer!B:C,2,FALSE) -> kg CO2e/liter | M150: 0 | N150: =SUMIF($O$125:$BV$125,"<=" & 'Prosjektbeskrivelse og inndata'!$C$14,O150:BL150) -> 0 | O150: 0 | P150: 0 | Q150: 0 | R150: 0 | S150: 0 | T150: 0 | U150: 0 | V150: 0 | W150: 0 | X150: 0 | Y150: 0 | Z150: 0 | AA150: 0 | AB150: 0 | AC150: 0 | AD150: 0 | AE150: 0 | AF150: 0 | AG150: 0 | AH150: 0 | AI150: 0 | AJ150: 0 | AK150: 0 | AL150: 0 | AM150: 0 | AN150: 0 | AO150: 0 | AP150: 0 | AQ150: 0 | AR150: 0 | AS150: 0 | AT150: 0 | AU150: 0 | AV150: 0 | AW150: 0 | AX150: 0 | AY150: 0 | AZ150: 0 | BA150: 0 | BB150: 0 | BC150: 0 | BD150: 0 | BE150: 0 | BF150: 0 | BG150: 0 | BH150: 0 | BI150: 0 | BJ150: 0 | BK150: 0 | BL150: 0 | BM150: 0 | BN150: 0 | BO150: 0 | BP150: 0 | BQ150: 0 | BR150: 0 | BS150: 0 | BT150: 0 | BU150: 0 | BV150: 0
D151: Salttransport elektrisk/hydrogen | E151: =C126*'Drift og vedlikehold'!H16 -> 0 | F151: kWh | G151: 1 | H151: Drift | I151: Elektrisitet | J151: =Utslippsfaktorer!B24 -> Elektrisitet 55 år, europeisk miks | K151: =SUMIF(Utslippsfaktorer!B:B,Beregninger!J151,Utslippsfaktorer!D:D) -> 0.136 | L151: =VLOOKUP(J151,Utslippsfaktorer!B:C,2,FALSE) -> kg CO2e/kWh | M151: 0 | N151: =SUMIF($O$125:$BV$125,"<=" & 'Prosjektbeskrivelse og inndata'!$C$14,O151:BL151) -> 0 | O151: 0 | P151: 0 | Q151: 0 | R151: 0 | S151: 0 | T151: 0 | U151: 0 | V151: 0 | W151: 0 | X151: 0 | Y151: 0 | Z151: 0 | AA151: 0 | AB151: 0 | AC151: 0 | AD151: 0 | AE151: 0 | AF151: 0 | AG151: 0 | AH151: 0 | AI151: 0 | AJ151: 0 | AK151: 0 | AL151: 0 | AM151: 0 | AN151: 0 | AO151: 0 | AP151: 0 | AQ151: 0 | AR151: 0 | AS151: 0 | AT151: 0 | AU151: 0 | AV151: 0 | AW151: 0 | AX151: 0 | AY151: 0 | AZ151: 0 | BA151: 0 | BB151: 0 | BC151: 0 | BD151: 0 | BE151: 0 | BF151: 0 | BG151: 0 | BH151: 0 | BI151: 0 | BJ151: 0 | BK151: 0 | BL151: 0 | BM151: 0 | BN151: 0 | BO151: 0 | BP151: 0 | BQ151: 0 | BR151: 0 | BS151: 0 | BT151: 0 | BU151: 0 | BV151: 0
D152: Brøyting diesel | E152: =C126*'Drift og vedlikehold'!E28 -> 0 | F152: liter diesel | G152: 1 | H152: Drift | I152: Diesel | J152: =Utslippsfaktorer!B20 -> Fossil diesel (WTW) | K152: =SUMIF(Utslippsfaktorer!B:B,Beregninger!J152,Utslippsfaktorer!D:D) -> 3.24 | L152: =VLOOKUP(J152,Utslippsfaktorer!B:C,2,FALSE) -> kg CO2e/liter | M152: 0 | N152: =SUMIF($O$125:$BV$125,"<=" & 'Prosjektbeskrivelse og inndata'!$C$14,O152:BL152) -> 0 | O152: 0 | P152: 0 | Q152: 0 | R152: 0 | S152: 0 | T152: 0 | U152: 0 | V152: 0 | W152: 0 | X152: 0 | Y152: 0 | Z152: 0 | AA152: 0 | AB152: 0 | AC152: 0 | AD152: 0 | AE152: 0 | AF152: 0 | AG152: 0 | AH152: 0 | AI152: 0 | AJ152: 0 | AK152: 0 | AL152: 0 | AM152: 0 | AN152: 0 | AO152: 0 | AP152: 0 | AQ152: 0 | AR152: 0 | AS152: 0 | AT152: 0 | AU152: 0 | AV152: 0 | AW152: 0 | AX152: 0 | AY152: 0 | AZ152: 0 | BA152: 0 | BB152: 0 | BC152: 0 | BD152: 0 | BE152: 0 | BF152: 0 | BG152: 0 | BH152: 0 | BI152: 0 | BJ152: 0 | BK152: 0 | BL152: 0 | BM152: 0 | BN152: 0 | BO152: 0 | BP152: 0 | BQ152: 0 | BR152: 0 | BS152: 0 | BT152: 0 | BU152: 0 | BV152: 0
D153: Brøyting biodiesel | E153: =C126*'Drift og vedlikehold'!F28 -> 0 | F153: liter biodiesel | G153: 1 | H153: Drift | I153: Biodiesel | J153: =Utslippsfaktorer!B18 -> Biodiesel (WTT) | K153: =SUMIF(Utslippsfaktorer!B:B,Beregninger!J153,Utslippsfaktorer!D:D) -> 1.92 | L153: =VLOOKUP(J153,Utslippsfaktorer!B:C,2,FALSE) -> kg CO2e/liter | M153: 0 | N153: =SUMIF($O$125:$BV$125,"<=" & 'Prosjektbeskrivelse og inndata'!$C$14,O153:BL153) -> 0 | O153: 0 | P153: 0 | Q153: 0 | R153: 0 | S153: 0 | T153: 0 | U153: 0 | V153: 0 | W153: 0 | X153: 0 | Y153: 0 | Z153: 0 | AA153: 0 | AB153: 0 | AC153: 0 | AD153: 0 | AE153: 0 | AF153: 0 | AG153: 0 | AH153: 0 | AI153: 0 | AJ153: 0 | AK153: 0 | AL153: 0 | AM153: 0 | AN153: 0 | AO153: 0 | AP153: 0 | AQ153: 0 | AR153: 0 | AS153: 0 | AT153: 0 | AU153: 0 | AV153: 0 | AW153: 0 | AX153: 0 | AY153: 0 | AZ153: 0 | BA153: 0 | BB153: 0 | BC153: 0 | BD153: 0 | BE153: 0 | BF153: 0 | BG153: 0 | BH153: 0 | BI153: 0 | BJ153: 0 | BK153: 0 | BL153: 0 | BM153: 0 | BN153: 0 | BO153: 0 | BP153: 0 | BQ153: 0 | BR153: 0 | BS153: 0 | BT153: 0 | BU153: 0 | BV153: 0
D154: Brøyting elektrisk/hydrogen | E154: =C126*'Drift og vedlikehold'!G28 -> 0 | F154: kWh | G154: 1 | H154: Drift | I154: Elektrisitet | J154: =Utslippsfaktorer!B24 -> Elektrisitet 55 år, europeisk miks | K154: =SUMIF(Utslippsfaktorer!B:B,Beregninger!J154,Utslippsfaktorer!D:D) -> 0.136 | L154: =VLOOKUP(J154,Utslippsfaktorer!B:C,2,FALSE) -> kg CO2e/kWh | M154: 0 | N154: =SUMIF($O$125:$BV$125,"<=" & 'Prosjektbeskrivelse og inndata'!$C$14,O154:BL154) -> 0 | O154: 0 | P154: 0 | Q154: 0 | R154: 0 | S154: 0 | T154: 0 | U154: 0 | V154: 0 | W154: 0 | X154: 0 | Y154: 0 | Z154: 0 | AA154: 0 | AB154: 0 | AC154: 0 | AD154: 0 | AE154: 0 | AF154: 0 | AG154: 0 | AH154: 0 | AI154: 0 | AJ154: 0 | AK154: 0 | AL154: 0 | AM154: 0 | AN154: 0 | AO154: 0 | AP154: 0 | AQ154: 0 | AR154: 0 | AS154: 0 | AT154: 0 | AU154: 0 | AV154: 0 | AW154: 0 | AX154: 0 | AY154: 0 | AZ154: 0 | BA154: 0 | BB154: 0 | BC154: 0 | BD154: 0 | BE154: 0 | BF154: 0 | BG154: 0 | BH154: 0 | BI154: 0 | BJ154: 0 | BK154: 0 | BL154: 0 | BM154: 0 | BN154: 0 | BO154: 0 | BP154: 0 | BQ154: 0 | BR154: 0 | BS154: 0 | BT154: 0 | BU154: 0 | BV154: 0
D155: Autovern | E155: =C126*'Tillegg vei'!D7*Beregningsfaktorer!D84 -> 0 | F155: kg stål | G155: =Beregningsfaktorer!D52 -> 30 | H155: Vedlikehold | I155: Stål | J155: =Utslippsfaktorer!B14 -> Stål | K155: =SUMIF(Utslippsfaktorer!B:B,Beregninger!J155,Utslippsfaktorer!D:D) -> 2.1235 | L155: =VLOOKUP(J155,Utslippsfaktorer!B:C,2,FALSE) -> kg CO2e/kg | M155: 0 | N155: =SUMIF($O$125:$BV$125,"<=" & 'Prosjektbeskrivelse og inndata'!$C$14,O155:BL155) -> 0 | AR155: 0 | BV155: 0
D156: Utskiftning autovern diesel | E156: =C126*'Tillegg vei'!E7*Beregningsfaktorer!D84 -> 0 | F156: liter diesel | G156: =Beregningsfaktorer!D52 -> 30 | H156: Vedlikehold | I156: Diesel | J156: =Utslippsfaktorer!B20 -> Fossil diesel (WTW) | K156: =SUMIF(Utslippsfaktorer!B:B,Beregninger!J156,Utslippsfaktorer!D:D) -> 3.24 | L156: =VLOOKUP(J156,Utslippsfaktorer!B:C,2,FALSE) -> kg CO2e/liter | M156: 0 | N156: =SUMIF($O$125:$BV$125,"<=" & 'Prosjektbeskrivelse og inndata'!$C$14,O156:BL156) -> 0 | O156: =IF(MOD(O$125,$G156)=0,$M156,"") ->  | Y156: =IF(MOD(Y$125,$G156)=0,$M156,"") ->  | AI156: =IF(MOD(AI$125,$G156)=0,$M156,"") ->  | AR156: 0 | AS156: =IF(MOD(AS$125,$G156)=0,$M156,"") ->  | BC156: =IF(MOD(BC$125,$G156)=0,$M156,"") ->  | BM156: =IF(MOD(BM$125,$G156)=0,$M156,"") ->  | BV156: 0
D157: Utskiftning autovern biodiesel | E157: =C126*'Tillegg vei'!F7*Beregningsfaktorer!D84 -> 0 | F157: liter biodiesel | G157: =Beregningsfaktorer!D52 -> 30 | H157: Vedlikehold | I157: Biodiesel | J157: =Utslippsfaktorer!B18 -> Biodiesel (WTT) | K157: =SUMIF(Utslippsfaktorer!B:B,Beregninger!J157,Utslippsfaktorer!D:D) -> 1.92 | L157: =VLOOKUP(J157,Utslippsfaktorer!B:C,2,FALSE) -> kg CO2e/liter | M157: 0 | N157: =SUMIF($O$125:$BV$125,"<=" & 'Prosjektbeskrivelse og inndata'!$C$14,O157:BL157) -> 0 | AR157: 0 | BV157: 0
D158: Utskiftning autovern elektrisk/hydrogen | E158: =C126*'Tillegg vei'!G7*Beregningsfaktorer!D84 -> 0 | F158: kWh | G158: =Beregningsfaktorer!D52 -> 30 | H158: Vedlikehold | I158: Elektrisitet | J158: =Utslippsfaktorer!B24 -> Elektrisitet 55 år, europeisk miks | K158: =SUMIF(Utslippsfaktorer!B:B,Beregninger!J158,Utslippsfaktorer!D:D) -> 0.136 | L158: =VLOOKUP(J158,Utslippsfaktorer!B:C,2,FALSE) -> kg CO2e/kWh | M158: 0 | N158: =SUMIF($O$125:$BV$125,"<=" & 'Prosjektbeskrivelse og inndata'!$C$14,O158:BL158) -> 0 | AR158: 0 | BV158: 0
D159: Transport av autovern diesel | E159: =C126*'Drift og vedlikehold'!F19*Beregningsfaktorer!D84 -> 0 | F159: liter diesel | G159: =Beregningsfaktorer!D52 -> 30 | H159: Vedlikehold | I159: Diesel | J159: =Utslippsfaktorer!B20 -> Fossil diesel (WTW) | K159: =SUMIF(Utslippsfaktorer!B:B,Beregninger!J159,Utslippsfaktorer!D:D) -> 3.24 | L159: =VLOOKUP(J159,Utslippsfaktorer!B:C,2,FALSE) -> kg CO2e/liter | M159: =(E159*K159)/1000 -> 0 | N159: =SUMIF($O$125:$BV$125,"<=" & 'Prosjektbeskrivelse og inndata'!$C$14,O159:BL159) -> 0 | AR159: 0 | BV159: 0
D160: Transport av autovern biodiesel | E160: =C126*'Drift og vedlikehold'!G19*Beregningsfaktorer!D84 -> 0 | F160: liter biodiesel | G160: =Beregningsfaktorer!D52 -> 30 | H160: Vedlikehold | I160: Biodiesel | J160: =Utslippsfaktorer!B18 -> Biodiesel (WTT) | K160: =SUMIF(Utslippsfaktorer!B:B,Beregninger!J160,Utslippsfaktorer!D:D) -> 1.92 | L160: =VLOOKUP(J160,Utslippsfaktorer!B:C,2,FALSE) -> kg CO2e/liter | M160: 0 | N160: =SUMIF($O$125:$BV$125,"<=" & 'Prosjektbeskrivelse og inndata'!$C$14,O160:BL160) -> 0 | AR160: 0 | BV160: 0
D161: Transport av autovern elektrisk/hydrogen | E161: =C126*'Drift og vedlikehold'!H19*Beregningsfaktorer!D84 -> 0 | F161: kWh | G161: =Beregningsfaktorer!D52 -> 30 | H161: Vedlikehold | I161: Elektrisitet | J161: =Utslippsfaktorer!B24 -> Elektrisitet 55 år, europeisk miks | K161: =SUMIF(Utslippsfaktorer!B:B,Beregninger!J161,Utslippsfaktorer!D:D) -> 0.136 | L161: =VLOOKUP(J161,Utslippsfaktorer!B:C,2,FALSE) -> kg CO2e/kWh | M161: 0 | N161: =SUMIF($O$125:$BV$125,"<=" & 'Prosjektbeskrivelse og inndata'!$C$14,O161:BL161) -> 0 | AR161: 0 | BV161: 0
D162: Lyktestolper | E162: =C126*'Tillegg vei'!D5*Beregningsfaktorer!D82 -> 0 | F162: kg stål | G162: =Beregningsfaktorer!D53 -> 30 | H162: Vedlikehold | I162: Stål | J162: =Utslippsfaktorer!B14 -> Stål | K162: =SUMIF(Utslippsfaktorer!B:B,Beregninger!J162,Utslippsfaktorer!D:D) -> 2.1235 | L162: =VLOOKUP(J162,Utslippsfaktorer!B:C,2,FALSE) -> kg CO2e/kg | M162: 0 | N162: =SUMIF($O$125:$BV$125,"<=" & 'Prosjektbeskrivelse og inndata'!$C$14,O162:BL162) -> 0 | AR162: 0 | BV162: 0
D163: Transport av lyktestolper diesel | E163: =C126*'Drift og vedlikehold'!F17*Beregningsfaktorer!D82 -> 0 | F163: liter diesel | G163: =Beregningsfaktorer!D53 -> 30 | H163: Vedlikehold | I163: Diesel | J163: =Utslippsfaktorer!B20 -> Fossil diesel (WTW) | K163: =SUMIF(Utslippsfaktorer!B:B,Beregninger!J163,Utslippsfaktorer!D:D) -> 3.24 | L163: =VLOOKUP(J163,Utslippsfaktorer!B:C,2,FALSE) -> kg CO2e/liter | M163: 0 | N163: =SUMIF($O$125:$BV$125,"<=" & 'Prosjektbeskrivelse og inndata'!$C$14,O163:BL163) -> 0 | AR163: 0 | BV163: 0
D164: Transport av lyktestolper biodiesel | E164: =C126*'Drift og vedlikehold'!G17*Beregningsfaktorer!D82 -> 0 | F164: liter biodiesel | G164: =Beregningsfaktorer!D53 -> 30 | H164: Vedlikehold | I164: Biodiesel | J164: =Utslippsfaktorer!B18 -> Biodiesel (WTT) | K164: =SUMIF(Utslippsfaktorer!B:B,Beregninger!J164,Utslippsfaktorer!D:D) -> 1.92 | L164: =VLOOKUP(J164,Utslippsfaktorer!B:C,2,FALSE) -> kg CO2e/liter | M164: 0 | N164: =SUMIF($O$125:$BV$125,"<=" & 'Prosjektbeskrivelse og inndata'!$C$14,O164:BL164) -> 0 | AR164: 0 | BV164: 0
D165: Transport av lyktestolper elektrisk/hydrogen | E165: =C126*'Drift og vedlikehold'!H17*Beregningsfaktorer!D82 -> 0 | F165: kWh | G165: =Beregningsfaktorer!D53 -> 30 | H165: Vedlikehold | I165: Elektrisitet | J165: =Utslippsfaktorer!B24 -> Elektrisitet 55 år, europeisk miks | K165: =SUMIF(Utslippsfaktorer!B:B,Beregninger!J165,Utslippsfaktorer!D:D) -> 0.136 | L165: =VLOOKUP(J165,Utslippsfaktorer!B:C,2,FALSE) -> kg CO2e/kWh | M165: 0 | N165: =SUMIF($O$125:$BV$125,"<=" & 'Prosjektbeskrivelse og inndata'!$C$14,O165:BL165) -> 0 | AR165: 0 | BV165: 0
D166: Belysning vei i dagen | E166: =C126*'Drift og vedlikehold'!H8*Beregningsfaktorer!D82 -> 0 | F166: kWh | G166: 1 | H166: Drift | I166: Elektrisitet | J166: =Utslippsfaktorer!B24 -> Elektrisitet 55 år, europeisk miks | K166: =SUMIF(Utslippsfaktorer!B:B,Beregninger!J166,Utslippsfaktorer!D:D) -> 0.136 | L166: =VLOOKUP(J166,Utslippsfaktorer!B:C,2,FALSE) -> kg CO2e/kWh | M166: 0 | N166: =SUMIF($O$125:$BV$125,"<=" & 'Prosjektbeskrivelse og inndata'!$C$14,O166:BL166) -> 0 | O166: =IF(MOD(O$125,$G166)=0,$M166,"") -> 0 | P166: 0 | Q166: 0 | R166: 0 | S166: 0 | T166: 0 | U166: 0 | V166: 0 | W166: 0 | X166: 0 | Y166: =IF(MOD(Y$125,$G166)=0,$M166,"") -> 0 | Z166: 0 | AA166: 0 | AB166: 0 | AC166: 0 | AD166: 0 | AE166: 0 | AF166: 0 | AG166: 0 | AH166: 0 | AI166: =IF(MOD(AI$125,$G166)=0,$M166,"") -> 0 | AJ166: 0 | AK166: 0 | AL166: 0 | AM166: 0 | AN166: 0 | AO166: 0 | AP166: 0 | AQ166: 0 | AR166: 0 | AS166: =IF(MOD(AS$125,$G166)=0,$M166,"") -> 0 | AT166: 0 | AU166: 0 | AV166: 0 | AW166: 0 | AX166: 0 | AY166: 0 | AZ166: 0 | BA166: 0 | BB166: 0 | BC166: =IF(MOD(BC$125,$G166)=0,$M166,"") -> 0 | BD166: 0 | BE166: 0 | BF166: 0 | BG166: 0 | BH166: 0 | BI166: 0 | BJ166: 0 | BK166: 0 | BL166: 0 | BM166: =IF(MOD(BM$125,$G166)=0,$M166,"") -> 0 | BN166: 0 | BO166: 0 | BP166: 0 | BQ166: 0 | BR166: 0 | BS166: 0 | BT166: 0 | BU166: 0 | BV166: 0
B167: Drift sidevei (m) | C167: =SUMIF('Prosjektbeskrivelse og inndata'!$M:$M,B43,'Prosjektbeskrivelse og inndata'!$L:$L) -> 0 | D167: Asfalt til reasfaltering | E167: =C167*'Prosjektbeskrivelse og inndata'!C10*Reasfaltering!D9 -> 0 | F167: kg asfaltgrusbetong | G167: =Beregningsfaktorer!D51 -> 7 | H167: Reasfaltering | I167: Asfalt | J167: =Utslippsfaktorer!B6 -> Asfaltgrusbetong (Agb) | K167: =SUMIF(Utslippsfaktorer!B:B,Beregninger!J167,Utslippsfaktorer!D:D) -> 0.0512 | L167: =VLOOKUP(J167,Utslippsfaktorer!B:C,2,FALSE) -> kg CO2e/kg | M167: 0 | N167: =SUMIF($O$125:$BV$125,"<=" & 'Prosjektbeskrivelse og inndata'!$C$14,O167:BL167) -> 0 | U167: 0 | AB167: 0 | AI167: 0 | AP167: 0 | AW167: 0 | BD167: 0 | BK167: 0 | BR167: 0
D168: Transport av asfalt diesel | E168: =C167*'Prosjektbeskrivelse og inndata'!C10*Reasfaltering!E9 -> 0 | F168: liter diesel | G168: =Beregningsfaktorer!D51 -> 7 | H168: Reasfaltering | I168: Diesel | J168: =Utslippsfaktorer!B20 -> Fossil diesel (WTW) | K168: =SUMIF(Utslippsfaktorer!B:B,Beregninger!J168,Utslippsfaktorer!D:D) -> 3.24 | L168: =VLOOKUP(J168,Utslippsfaktorer!B:C,2,FALSE) -> kg CO2e/liter | M168: 0 | N168: =SUMIF($O$125:$BV$125,"<=" & 'Prosjektbeskrivelse og inndata'!$C$14,O168:BL168) -> 0 | U168: 0 | AB168: 0 | AI168: 0 | AP168: 0 | AW168: 0 | BD168: 0 | BK168: 0 | BR168: 0
D169: Transport av asfalt biodiesel | E169: =C167*'Prosjektbeskrivelse og inndata'!C10*Reasfaltering!F9 -> 0 | F169: liter biodiesel | G169: =Beregningsfaktorer!D51 -> 7 | H169: Reasfaltering | I169: Biodiesel | J169: =Utslippsfaktorer!B18 -> Biodiesel (WTT) | K169: =SUMIF(Utslippsfaktorer!B:B,Beregninger!J169,Utslippsfaktorer!D:D) -> 1.92 | L169: =VLOOKUP(J169,Utslippsfaktorer!B:C,2,FALSE) -> kg CO2e/liter | M169: 0 | N169: =SUMIF($O$125:$BV$125,"<=" & 'Prosjektbeskrivelse og inndata'!$C$14,O169:BL169) -> 0 | U169: 0 | AB169: 0 | AI169: 0 | AP169: 0 | AW169: 0 | BD169: 0 | BK169: 0 | BR169: 0
D170: Transport av asfalt elektrisk/hydrogen | E170: =C167*'Prosjektbeskrivelse og inndata'!C10*Reasfaltering!G9 -> 0 | F170: kWh | G170: =Beregningsfaktorer!D51 -> 7 | H170: Reasfaltering | I170: Elektrisitet | J170: =Utslippsfaktorer!B24 -> Elektrisitet 55 år, europeisk miks | K170: =SUMIF(Utslippsfaktorer!B:B,Beregninger!J170,Utslippsfaktorer!D:D) -> 0.136 | L170: =VLOOKUP(J170,Utslippsfaktorer!B:C,2,FALSE) -> kg CO2e/kWh | M170: 0 | N170: =SUMIF($O$125:$BV$125,"<=" & 'Prosjektbeskrivelse og inndata'!$C$14,O170:BL170) -> 0 | U170: 0 | AB170: 0 | AI170: 0 | AP170: 0 | AW170: 0 | BD170: 0 | BK170: 0 | BR170: 0
D171: Reasfaltering diesel | E171: =C167*'Prosjektbeskrivelse og inndata'!C10*Reasfaltering!E9 -> 0 | F171: liter diesel | G171: =Beregningsfaktorer!D51 -> 7 | H171: Reasfaltering | I171: Diesel | J171: =Utslippsfaktorer!B20 -> Fossil diesel (WTW) | K171: =SUMIF(Utslippsfaktorer!B:B,Beregninger!J171,Utslippsfaktorer!D:D) -> 3.24 | L171: =VLOOKUP(J171,Utslippsfaktorer!B:C,2,FALSE) -> kg CO2e/liter | M171: 0 | N171: =SUMIF($O$125:$BV$125,"<=" & 'Prosjektbeskrivelse og inndata'!$C$14,O171:BL171) -> 0 | U171: 0 | AB171: 0 | AI171: 0 | AP171: 0 | AW171: 0 | BD171: 0 | BK171: 0 | BR171: 0
D172: Reasfaltering biodiesel | E172: =C167*'Prosjektbeskrivelse og inndata'!C10*Reasfaltering!F9 -> 0 | F172: liter biodiesel | G172: =Beregningsfaktorer!D51 -> 7 | H172: Reasfaltering | I172: Biodiesel | J172: =Utslippsfaktorer!B18 -> Biodiesel (WTT) | K172: =SUMIF(Utslippsfaktorer!B:B,Beregninger!J172,Utslippsfaktorer!D:D) -> 1.92 | L172: =VLOOKUP(J172,Utslippsfaktorer!B:C,2,FALSE) -> kg CO2e/liter | M172: 0 | N172: =SUMIF($O$125:$BV$125,"<=" & 'Prosjektbeskrivelse og inndata'!$C$14,O172:BL172) -> 0 | U172: 0 | AB172: 0 | AI172: 0 | AP172: 0 | AW172: 0 | BD172: 0 | BK172: 0 | BR172: 0
D173: Reasfaltering elektrisk/hydrogen | E173: =C167*'Prosjektbeskrivelse og inndata'!C10*Reasfaltering!G9 -> 0 | F173: kWh | G173: =Beregningsfaktorer!D51 -> 7 | H173: Reasfaltering | I173: Elektrisitet | J173: =Utslippsfaktorer!B24 -> Elektrisitet 55 år, europeisk miks | K173: =SUMIF(Utslippsfaktorer!B:B,Beregninger!J173,Utslippsfaktorer!D:D) -> 0.136 | L173: =VLOOKUP(J173,Utslippsfaktorer!B:C,2,FALSE) -> kg CO2e/kWh | M173: 0 | N173: =SUMIF($O$125:$BV$125,"<=" & 'Prosjektbeskrivelse og inndata'!$C$14,O173:BL173) -> 0 | U173: 0 | AB173: 0 | AI173: 0 | AP173: 0 | AW173: 0 | BD173: 0 | BK173: 0 | BR173: 0
D174: Kantklipp diesel | E174: =C167*'Drift og vedlikehold'!E24*Beregningsfaktorer!D87 -> 0 | F174: liter diesel | G174: 1 | H174: Drift | I174: Diesel | J174: =Utslippsfaktorer!B20 -> Fossil diesel (WTW) | K174: =SUMIF(Utslippsfaktorer!B:B,Beregninger!J174,Utslippsfaktorer!D:D) -> 3.24 | L174: =VLOOKUP(J174,Utslippsfaktorer!B:C,2,FALSE) -> kg CO2e/liter | M174: 0 | N174: =SUMIF($O$125:$BV$125,"<=" & 'Prosjektbeskrivelse og inndata'!$C$14,O174:BL174) -> 0 | O174: 0 | P174: 0 | Q174: 0 | R174: 0 | S174: 0 | T174: 0 | U174: 0 | V174: 0 | W174: 0 | X174: 0 | Y174: 0 | Z174: 0 | AA174: 0 | AB174: 0 | AC174: 0 | AD174: 0 | AE174: 0 | AF174: 0 | AG174: 0 | AH174: 0 | AI174: 0 | AJ174: 0 | AK174: 0 | AL174: 0 | AM174: 0 | AN174: 0 | AO174: 0 | AP174: 0 | AQ174: 0 | AR174: 0 | AS174: 0 | AT174: 0 | AU174: 0 | AV174: 0 | AW174: 0 | AX174: 0 | AY174: 0 | AZ174: 0 | BA174: 0 | BB174: 0 | BC174: 0 | BD174: 0 | BE174: 0 | BF174: 0 | BG174: 0 | BH174: 0 | BI174: 0 | BJ174: 0 | BK174: 0 | BL174: 0 | BM174: 0 | BN174: 0 | BO174: 0 | BP174: 0 | BQ174: 0 | BR174: 0 | BS174: 0 | BT174: 0 | BU174: 0 | BV174: 0
D175: Kantklipp biodiesel | E175: =C167*'Drift og vedlikehold'!F24*Beregningsfaktorer!D87 -> 0 | F175: liter biodiesel | G175: 1 | H175: Drift | I175: Biodiesel | J175: =Utslippsfaktorer!B18 -> Biodiesel (WTT) | K175: =SUMIF(Utslippsfaktorer!B:B,Beregninger!J175,Utslippsfaktorer!D:D) -> 1.92 | L175: =VLOOKUP(J175,Utslippsfaktorer!B:C,2,FALSE) -> kg CO2e/liter | M175: 0 | N175: =SUMIF($O$125:$BV$125,"<=" & 'Prosjektbeskrivelse og inndata'!$C$14,O175:BL175) -> 0 | O175: 0 | P175: 0 | Q175: 0 | R175: 0 | S175: 0 | T175: 0 | U175: 0 | V175: 0 | W175: 0 | X175: 0 | Y175: 0 | Z175: 0 | AA175: 0 | AB175: 0 | AC175: 0 | AD175: 0 | AE175: 0 | AF175: 0 | AG175: 0 | AH175: 0 | AI175: 0 | AJ175: 0 | AK175: 0 | AL175: 0 | AM175: 0 | AN175: 0 | AO175: 0 | AP175: 0 | AQ175: 0 | AR175: 0 | AS175: 0 | AT175: 0 | AU175: 0 | AV175: 0 | AW175: 0 | AX175: 0 | AY175: 0 | AZ175: 0 | BA175: 0 | BB175: 0 | BC175: 0 | BD175: 0 | BE175: 0 | BF175: 0 | BG175: 0 | BH175: 0 | BI175: 0 | BJ175: 0 | BK175: 0 | BL175: 0 | BM175: 0 | BN175: 0 | BO175: 0 | BP175: 0 | BQ175: 0 | BR175: 0 | BS175: 0 | BT175: 0 | BU175: 0 | BV175: 0
D176: Kantklipp elektrisk/hydrogen | E176: =C167*'Drift og vedlikehold'!G24*Beregningsfaktorer!D87 -> 0 | F176: kWh | G176: 1 | H176: Drift | I176: Elektrisitet | J176: =Utslippsfaktorer!B24 -> Elektrisitet 55 år, europeisk miks | K176: =SUMIF(Utslippsfaktorer!B:B,Beregninger!J176,Utslippsfaktorer!D:D) -> 0.136 | L176: =VLOOKUP(J176,Utslippsfaktorer!B:C,2,FALSE) -> kg CO2e/kWh | M176: 0 | N176: =SUMIF($O$125:$BV$125,"<=" & 'Prosjektbeskrivelse og inndata'!$C$14,O176:BL176) -> 0 | O176: =IF(MOD(O$125,$G176)=0,$M176,"") -> 0 | P176: 0 | Q176: 0 | R176: 0 | S176: 0 | T176: 0 | U176: 0 | V176: 0 | W176: 0 | X176: 0 | Y176: =IF(MOD(Y$125,$G176)=0,$M176,"") -> 0 | Z176: 0 | AA176: 0 | AB176: 0 | AC176: 0 | AD176: 0 | AE176: 0 | AF176: 0 | AG176: 0 | AH176: 0 | AI176: =IF(MOD(AI$125,$G176)=0,$M176,"") -> 0 | AJ176: 0 | AK176: 0 | AL176: 0 | AM176: 0 | AN176: 0 | AO176: 0 | AP176: 0 | AQ176: 0 | AR176: 0 | AS176: =IF(MOD(AS$125,$G176)=0,$M176,"") -> 0 | AT176: 0 | AU176: 0 | AV176: 0 | AW176: 0 | AX176: 0 | AY176: 0 | AZ176: 0 | BA176: 0 | BB176: 0 | BC176: =IF(MOD(BC$125,$G176)=0,$M176,"") -> 0 | BD176: 0 | BE176: 0 | BF176: 0 | BG176: 0 | BH176: 0 | BI176: 0 | BJ176: 0 | BK176: 0 | BL176: 0 | BM176: =IF(MOD(BM$125,$G176)=0,$M176,"") -> 0 | BN176: 0 | BO176: 0 | BP176: 0 | BQ176: 0 | BR176: 0 | BS176: 0 | BT176: 0 | BU176: 0 | BV176: 0
D177: Grøfterensk diesel | E177: =C167*'Drift og vedlikehold'!E25*Beregningsfaktorer!D87 -> 0 | F177: liter diesel | G177: =Beregningsfaktorer!D55 -> 3 | H177: Drift | I177: Diesel | J177: =Utslippsfaktorer!B20 -> Fossil diesel (WTW) | K177: =SUMIF(Utslippsfaktorer!B:B,Beregninger!J177,Utslippsfaktorer!D:D) -> 3.24 | L177: =VLOOKUP(J177,Utslippsfaktorer!B:C,2,FALSE) -> kg CO2e/liter | M177: 0 | N177: =SUMIF($O$125:$BV$125,"<=" & 'Prosjektbeskrivelse og inndata'!$C$14,O177:BL177) -> 0 | Q177: 0 | T177: 0 | W177: 0 | Z177: 0 | AC177: 0 | AF177: 0 | AI177: 0 | AL177: 0 | AO177: 0 | AR177: 0 | AU177: 0 | AX177: 0 | BA177: 0 | BD177: 0 | BG177: 0 | BJ177: 0 | BM177: 0 | BP177: 0 | BS177: 0 | BV177: 0
D178: Grøfterensk biodiesel | E178: =C167*'Drift og vedlikehold'!F25*Beregningsfaktorer!D87 -> 0 | F178: liter biodiesel | G178: =Beregningsfaktorer!D55 -> 3 | H178: Drift | I178: Biodiesel | J178: =Utslippsfaktorer!B18 -> Biodiesel (WTT) | K178: =SUMIF(Utslippsfaktorer!B:B,Beregninger!J178,Utslippsfaktorer!D:D) -> 1.92 | L178: =VLOOKUP(J178,Utslippsfaktorer!B:C,2,FALSE) -> kg CO2e/liter | M178: 0 | N178: =SUMIF($O$125:$BV$125,"<=" & 'Prosjektbeskrivelse og inndata'!$C$14,O178:BL178) -> 0 | Q178: 0 | T178: 0 | W178: 0 | Z178: 0 | AC178: 0 | AF178: 0 | AI178: 0 | AL178: 0 | AO178: 0 | AR178: 0 | AU178: 0 | AX178: 0 | BA178: 0 | BD178: 0 | BG178: 0 | BJ178: 0 | BM178: 0 | BP178: 0 | BS178: 0 | BV178: 0
D179: Grøfterensk elektrisk/hydrogen | E179: =C167*'Drift og vedlikehold'!G25*Beregningsfaktorer!D87 -> 0 | F179: kWh | G179: =Beregningsfaktorer!D55 -> 3 | H179: Drift | I179: Elektrisitet | J179: =Utslippsfaktorer!B24 -> Elektrisitet 55 år, europeisk miks | K179: =SUMIF(Utslippsfaktorer!B:B,Beregninger!J179,Utslippsfaktorer!D:D) -> 0.136 | L179: =VLOOKUP(J179,Utslippsfaktorer!B:C,2,FALSE) -> kg CO2e/kWh | M179: 0 | N179: =SUMIF($O$125:$BV$125,"<=" & 'Prosjektbeskrivelse og inndata'!$C$14,O179:BL179) -> 0 | Q179: 0 | T179: 0 | W179: 0 | Z179: 0 | AC179: 0 | AF179: 0 | AI179: 0 | AL179: 0 | AO179: 0 | AR179: 0 | AU179: 0 | AX179: 0 | BA179: 0 | BD179: 0 | BG179: 0 | BJ179: 0 | BM179: 0 | BP179: 0 | BS179: 0 | BV179: 0
D180: Transport jordmasser grøfterensk diesel | E180: =C167*'Drift og vedlikehold'!F15*Beregningsfaktorer!D87 -> 0 | F180: liter diesel | G180: =Beregningsfaktorer!D55 -> 3 | H180: Drift | I180: Diesel | J180: =Utslippsfaktorer!B20 -> Fossil diesel (WTW) | K180: =SUMIF(Utslippsfaktorer!B:B,Beregninger!J180,Utslippsfaktorer!D:D) -> 3.24 | L180: =VLOOKUP(J180,Utslippsfaktorer!B:C,2,FALSE) -> kg CO2e/liter | M180: 0 | N180: =SUMIF($O$125:$BV$125,"<=" & 'Prosjektbeskrivelse og inndata'!$C$14,O180:BL180) -> 0 | Q180: 0 | T180: 0 | W180: 0 | Z180: 0 | AC180: 0 | AF180: 0 | AI180: 0 | AL180: 0 | AO180: 0 | AR180: 0 | AU180: 0 | AX180: 0 | BA180: 0 | BD180: 0 | BG180: 0 | BJ180: 0 | BM180: 0 | BP180: 0 | BS180: 0 | BV180: 0
D181: Transport jordmasser grøfterensk biodiesel | E181: =C167*'Drift og vedlikehold'!G15*Beregningsfaktorer!D87 -> 0 | F181: liter biodiesel | G181: =Beregningsfaktorer!D55 -> 3 | H181: Drift | I181: Biodiesel | J181: =Utslippsfaktorer!B18 -> Biodiesel (WTT) | K181: =SUMIF(Utslippsfaktorer!B:B,Beregninger!J181,Utslippsfaktorer!D:D) -> 1.92 | L181: =VLOOKUP(J181,Utslippsfaktorer!B:C,2,FALSE) -> kg CO2e/liter | M181: 0 | N181: =SUMIF($O$125:$BV$125,"<=" & 'Prosjektbeskrivelse og inndata'!$C$14,O181:BL181) -> 0 | Q181: 0 | T181: 0 | W181: 0 | Z181: 0 | AC181: 0 | AF181: 0 | AI181: 0 | AL181: 0 | AO181: 0 | AR181: 0 | AU181: 0 | AX181: 0 | BA181: 0 | BD181: 0 | BG181: 0 | BJ181: 0 | BM181: 0 | BP181: 0 | BS181: 0 | BV181: 0
D182: Transport jordmasser grøfterensk elektrisk/hydrogen | E182: =C167*'Drift og vedlikehold'!H15*Beregningsfaktorer!D87 -> 0 | F182: kWh | G182: =Beregningsfaktorer!D55 -> 3 | H182: Drift | I182: Elektrisitet | J182: =Utslippsfaktorer!B24 -> Elektrisitet 55 år, europeisk miks | K182: =SUMIF(Utslippsfaktorer!B:B,Beregninger!J182,Utslippsfaktorer!D:D) -> 0.136 | L182: =VLOOKUP(J182,Utslippsfaktorer!B:C,2,FALSE) -> kg CO2e/kWh | M182: 0 | N182: =SUMIF($O$125:$BV$125,"<=" & 'Prosjektbeskrivelse og inndata'!$C$14,O182:BL182) -> 0 | Q182: 0 | T182: 0 | W182: 0 | Z182: 0 | AC182: 0 | AF182: 0 | AI182: 0 | AL182: 0 | AO182: 0 | AR182: 0 | AU182: 0 | AX182: 0 | BA182: 0 | BD182: 0 | BG182: 0 | BJ182: 0 | BM182: 0 | BP182: 0 | BS182: 0 | BV182: 0
D183: Feiing diesel | E183: =C167*'Drift og vedlikehold'!E26*Beregningsfaktorer!D81 -> 0 | F183: liter diesel | G183: 1 | H183: Drift | I183: Diesel | J183: =Utslippsfaktorer!B20 -> Fossil diesel (WTW) | K183: =SUMIF(Utslippsfaktorer!B:B,Beregninger!J183,Utslippsfaktorer!D:D) -> 3.24 | L183: =VLOOKUP(J183,Utslippsfaktorer!B:C,2,FALSE) -> kg CO2e/liter | M183: 0 | N183: =SUMIF($O$125:$BV$125,"<=" & 'Prosjektbeskrivelse og inndata'!$C$14,O183:BL183) -> 0 | O183: 0 | P183: 0 | Q183: 0 | R183: 0 | S183: 0 | T183: 0 | U183: 0 | V183: 0 | W183: 0 | X183: 0 | Y183: 0 | Z183: 0 | AA183: 0 | AB183: 0 | AC183: 0 | AD183: 0 | AE183: 0 | AF183: 0 | AG183: 0 | AH183: 0 | AI183: 0 | AJ183: 0 | AK183: 0 | AL183: 0 | AM183: 0 | AN183: 0 | AO183: 0 | AP183: 0 | AQ183: 0 | AR183: 0 | AS183: 0 | AT183: 0 | AU183: 0 | AV183: 0 | AW183: 0 | AX183: 0 | AY183: 0 | AZ183: 0 | BA183: 0 | BB183: 0 | BC183: 0 | BD183: 0 | BE183: 0 | BF183: 0 | BG183: 0 | BH183: 0 | BI183: 0 | BJ183: 0 | BK183: 0 | BL183: 0 | BM183: 0 | BN183: 0 | BO183: 0 | BP183: 0 | BQ183: 0 | BR183: 0 | BS183: 0 | BT183: 0 | BU183: 0 | BV183: 0
D184: Feiing biodiesel | E184: =C167*'Drift og vedlikehold'!F26*Beregningsfaktorer!D81 -> 0 | F184: liter biodiesel | G184: 1 | H184: Drift | I184: Biodiesel | J184: =Utslippsfaktorer!B18 -> Biodiesel (WTT) | K184: =SUMIF(Utslippsfaktorer!B:B,Beregninger!J184,Utslippsfaktorer!D:D) -> 1.92 | L184: =VLOOKUP(J184,Utslippsfaktorer!B:C,2,FALSE) -> kg CO2e/liter | M184: 0 | N184: =SUMIF($O$125:$BV$125,"<=" & 'Prosjektbeskrivelse og inndata'!$C$14,O184:BL184) -> 0 | O184: 0 | P184: 0 | Q184: 0 | R184: 0 | S184: 0 | T184: 0 | U184: 0 | V184: 0 | W184: 0 | X184: 0 | Y184: 0 | Z184: 0 | AA184: 0 | AB184: 0 | AC184: 0 | AD184: 0 | AE184: 0 | AF184: 0 | AG184: 0 | AH184: 0 | AI184: 0 | AJ184: 0 | AK184: 0 | AL184: 0 | AM184: 0 | AN184: 0 | AO184: 0 | AP184: 0 | AQ184: 0 | AR184: 0 | AS184: 0 | AT184: 0 | AU184: 0 | AV184: 0 | AW184: 0 | AX184: 0 | AY184: 0 | AZ184: 0 | BA184: 0 | BB184: 0 | BC184: 0 | BD184: 0 | BE184: 0 | BF184: 0 | BG184: 0 | BH184: 0 | BI184: 0 | BJ184: 0 | BK184: 0 | BL184: 0 | BM184: 0 | BN184: 0 | BO184: 0 | BP184: 0 | BQ184: 0 | BR184: 0 | BS184: 0 | BT184: 0 | BU184: 0 | BV184: 0
D185: Feiing elektrisk/hydrogen | E185: =C167*'Drift og vedlikehold'!G26*Beregningsfaktorer!D81 -> 0 | F185: kWh | G185: 1 | H185: Drift | I185: Elektrisitet | J185: =Utslippsfaktorer!B24 -> Elektrisitet 55 år, europeisk miks | K185: =SUMIF(Utslippsfaktorer!B:B,Beregninger!J185,Utslippsfaktorer!D:D) -> 0.136 | L185: =VLOOKUP(J185,Utslippsfaktorer!B:C,2,FALSE) -> kg CO2e/kWh | M185: 0 | N185: =SUMIF($O$125:$BV$125,"<=" & 'Prosjektbeskrivelse og inndata'!$C$14,O185:BL185) -> 0 | O185: 0 | P185: 0 | Q185: 0 | R185: 0 | S185: 0 | T185: 0 | U185: 0 | V185: 0 | W185: 0 | X185: 0 | Y185: 0 | Z185: 0 | AA185: 0 | AB185: 0 | AC185: 0 | AD185: 0 | AE185: 0 | AF185: 0 | AG185: 0 | AH185: 0 | AI185: 0 | AJ185: 0 | AK185: 0 | AL185: 0 | AM185: 0 | AN185: 0 | AO185: 0 | AP185: 0 | AQ185: 0 | AR185: 0 | AS185: 0 | AT185: 0 | AU185: 0 | AV185: 0 | AW185: 0 | AX185: 0 | AY185: 0 | AZ185: 0 | BA185: 0 | BB185: 0 | BC185: 0 | BD185: 0 | BE185: 0 | BF185: 0 | BG185: 0 | BH185: 0 | BI185: 0 | BJ185: 0 | BK185: 0 | BL185: 0 | BM185: 0 | BN185: 0 | BO185: 0 | BP185: 0 | BQ185: 0 | BR185: 0 | BS185: 0 | BT185: 0 | BU185: 0 | BV185: 0
D186: Salting diesel | E186: =C167*'Drift og vedlikehold'!E27*(Beregningsfaktorer!D81/2) -> 0 | F186: liter diesel | G186: 1 | H186: Drift | I186: Diesel | J186: =Utslippsfaktorer!B20 -> Fossil diesel (WTW) | K186: =SUMIF(Utslippsfaktorer!B:B,Beregninger!J186,Utslippsfaktorer!D:D) -> 3.24 | L186: =VLOOKUP(J186,Utslippsfaktorer!B:C,2,FALSE) -> kg CO2e/liter | M186: 0 | N186: =SUMIF($O$125:$BV$125,"<=" & 'Prosjektbeskrivelse og inndata'!$C$14,O186:BL186) -> 0 | O186: =IF(MOD(O$125,$G186)=0,$M186,"") -> 0 | P186: 0 | Q186: 0 | R186: 0 | S186: 0 | T186: 0 | U186: 0 | V186: 0 | W186: 0 | X186: 0 | Y186: =IF(MOD(Y$125,$G186)=0,$M186,"") -> 0 | Z186: 0 | AA186: 0 | AB186: 0 | AC186: 0 | AD186: 0 | AE186: 0 | AF186: 0 | AG186: 0 | AH186: 0 | AI186: =IF(MOD(AI$125,$G186)=0,$M186,"") -> 0 | AJ186: 0 | AK186: 0 | AL186: 0 | AM186: 0 | AN186: 0 | AO186: 0 | AP186: 0 | AQ186: 0 | AR186: 0 | AS186: =IF(MOD(AS$125,$G186)=0,$M186,"") -> 0 | AT186: 0 | AU186: 0 | AV186: 0 | AW186: 0 | AX186: 0 | AY186: 0 | AZ186: 0 | BA186: 0 | BB186: 0 | BC186: =IF(MOD(BC$125,$G186)=0,$M186,"") -> 0 | BD186: 0 | BE186: 0 | BF186: 0 | BG186: 0 | BH186: 0 | BI186: 0 | BJ186: 0 | BK186: 0 | BL186: 0 | BM186: =IF(MOD(BM$125,$G186)=0,$M186,"") -> 0 | BN186: 0 | BO186: 0 | BP186: 0 | BQ186: 0 | BR186: 0 | BS186: 0 | BT186: 0 | BU186: 0 | BV186: 0
D187: Salting biodiesel | E187: =C167*'Drift og vedlikehold'!F27*(Beregningsfaktorer!D81/2) -> 0 | F187: liter biodiesel | G187: 1 | H187: Drift | I187: Biodiesel | J187: =Utslippsfaktorer!B18 -> Biodiesel (WTT) | K187: =SUMIF(Utslippsfaktorer!B:B,Beregninger!J187,Utslippsfaktorer!D:D) -> 1.92 | L187: =VLOOKUP(J187,Utslippsfaktorer!B:C,2,FALSE) -> kg CO2e/liter | M187: 0 | N187: =SUMIF($O$125:$BV$125,"<=" & 'Prosjektbeskrivelse og inndata'!$C$14,O187:BL187) -> 0 | O187: 0 | P187: 0 | Q187: 0 | R187: 0 | S187: 0 | T187: 0 | U187: 0 | V187: 0 | W187: 0 | X187: 0 | Y187: 0 | Z187: 0 | AA187: 0 | AB187: 0 | AC187: 0 | AD187: 0 | AE187: 0 | AF187: 0 | AG187: 0 | AH187: 0 | AI187: 0 | AJ187: 0 | AK187: 0 | AL187: 0 | AM187: 0 | AN187: 0 | AO187: 0 | AP187: 0 | AQ187: 0 | AR187: 0 | AS187: 0 | AT187: 0 | AU187: 0 | AV187: 0 | AW187: 0 | AX187: 0 | AY187: 0 | AZ187: 0 | BA187: 0 | BB187: 0 | BC187: 0 | BD187: 0 | BE187: 0 | BF187: 0 | BG187: 0 | BH187: 0 | BI187: 0 | BJ187: 0 | BK187: 0 | BL187: 0 | BM187: 0 | BN187: 0 | BO187: 0 | BP187: 0 | BQ187: 0 | BR187: 0 | BS187: 0 | BT187: 0 | BU187: 0 | BV187: 0
D188: Salting elektrisk/hydrogen | E188: =C167*'Drift og vedlikehold'!G27*(Beregningsfaktorer!D81/2) -> 0 | F188: kWh | G188: 1 | H188: Drift | I188: Elektrisitet | J188: =Utslippsfaktorer!B24 -> Elektrisitet 55 år, europeisk miks | K188: =SUMIF(Utslippsfaktorer!B:B,Beregninger!J188,Utslippsfaktorer!D:D) -> 0.136 | L188: =VLOOKUP(J188,Utslippsfaktorer!B:C,2,FALSE) -> kg CO2e/kWh | M188: 0 | N188: =SUMIF($O$125:$BV$125,"<=" & 'Prosjektbeskrivelse og inndata'!$C$14,O188:BL188) -> 0 | O188: 0 | P188: 0 | Q188: 0 | R188: 0 | S188: 0 | T188: 0 | U188: 0 | V188: 0 | W188: 0 | X188: 0 | Y188: 0 | Z188: 0 | AA188: 0 | AB188: 0 | AC188: 0 | AD188: 0 | AE188: 0 | AF188: 0 | AG188: 0 | AH188: 0 | AI188: 0 | AJ188: 0 | AK188: 0 | AL188: 0 | AM188: 0 | AN188: 0 | AO188: 0 | AP188: 0 | AQ188: 0 | AR188: 0 | AS188: 0 | AT188: 0 | AU188: 0 | AV188: 0 | AW188: 0 | AX188: 0 | AY188: 0 | AZ188: 0 | BA188: 0 | BB188: 0 | BC188: 0 | BD188: 0 | BE188: 0 | BF188: 0 | BG188: 0 | BH188: 0 | BI188: 0 | BJ188: 0 | BK188: 0 | BL188: 0 | BM188: 0 | BN188: 0 | BO188: 0 | BP188: 0 | BQ188: 0 | BR188: 0 | BS188: 0 | BT188: 0 | BU188: 0 | BV188: 0
D189: Salt | E189: =C167*'Drift og vedlikehold'!E16 -> 0 | F189: kg salt | G189: 1 | H189: Drift | I189: Salt | J189: =Utslippsfaktorer!B12 -> Salt | K189: =SUMIF(Utslippsfaktorer!B:B,Beregninger!J189,Utslippsfaktorer!D:D) -> 0.179 | L189: =VLOOKUP(J189,Utslippsfaktorer!B:C,2,FALSE) -> kg CO2e/kg | M189: 0 | N189: =SUMIF($O$125:$BV$125,"<=" & 'Prosjektbeskrivelse og inndata'!$C$14,O189:BL189) -> 0 | O189: 0 | P189: 0 | Q189: 0 | R189: 0 | S189: 0 | T189: 0 | U189: 0 | V189: 0 | W189: 0 | X189: 0 | Y189: 0 | Z189: 0 | AA189: 0 | AB189: 0 | AC189: 0 | AD189: 0 | AE189: 0 | AF189: 0 | AG189: 0 | AH189: 0 | AI189: 0 | AJ189: 0 | AK189: 0 | AL189: 0 | AM189: 0 | AN189: 0 | AO189: 0 | AP189: 0 | AQ189: 0 | AR189: 0 | AS189: 0 | AT189: 0 | AU189: 0 | AV189: 0 | AW189: 0 | AX189: 0 | AY189: 0 | AZ189: 0 | BA189: 0 | BB189: 0 | BC189: 0 | BD189: 0 | BE189: 0 | BF189: 0 | BG189: 0 | BH189: 0 | BI189: 0 | BJ189: 0 | BK189: 0 | BL189: 0 | BM189: 0 | BN189: 0 | BO189: 0 | BP189: 0 | BQ189: 0 | BR189: 0 | BS189: 0 | BT189: 0 | BU189: 0 | BV189: 0
D190: Salttransport diesel | E190: =C167*'Drift og vedlikehold'!F16 -> 0 | F190: liter diesel | G190: 1 | H190: Drift | I190: Diesel | J190: =Utslippsfaktorer!B20 -> Fossil diesel (WTW) | K190: =SUMIF(Utslippsfaktorer!B:B,Beregninger!J190,Utslippsfaktorer!D:D) -> 3.24 | L190: =VLOOKUP(J190,Utslippsfaktorer!B:C,2,FALSE) -> kg CO2e/liter | M190: 0 | N190: =SUMIF($O$125:$BV$125,"<=" & 'Prosjektbeskrivelse og inndata'!$C$14,O190:BL190) -> 0 | O190: 0 | P190: 0 | Q190: 0 | R190: 0 | S190: 0 | T190: 0 | U190: 0 | V190: 0 | W190: 0 | X190: 0 | Y190: 0 | Z190: 0 | AA190: 0 | AB190: 0 | AC190: 0 | AD190: 0 | AE190: 0 | AF190: 0 | AG190: 0 | AH190: 0 | AI190: 0 | AJ190: 0 | AK190: 0 | AL190: 0 | AM190: 0 | AN190: 0 | AO190: 0 | AP190: 0 | AQ190: 0 | AR190: 0 | AS190: 0 | AT190: 0 | AU190: 0 | AV190: 0 | AW190: 0 | AX190: 0 | AY190: 0 | AZ190: 0 | BA190: 0 | BB190: 0 | BC190: 0 | BD190: 0 | BE190: 0 | BF190: 0 | BG190: 0 | BH190: 0 | BI190: 0 | BJ190: 0 | BK190: 0 | BL190: 0 | BM190: 0 | BN190: 0 | BO190: 0 | BP190: 0 | BQ190: 0 | BR190: 0 | BS190: 0 | BT190: 0 | BU190: 0 | BV190: 0
D191: Salttransport biodiesel | E191: =C167*'Drift og vedlikehold'!G16 -> 0 | F191: liter biodiesel | G191: 1 | H191: Drift | I191: Biodiesel | J191: =Utslippsfaktorer!B18 -> Biodiesel (WTT) | K191: =SUMIF(Utslippsfaktorer!B:B,Beregninger!J191,Utslippsfaktorer!D:D) -> 1.92 | L191: =VLOOKUP(J191,Utslippsfaktorer!B:C,2,FALSE) -> kg CO2e/liter | M191: 0 | N191: =SUMIF($O$125:$BV$125,"<=" & 'Prosjektbeskrivelse og inndata'!$C$14,O191:BL191) -> 0 | O191: 0 | P191: 0 | Q191: 0 | R191: 0 | S191: 0 | T191: 0 | U191: 0 | V191: 0 | W191: 0 | X191: 0 | Y191: 0 | Z191: 0 | AA191: 0 | AB191: 0 | AC191: 0 | AD191: 0 | AE191: 0 | AF191: 0 | AG191: 0 | AH191: 0 | AI191: 0 | AJ191: 0 | AK191: 0 | AL191: 0 | AM191: 0 | AN191: 0 | AO191: 0 | AP191: 0 | AQ191: 0 | AR191: 0 | AS191: 0 | AT191: 0 | AU191: 0 | AV191: 0 | AW191: 0 | AX191: 0 | AY191: 0 | AZ191: 0 | BA191: 0 | BB191: 0 | BC191: 0 | BD191: 0 | BE191: 0 | BF191: 0 | BG191: 0 | BH191: 0 | BI191: 0 | BJ191: 0 | BK191: 0 | BL191: 0 | BM191: 0 | BN191: 0 | BO191: 0 | BP191: 0 | BQ191: 0 | BR191: 0 | BS191: 0 | BT191: 0 | BU191: 0 | BV191: 0
D192: Salttransport elektrisk/hydrogen | E192: =C167*'Drift og vedlikehold'!H16 -> 0 | F192: kWh | G192: 1 | H192: Drift | I192: Elektrisitet | J192: =Utslippsfaktorer!B24 -> Elektrisitet 55 år, europeisk miks | K192: =SUMIF(Utslippsfaktorer!B:B,Beregninger!J192,Utslippsfaktorer!D:D) -> 0.136 | L192: =VLOOKUP(J192,Utslippsfaktorer!B:C,2,FALSE) -> kg CO2e/kWh | M192: 0 | N192: =SUMIF($O$125:$BV$125,"<=" & 'Prosjektbeskrivelse og inndata'!$C$14,O192:BL192) -> 0 | O192: 0 | P192: 0 | Q192: 0 | R192: 0 | S192: 0 | T192: 0 | U192: 0 | V192: 0 | W192: 0 | X192: 0 | Y192: 0 | Z192: 0 | AA192: 0 | AB192: 0 | AC192: 0 | AD192: 0 | AE192: 0 | AF192: 0 | AG192: 0 | AH192: 0 | AI192: 0 | AJ192: 0 | AK192: 0 | AL192: 0 | AM192: 0 | AN192: 0 | AO192: 0 | AP192: 0 | AQ192: 0 | AR192: 0 | AS192: 0 | AT192: 0 | AU192: 0 | AV192: 0 | AW192: 0 | AX192: 0 | AY192: 0 | AZ192: 0 | BA192: 0 | BB192: 0 | BC192: 0 | BD192: 0 | BE192: 0 | BF192: 0 | BG192: 0 | BH192: 0 | BI192: 0 | BJ192: 0 | BK192: 0 | BL192: 0 | BM192: 0 | BN192: 0 | BO192: 0 | BP192: 0 | BQ192: 0 | BR192: 0 | BS192: 0 | BT192: 0 | BU192: 0 | BV192: 0
D193: Brøyting diesel | E193: =C167*'Drift og vedlikehold'!E28 -> 0 | F193: liter diesel | G193: 1 | H193: Drift | I193: Diesel | J193: =Utslippsfaktorer!B20 -> Fossil diesel (WTW) | K193: =SUMIF(Utslippsfaktorer!B:B,Beregninger!J193,Utslippsfaktorer!D:D) -> 3.24 | L193: =VLOOKUP(J193,Utslippsfaktorer!B:C,2,FALSE) -> kg CO2e/liter | M193: 0 | N193: =SUMIF($O$125:$BV$125,"<=" & 'Prosjektbeskrivelse og inndata'!$C$14,O193:BL193) -> 0 | O193: 0 | P193: 0 | Q193: 0 | R193: 0 | S193: 0 | T193: 0 | U193: 0 | V193: 0 | W193: 0 | X193: 0 | Y193: 0 | Z193: 0 | AA193: 0 | AB193: 0 | AC193: 0 | AD193: 0 | AE193: 0 | AF193: 0 | AG193: 0 | AH193: 0 | AI193: 0 | AJ193: 0 | AK193: 0 | AL193: 0 | AM193: 0 | AN193: 0 | AO193: 0 | AP193: 0 | AQ193: 0 | AR193: 0 | AS193: 0 | AT193: 0 | AU193: 0 | AV193: 0 | AW193: 0 | AX193: 0 | AY193: 0 | AZ193: 0 | BA193: 0 | BB193: 0 | BC193: 0 | BD193: 0 | BE193: 0 | BF193: 0 | BG193: 0 | BH193: 0 | BI193: 0 | BJ193: 0 | BK193: 0 | BL193: 0 | BM193: 0 | BN193: 0 | BO193: 0 | BP193: 0 | BQ193: 0 | BR193: 0 | BS193: 0 | BT193: 0 | BU193: 0 | BV193: 0
D194: Brøyting biodiesel | E194: =C167*'Drift og vedlikehold'!F28 -> 0 | F194: liter biodiesel | G194: 1 | H194: Drift | I194: Biodiesel | J194: =Utslippsfaktorer!B18 -> Biodiesel (WTT) | K194: =SUMIF(Utslippsfaktorer!B:B,Beregninger!J194,Utslippsfaktorer!D:D) -> 1.92 | L194: =VLOOKUP(J194,Utslippsfaktorer!B:C,2,FALSE) -> kg CO2e/liter | M194: 0 | N194: =SUMIF($O$125:$BV$125,"<=" & 'Prosjektbeskrivelse og inndata'!$C$14,O194:BL194) -> 0 | O194: 0 | P194: 0 | Q194: 0 | R194: 0 | S194: 0 | T194: 0 | U194: 0 | V194: 0 | W194: 0 | X194: 0 | Y194: 0 | Z194: 0 | AA194: 0 | AB194: 0 | AC194: 0 | AD194: 0 | AE194: 0 | AF194: 0 | AG194: 0 | AH194: 0 | AI194: 0 | AJ194: 0 | AK194: 0 | AL194: 0 | AM194: 0 | AN194: 0 | AO194: 0 | AP194: 0 | AQ194: 0 | AR194: 0 | AS194: 0 | AT194: 0 | AU194: 0 | AV194: 0 | AW194: 0 | AX194: 0 | AY194: 0 | AZ194: 0 | BA194: 0 | BB194: 0 | BC194: 0 | BD194: 0 | BE194: 0 | BF194: 0 | BG194: 0 | BH194: 0 | BI194: 0 | BJ194: 0 | BK194: 0 | BL194: 0 | BM194: 0 | BN194: 0 | BO194: 0 | BP194: 0 | BQ194: 0 | BR194: 0 | BS194: 0 | BT194: 0 | BU194: 0 | BV194: 0
D195: Brøyting elektrisk/hydrogen | E195: =C167*'Drift og vedlikehold'!G28 -> 0 | F195: kWh | G195: 1 | H195: Drift | I195: Elektrisitet | J195: =Utslippsfaktorer!B24 -> Elektrisitet 55 år, europeisk miks | K195: =SUMIF(Utslippsfaktorer!B:B,Beregninger!J195,Utslippsfaktorer!D:D) -> 0.136 | L195: =VLOOKUP(J195,Utslippsfaktorer!B:C,2,FALSE) -> kg CO2e/kWh | M195: 0 | N195: =SUMIF($O$125:$BV$125,"<=" & 'Prosjektbeskrivelse og inndata'!$C$14,O195:BL195) -> 0 | O195: 0 | P195: 0 | Q195: 0 | R195: 0 | S195: 0 | T195: 0 | U195: 0 | V195: 0 | W195: 0 | X195: 0 | Y195: 0 | Z195: 0 | AA195: 0 | AB195: 0 | AC195: 0 | AD195: 0 | AE195: 0 | AF195: 0 | AG195: 0 | AH195: 0 | AI195: 0 | AJ195: 0 | AK195: 0 | AL195: 0 | AM195: 0 | AN195: 0 | AO195: 0 | AP195: 0 | AQ195: 0 | AR195: 0 | AS195: 0 | AT195: 0 | AU195: 0 | AV195: 0 | AW195: 0 | AX195: 0 | AY195: 0 | AZ195: 0 | BA195: 0 | BB195: 0 | BC195: 0 | BD195: 0 | BE195: 0 | BF195: 0 | BG195: 0 | BH195: 0 | BI195: 0 | BJ195: 0 | BK195: 0 | BL195: 0 | BM195: 0 | BN195: 0 | BO195: 0 | BP195: 0 | BQ195: 0 | BR195: 0 | BS195: 0 | BT195: 0 | BU195: 0 | BV195: 0
D196: Autovern | E196: =C167*'Tillegg vei'!D7*Beregningsfaktorer!D85 -> 0 | F196: kg stål | G196: =Beregningsfaktorer!D52 -> 30 | H196: Vedlikehold | I196: Stål | J196: =Utslippsfaktorer!B14 -> Stål | K196: =SUMIF(Utslippsfaktorer!B:B,Beregninger!J196,Utslippsfaktorer!D:D) -> 2.1235 | L196: =VLOOKUP(J196,Utslippsfaktorer!B:C,2,FALSE) -> kg CO2e/kg | M196: 0 | N196: =SUMIF($O$125:$BV$125,"<=" & 'Prosjektbeskrivelse og inndata'!$C$14,O196:BL196) -> 0 | O196: =IF(MOD(O$125,$G196)=0,$M196,"") ->  | Y196: =IF(MOD(Y$125,$G196)=0,$M196,"") ->  | AI196: =IF(MOD(AI$125,$G196)=0,$M196,"") ->  | AR196: 0 | AS196: =IF(MOD(AS$125,$G196)=0,$M196,"") ->  | BC196: =IF(MOD(BC$125,$G196)=0,$M196,"") ->  | BM196: =IF(MOD(BM$125,$G196)=0,$M196,"") ->  | BV196: 0
D197: Utskiftning autovern diesel | E197: =C167*'Tillegg vei'!E7*Beregningsfaktorer!D85 -> 0 | F197: liter diesel | G197: =Beregningsfaktorer!D52 -> 30 | H197: Vedlikehold | I197: Diesel | J197: =Utslippsfaktorer!B20 -> Fossil diesel (WTW) | K197: =SUMIF(Utslippsfaktorer!B:B,Beregninger!J197,Utslippsfaktorer!D:D) -> 3.24 | L197: =VLOOKUP(J197,Utslippsfaktorer!B:C,2,FALSE) -> kg CO2e/liter | M197: =(E197*K197)/1000 -> 0 | N197: =SUMIF($O$125:$BV$125,"<=" & 'Prosjektbeskrivelse og inndata'!$C$14,O197:BL197) -> 0 | AR197: 0 | BV197: 0
D198: Utskiftning autovern biodiesel | E198: =C167*'Tillegg vei'!F7*Beregningsfaktorer!D85 -> 0 | F198: liter biodiesel | G198: =Beregningsfaktorer!D52 -> 30 | H198: Vedlikehold | I198: Biodiesel | J198: =Utslippsfaktorer!B18 -> Biodiesel (WTT) | K198: =SUMIF(Utslippsfaktorer!B:B,Beregninger!J198,Utslippsfaktorer!D:D) -> 1.92 | L198: =VLOOKUP(J198,Utslippsfaktorer!B:C,2,FALSE) -> kg CO2e/liter | M198: 0 | N198: =SUMIF($O$125:$BV$125,"<=" & 'Prosjektbeskrivelse og inndata'!$C$14,O198:BL198) -> 0 | AR198: 0 | BV198: 0
D199: Utskiftning autovern elektrisk/hydrogen | E199: =C167*'Tillegg vei'!G7*Beregningsfaktorer!D85 -> 0 | F199: kWh | G199: =Beregningsfaktorer!D52 -> 30 | H199: Vedlikehold | I199: Elektrisitet | J199: =Utslippsfaktorer!B24 -> Elektrisitet 55 år, europeisk miks | K199: =SUMIF(Utslippsfaktorer!B:B,Beregninger!J199,Utslippsfaktorer!D:D) -> 0.136 | L199: =VLOOKUP(J199,Utslippsfaktorer!B:C,2,FALSE) -> kg CO2e/kWh | M199: 0 | N199: =SUMIF($O$125:$BV$125,"<=" & 'Prosjektbeskrivelse og inndata'!$C$14,O199:BL199) -> 0 | AR199: 0 | BV199: 0
D200: Transport av autovern diesel | E200: =C167*'Drift og vedlikehold'!F19*Beregningsfaktorer!D85 -> 0 | F200: liter diesel | G200: =Beregningsfaktorer!D52 -> 30 | H200: Vedlikehold | I200: Diesel | J200: =Utslippsfaktorer!B20 -> Fossil diesel (WTW) | K200: =SUMIF(Utslippsfaktorer!B:B,Beregninger!J200,Utslippsfaktorer!D:D) -> 3.24 | L200: =VLOOKUP(J200,Utslippsfaktorer!B:C,2,FALSE) -> kg CO2e/liter | M200: 0 | N200: =SUMIF($O$125:$BV$125,"<=" & 'Prosjektbeskrivelse og inndata'!$C$14,O200:BL200) -> 0 | AR200: 0 | BV200: 0
D201: Transport av autovern biodiesel | E201: =C167*'Drift og vedlikehold'!G19*Beregningsfaktorer!D85 -> 0 | F201: liter biodiesel | G201: =Beregningsfaktorer!D52 -> 30 | H201: Vedlikehold | I201: Biodiesel | J201: =Utslippsfaktorer!B18 -> Biodiesel (WTT) | K201: =SUMIF(Utslippsfaktorer!B:B,Beregninger!J201,Utslippsfaktorer!D:D) -> 1.92 | L201: =VLOOKUP(J201,Utslippsfaktorer!B:C,2,FALSE) -> kg CO2e/liter | M201: 0 | N201: =SUMIF($O$125:$BV$125,"<=" & 'Prosjektbeskrivelse og inndata'!$C$14,O201:BL201) -> 0 | AR201: 0 | BV201: 0
... 110 more rows

Sheet Drift og vedlikehold
B1: Drift og vedlikehold
B2: Bakgrunnsdata
B3: ÅDT | C3: ='Prosjektbeskrivelse og inndata'!C15 -> 0
B5: Materialer, strømforbruk og transport
B6: Hovedkategori | C6: Underkategori | D6: Type innsatsfaktor | E6: Materialmengder | F6: Energiforbruk | J6: Kommentar
E7: Masse per veistrekning [kg/m] | F7: Mengde diesel [L/m] | G7: Mengde bio [L/m] | H7: Mengde el [kWh/m] | I7: Mengde el [kWh/(m*m)] | J7: Alle mengder i denne fanen er oppgitt per år. For vedlikehold som utføres med utskiftningsintervaller gjelder verdiene for de årene der det skjer vedlikehold. Anleggsvei er utelatt fra alle beregninger knyttet til drift.
B8: Kontinuerlig drift | C8: Belysning hovedvei i dagen | D8: Elektrisitet | H8: =Beregningsfaktorer!D61*Beregningsfaktorer!D75/1000 -> 34 | J8: Blir ganget med antall belysningsrekker og total lengde hovedvei i dagen og bru for å finne samlet forbruk for strekning.
C9: Belysning sidevei i dagen | D9: Elektrisitet | H9: =Beregningsfaktorer!D61*Beregningsfaktorer!D76/1000 -> 0 | J9: Blir ganget med antall belysningsrekker og total lengde sidevei i dagen for å finne samlet forbruk for strekning.
C10: Belysning tunnel | D10: Elektrisitet | H10: =Beregningsfaktorer!D62 -> 34 | J10: Blir ganget med antall løp og tunnellengde for å finne forbruk for hver tunnel.
C11: Pumpedrift enkeltløpstunnel | D11: Elektrisitet | H11: =Beregningsfaktorer!D68*Beregningsfaktorer!D48+Beregningsfaktorer!D67*(1-Beregningsfaktorer!D48) -> 0 | J11: Blir ganget med total lengde enkeltløpstunnel for å finne samlet forbruk for strekning.
C12: Pumpedrift dobbeltløpstunnel | D12: Elektrisitet | H12: =Beregningsfaktorer!D68*2*Beregningsfaktorer!D49+Beregningsfaktorer!D67*2*(1-Beregningsfaktorer!D49) -> 0 | J12: Blir ganget med total lengde dobbeltløpstunnel for å finne samlet forbruk for strekning.
C13: Viftedrift enkeltløpstunnel | D13: Elektrisitet | H13: =Beregningsfaktorer!D48*Beregningsfaktorer!D64/1000*'Drift og vedlikehold'!C3+(1-Beregningsfaktorer!D48)*Beregningsfaktorer!D63/1000*'Drift og vedlikehold'!C3 -> 0 | J13: Blir ganget med total lengde enkelttløpstunnel for å finne samlet forbruk for strekningen. Formel fra Metoderapport s. 46
C14: Viftedrift dobbeltløpstunnel | D14: Elektrisitet | H14: =Beregningsfaktorer!D49*Beregningsfaktorer!D66/1000*'Drift og vedlikehold'!C3+(1-Beregningsfaktorer!D49)*Beregningsfaktorer!D65/1000*'Drift og vedlikehold'!C3 -> 0 | J14: Blir ganget med total lengde dobbeltløpstunnel for å finne samlet forbruk for strekningen. Formel fra Metoderapport s. 46
B15: Sesongdrift | C15: Grøfterensk | D15: Jordmasser/vegetasjon | E15: =Beregningsfaktorer!D17*Beregningsfaktorer!D72 -> 172.9 | F15: =E15/1000*'Transport og energibehov'!D5*'Transport og energibehov'!D29*'Transport og energibehov'!N29 -> 0.0482391 | G15: =E15/1000*'Transport og energibehov'!D5*'Transport og energibehov'!D29*'Transport og energibehov'!M29 -> 0.0036309 | H15: =E15/1000*'Transport og energibehov'!D5*'Transport og energibehov'!H29*'Transport og energibehov'!L29 -> 0 | J15: Driftsintervall med standardverdi 3 år (kan erstattes med prosjektspesifikk verdi i beregningsfaktorfane). Blir ganget med antall grøfter og total strekningslengde for å finne samlet forbruk for strekningen.
C16: Salt | D16: Salt | E16: =Beregningsfaktorer!D69*1000/1000 -> 10.5 | F16: =E16/1000*'Transport og energibehov'!D15*'Transport og energibehov'!D29*'Transport og energibehov'!N29 -> 0.09765 | G16: =E16/1000*'Transport og energibehov'!D15*'Transport og energibehov'!D29*'Transport og energibehov'!M29 -> 0.00735 | H16: =E16/1000*'Transport og energibehov'!D15*'Transport og energibehov'!H29*'Transport og energibehov'!L29 -> 0 | J16: Blir ganget med total strekningslengde for å finne samlet forbruk for strekningen.
B17: Vedlikehold | C17: Lyktestolper hovedvei og bru utskiftning | D17: Stål | E17: =Beregningsfaktorer!D74*Beregningsfaktorer!D75/1000 -> 4.82375 | F17: =(E17/1000)*'Transport og energibehov'!D25*'Transport og energibehov'!D11*'Transport og energibehov'!N25 -> 0.0358887 | G17: =(E17/1000)*'Transport og energibehov'!D25*'Transport og energibehov'!D11*'Transport og energibehov'!M25 -> 0.0027013 | H17: =(E17/1000)*'Transport og energibehov'!H24*'Transport og energibehov'!D11*'Transport og energibehov'!L25 -> 0 | J17: Utskiftningintervall gitt av levetid med standardverdi lik 30 år (kan erstattes med prosjektspesifikk verdi i beregningsfaktorfanen). Blir ganget med antall belysningsrekker og total lengde vei i dagen og bru for å finne samlet forbruk for strekningen.
C18: Lyktestolper sidevei utskiftning | D18: Stål | E18: =Beregningsfaktorer!D74*Beregningsfaktorer!D76/1000 -> 0 | F18: =(E18/1000)*'Transport og energibehov'!D25*'Transport og energibehov'!D11*'Transport og energibehov'!N25 -> 0 | G18: =(E18/1000)*'Transport og energibehov'!D25*'Transport og energibehov'!D11*'Transport og energibehov'!M25 -> 0 | H18: =(E18/1000)*'Transport og energibehov'!H24*'Transport og energibehov'!D11*'Transport og energibehov'!L25 -> 0 | J18: Utskiftningintervall gitt av levetid med standardverdi lik 30 år (kan erstattes med prosjektspesifikk verdi i beregningsfaktorfanen). Blir ganget med antall belysningsrekker og total lengde sidevei i for å finne samlet forbruk for strekningen.
C19: Autovern/rekkverk utskiftning | D19: Stål | E19: =Beregningsfaktorer!D77 -> 16.5 | F19: =(E19/1000)*'Transport og energibehov'!D25*'Transport og energibehov'!D11*'Transport og energibehov'!N25 -> 0.12276 | G19: =(E19/1000)*'Transport og energibehov'!D25*'Transport og energibehov'!D11*'Transport og energibehov'!M25 -> 0.00924 | H19: =(E19/1000)*'Transport og energibehov'!H24*'Transport og energibehov'!D11*'Transport og energibehov'!L25 -> 0 | J19: Utskiftningintervall gitt av levetid med standardverdi lik 30 år (kan erstattes med prosjektspesifikk verdi i beregningsfaktorfanen). Blir ganget med antall rekkverk og total strekningslengde for å finne samlet forbruk for strekningen.
B21: Anleggsarbeid
B22: Hovedkategori | C22: Kategori | D22: Maskintype | E22: Energiforbruk | H22: Kommentar
E23: Mengde diesel [L/m] | F23: Mengde bio [L/m] | G23: Mengde el [kWh/m] | H23: Alle mengder i denne fanen er oppgitt per år. For vedlikehold som utføres med utskiftningsintervaller gjelder verdiene for de årene der det skjer vedlikehold. Anleggsvei er utelatt fra alle beregninger knyttet til drift.
B24: Sesongdrift | C24: Kantklipp | D24: Hjullaster/traktor | E24: ='Transport og energibehov'!D41/'Transport og energibehov'!D57*'Transport og energibehov'!N41 -> 0.00093 | F24: ='Transport og energibehov'!D41/'Transport og energibehov'!D57*'Transport og energibehov'!M41 -> 7e-05 | G24: ='Transport og energibehov'!H41/'Transport og energibehov'!D57*'Transport og energibehov'!L41 -> 0 | H24: Blir ganget med total lengde vei i dagen og antall grøfter for å finne samlet forbruk for strekningen.
C25: Grøfterensk | D25: Gravemaskin | E25: ='Transport og energibehov'!D34/'Transport og energibehov'!D55*'Transport og energibehov'!N34 -> 0.062 | F25: ='Transport og energibehov'!D34/'Transport og energibehov'!D55*'Transport og energibehov'!M34 -> 0.004666666667 | G25: ='Transport og energibehov'!H34/'Transport og energibehov'!D55*'Transport og energibehov'!L34 -> 0 | H25: Driftsintervall med standardverdi 3 år (kan erstattes med prosjektspesifikk verdi i beregningsfaktorfane). Blir ganget med antall grøfter og total strekningslengde for å finne samlet forbruk for strekningen.
C26: Feiing | D26: Hjullaster | E26: ='Transport og energibehov'!D42/'Transport og energibehov'!D56*'Transport og energibehov'!N42 -> 0.0034875 | F26: ='Transport og energibehov'!D42/'Transport og energibehov'!D56*'Transport og energibehov'!M42 -> 0.0002625 | G26: ='Transport og energibehov'!H42/'Transport og energibehov'!D56*'Transport og energibehov'!L42 -> 0 | H26: Blir ganget med strekningslengde og antall felt for å finne samlet forbruk for hver del av strekningen.
C27: Strøing av salt | D27: Saltbil (lastebil) | E27: ='Transport og energibehov'!D43/1000*Beregningsfaktorer!D71*'Transport og energibehov'!N43 -> 0.05952 | F27: ='Transport og energibehov'!D43/1000*Beregningsfaktorer!D71*'Transport og energibehov'!M43 -> 0.00448 | G27: ='Transport og energibehov'!H43/1000*Beregningsfaktorer!D71*'Transport og energibehov'!L43 -> 0 | H27: Blir ganget med total lengde vei i dagen og bru og halvparten av antall felt for å finne samlet forbruk for hver del av strekningen (antar at to og to felt saltes).
C28: Brøyting | D28: Brøytebil | E28: ='Transport og energibehov'!D44/1000*Beregningsfaktorer!D70*'Transport og energibehov'!N44 -> 0.43134144 | F28: ='Transport og energibehov'!D44/1000*Beregningsfaktorer!D70*'Transport og energibehov'!M44 -> 0.03246656 | G28: ='Transport og energibehov'!H44/1000*Beregningsfaktorer!D70*'Transport og energibehov'!L44 -> 0 | H28: Blir ganget med total lengde vei i dagen og bru for å finne samlet forbruk for hver del av strekningen.
B29: Vedlikehold | C29: Utskiftning av autovern/rekkverk | D29: Pelerigg/lastebil | E29: ='Transport og energibehov'!D40*'Transport og energibehov'!N40 -> 0.372 | F29: ='Transport og energibehov'!D40*'Transport og energibehov'!M40 -> 0.028 | G29: ='Transport og energibehov'!H40*'Transport og energibehov'!L40 -> 0 | H29: Utskiftningintervall gitt av levetid med standardverdi lik 30 år (kan erstattes med prosjektspesifikk verdi i beregningsfaktorfanen). Blir ganget med antall rekkverk og total strekningslengde for å finne samlet forbruk for strekningen.

Sheet Hovedvei
B2: Materialer og transport
B3: Kategori | C3: Materialmengder | E3: Transport | H3: Kommentar
C4: Volum per areal [m3/m2] | D4: Masse per areal [kg/m2] | E4: Mengde diesel [L/m2] | F4: Mengde bio [L/m2] | G4: Mengde el [kWh/m2]
B5: Slitelag (Ska) | C5: =Beregningsfaktorer!D19 -> 0.045 | D5: =C5*Beregningsfaktorer!D6 -> 112.5 | E5: =(D5/1000)*'Transport og energibehov'!D20*'Transport og energibehov'!D7*'Transport og energibehov'!N20 -> 0.062775 | F5: =(D5/1000)*'Transport og energibehov'!D20*'Transport og energibehov'!D7*'Transport og energibehov'!M20 -> 0.004725 | G5: =(D5/1000)*'Transport og energibehov'!H20*'Transport og energibehov'!D7*'Transport og energibehov'!L20 -> 0
B6: Bindlag (Ska) | C6: =Beregningsfaktorer!D20 -> 0.035 | D6: =C6*Beregningsfaktorer!D7 -> 87.5 | E6: =(D6/1000)*'Transport og energibehov'!D20*'Transport og energibehov'!D7*'Transport og energibehov'!N20 -> 0.048825 | F6: =(D6/1000)*'Transport og energibehov'!D20*'Transport og energibehov'!D7*'Transport og energibehov'!M20 -> 0.003675 | G6: =(D6/1000)*'Transport og energibehov'!H20*'Transport og energibehov'!D7*'Transport og energibehov'!L20 -> 0
B7: Bærelag (Ag) | C7: =Beregningsfaktorer!D21 -> 0.13 | D7: =C7*Beregningsfaktorer!D8 -> 312 | E7: =(D7/1000)*'Transport og energibehov'!D21*'Transport og energibehov'!D8*'Transport og energibehov'!N21 -> 0.174096 | F7: =(D7/1000)*'Transport og energibehov'!D21*'Transport og energibehov'!D8*'Transport og energibehov'!M21 -> 0.013104 | G7: =(D7/1000)*'Transport og energibehov'!H21*'Transport og energibehov'!D8*'Transport og energibehov'!L21 -> 0
B8: Forsterkningslag | C8: =Beregningsfaktorer!D22 -> 0.45 | D8: =C8*Beregningsfaktorer!D10 -> 697.5 | E8: =(D8/1000)*'Transport og energibehov'!D22*'Transport og energibehov'!D9*'Transport og energibehov'!N22 -> 0.1946025 | F8: =(D8/1000)*'Transport og energibehov'!D22*'Transport og energibehov'!D9*'Transport og energibehov'!M22 -> 0.0146475 | G8: =(D8/1000)*'Transport og energibehov'!H22*'Transport og energibehov'!D9*'Transport og energibehov'!L22 -> 0
B9: Frostsikringslag | C9: =Beregningsfaktorer!D23 -> 1.74 | D9: =C9*Beregningsfaktorer!D9 -> 2697 | E9: =(D9/1000)*'Transport og energibehov'!D22*'Transport og energibehov'!D9*'Transport og energibehov'!N22 -> 0.752463 | F9: =(D9/1000)*'Transport og energibehov'!D22*'Transport og energibehov'!D9*'Transport og energibehov'!M22 -> 0.056637 | G9: =(D9/1000)*'Transport og energibehov'!H22*'Transport og energibehov'!D9*'Transport og energibehov'!L22 -> 0
B12: Anleggsarbeid
B13: Kategori | C13: Maskintype | D13: Anleggsarbeid | H13: Kommentar
D14: Anleggsarbeid [m2/h] | E14: Mengde diesel [L/m2] | F14: Mengde bio [L/m2] | G14: Mengde el [kWh/m2]
B15: Slitelag | C15: Veivals | D15: =('Transport og energibehov'!D46*1000)/D5 -> 666.6666667 | E15: =('Transport og energibehov'!D31/D15)*'Transport og energibehov'!N31 -> 0.004185 | F15: =('Transport og energibehov'!D31/D15)*'Transport og energibehov'!M31 -> 0.000315 | G15: =('Transport og energibehov'!H31/D15)*'Transport og energibehov'!L31 -> 0
C16: Traktor | D16: =('Transport og energibehov'!D47*1000)/D5 -> 2666.666667 | E16: =('Transport og energibehov'!D32/D16)*'Transport og energibehov'!N32 -> 0.00174375 | F16: =('Transport og energibehov'!D32/D16)*'Transport og energibehov'!M32 -> 0.00013125 | G16: =('Transport og energibehov'!H32/D16)*'Transport og energibehov'!L32 -> 0
C17: Asfaltutlegger | D17: =('Transport og energibehov'!D48*1000)/D5 -> 33.33333333 | E17: =('Transport og energibehov'!D33/D17)*'Transport og energibehov'!N33 -> 0.0837 | F17: =('Transport og energibehov'!D33/D17)*'Transport og energibehov'!M33 -> 0.0063 | G17: =('Transport og energibehov'!H33/D17)*'Transport og energibehov'!L33 -> 0
B18: Bindlag | C18: Veivals | D18: =('Transport og energibehov'!D46*1000)/D6 -> 857.1428571 | E18: =('Transport og energibehov'!D31/D18)*'Transport og energibehov'!N31 -> 0.003255 | F18: =('Transport og energibehov'!D31/D18)*'Transport og energibehov'!M31 -> 0.000245 | G18: =('Transport og energibehov'!H31/D18)*'Transport og energibehov'!L31 -> 0
C19: Traktor | D19: =('Transport og energibehov'!D47*1000)/D6 -> 3428.571429 | E19: =('Transport og energibehov'!D32/D19)*'Transport og energibehov'!N32 -> 0.00135625 | F19: =('Transport og energibehov'!D32/D19)*'Transport og energibehov'!M32 -> 0.0001020833333 | G19: =('Transport og energibehov'!H32/D19)*'Transport og energibehov'!L32 -> 0
C20: Asfaltutlegger | D20: =('Transport og energibehov'!D48*1000)/D6 -> 42.85714286 | E20: =('Transport og energibehov'!D33/D20)*'Transport og energibehov'!N33 -> 0.0651 | F20: =('Transport og energibehov'!D33/D20)*'Transport og energibehov'!M33 -> 0.0049 | G20: =('Transport og energibehov'!H33/D20)*'Transport og energibehov'!L33 -> 0
B21: Bærelag | C21: Veivals | D21: =('Transport og energibehov'!D46*1000)/D7 -> 240.3846154 | E21: =('Transport og energibehov'!D31/D21)*'Transport og energibehov'!N31 -> 0.0116064 | F21: =('Transport og energibehov'!D31/D21)*'Transport og energibehov'!M31 -> 0.0008736 | G21: =('Transport og energibehov'!H31/D21)*'Transport og energibehov'!L31 -> 0
C22: Traktor | D22: =('Transport og energibehov'!D47*1000)/D7 -> 961.5384615 | E22: =('Transport og energibehov'!D32/D22)*'Transport og energibehov'!N32 -> 0.004836 | F22: =('Transport og energibehov'!D32/D22)*'Transport og energibehov'!M32 -> 0.000364 | G22: =('Transport og energibehov'!H32/D22)*'Transport og energibehov'!L32 -> 0
C23: Asfaltutlegger | D23: =('Transport og energibehov'!D48*1000)/D7 -> 12.01923077 | E23: =('Transport og energibehov'!D33/D23)*'Transport og energibehov'!N33 -> 0.232128 | F23: =('Transport og energibehov'!D33/D23)*'Transport og energibehov'!M33 -> 0.017472 | G23: =('Transport og energibehov'!H33/D23)*'Transport og energibehov'!L33 -> 0
B24: Forsterkningslag | C24: Gravemaskin | D24: =('Transport og energibehov'!D49*1000)/D8 -> 215.0537634 | E24: =('Transport og energibehov'!D34/D24)*'Transport og energibehov'!N34 -> 0.08649 | F24: =('Transport og energibehov'!D34/D24)*'Transport og energibehov'!M34 -> 0.00651 | G24: =('Transport og energibehov'!H34/D24)*'Transport og energibehov'!L34 -> 0
C25: Grovknuser | D25: =('Transport og energibehov'!D50*1000)/D8 -> 179.2114695 | E25: =('Transport og energibehov'!D35/D25)*'Transport og energibehov'!N35 -> 0.129735 | F25: =('Transport og energibehov'!D35/D25)*'Transport og energibehov'!M35 -> 0.009765 | G25: =('Transport og energibehov'!H35/D25)*'Transport og energibehov'!L35 -> 0
B26: Frostsikringslag | C26: Gravemaskin | D26: =('Transport og energibehov'!D49*1000)/D9 -> 55.61735261 | E26: =('Transport og energibehov'!D34/D26)*'Transport og energibehov'!N34 -> 0.334428 | F26: =('Transport og energibehov'!D34/D26)*'Transport og energibehov'!M34 -> 0.025172 | G26: =('Transport og energibehov'!H34/D26)*'Transport og energibehov'!L34 -> 0
C27: Grovknuser | D27: =('Transport og energibehov'!D50*1000)/D9 -> 46.34779385 | E27: =('Transport og energibehov'!D35/D27)*'Transport og energibehov'!N35 -> 0.501642 | F27: =('Transport og energibehov'!D35/D27)*'Transport og energibehov'!M35 -> 0.037758 | G27: =('Transport og energibehov'!H35/D27)*'Transport og energibehov'!L35 -> 0
C28: Finknuser | D28: =('Transport og energibehov'!D51*1000)/D9 -> 92.69558769 | E28: =('Transport og energibehov'!D36/D28)*'Transport og energibehov'!N36 -> 0.250821 | F28: =('Transport og energibehov'!D36/D28)*'Transport og energibehov'!M36 -> 0.018879 | G28: =('Transport og energibehov'!H36/D28)*'Transport og energibehov'!L36 -> 0

Sheet Sidevei
B2: Materialer og transport
B3: Kategori | C3: Materialmengder | E3: Transport | H3: Kommentar
C4: Volum per areal [m3/m2] | D4: Masse per areal [kg/m2] | E4: Mengde diesel [L/m2] | F4: Mengde bio [L/m2] | G4: Mengde el [kWh/m2]
B5: Slitelag (Agb) | C5: =Beregningsfaktorer!D19 -> 0.045 | D5: =C5*Beregningsfaktorer!D7 -> 112.5 | E5: =(D5/1000)*'Transport og energibehov'!D20*'Transport og energibehov'!D7*'Transport og energibehov'!N20 -> 0.062775 | F5: =(D5/1000)*'Transport og energibehov'!D20*'Transport og energibehov'!D7*'Transport og energibehov'!M20 -> 0.004725 | G5: =(D5/1000)*'Transport og energibehov'!H20*'Transport og energibehov'!D7*'Transport og energibehov'!L20 -> 0
B6: Bindlag (Agb) | C6: =Beregningsfaktorer!D20 -> 0.035 | D6: =C6*Beregningsfaktorer!D7 -> 87.5 | E6: =(D6/1000)*'Transport og energibehov'!D20*'Transport og energibehov'!D7*'Transport og energibehov'!N20 -> 0.048825 | F6: =(D6/1000)*'Transport og energibehov'!D20*'Transport og energibehov'!D7*'Transport og energibehov'!M20 -> 0.003675 | G6: =(D6/1000)*'Transport og energibehov'!H20*'Transport og energibehov'!D7*'Transport og energibehov'!L20 -> 0
B7: Bærelag (Ag) | C7: =Beregningsfaktorer!D21 -> 0.13 | D7: =C7*Beregningsfaktorer!D8 -> 312 | E7: =(D7/1000)*'Transport og energibehov'!D21*'Transport og energibehov'!D8*'Transport og energibehov'!N21 -> 0.174096 | F7: =(D7/1000)*'Transport og energibehov'!D21*'Transport og energibehov'!D8*'Transport og energibehov'!M21 -> 0.013104 | G7: =(D7/1000)*'Transport og energibehov'!H21*'Transport og energibehov'!D8*'Transport og energibehov'!L21 -> 0
B8: Forsterkningslag | C8: =Beregningsfaktorer!D22 -> 0.45 | D8: =C8*Beregningsfaktorer!D10 -> 697.5 | E8: =(D8/1000)*'Transport og energibehov'!D22*'Transport og energibehov'!D9*'Transport og energibehov'!N22 -> 0.1946025 | F8: =(D8/1000)*'Transport og energibehov'!D22*'Transport og energibehov'!D9*'Transport og energibehov'!M22 -> 0.0146475 | G8: =(D8/1000)*'Transport og energibehov'!H22*'Transport og energibehov'!D9*'Transport og energibehov'!L22 -> 0
B9: Frostsikringslag | C9: =Beregningsfaktorer!D23 -> 1.74 | D9: =C9*Beregningsfaktorer!D9 -> 2697 | E9: =(D9/1000)*'Transport og energibehov'!D22*'Transport og energibehov'!D9*'Transport og energibehov'!N22 -> 0.752463 | F9: =(D9/1000)*'Transport og energibehov'!D22*'Transport og energibehov'!D9*'Transport og energibehov'!M22 -> 0.056637 | G9: =(D9/1000)*'Transport og energibehov'!H22*'Transport og energibehov'!D9*'Transport og energibehov'!L22 -> 0
B12: Anleggsarbeid
B13: Kategori | C13: Maskintype | D13: Anleggsarbeid | H13: Kommentar
D14: Anleggsarbeid [m2/h] | E14: Mengde diesel [L/m2] | F14: Mengde bio [L/m2] | G14: Mengde el [kWh/m2]
B15: Slitelag | C15: Veivals | D15: =('Transport og energibehov'!D46*1000)/D5 -> 666.6666667 | E15: =('Transport og energibehov'!D31/D15)*'Transport og energibehov'!N31 -> 0.004185 | F15: =('Transport og energibehov'!D31/D15)*'Transport og energibehov'!M31 -> 0.000315 | G15: =('Transport og energibehov'!H31/D15)*'Transport og energibehov'!L31 -> 0
C16: Traktor | D16: =('Transport og energibehov'!D47*1000)/D5 -> 2666.666667 | E16: =('Transport og energibehov'!D32/D16)*'Transport og energibehov'!N32 -> 0.00174375 | F16: =('Transport og energibehov'!D32/D16)*'Transport og energibehov'!M32 -> 0.00013125 | G16: =('Transport og energibehov'!H32/D16)*'Transport og energibehov'!L32 -> 0
C17: Asfaltutlegger | D17: =('Transport og energibehov'!D48*1000)/D5 -> 33.33333333 | E17: =('Transport og energibehov'!D33/D17)*'Transport og energibehov'!N33 -> 0.0837 | F17: =('Transport og energibehov'!D33/D17)*'Transport og energibehov'!M33 -> 0.0063 | G17: =('Transport og energibehov'!H33/D17)*'Transport og energibehov'!L33 -> 0
B18: Bindlag | C18: Veivals | D18: =('Transport og energibehov'!D46*1000)/D6 -> 857.1428571 | E18: =('Transport og energibehov'!D31/D18)*'Transport og energibehov'!N31 -> 0.003255 | F18: =('Transport og energibehov'!D31/D18)*'Transport og energibehov'!M31 -> 0.000245 | G18: =('Transport og energibehov'!H31/D18)*'Transport og energibehov'!L31 -> 0
C19: Traktor | D19: =('Transport og energibehov'!D47*1000)/D6 -> 3428.571429 | E19: =('Transport og energibehov'!D32/D19)*'Transport og energibehov'!N32 -> 0.00135625 | F19: =('Transport og energibehov'!D32/D19)*'Transport og energibehov'!M32 -> 0.0001020833333 | G19: =('Transport og energibehov'!H32/D19)*'Transport og energibehov'!L32 -> 0
C20: Asfaltutlegger | D20: =('Transport og energibehov'!D48*1000)/D6 -> 42.85714286 | E20: =('Transport og energibehov'!D33/D20)*'Transport og energibehov'!N33 -> 0.0651 | F20: =('Transport og energibehov'!D33/D20)*'Transport og energibehov'!M33 -> 0.0049 | G20: =('Transport og energibehov'!H33/D20)*'Transport og energibehov'!L33 -> 0
B21: Bærelag | C21: Veivals | D21: =('Transport og energibehov'!D46*1000)/D7 -> 240.3846154 | E21: =('Transport og energibehov'!D31/D21)*'Transport og energibehov'!N31 -> 0.0116064 | F21: =('Transport og energibehov'!D31/D21)*'Transport og energibehov'!M31 -> 0.0008736 | G21: =('Transport og energibehov'!H31/D21)*'Transport og energibehov'!L31 -> 0
C22: Traktor | D22: =('Transport og energibehov'!D47*1000)/D7 -> 961.5384615 | E22: =('Transport og energibehov'!D32/D22)*'Transport og energibehov'!N32 -> 0.004836 | F22: =('Transport og energibehov'!D32/D22)*'Transport og energibehov'!M32 -> 0.000364 | G22: =('Transport og energibehov'!H32/D22)*'Transport og energibehov'!L32 -> 0
C23: Asfaltutlegger | D23: =('Transport og energibehov'!D48*1000)/D7 -> 12.01923077 | E23: =('Transport og energibehov'!D33/D23)*'Transport og energibehov'!N33 -> 0.232128 | F23: =('Transport og energibehov'!D33/D23)*'Transport og energibehov'!M33 -> 0.017472 | G23: =('Transport og energibehov'!H33/D23)*'Transport og energibehov'!L33 -> 0
B24: Forsterkningslag | C24: Gravemaskin | D24: =('Transport og energibehov'!D49*1000)/D8 -> 215.0537634 | E24: =('Transport og energibehov'!D34/D24)*'Transport og energibehov'!N34 -> 0.08649 | F24: =('Transport og energibehov'!D34/D24)*'Transport og energibehov'!M34 -> 0.00651 | G24: =('Transport og energibehov'!H34/D24)*'Transport og energibehov'!L34 -> 0
C25: Grovknuser | D25: =('Transport og energibehov'!D50*1000)/D8 -> 179.2114695 | E25: =('Transport og energibehov'!D35/D25)*'Transport og energibehov'!N35 -> 0.129735 | F25: =('Transport og energibehov'!D35/D25)*'Transport og energibehov'!M35 -> 0.009765 | G25: =('Transport og energibehov'!H35/D25)*'Transport og energibehov'!L35 -> 0
B26: Frostsikringslag | C26: Gravemaskin | D26: =('Transport og energibehov'!D49*1000)/D9 -> 55.61735261 | E26: =('Transport og energibehov'!D34/D26)*'Transport og energibehov'!N34 -> 0.334428 | F26: =('Transport og energibehov'!D34/D26)*'Transport og energibehov'!M34 -> 0.025172 | G26: =('Transport og energibehov'!H34/D26)*'Transport og energibehov'!L34 -> 0
C27: Grovknuser | D27: =('Transport og energibehov'!D50*1000)/D9 -> 46.34779385 | E27: =('Transport og energibehov'!D35/D27)*'Transport og energibehov'!N35 -> 0.501642 | F27: =('Transport og energibehov'!D35/D27)*'Transport og energibehov'!M35 -> 0.037758 | G27: =('Transport og energibehov'!H35/D27)*'Transport og energibehov'!L35 -> 0
C28: Finknuser | D28: =('Transport og energibehov'!D51*1000)/D9 -> 92.69558769 | E28: =('Transport og energibehov'!D36/D28)*'Transport og energibehov'!N36 -> 0.250821 | F28: =('Transport og energibehov'!D36/D28)*'Transport og energibehov'!M36 -> 0.018879 | G28: =('Transport og energibehov'!H36/D28)*'Transport og energibehov'!L36 -> 0

Sheet Anleggsvei
B2: Materialer og transport
B3: Kategori | C3: Materialmengder | E3: Transport | H3: Kommentar
C4: Volum per areal [m3/m2] | D4: Masse per areal [kg/m2] | E4: Mengde diesel [L/m2] | F4: Mengde bio [L/m2] | G4: Mengde el [kWh/m2]
B5: Bærelag (Ag) | C5: =Beregningsfaktorer!D21 -> 0.13 | D5: =C5*Beregningsfaktorer!D8 -> 312 | E5: =(D5/1000)*'Transport og energibehov'!D21*'Transport og energibehov'!D8*'Transport og energibehov'!N21 -> 0.174096 | F5: =(D5/1000)*'Transport og energibehov'!D21*'Transport og energibehov'!D8*'Transport og energibehov'!M21 -> 0.013104 | G5: =(D5/1000)*'Transport og energibehov'!H21*'Transport og energibehov'!D8*'Transport og energibehov'!L21 -> 0
B6: Forsterkningslag | C6: =Beregningsfaktorer!D22 -> 0.45 | D6: =C6*Beregningsfaktorer!D10 -> 697.5 | E6: =(D6/1000)*'Transport og energibehov'!D22*'Transport og energibehov'!D9*'Transport og energibehov'!N22 -> 0.1946025 | F6: =(D6/1000)*'Transport og energibehov'!D22*'Transport og energibehov'!D9*'Transport og energibehov'!M22 -> 0.0146475 | G6: =(D6/1000)*'Transport og energibehov'!H22*'Transport og energibehov'!D9*'Transport og energibehov'!L22 -> 0
B9: Anleggsarbeid
B10: Kategori | C10: Maskintype | D10: Anleggsarbeid | H10: Kommentar
D11: Anleggsarbeid [m2/h] | E11: Mengde diesel [L/m2] | F11: Mengde bio [L/m2] | G11: Mengde el [kWh/m2]
B12: Bærelag | C12: Veivals | D12: =('Transport og energibehov'!D46*1000)/D5 -> 240.3846154 | E12: =('Transport og energibehov'!D31/D12)*'Transport og energibehov'!N31 -> 0.0116064 | F12: =('Transport og energibehov'!D31/D12)*'Transport og energibehov'!M31 -> 0.0008736 | G12: =('Transport og energibehov'!H31/D12)*'Transport og energibehov'!L31 -> 0
C13: Traktor | D13: =('Transport og energibehov'!D47*1000)/D5 -> 961.5384615 | E13: =('Transport og energibehov'!D32/D13)*'Transport og energibehov'!N32 -> 0.004836 | F13: =('Transport og energibehov'!D32/D13)*'Transport og energibehov'!M32 -> 0.000364 | G13: =('Transport og energibehov'!H32/D13)*'Transport og energibehov'!L32 -> 0
C14: Asfaltutlegger | D14: =('Transport og energibehov'!D48*1000)/D5 -> 12.01923077 | E14: =('Transport og energibehov'!D33/D14)*'Transport og energibehov'!N33 -> 0.232128 | F14: =('Transport og energibehov'!D33/D14)*'Transport og energibehov'!M33 -> 0.017472 | G14: =('Transport og energibehov'!H33/D14)*'Transport og energibehov'!L33 -> 0
B15: Forsterkningslag | C15: Gravemaskin | D15: =('Transport og energibehov'!D49*1000)/D6 -> 215.0537634 | E15: =('Transport og energibehov'!D34/D15)*'Transport og energibehov'!N34 -> 0.08649 | F15: =('Transport og energibehov'!D34/D15)*'Transport og energibehov'!M34 -> 0.00651 | G15: =('Transport og energibehov'!H34/D15)*'Transport og energibehov'!L34 -> 0
C16: Grovknuser | D16: =('Transport og energibehov'!D50*1000)/D6 -> 179.2114695 | E16: =('Transport og energibehov'!D35/D16)*'Transport og energibehov'!N35 -> 0.129735 | F16: =('Transport og energibehov'!D35/D16)*'Transport og energibehov'!M35 -> 0.009765 | G16: =('Transport og energibehov'!H35/D16)*'Transport og energibehov'!L35 -> 0

Sheet Tillegg vei
B2: Materialer og transport
B3: Kategori | C3: Materialtype | D3: Materialmengder | E3: Energiforbruk | H3: Kommentar
D4: Masse per veistrekning [kg/m] | E4: Mengde diesel [L/m] | F4: Mengde bio [L/m] | G4: Mengde el [kWh/m]
B5: Lyktestolper hovedstrekning | C5: Stål | D5: =Beregningsfaktorer!D74*Beregningsfaktorer!D75/1000 -> 4.82375 | E5: =(D5/1000)*'Transport og energibehov'!D25*'Transport og energibehov'!D11*'Transport og energibehov'!N25 -> 0.0358887 | F5: =(D5/1000)*'Transport og energibehov'!D25*'Transport og energibehov'!D11*'Transport og energibehov'!M25 -> 0.0027013 | G5: =(D5/1000)*'Transport og energibehov'!H24*'Transport og energibehov'!D11*'Transport og energibehov'!L25 -> 0 | H5: Bare for hovedvei i dagen og bru. Per belysningsrekke.
B6: Lyktestolper sidevei | C6: Stål | D6: =Beregningsfaktorer!D74*Beregningsfaktorer!D76/1000 -> 0 | E6: =(D6/1000)*'Transport og energibehov'!D25*'Transport og energibehov'!D11*'Transport og energibehov'!N25 -> 0 | F6: =(D6/1000)*'Transport og energibehov'!D25*'Transport og energibehov'!D11*'Transport og energibehov'!M25 -> 0 | G6: =(D6/1000)*'Transport og energibehov'!H24*'Transport og energibehov'!D11*'Transport og energibehov'!L25 -> 0 | H6: Bare for sidevei i dagen. Per belysningsrekke.
B7: Autovern/rekkverk | C7: Stål | D7: =Beregningsfaktorer!D77 -> 16.5 | E7: =(D7/1000)*'Transport og energibehov'!D25*'Transport og energibehov'!D11*'Transport og energibehov'!N25 -> 0.12276 | F7: =(D7/1000)*'Transport og energibehov'!D25*'Transport og energibehov'!D11*'Transport og energibehov'!M25 -> 0.00924 | G7: =(D7/1000)*'Transport og energibehov'!H24*'Transport og energibehov'!D11*'Transport og energibehov'!L25 -> 0
B9: Anleggsarbeid
B10: Kategori | C10: Maskintype | D10: Energiforbruk | G10: Kommentar
D11: Mengde diesel [L/m] | E11: Mengde bio [L/m] | F11: Mengde el [kWh/m]
B12: Montering av autovern/rekkverk | C12: Pelerigg/lastebil | D12: ='Transport og energibehov'!D40*'Transport og energibehov'!N40 -> 0.372 | E12: ='Transport og energibehov'!D40*'Transport og energibehov'!M40 -> 0.028 | F12: ='Transport og energibehov'!H40*'Transport og energibehov'!L40 -> 0 | G12: I beregning av klimagassutslipp antas det fire rekkverk på firefeltsvei og to rekkverk på tofeltsvei
B13: Veimerking | C13: Formerkebil (pickup) | D13: ='Transport og energibehov'!D38*'Transport og energibehov'!N38 -> 0.005487 | E13: ='Transport og energibehov'!D38*'Transport og energibehov'!M38 -> 0.000413 | F13: ='Transport og energibehov'!H38*'Transport og energibehov'!L38 -> 0
B14: Etablering av grøft | C14: Gravemaskin | D14: ='Transport og energibehov'!D39*'Transport og energibehov'!N39 -> 37.2 | E14: ='Transport og energibehov'!D39*'Transport og energibehov'!M39 -> 2.8 | F14: ='Transport og energibehov'!H39*'Transport og energibehov'!L39 -> 0

Sheet Tunnel enkeltløp
B1: Tunnel enkeltløp
B2: Bakgrunnsdata
B3: Samlet lengde enkeltløpstunneler [m] | C3: =Beregninger!C88 -> 0 | D3: (Hentes fra inndataark/beregninger)
B4: Antall enkeltløpstunneler | C4: ='Prosjektbeskrivelse og inndata'!C6 -> 0
B5: Tunnelprofil | C5: =Beregningsfaktorer!D42 -> 10.5
B7: Materialer og transport
B8: Kategori | C8: Materialtype | D8: Materialmengder | H8: Transport | K8: Kommentar
D9: Volum per areal [m3/m2] | E9: Masse per areal [kg/m2] | F9: Mengde material [kg/m] | G9: Mengde material [m2/m] | H9: Mengde diesel [L/m] | I9: Mengde bio [L/m] | J9: Mengde el [kWh/m]
B10: Konstruksjon | C10: Betongportal | D10: =IFERROR((Beregningsfaktorer!D44*2*C4)/(Beregningsfaktorer!D42*'Tunnel enkeltløp'!C3),0) -> 0 | E10: =D10*Beregningsfaktorer!D4 -> 0 | F10: =E10*Beregningsfaktorer!D42 -> 0 | H10: =(F10/1000)*'Transport og energibehov'!D24*'Transport og energibehov'!D10*'Transport og energibehov'!N24 -> 0 | I10: =(F10/1000)*'Transport og energibehov'!D24*'Transport og energibehov'!D10*'Transport og energibehov'!M24 -> 0 | J10: =(F10/1000)*'Transport og energibehov'!H24*'Transport og energibehov'!D10*'Transport og energibehov'!L24 -> 0
C11: Armering portal | E11: =IFERROR((Beregningsfaktorer!D46*2*C4)/(Beregningsfaktorer!D42*'Tunnel enkeltløp'!C3),0) -> 0 | F11: =E11*Beregningsfaktorer!D42 -> 0 | H11: =(F11/1000)*'Transport og energibehov'!D26*'Transport og energibehov'!D12*'Transport og energibehov'!N26 -> 0 | I11: =(F11/1000)*'Transport og energibehov'!D26*'Transport og energibehov'!D12*'Transport og energibehov'!M26 -> 0 | J11: =(F11/1000)*'Transport og energibehov'!H26*'Transport og energibehov'!D12*'Transport og energibehov'!L26 -> 0
C12: Sikringsbolter | E12: =Beregningsfaktorer!D32/9.5 -> 4.631578947 | F12: =Beregningsfaktorer!D32*(Beregningsfaktorer!D42/9.5) -> 48.63157895 | H12: =(F12/1000)*'Transport og energibehov'!D25*'Transport og energibehov'!D11*'Transport og energibehov'!N25 -> 0.3618189474 | I12: =(F12/1000)*'Transport og energibehov'!D25*'Transport og energibehov'!D11*'Transport og energibehov'!M25 -> 0.02723368421 | J12: =(F12/1000)*'Transport og energibehov'!H25*'Transport og energibehov'!D11*'Transport og energibehov'!L25 -> 0 | K12: Beregning hentet fra metoderapport
C13: Frostsikring hvelv | E13: =(VLOOKUP(C5,Beregningsfaktorer!M43:S53,3,FALSE)*Beregningsfaktorer!D12*Beregningsfaktorer!D25)/C5 -> 762.4311905 | F13: =E13*C5 -> 8005.5275 | G13: =VLOOKUP(C5,Beregningsfaktorer!M43:S53,3,FALSE) -> 22.13 | H13: =(F13/1000)*'Transport og energibehov'!D28*'Transport og energibehov'!D14*'Transport og energibehov'!N28 -> 10.4231968 | I13: =(F13/1000)*'Transport og energibehov'!D28*'Transport og energibehov'!D14*'Transport og energibehov'!M28 -> 0.784541695 | J13: =(F13/1000)*'Transport og energibehov'!D28*'Transport og energibehov'!D14*'Transport og energibehov'!L28 -> 0
B14: Veioverbygning | C14: Slitelag (Ska) | D14: =Beregningsfaktorer!D19 -> 0.045 | E14: =Beregningsfaktorer!D7*D14 -> 112.5 | F14: =E14*Beregningsfaktorer!D42 -> 1181.25 | H14: =(F14/1000)*'Transport og energibehov'!D20*'Transport og energibehov'!D7*'Transport og energibehov'!N20 -> 0.6591375 | I14: =(F14/1000)*'Transport og energibehov'!D20*'Transport og energibehov'!D7*'Transport og energibehov'!M20 -> 0.0496125 | J14: =(F14/1000)*'Transport og energibehov'!H20*'Transport og energibehov'!D7*'Transport og energibehov'!L20 -> 0
C15: Bindlag (Ska) | D15: =Beregningsfaktorer!D20 -> 0.035 | E15: =Beregningsfaktorer!D7*D15 -> 87.5 | F15: =E15*Beregningsfaktorer!D42 -> 918.75 | H15: =(F15/1000)*'Transport og energibehov'!D20*'Transport og energibehov'!D7*'Transport og energibehov'!N20 -> 0.5126625 | I15: =(F15/1000)*'Transport og energibehov'!D20*'Transport og energibehov'!D7*'Transport og energibehov'!M20 -> 0.0385875 | J15: =(F15/1000)*'Transport og energibehov'!H20*'Transport og energibehov'!D7*'Transport og energibehov'!L20 -> 0
C16: Bærelag (Ag) | D16: =Beregningsfaktorer!D21 -> 0.13 | E16: =Beregningsfaktorer!D8*D16 -> 312 | F16: =E16*Beregningsfaktorer!D42 -> 3276 | H16: =(F16/1000)*'Transport og energibehov'!D21*'Transport og energibehov'!D8*'Transport og energibehov'!N21 -> 1.828008 | I16: =(F16/1000)*'Transport og energibehov'!D21*'Transport og energibehov'!D8*'Transport og energibehov'!M21 -> 0.137592 | J16: =(F16/1000)*'Transport og energibehov'!H21*'Transport og energibehov'!D8*'Transport og energibehov'!L21 -> 0
C17: Forsterkningslag | D17: =Beregningsfaktorer!D22 -> 0.45 | E17: =Beregningsfaktorer!D10*D17 -> 697.5 | F17: =E17*Beregningsfaktorer!D42 -> 7323.75 | H17: =(F17/1000)*'Transport og energibehov'!D22*'Transport og energibehov'!D9*'Transport og energibehov'!N22 -> 2.04332625 | I17: =(F17/1000)*'Transport og energibehov'!D22*'Transport og energibehov'!D9*'Transport og energibehov'!M22 -> 0.15379875 | J17: =(F17/1000)*'Transport og energibehov'!H22*'Transport og energibehov'!D9*'Transport og energibehov'!L22 -> 0
C18: Frostsikringslag | D18: =Beregningsfaktorer!D23 -> 1.74 | E18: =Beregningsfaktorer!D9*D18 -> 2697 | F18: =E18*Beregningsfaktorer!D42 -> 28318.5 | H18: =(F18/1000)*'Transport og energibehov'!D22*'Transport og energibehov'!D9*'Transport og energibehov'!N22 -> 7.9008615 | I18: =(F18/1000)*'Transport og energibehov'!D22*'Transport og energibehov'!D9*'Transport og energibehov'!M22 -> 0.5946885 | J18: =(F18/1000)*'Transport og energibehov'!H22*'Transport og energibehov'!D9*'Transport og energibehov'!L22 -> 0
B21: Anleggsarbeid
B22: Kategori | C22: Maskintype | D22: Anleggsarbeid | H22: Kommentar
D23: Anleggsarbeid [m2/h] | E23: Mengde diesel [L/m2] | F23: Mengde bio [L/m2] | G23: Mengde el [kWh/m2]
B24: Slitelag | C24: Veivals | D24: =('Transport og energibehov'!D46*1000)/E14 -> 666.6666667 | E24: =('Transport og energibehov'!D31/D24)*'Transport og energibehov'!N31 -> 0.004185 | F24: =('Transport og energibehov'!D31/D24)*'Transport og energibehov'!M31 -> 0.000315 | G24: =('Transport og energibehov'!H31/D24)*'Transport og energibehov'!L31 -> 0
C25: Traktor | D25: =('Transport og energibehov'!D47*1000)/E14 -> 2666.666667 | E25: =('Transport og energibehov'!D32/D25)*'Transport og energibehov'!N32 -> 0.00174375 | F25: =('Transport og energibehov'!D32/D25)*'Transport og energibehov'!M32 -> 0.00013125 | G25: =('Transport og energibehov'!H32/D25)*'Transport og energibehov'!L32 -> 0
C26: Asfaltutlegger | D26: =('Transport og energibehov'!D48*1000)/E14 -> 33.33333333 | E26: =('Transport og energibehov'!D33/D26)*'Transport og energibehov'!N33 -> 0.0837 | F26: =('Transport og energibehov'!D33/D26)*'Transport og energibehov'!M33 -> 0.0063 | G26: =('Transport og energibehov'!H33/D26)*'Transport og energibehov'!L33 -> 0
B27: Bindlag | C27: Veivals | D27: =('Transport og energibehov'!D46*1000)/E15 -> 857.1428571 | E27: =('Transport og energibehov'!D31/D27)*'Transport og energibehov'!N31 -> 0.003255 | F27: =('Transport og energibehov'!D31/D27)*'Transport og energibehov'!M31 -> 0.000245 | G27: =('Transport og energibehov'!H31/D27)*'Transport og energibehov'!L31 -> 0
C28: Traktor | D28: =('Transport og energibehov'!D47*1000)/E15 -> 3428.571429 | E28: =('Transport og energibehov'!D32/D28)*'Transport og energibehov'!N32 -> 0.00135625 | F28: =('Transport og energibehov'!D32/D28)*'Transport og energibehov'!M32 -> 0.0001020833333 | G28: =('Transport og energibehov'!H32/D28)*'Transport og energibehov'!L32 -> 0
C29: Asfaltutlegger | D29: =('Transport og energibehov'!D48*1000)/E15 -> 42.85714286 | E29: =('Transport og energibehov'!D33/D29)*'Transport og energibehov'!N33 -> 0.0651 | F29: =('Transport og energibehov'!D33/D29)*'Transport og energibehov'!M33 -> 0.0049 | G29: =('Transport og energibehov'!H33/D29)*'Transport og energibehov'!L33 -> 0
B30: Bærelag | C30: Veivals | D30: =('Transport og energibehov'!D46*1000)/E16 -> 240.3846154 | E30: =('Transport og energibehov'!D31/D30)*'Transport og energibehov'!N31 -> 0.0116064 | F30: =('Transport og energibehov'!D31/D30)*'Transport og energibehov'!M31 -> 0.0008736 | G30: =('Transport og energibehov'!H31/D30)*'Transport og energibehov'!L31 -> 0
C31: Traktor | D31: =('Transport og energibehov'!D47*1000)/E16 -> 961.5384615 | E31: =('Transport og energibehov'!D32/D31)*'Transport og energibehov'!N32 -> 0.004836 | F31: =('Transport og energibehov'!D32/D31)*'Transport og energibehov'!M32 -> 0.000364 | G31: =('Transport og energibehov'!H32/D31)*'Transport og energibehov'!L32 -> 0
C32: Asfaltutlegger | D32: =('Transport og energibehov'!D48*1000)/E16 -> 12.01923077 | E32: =('Transport og energibehov'!D33/D32)*'Transport og energibehov'!N33 -> 0.232128 | F32: =('Transport og energibehov'!D33/D32)*'Transport og energibehov'!M33 -> 0.017472 | G32: =('Transport og energibehov'!H33/D32)*'Transport og energibehov'!L33 -> 0
B33: Forsterkningslag | C33: Gravemaskin | D33: =('Transport og energibehov'!D49*1000)/E17 -> 215.0537634 | E33: =('Transport og energibehov'!D34/D33)*'Transport og energibehov'!N34 -> 0.08649 | F33: =('Transport og energibehov'!D34/D33)*'Transport og energibehov'!M34 -> 0.00651 | G33: =('Transport og energibehov'!H34/D33)*'Transport og energibehov'!L34 -> 0
C34: Grovknuser | D34: =('Transport og energibehov'!D50*1000)/E17 -> 179.2114695 | E34: =('Transport og energibehov'!D35/D34)*'Transport og energibehov'!N35 -> 0.129735 | F34: =('Transport og energibehov'!D35/D34)*'Transport og energibehov'!M35 -> 0.009765 | G34: =('Transport og energibehov'!H35/D34)*'Transport og energibehov'!L35 -> 0
B35: Frostsikringslag | C35: Gravemaskin | D35: =('Transport og energibehov'!D49*1000)/E18 -> 55.61735261 | E35: =('Transport og energibehov'!D34/D35)*'Transport og energibehov'!N34 -> 0.334428 | F35: =('Transport og energibehov'!D34/D35)*'Transport og energibehov'!M34 -> 0.025172 | G35: =('Transport og energibehov'!H34/D35)*'Transport og energibehov'!L34 -> 0
C36: Grovknuser | D36: =('Transport og energibehov'!D50*1000)/E18 -> 46.34779385 | E36: =('Transport og energibehov'!D35/D36)*'Transport og energibehov'!N35 -> 0.501642 | F36: =('Transport og energibehov'!D35/D36)*'Transport og energibehov'!M35 -> 0.037758 | G36: =('Transport og energibehov'!H35/D36)*'Transport og energibehov'!L35 -> 0
C37: Finknuser | D37: =('Transport og energibehov'!D51*1000)/E18 -> 92.69558769 | E37: =('Transport og energibehov'!D36/D37)*'Transport og energibehov'!N36 -> 0.250821 | F37: =('Transport og energibehov'!D36/D37)*'Transport og energibehov'!M36 -> 0.018879 | G37: =('Transport og energibehov'!H36/D37)*'Transport og energibehov'!L36 -> 0

Sheet Tunnel dobbeltløp
B1: Tunnel dobbeltløp
B2: Bakgrunnsdata
B3: Samlet lengde dobbeltløpstunneler [m] | C3: =Beregninger!C102 -> 0 | D3: (Hentes fra inndataark/beregninger)
B4: Antall dobbeltløpstunneler | C4: ='Prosjektbeskrivelse og inndata'!C7 -> 0
B5: Tunnelprofil | C5: =Beregningsfaktorer!D43 -> 9.5
B7: Materialer og transport
B8: Kategori | C8: Materialtype | D8: Materialmengder per løp | H8: Transport per løp | K8: Kommentar
D9: Volum per areal [m3/m2] | E9: Masse per areal [kg/m2] | F9: Mengde material [kg/m] | G9: Mengde material [m2/m] | H9: Mengde diesel [L/m] | I9: Mengde bio [L/m] | J9: Mengde el [kWh/m]
B10: Konstruksjon | C10: Betongportal | D10: =IFERROR((Beregningsfaktorer!D45*2*C4)/(Beregningsfaktorer!D43*C3),0) -> 0 | E10: =D10*Beregningsfaktorer!D4 -> 0 | F10: =E10*Beregningsfaktorer!D43 -> 0 | H10: =(F10/1000)*'Transport og energibehov'!D24*'Transport og energibehov'!D10*'Transport og energibehov'!N24 -> 0 | I10: =(F10/1000)*'Transport og energibehov'!D24*'Transport og energibehov'!D10*'Transport og energibehov'!M24 -> 0 | J10: =(F10/1000)*'Transport og energibehov'!H24*'Transport og energibehov'!D10*'Transport og energibehov'!L24 -> 0
C11: Armering portal | E11: =IFERROR((Beregningsfaktorer!D47*2*C4)/(Beregningsfaktorer!D43*C3),0) -> 0 | F11: =E11*Beregningsfaktorer!D43 -> 0 | H11: =(F11/1000)*'Transport og energibehov'!D26*'Transport og energibehov'!D12*'Transport og energibehov'!N26 -> 0 | I11: =(F11/1000)*'Transport og energibehov'!D26*'Transport og energibehov'!D12*'Transport og energibehov'!M26 -> 0 | J11: =(F11/1000)*'Transport og energibehov'!H26*'Transport og energibehov'!D12*'Transport og energibehov'!L26 -> 0
C12: Sikringsbolter | E12: =Beregningsfaktorer!D32/9.5 -> 4.631578947 | F12: =Beregningsfaktorer!D32*(Beregningsfaktorer!D43/9.5) -> 44 | H12: =(F12/1000)*'Transport og energibehov'!D25*'Transport og energibehov'!D11*'Transport og energibehov'!N25 -> 0.32736 | I12: =(F12/1000)*'Transport og energibehov'!D25*'Transport og energibehov'!D11*'Transport og energibehov'!M25 -> 0.02464 | J12: =(F12/1000)*'Transport og energibehov'!H25*'Transport og energibehov'!D11*'Transport og energibehov'!L25 -> 0 | K12: Beregning hentet fra metoderapport
C13: Frostsikring hvelv | E13: =(VLOOKUP(C5,Beregningsfaktorer!M43:S53,3,FALSE)*Beregningsfaktorer!D12*Beregningsfaktorer!D25)/C5 -> 801.1810526 | F13: =E13*C5 -> 7611.22 | G13: =(VLOOKUP(C5,Beregningsfaktorer!M43:S53,3,FALSE)) -> 21.04 | H13: =(F13/1000)*'Transport og energibehov'!D28*'Transport og energibehov'!D14*'Transport og energibehov'!N28 -> 9.90980844 | I13: =(F13/1000)*'Transport og energibehov'!D28*'Transport og energibehov'!D14*'Transport og energibehov'!M28 -> 0.74589956 | J13: =(F13/1000)*'Transport og energibehov'!D28*'Transport og energibehov'!D14*'Transport og energibehov'!L28 -> 0
B14: Veioverbygning | C14: Slitelag (Ska) | D14: =Beregningsfaktorer!D19 -> 0.045 | E14: =Beregningsfaktorer!D7*D14 -> 112.5 | F14: =E14*Beregningsfaktorer!D43 -> 1068.75 | H14: =(F14/1000)*'Transport og energibehov'!D20*'Transport og energibehov'!D7*'Transport og energibehov'!N20 -> 0.5963625 | I14: =(F14/1000)*'Transport og energibehov'!D20*'Transport og energibehov'!D7*'Transport og energibehov'!M20 -> 0.0448875 | J14: =(F14/1000)*'Transport og energibehov'!H20*'Transport og energibehov'!D7*'Transport og energibehov'!L20 -> 0
C15: Bindlag (Ska) | D15: =Beregningsfaktorer!D20 -> 0.035 | E15: =Beregningsfaktorer!D7*D15 -> 87.5 | F15: =E15*Beregningsfaktorer!D43 -> 831.25 | H15: =(F15/1000)*'Transport og energibehov'!D20*'Transport og energibehov'!D7*'Transport og energibehov'!N20 -> 0.4638375 | I15: =(F15/1000)*'Transport og energibehov'!D20*'Transport og energibehov'!D7*'Transport og energibehov'!M20 -> 0.0349125 | J15: =(F15/1000)*'Transport og energibehov'!H20*'Transport og energibehov'!D7*'Transport og energibehov'!L20 -> 0
C16: Bærelag (Ag) | D16: =Beregningsfaktorer!D21 -> 0.13 | E16: =Beregningsfaktorer!D8*D16 -> 312 | F16: =E16*Beregningsfaktorer!D43 -> 2964 | H16: =(F16/1000)*'Transport og energibehov'!D21*'Transport og energibehov'!D8*'Transport og energibehov'!N21 -> 1.653912 | I16: =(F16/1000)*'Transport og energibehov'!D21*'Transport og energibehov'!D8*'Transport og energibehov'!M21 -> 0.124488 | J16: =(F16/1000)*'Transport og energibehov'!H21*'Transport og energibehov'!D8*'Transport og energibehov'!L21 -> 0
C17: Forsterkningslag | D17: =Beregningsfaktorer!D22 -> 0.45 | E17: =Beregningsfaktorer!D10*D17 -> 697.5 | F17: =E17*Beregningsfaktorer!D43 -> 6626.25 | H17: =(F17/1000)*'Transport og energibehov'!D22*'Transport og energibehov'!D9*'Transport og energibehov'!N22 -> 1.84872375 | I17: =(F17/1000)*'Transport og energibehov'!D22*'Transport og energibehov'!D9*'Transport og energibehov'!M22 -> 0.13915125 | J17: =(F17/1000)*'Transport og energibehov'!H22*'Transport og energibehov'!D9*'Transport og energibehov'!L22 -> 0
C18: Frostsikringslag | D18: =Beregningsfaktorer!D23 -> 1.74 | E18: =Beregningsfaktorer!D9*D18 -> 2697 | F18: =E18*Beregningsfaktorer!D43 -> 25621.5 | H18: =(F18/1000)*'Transport og energibehov'!D22*'Transport og energibehov'!D9*'Transport og energibehov'!N22 -> 7.1483985 | I18: =(F18/1000)*'Transport og energibehov'!D22*'Transport og energibehov'!D9*'Transport og energibehov'!M22 -> 0.5380515 | J18: =(F18/1000)*'Transport og energibehov'!H22*'Transport og energibehov'!D9*'Transport og energibehov'!L22 -> 0
B21: Anleggsarbeid
B22: Kategori | C22: Maskintype | D22: Anleggsarbeid [m2/h] | H22: Kommentar
D23: Anleggsarbeid [m2/h] | E23: Mengde diesel [L/m2] | F23: Mengde bio [L/m2] | G23: Mengde el [kWh/m2]
B24: Slitelag | C24: Veivals | D24: =('Transport og energibehov'!D46*1000)/E14 -> 666.6666667 | E24: =('Transport og energibehov'!D31/D24)*'Transport og energibehov'!N31 -> 0.004185 | F24: =('Transport og energibehov'!D31/D24)*'Transport og energibehov'!M31 -> 0.000315 | G24: =('Transport og energibehov'!H31/D24)*'Transport og energibehov'!L31 -> 0
C25: Traktor | D25: =('Transport og energibehov'!D47*1000)/E14 -> 2666.666667 | E25: =('Transport og energibehov'!D32/D25)*'Transport og energibehov'!N32 -> 0.00174375 | F25: =('Transport og energibehov'!D32/D25)*'Transport og energibehov'!M32 -> 0.00013125 | G25: =('Transport og energibehov'!H32/D25)*'Transport og energibehov'!L32 -> 0
C26: Asfaltutlegger | D26: =('Transport og energibehov'!D48*1000)/E14 -> 33.33333333 | E26: =('Transport og energibehov'!D33/D26)*'Transport og energibehov'!N33 -> 0.0837 | F26: =('Transport og energibehov'!D33/D26)*'Transport og energibehov'!M33 -> 0.0063 | G26: =('Transport og energibehov'!H33/D26)*'Transport og energibehov'!L33 -> 0
B27: Bindlag | C27: Veivals | D27: =('Transport og energibehov'!D46*1000)/E15 -> 857.1428571 | E27: =('Transport og energibehov'!D31/D27)*'Transport og energibehov'!N31 -> 0.003255 | F27: =('Transport og energibehov'!D31/D27)*'Transport og energibehov'!M31 -> 0.000245 | G27: =('Transport og energibehov'!H31/D27)*'Transport og energibehov'!L31 -> 0
C28: Traktor | D28: =('Transport og energibehov'!D47*1000)/E15 -> 3428.571429 | E28: =('Transport og energibehov'!D32/D28)*'Transport og energibehov'!N32 -> 0.00135625 | F28: =('Transport og energibehov'!D32/D28)*'Transport og energibehov'!M32 -> 0.0001020833333 | G28: =('Transport og energibehov'!H32/D28)*'Transport og energibehov'!L32 -> 0
C29: Asfaltutlegger | D29: =('Transport og energibehov'!D48*1000)/E15 -> 42.85714286 | E29: =('Transport og energibehov'!D33/D29)*'Transport og energibehov'!N33 -> 0.0651 | F29: =('Transport og energibehov'!D33/D29)*'Transport og energibehov'!M33 -> 0.0049 | G29: =('Transport og energibehov'!H33/D29)*'Transport og energibehov'!L33 -> 0
B30: Bærelag | C30: Veivals | D30: =('Transport og energibehov'!D46*1000)/E16 -> 240.3846154 | E30: =('Transport og energibehov'!D31/D30)*'Transport og energibehov'!N31 -> 0.0116064 | F30: =('Transport og energibehov'!D31/D30)*'Transport og energibehov'!M31 -> 0.0008736 | G30: =('Transport og energibehov'!H31/D30)*'Transport og energibehov'!L31 -> 0
C31: Traktor | D31: =('Transport og energibehov'!D47*1000)/E16 -> 961.5384615 | E31: =('Transport og energibehov'!D32/D31)*'Transport og energibehov'!N32 -> 0.004836 | F31: =('Transport og energibehov'!D32/D31)*'Transport og energibehov'!M32 -> 0.000364 | G31: =('Transport og energibehov'!H32/D31)*'Transport og energibehov'!L32 -> 0
C32: Asfaltutlegger | D32: =('Transport og energibehov'!D48*1000)/E16 -> 12.01923077 | E32: =('Transport og energibehov'!D33/D32)*'Transport og energibehov'!N33 -> 0.232128 | F32: =('Transport og energibehov'!D33/D32)*'Transport og energibehov'!M33 -> 0.017472 | G32: =('Transport og energibehov'!H33/D32)*'Transport og energibehov'!L33 -> 0
B33: Forsterkningslag | C33: Gravemaskin | D33: =('Transport og energibehov'!D49*1000)/E17 -> 215.0537634 | E33: =('Transport og energibehov'!D34/D33)*'Transport og energibehov'!N34 -> 0.08649 | F33: =('Transport og energibehov'!D34/D33)*'Transport og energibehov'!M34 -> 0.00651 | G33: =('Transport og energibehov'!H34/D33)*'Transport og energibehov'!L34 -> 0
C34: Grovknuser | D34: =('Transport og energibehov'!D50*1000)/E17 -> 179.2114695 | E34: =('Transport og energibehov'!D35/D34)*'Transport og energibehov'!N35 -> 0.129735 | F34: =('Transport og energibehov'!D35/D34)*'Transport og energibehov'!M35 -> 0.009765 | G34: =('Transport og energibehov'!H35/D34)*'Transport og energibehov'!L35 -> 0
B35: Frostsikringslag | C35: Gravemaskin | D35: =('Transport og energibehov'!D49*1000)/E18 -> 55.61735261 | E35: =('Transport og energibehov'!D34/D35)*'Transport og energibehov'!N34 -> 0.334428 | F35: =('Transport og energibehov'!D34/D35)*'Transport og energibehov'!M34 -> 0.025172 | G35: =('Transport og energibehov'!H34/D35)*'Transport og energibehov'!L34 -> 0
C36: Grovknuser | D36: =('Transport og energibehov'!D50*1000)/E18 -> 46.34779385 | E36: =('Transport og energibehov'!D35/D36)*'Transport og energibehov'!N35 -> 0.501642 | F36: =('Transport og energibehov'!D35/D36)*'Transport og energibehov'!M35 -> 0.037758 | G36: =('Transport og energibehov'!H35/D36)*'Transport og energibehov'!L35 -> 0
C37: Finknuser | D37: =('Transport og energibehov'!D51*1000)/E18 -> 92.69558769 | E37: =('Transport og energibehov'!D36/D37)*'Transport og energibehov'!N36 -> 0.250821 | F37: =('Transport og energibehov'!D36/D37)*'Transport og energibehov'!M36 -> 0.018879 | G37: =('Transport og energibehov'!H36/D37)*'Transport og energibehov'!L36 -> 0

Sheet Betongbru
B2: Materialer og transport
B3: Kategori | C3: Materialtype | D3: Materialmengder | F3: Transport | I3: Kommentar
D4: Volum per areal [m3/m2] | E4: Masse per areal [kg/m2] | F4: Mengde diesel [L/m2] | G4: Mengde bio [L/m2] | H4: Mengde el [kWh/m2]
B5: Konstruksjon | C5: Betong | D5: =Beregningsfaktorer!D26 -> 1.29 | E5: =Beregningsfaktorer!D4*D5 -> 3096 | F5: =(E5/1000)*'Transport og energibehov'!D24*'Transport og energibehov'!D10*'Transport og energibehov'!N24 -> 2.303424 | G5: =(E5/1000)*'Transport og energibehov'!D24*'Transport og energibehov'!D10*'Transport og energibehov'!M24 -> 0.173376 | H5: =(E5/1000)*'Transport og energibehov'!H24*'Transport og energibehov'!D10*'Transport og energibehov'!L24 -> 0
C6: Armeringsstål | E6: =Beregningsfaktorer!D28 -> 231 | F6: =(E6/1000)*'Transport og energibehov'!D26*'Transport og energibehov'!D12*'Transport og energibehov'!N26 -> 1.71864 | G6: =(E6/1000)*'Transport og energibehov'!D26*'Transport og energibehov'!D12*'Transport og energibehov'!M26 -> 0.12936 | H6: =(E6/1000)*'Transport og energibehov'!H26*'Transport og energibehov'!D12*'Transport og energibehov'!L26 -> 0
B7: Veioverbygning | C7: Slitelag (Ska) | D7: =Beregningsfaktorer!D19 -> 0.045 | E7: =D7*Beregningsfaktorer!D7 -> 112.5 | F7: =(E7/1000)*'Transport og energibehov'!D20*'Transport og energibehov'!D7*'Transport og energibehov'!N20 -> 0.062775 | G7: =(E7/1000)*'Transport og energibehov'!D20*'Transport og energibehov'!D7*'Transport og energibehov'!M20 -> 0.004725 | H7: =(E7/1000)*'Transport og energibehov'!H20*'Transport og energibehov'!D7*'Transport og energibehov'!L20 -> 0
C8: Bindlag (Ska) | D8: =Beregningsfaktorer!D20 -> 0.035 | E8: =D8*Beregningsfaktorer!D7 -> 87.5 | F8: =(E8/1000)*'Transport og energibehov'!D20*'Transport og energibehov'!D7*'Transport og energibehov'!N20 -> 0.048825 | G8: =(E8/1000)*'Transport og energibehov'!D20*'Transport og energibehov'!D7*'Transport og energibehov'!M20 -> 0.003675 | H8: =(E8/1000)*'Transport og energibehov'!H20*'Transport og energibehov'!D7*'Transport og energibehov'!L20 -> 0
C9: Fuktisolasjon (Topeka) | D9: =Beregningsfaktorer!D24 -> 0.012 | E9: =D9*Beregningsfaktorer!D13 -> 30 | F9: =(E9/1000)*'Transport og energibehov'!D27*'Transport og energibehov'!D13*'Transport og energibehov'!N27 -> 0.03906 | G9: =(E9/1000)*'Transport og energibehov'!D27*'Transport og energibehov'!D13*'Transport og energibehov'!M27 -> 0.00294 | H9: =(E9/1000)*'Transport og energibehov'!H27*'Transport og energibehov'!D13*'Transport og energibehov'!L27 -> 0
B12: Anleggsarbeid
B13: Kategori | C13: Maskintype | D13: Anleggsarbeid | H13: Kommentar
D14: Arbeidshastighet [m2/h] | E14: Mengde diesel [L/m2] | F14: Mengde bio [L/m2] | G14: Mengde el [kWh/m2]
B15: Konstruksjon | C15: Kran første 400 m2 | D15: ='Transport og energibehov'!D52 -> 1.666666667 | G15: =('Transport og energibehov'!H37/D15)*'Transport og energibehov'!L37 -> 29.16 | H15: Antatt 100 % el
C16: Kran resten av bru | D16: ='Transport og energibehov'!D53 -> 3.333333333 | G16: =('Transport og energibehov'!H37/D16)*'Transport og energibehov'!L37 -> 14.58 | H16: Antatt 100 % el
C17: Gravemaskin | D17: =('Transport og energibehov'!D49*1000)/(E5+E6) -> 45.08566276 | E17: =('Transport og energibehov'!D34/D17)*'Transport og energibehov'!N34 -> 0.412548 | F17: =('Transport og energibehov'!D34/D17)*'Transport og energibehov'!M34 -> 0.031052 | G17: =('Transport og energibehov'!H34/D17)*'Transport og energibehov'!L34 -> 0
B18: Slitelag | C18: Veivals | D18: =('Transport og energibehov'!D46*1000)/E7 -> 666.6666667 | E18: =('Transport og energibehov'!D31/D18)*'Transport og energibehov'!N31 -> 0.004185 | F18: =('Transport og energibehov'!D31/D18)*'Transport og energibehov'!M31 -> 0.000315 | G18: =('Transport og energibehov'!H31/D18)*'Transport og energibehov'!L31 -> 0
C19: Traktor | D19: =('Transport og energibehov'!D47*1000)/E7 -> 2666.666667 | E19: =('Transport og energibehov'!D32/D19)*'Transport og energibehov'!N32 -> 0.00174375 | F19: =('Transport og energibehov'!D32/D19)*'Transport og energibehov'!M32 -> 0.00013125 | G19: =('Transport og energibehov'!H32/D19)*'Transport og energibehov'!L32 -> 0
C20: Asfaltutlegger | D20: =('Transport og energibehov'!D48*1000)/E7 -> 33.33333333 | E20: =('Transport og energibehov'!D33/D20)*'Transport og energibehov'!N33 -> 0.0837 | F20: =('Transport og energibehov'!D33/D20)*'Transport og energibehov'!M33 -> 0.0063 | G20: =('Transport og energibehov'!H33/D20)*'Transport og energibehov'!L33 -> 0
B21: Bindlag | C21: Veivals | D21: =('Transport og energibehov'!D46*1000)/E8 -> 857.1428571 | E21: =('Transport og energibehov'!D31/D21)*'Transport og energibehov'!N31 -> 0.003255 | F21: =('Transport og energibehov'!D31/D21)*'Transport og energibehov'!M31 -> 0.000245 | G21: =('Transport og energibehov'!H31/D21)*'Transport og energibehov'!L31 -> 0
C22: Traktor | D22: =('Transport og energibehov'!D47*1000)/E8 -> 3428.571429 | E22: =('Transport og energibehov'!D32/D22)*'Transport og energibehov'!N32 -> 0.00135625 | F22: =('Transport og energibehov'!D32/D22)*'Transport og energibehov'!M32 -> 0.0001020833333 | G22: =('Transport og energibehov'!H32/D22)*'Transport og energibehov'!L32 -> 0
C23: Asfaltutlegger | D23: =('Transport og energibehov'!D48*1000)/E8 -> 42.85714286 | E23: =('Transport og energibehov'!D33/D23)*'Transport og energibehov'!N33 -> 0.0651 | F23: =('Transport og energibehov'!D33/D23)*'Transport og energibehov'!M33 -> 0.0049 | G23: =('Transport og energibehov'!H33/D23)*'Transport og energibehov'!L33 -> 0
B24: Fuktsikring | C24: Veivals | D24: =('Transport og energibehov'!D46*1000)/E9 -> 2500 | E24: =('Transport og energibehov'!D31/D24)*'Transport og energibehov'!N31 -> 0.001116 | F24: =('Transport og energibehov'!D31/D24)*'Transport og energibehov'!M31 -> 8.4e-05 | G24: =('Transport og energibehov'!H31/D24)*'Transport og energibehov'!L31 -> 0
C25: Traktor | D25: =('Transport og energibehov'!D47*1000)/E9 -> 10000 | E25: =('Transport og energibehov'!D32/D25)*'Transport og energibehov'!N32 -> 0.000465 | F25: =('Transport og energibehov'!D32/D25)*'Transport og energibehov'!M32 -> 3.5e-05 | G25: =('Transport og energibehov'!H32/D25)*'Transport og energibehov'!L32 -> 0
C26: Asfaltutlegger | D26: =('Transport og energibehov'!D48*1000)/E9 -> 125 | E26: =('Transport og energibehov'!D33/D26)*'Transport og energibehov'!N33 -> 0.02232 | F26: =('Transport og energibehov'!D33/D26)*'Transport og energibehov'!M33 -> 0.00168 | G26: =('Transport og energibehov'!H33/D26)*'Transport og energibehov'!L33 -> 0

Sheet Stålbru
B2: Materialer og transport
B3: Kategori | C3: Materialtype | D3: Materialmengder | F3: Transport | I3: Kommentar
D4: Volum per areal [m3/m2] | E4: Masse per areal [kg/m2] | F4: Mengde diesel [L/m2] | G4: Mengde bio [L/m2] | H4: Mengde el [kWh/m2]
B5: Konstruksjon | C5: Betong | D5: =Beregningsfaktorer!D27 -> 0.743 | E5: =Beregningsfaktorer!D4*D5 -> 1783.2 | F5: =(E5/1000)*'Transport og energibehov'!D24*'Transport og energibehov'!D10*'Transport og energibehov'!N24 -> 1.3267008 | G5: =(E5/1000)*'Transport og energibehov'!D24*'Transport og energibehov'!D10*'Transport og energibehov'!M24 -> 0.0998592 | H5: =(E5/1000)*'Transport og energibehov'!H24*'Transport og energibehov'!D10*'Transport og energibehov'!L24 -> 0
C6: Armeringsstål | E6: =Beregningsfaktorer!D29 -> 125 | F6: =(E6/1000)*'Transport og energibehov'!D26*'Transport og energibehov'!D12*'Transport og energibehov'!N26 -> 0.93 | G6: =(E6/1000)*'Transport og energibehov'!D26*'Transport og energibehov'!D12*'Transport og energibehov'!M26 -> 0.07 | H6: =(E6/1000)*'Transport og energibehov'!H26*'Transport og energibehov'!D12*'Transport og energibehov'!L26 -> 0
C7: Stålkonstruksjon | E7: =Beregningsfaktorer!D31 -> 219 | F7: =(E7/1000)*'Transport og energibehov'!D25*'Transport og energibehov'!D11*'Transport og energibehov'!N25 -> 1.62936 | G7: =(E7/1000)*'Transport og energibehov'!D25*'Transport og energibehov'!D11*'Transport og energibehov'!M25 -> 0.12264 | H7: =(E7/1000)*'Transport og energibehov'!H25*'Transport og energibehov'!D11*'Transport og energibehov'!L25 -> 0
B8: Veioverbygning | C8: Slitelag (Ska) | D8: =Beregningsfaktorer!D19 -> 0.045 | E8: =D8*Beregningsfaktorer!D7 -> 112.5 | F8: =(E8/1000)*'Transport og energibehov'!D20*'Transport og energibehov'!D7*'Transport og energibehov'!N20 -> 0.062775 | G8: =(E8/1000)*'Transport og energibehov'!D20*'Transport og energibehov'!D7*'Transport og energibehov'!M20 -> 0.004725 | H8: =(E8/1000)*'Transport og energibehov'!H20*'Transport og energibehov'!D7*'Transport og energibehov'!L20 -> 0
C9: Bindlag (Ska) | D9: =Beregningsfaktorer!D20 -> 0.035 | E9: =D9*Beregningsfaktorer!D7 -> 87.5 | F9: =(E9/1000)*'Transport og energibehov'!D20*'Transport og energibehov'!D7*'Transport og energibehov'!N20 -> 0.048825 | G9: =(E9/1000)*'Transport og energibehov'!D20*'Transport og energibehov'!D7*'Transport og energibehov'!M20 -> 0.003675 | H9: =(E9/1000)*'Transport og energibehov'!H20*'Transport og energibehov'!D7*'Transport og energibehov'!L20 -> 0
C10: Fuktisolasjon (Topeka) | D10: =Beregningsfaktorer!D24 -> 0.012 | E10: =D10*Beregningsfaktorer!D13 -> 30 | F10: =(E10/1000)*'Transport og energibehov'!D27*'Transport og energibehov'!D13*'Transport og energibehov'!N27 -> 0.03906 | G10: =(E10/1000)*'Transport og energibehov'!D27*'Transport og energibehov'!D13*'Transport og energibehov'!M27 -> 0.00294 | H10: =(E10/1000)*'Transport og energibehov'!H27*'Transport og energibehov'!D13*'Transport og energibehov'!L27 -> 0
B13: Anleggsarbeid
B14: Kategori | C14: Maskintype | D14: Anleggsarbeid | H14: Kommentar
D15: Arbeidshastighet [m2/h] | E15: Mengde diesel [L/m2] | F15: Mengde bio [L/m2] | G15: Mengde el [kWh/m2]
B16: Konstruksjon | C16: Kran første 400 m2 | D16: ='Transport og energibehov'!D52 -> 1.666666667 | G16: =('Transport og energibehov'!H37/D16)*'Transport og energibehov'!L37 -> 29.16 | H16: Antatt 100 % el
C17: Kran resten av bru | D17: ='Transport og energibehov'!D53 -> 3.333333333 | G17: =('Transport og energibehov'!H37/D17)*'Transport og energibehov'!L37 -> 14.58 | H17: Antatt 100 % el
C18: Gravemaskin | D18: =('Transport og energibehov'!D49*1000)/(E5+E6+E7) -> 70.51523129 | E18: =('Transport og energibehov'!D34/D18)*'Transport og energibehov'!N34 -> 0.2637728 | F18: =('Transport og energibehov'!D34/D18)*'Transport og energibehov'!M34 -> 0.01985386667 | G18: =('Transport og energibehov'!H34/D18)*'Transport og energibehov'!L34 -> 0
B19: Slitelag | C19: Veivals | D19: =('Transport og energibehov'!D46*1000)/E8 -> 666.6666667 | E19: =('Transport og energibehov'!D31/D19)*'Transport og energibehov'!N31 -> 0.004185 | F19: =('Transport og energibehov'!D31/D19)*'Transport og energibehov'!M31 -> 0.000315 | G19: =('Transport og energibehov'!H31/D19)*'Transport og energibehov'!L31 -> 0
C20: Traktor | D20: =('Transport og energibehov'!D47*1000)/E8 -> 2666.666667 | E20: =('Transport og energibehov'!D32/D20)*'Transport og energibehov'!N32 -> 0.00174375 | F20: =('Transport og energibehov'!D32/D20)*'Transport og energibehov'!M32 -> 0.00013125 | G20: =('Transport og energibehov'!H32/D20)*'Transport og energibehov'!L32 -> 0
C21: Asfaltutlegger | D21: =('Transport og energibehov'!D48*1000)/E8 -> 33.33333333 | E21: =('Transport og energibehov'!D33/D21)*'Transport og energibehov'!N33 -> 0.0837 | F21: =('Transport og energibehov'!D33/D21)*'Transport og energibehov'!M33 -> 0.0063 | G21: =('Transport og energibehov'!H33/D21)*'Transport og energibehov'!L33 -> 0
B22: Bindlag | C22: Veivals | D22: =('Transport og energibehov'!D46*1000)/E9 -> 857.1428571 | E22: =('Transport og energibehov'!D31/D22)*'Transport og energibehov'!N31 -> 0.003255 | F22: =('Transport og energibehov'!D31/D22)*'Transport og energibehov'!M31 -> 0.000245 | G22: =('Transport og energibehov'!H31/D22)*'Transport og energibehov'!L31 -> 0
C23: Traktor | D23: =('Transport og energibehov'!D47*1000)/E9 -> 3428.571429 | E23: =('Transport og energibehov'!D32/D23)*'Transport og energibehov'!N32 -> 0.00135625 | F23: =('Transport og energibehov'!D32/D23)*'Transport og energibehov'!M32 -> 0.0001020833333 | G23: =('Transport og energibehov'!H32/D23)*'Transport og energibehov'!L32 -> 0
C24: Asfaltutlegger | D24: =('Transport og energibehov'!D48*1000)/E9 -> 42.85714286 | E24: =('Transport og energibehov'!D33/D24)*'Transport og energibehov'!N33 -> 0.0651 | F24: =('Transport og energibehov'!D33/D24)*'Transport og energibehov'!M33 -> 0.0049 | G24: =('Transport og energibehov'!H33/D24)*'Transport og energibehov'!L33 -> 0
B25: Fuktsikring | C25: Veivals | D25: =('Transport og energibehov'!D46*1000)/E10 -> 2500 | E25: =('Transport og energibehov'!D31/D25)*'Transport og energibehov'!N31 -> 0.001116 | F25: =('Transport og energibehov'!D31/D25)*'Transport og energibehov'!M31 -> 8.4e-05 | G25: =('Transport og energibehov'!H31/D25)*'Transport og energibehov'!L31 -> 0
C26: Traktor | D26: =('Transport og energibehov'!D47*1000)/E10 -> 10000 | E26: =('Transport og energibehov'!D32/D26)*'Transport og energibehov'!N32 -> 0.000465 | F26: =('Transport og energibehov'!D32/D26)*'Transport og energibehov'!M32 -> 3.5e-05 | G26: =('Transport og energibehov'!H32/D26)*'Transport og energibehov'!L32 -> 0
C27: Asfaltutlegger | D27: =('Transport og energibehov'!D48*1000)/E10 -> 125 | E27: =('Transport og energibehov'!D33/D27)*'Transport og energibehov'!N33 -> 0.02232 | F27: =('Transport og energibehov'!D33/D27)*'Transport og energibehov'!M33 -> 0.00168 | G27: =('Transport og energibehov'!H33/D27)*'Transport og energibehov'!L33 -> 0

Sheet Kulvert
B2: Materialer og transport
B3: Kategori | C3: Materialtype | D3: Materialmengder | F3: Transport | I3: Kommentar
D4: Volum [m3/m2] | E4: Masse per areal [kg/m2] | F4: Mengde diesel [L/m2] | G4: Mengde bio [L/m2] | H4: Mengde el [kWh/m2]
B5: Konstruksjon | C5: Betong | D5: =(Beregningsfaktorer!D36*2)+(Beregningsfaktorer!D36*Beregningsfaktorer!D37) -> 1.248 | E5: =(D5*Beregningsfaktorer!D4) -> 2995.2 | F5: =(E5/1000)*'Transport og energibehov'!D24*'Transport og energibehov'!D10*'Transport og energibehov'!N24 -> 2.2284288 | G5: =(E5/1000)*'Transport og energibehov'!D24*'Transport og energibehov'!D10*'Transport og energibehov'!M24 -> 0.1677312 | H5: =(E5/1000)*'Transport og energibehov'!H24*'Transport og energibehov'!D10*'Transport og energibehov'!L24 -> 0
C6: Armeringsstål | E6: =E5/Beregningsfaktorer!D39 -> 230.4 | F6: =(E6/1000)*'Transport og energibehov'!D26*'Transport og energibehov'!D12*'Transport og energibehov'!N26 -> 1.714176 | G6: =(E6/1000)*'Transport og energibehov'!D26*'Transport og energibehov'!D12*'Transport og energibehov'!M26 -> 0.129024 | H6: =(E6/1000)*'Transport og energibehov'!H26*'Transport og energibehov'!D12*'Transport og energibehov'!L26 -> 0
B8: Anleggsarbeid
B9: Kategori | C9: Maskintype | D9: Energiforbruk | H9: Kommentar
D10: Arbeidshastighet [timer/stk] | E10: Mengde diesel [L/stk] | F10: Mengde bio [L/stk] | G10: Mengde el [kWh/stk]
B11: Konstruksjon | C11: Tårnkran | D11: =Beregningsfaktorer!D40 -> 18 | E11: - | F11: - | G11: =D11*'Transport og energibehov'!H37*'Transport og energibehov'!L37 -> 874.8

Sheet Vegetasjon og arealbeslag
B2: Transport
B3: Kategori | D3: Transport | I3: Kommentar
D4: Vekt [kg/m2] | E4: Vekt [kg/m3] | F4: Mengde diesel [L/m2] | G4: Mengde bio [L/m2] | H4: Mengde el [kWh/m2]
B5: Jord | C5: Jordmasser til linja | D5: =Beregningsfaktorer!D14*Beregningsfaktorer!D90 -> 390 | F5: =(D5/1000)*'Transport og energibehov'!D17*'Transport og energibehov'!D4*'Transport og energibehov'!N17 -> 0.007254 | G5: =(D5/1000)*'Transport og energibehov'!D17*'Transport og energibehov'!D4*'Transport og energibehov'!M17 -> 0.000546 | H5: =(D5/1000)*'Transport og energibehov'!H17*'Transport og energibehov'!D4*'Transport og energibehov'!L17 -> 0
C6: Jordmasser til deponi | D6: =Beregningsfaktorer!D14*Beregningsfaktorer!D90 -> 390 | F6: =(D6/1000)*'Transport og energibehov'!D18*'Transport og energibehov'!D5*'Transport og energibehov'!N18 -> 0.10881 | G6: =(D5/1000)*'Transport og energibehov'!D18*'Transport og energibehov'!D5*'Transport og energibehov'!M18 -> 0.00819 | H6: =(D5/1000)*'Transport og energibehov'!H18*'Transport og energibehov'!D5*'Transport og energibehov'!L18 -> 0
B8: Anleggsarbeid
B9: Kategori | C9: Energiforbruk | I9: Kommentar
C10: Volum per areal [m3/m2] | D10: Vekt [kg/m2] | E10: Anleggsarbeid [h/m2] | F10: Mengde diesel [L/m2] | G10: Mengde bio [L/m2] | H10: Mengde el [L/m2]
B11: Fjerning av vegetasjonsdekke | C11: =Beregningsfaktorer!D90 -> 0.3 | D11: =C11*Beregningsfaktorer!D14 -> 390 | E11: =((D11/1000)/'Transport og energibehov'!D49)*2 -> 0.0052 | F11: =E11*'Transport og energibehov'!D34*'Transport og energibehov'!N34 -> 0.09672 | G11: =E11*'Transport og energibehov'!D34*'Transport og energibehov'!M34 -> 0.00728 | H11: =E11*'Transport og energibehov'!H34*'Transport og energibehov'!L34 -> 0 | I11: For Anleggsarbeid [time/m2]: ganger med to fordi massene også skal losses et sted.
B13: Arealbruksendringer
B14: Vegetasjonstype
C15: Mengde [m2]
B16: Fjernet skog - lav bonitet | C16: ='Prosjektbeskrivelse og inndata'!C21*'Prosjektbeskrivelse og inndata'!C24 -> 0
B17: Fjernet skog - middels bonitet | C17: ='Prosjektbeskrivelse og inndata'!C21*'Prosjektbeskrivelse og inndata'!C25 -> 0
B18: Fjernet skog - høy bonitet | C18: ='Prosjektbeskrivelse og inndata'!C21*'Prosjektbeskrivelse og inndata'!C26 -> 0
B19: Myr | C19: ='Prosjektbeskrivelse og inndata'!C21*'Prosjektbeskrivelse og inndata'!C27 -> 0
B20: Jordbruksareal | C20: ='Prosjektbeskrivelse og inndata'!C21*'Prosjektbeskrivelse og inndata'!C28 -> 0
B21: Utbygd areal | C21: ='Prosjektbeskrivelse og inndata'!C21*'Prosjektbeskrivelse og inndata'!C29 -> 0

Sheet Sprengning
B2: Sprengning og transport
B3: Kategori | D3: Materialer | E3: Transport sprengstein | I3: Kommentar
D4: Vekt tovex [kg/fm3] | E4: Vekt [kg/fm3] | F4: Mengde diesel [L/fm3] | G4: Mengde bio [L/fm3] | H4: Mengde el [kWh/fm3]
B5: Sprengning i fjell | C5: Sprengstoff | D5: =Beregningsfaktorer!D34 -> 2.2 | E5: =Beregningsfaktorer!D16*D5 -> 5830
B6: Sprengning i dagen | C6: Sprengstoff | D6: =Beregningsfaktorer!D33 -> 1 | E6: =Beregningsfaktorer!D16*D6 -> 2650
C7: Sprengstein til linja | E7: =Beregningsfaktorer!D16 -> 2650 | F7: =(E7/1000)*'Transport og energibehov'!D17*'Transport og energibehov'!D4*'Transport og energibehov'!N17 -> 0.04929 | G7: =(E7/1000)*'Transport og energibehov'!D17*'Transport og energibehov'!D4*'Transport og energibehov'!M17 -> 0.00371 | H7: =(E7/1000)*'Transport og energibehov'!H17*'Transport og energibehov'!D4*'Transport og energibehov'!L17 -> 0
C8: Sprengstein til deponi | E8: =Beregningsfaktorer!D16 -> 2650 | F8: =(E8/1000)*'Transport og energibehov'!D18*'Transport og energibehov'!D5*'Transport og energibehov'!N18 -> 0.73935 | G8: =(E8/1000)*'Transport og energibehov'!D18*'Transport og energibehov'!D5*'Transport og energibehov'!M18 -> 0.05565 | H8: =(E8/1000)*'Transport og energibehov'!H18*'Transport og energibehov'!D5*'Transport og energibehov'!L18 -> 0
C9: Sprengstein til linja via pukkverk | E9: =Beregningsfaktorer!D16 -> 2650 | F9: =(E9/1000)*'Transport og energibehov'!D19*'Transport og energibehov'!D6*'Transport og energibehov'!N19 -> 0.73935 | G9: =(E9/1000)*'Transport og energibehov'!D19*'Transport og energibehov'!D6*'Transport og energibehov'!M19 -> 0.05565 | H9: =(E9/1000)*'Transport og energibehov'!H19*'Transport og energibehov'!D6*'Transport og energibehov'!L19 -> 0
B12: Anleggsarbeid
B13: Kategori | C13: Anleggsarbeid | G13: Kommentar
C14: Vekt [kg/fm3] | D14: Mengde diesel [L/fm3] | E14: Mengde bio [L/fm3] | F14: Mengde el [kWh/fm3]
B15: Lasting av sprengstein | C15: =Beregningsfaktorer!D16 -> 2650 | D15: =(C15/1000)/'Transport og energibehov'!D49*'Transport og energibehov'!D34*'Transport og energibehov'!N34 -> 0.3286 | E15: =(C15/1000)/'Transport og energibehov'!D49*'Transport og energibehov'!D34*'Transport og energibehov'!M34 -> 0.02473333333 | F15: =(C15/1000)/'Transport og energibehov'!D49*'Transport og energibehov'!H34*'Transport og energibehov'!L34 -> 0

Sheet Reasfaltering
B1: Reasfaltering
B2: Bakgrunnsdata
B3: Andel som reasfalteres | C3: =Beregningsfaktorer!D60 -> 0.6
B5: Materialer og transport
B6: Kategori | C6: Materialmengder | E6: Transport | H6: Kommentar
C7: Volum/areal [m3/m2] | D7: Masse per areal [kg/m2] | E7: Mengde diesel [L/m2] | F7: Mengde bio [L/m2] | G7: Mengde el [kWh/m2]
B8: Slitelag (Ska) | C8: =Beregningsfaktorer!D19 -> 0.045 | D8: =C8*Beregningsfaktorer!D6*Reasfaltering!C3 -> 67.5 | E8: =(D8/1000)*'Transport og energibehov'!D19*'Transport og energibehov'!D6*'Transport og energibehov'!N19 -> 0.0188325 | F8: =(D8/1000)*'Transport og energibehov'!D19*'Transport og energibehov'!D6*'Transport og energibehov'!M19 -> 0.0014175 | G8: =(D8/1000)*'Transport og energibehov'!H19*'Transport og energibehov'!D6*'Transport og energibehov'!L19 -> 0
B9: Slitelag (Agb) | C9: =Beregningsfaktorer!D19 -> 0.045 | D9: =C9*Beregningsfaktorer!D7*C3 -> 67.5 | E9: =(D9/1000)*'Transport og energibehov'!D20*'Transport og energibehov'!D7*'Transport og energibehov'!N20 -> 0.037665 | F9: =(D9/1000)*'Transport og energibehov'!D20*'Transport og energibehov'!D7*'Transport og energibehov'!M20 -> 0.002835 | G9: =(D9/1000)*'Transport og energibehov'!H20*'Transport og energibehov'!D7*'Transport og energibehov'!L20 -> 0
B11: Anleggsarbeid
B12: Kategori | C12: Maskintype | D12: Anleggsarbeid | H12: Kommentar
D13: Arbeidshastighet [m2/h] | E13: Mengde diesel [L/m2] | F13: Mengde bio [L/m2] | G13: Mengde el [kWh/m2]
B14: Fjerning | C14: Gravemaskin | D14: =('Transport og energibehov'!D49*1000)/D9 -> 2222.222222 | E14: =('Transport og energibehov'!D34/D14)*'Transport og energibehov'!N34 -> 0.00837 | F14: =('Transport og energibehov'!D34/D14)*'Transport og energibehov'!M34 -> 0.00063 | G14: =('Transport og energibehov'!H34/D14)*'Transport og energibehov'!L34 -> 0
B15: Asfaltering | C15: Veivals | D15: =('Transport og energibehov'!D46*1000)/D9 -> 1111.111111 | E15: =('Transport og energibehov'!D31/D15)*'Transport og energibehov'!N31 -> 0.002511 | F15: =('Transport og energibehov'!D31/D15)*'Transport og energibehov'!M31 -> 0.000189 | G15: =('Transport og energibehov'!H31/D15)*'Transport og energibehov'!L31 -> 0
C16: Traktor | D16: =('Transport og energibehov'!D47*1000)/D9 -> 4444.444444 | E16: =('Transport og energibehov'!D32/D16)*'Transport og energibehov'!N32 -> 0.00104625 | F16: =('Transport og energibehov'!D32/D16)*'Transport og energibehov'!M32 -> 7.875e-05 | G16: =('Transport og energibehov'!H32/D16)*'Transport og energibehov'!L32 -> 0
C17: Asfaltutlegger | D17: =('Transport og energibehov'!D48*1000)/D9 -> 55.55555556 | E17: =('Transport og energibehov'!D33/D17)*'Transport og energibehov'!N33 -> 0.05022 | F17: =('Transport og energibehov'!D33/D17)*'Transport og energibehov'!M33 -> 0.00378 | G17: =('Transport og energibehov'!H33/D17)*'Transport og energibehov'!L33 -> 0

Sheet Beregningsfaktorer arbeidsfane (hidden)
A1: OK? | B1: Faktor | C1: Gammel verdi | D1: Enhet | E1: Fane | F1: Bruksområde | G1: Kategori | H1: Dokumentasjon gammel verdi | I1: VegLCA | J1: Dokumentasjon VegLCA | K1: Kommentar | L1: Vurdering | M1: Foreslått ny verdi | N1: Enhet | O1: Dokumentasjon verdi i oppdatert verktøy | P1: Evt. kommentar ny verdi i verktøy | Q1: Evt. lenker kilder
B2: Massetettheter
A3: OK | B3: Betong massetetthet | C3: 2400 | D3: kg/m3 | E3: Tunnel (begge) | F3: Beregning av dieselforbruk transport m.m. | G3: Massetetthet | H3: Ingen | I3: 2400 | J3: Norsk betongforening Publikasjon 37: Lavkarbonbetong (2015) | K3: Samme i VegLCA, god dokumentasjon | L3: Beholde | M3: =IF(L3="Beholde",C3,IF(L3="Fjerne","-","")) -> 2400 | N3: =IF(L3="Beholde",D3,IF(L3="Fjerne","-",IF(OR(L3="Oppdatere",L3="Legge til",L3="Bake inn i annen faktor"),D3,""))) -> kg/m3 | O3: Norsk betongforening Publikasjon 37: Lavkarbonbetong (2015)
A4: OK | B4: Armeringsstål massetetthet | C4: 7800 | D4: kg/m3 | E4: Tunnel (begge) | F4: Brukes ikke | G4: Massetetthet | H4: Ingen | I4: 7400 | J4: Densities of solids, The engineering toolbox (men denne oppgir 7850?) | K4: 7850 i metoderapport og på engineering toolbox, foreslår å bruke det. VegLCA bør vurdere oppdatering. | L4: Oppdatere | M4: 7850 | N4: =IF(L4="Beholde",D4,IF(L4="Fjerne","-",IF(OR(L4="Oppdatere",L4="Legge til",L4="Bake inn i annen faktor"),D4,""))) -> kg/m3 | O4: Metoderapport s. 8, Engineering Toolbox, https://www.engineeringtoolbox.com/metal-alloys-densities-d_50.html
A5: OK | B5: Sikringsbolter massetetthet | C5: 7800 | D5: kg/m3 | E5: Tunnel (begge) | F5: Brukes ikke | G5: Massetetthet | H5: Ingen | I5: 7400 | J5: Densities of solids, The engineering toolbox (men denne oppgir 7850?) | K5: Samme som armeringsstål - bare ha én for stål. 7850 i metoderapport og på engineering toolbox, foreslår å bruke det. VegLCA bør vurdere oppdatering. | L5: Fjerne | M5: =IF(L5="Beholde",C5,IF(L5="Fjerne","-","")) -> - | N5: - | O5: =IF(OR(L5="Fjerne",L5="Bake inn i annen faktor"),"-","") -> -
A6: OK | B6: Asfaltbetong massetetthet | C6: 2500 | D6: kg/m3 | E6: Tunnel (begge) | F6: Beregning av dieselforbruk transport m.m. | G6: Massetetthet | H6: Ingen | I6: 2500 | J6: Klimamodul EFFEKT 6.74 | K6: Til slitelag, bindlag og skulder. Anbefalt verdi etter samkjøring. Står i metoderapport s. 34. | L6: Beholde | M6: 2500 | N6: kg/m3 | O6: Metoderapport s. 34
A7: OK | B7: Asfaltgrus massetetthet | C7: 2400 | D7: kg/m3 | E7: Tunnel (begge) | F7: Beregning av dieselforbruk transport m.m. for bærelag | G7: Massetetthet | H7: Metoderapport s. 32 | I7: 2400 | J7: Klimamodul EFFEKT 6.74 | K7: Til bærelag. Verdi i metoderapport er for AP, mens Ag har 2,65. Beholder 2400 for å sørge for høyest mulig grad av samsvar | L7: Beholde | M7: 2400 | N7: kg/m3 | O7: Klimamodul EFFEKT 6.74
A8: OK | B8: Pukk/grus frostsikring massetetthet | C8: 1800 | D8: kg/m3 | F8: Beregning av dieselforbruk transport m.m. | G8: Massetetthet | H8: Ingen | I8: 1500 | J8: Forsterkningslag i kult fra metoderapport s. 32 | K8: VegLCA er ikke oppdatert etter anbefalt verdi i samkjøringsprosjekt | L8: Oppdatere | M8: 1550 | N8: kg/m3 | O8: Anbefalt verdi i samkjøringsprosjekt, snitt av minimums- og maksimumsverdi (1,4-1,7) i EPDer
A9: OK | B9: Pukk/grus forsterkningslag massetetthet | C9: 1500 | D9: kg/m3 | E9: Tunnel (begge) | F9: Beregning av dieselforbruk transport m.m. | G9: Massetetthet | H9: Forsterkningslag i kult fra metoderapport s. 32 | I9: 1500 | J9: Forsterkningslag i kult fra metoderapport s. 32 | K9: VegLCA er ikke oppdatert etter anbefalt verdi i samkjøringsprosjekt | L9: Oppdatere | M9: 1550 | N9: kg/m3 | O9: Anbefalt verdi i samkjøringsprosjekt, snitt av minimums- og maksimumsverdi (1,4-1,7) i EPDer | Q9: https://www.epd-norge.no/getfile.php/139362-1537176670/EPDer/Byggevarer/Asfalt/NEPD-1257-403_Crushed-Stone-Bergkrossprodukter_1_1.pdf | R9: https://www.epd-norge.no/getfile.php/138731-1520978061/EPDer/Byggevarer/Asfalt/527_Crushed-stone-construction-aggregate-products--Oslo-and-Baerum_no.pdf
A10: OK | B10: XPS massetetthet | C10: 25 | D10: kg/m3 | E10: Utslippsfaktorer | F10: Beregning av massetetthet XPS-/betongelement brukt til frostsikring i tunnel | G10: Massetetthet | H10: Ingen | I10: 35 | J10: Antakelser basert på produsentdata fra Foamular, PakBoard, Thermals) | K10: Oppdatere til VegLCA sin faktor for å sørge for høyest mulig grad av samsvar, i tillegg til manglende dokumentasjon for vår faktor. 35 kg/m3 samsvarer godt med informasjon på nett. | L10: Oppdatere | M10: 35 | N10: kg/m3 | O10: VegLCA (kommunikasjon med leverandører)
A11: OK | B11: XPS-/betongelement til frostsikring i tunnel massetetthet | C11: 1800 | D11: kg/m3 | E11: Tunnel (begge) | F11: Beregning av dieselforbruk transport m.m. | G11: Massetetthet | H11: Ingen | I11: IR | J11: =IF(I11="IR","-","") -> - | K11: Estimert som gjennomsnittet av massetetthetene til betong og XPS basert på EPD fra Ølen betong der elementene består av 50 mm XPS og 150 mm betong (150 * 2400 + 50 * 25)/200 = 1800 kg/m3. Usikkert hvor massetetthet til XPS er hentet fra. I samkjøringsprosjekt står det at massetetthet til XPS ikke er relevant i NIRAS' verktøy. Foreslår å heller benytte 35 kg/m3 som i VegLCA | L11: Oppdatere | M11: =(50*M10+150*M3)/(M24*1000) -> 1808.75 | N11: kg/m3 | O11: EPD XPS-/betongelement Ølen betong
A12: OK | B12: Topeka massetetthet | C12: IR | D12: kg/m3 | F12: Beregning av dieselforbruk transport m.m. | G12: Massetetthet | H12: - | I12: 2500 | J12: Samme som asfalt, dvs. Klimamodul EFFEKT | L12: Legge til | M12: 2500 | N12: kg/m3 | O12: Metoderapport s. 34, bruker samme som asfaltbetong
A13: OK | B13: Vegetasjonsdekke massetetthet | C13: 2000 | D13: kg/m3 | E13: Fjerning av vegetasjon | G13: Massetetthet | L13: Oppdatere | M13: 1300 | N13: kg/m3 | O13: Metoderapport s. 32
A14: OK | B14: Myr massetetthet | G14: Massetetthet | L14: Oppdatere | M14: 150 | N14: kg/m3 | O14: "Utredning myr", Hadsel kommune (Asplan Viak, 2017)
A15: OK | B15: Massetetthet sprengstein | C15: 2650 | D15: kg/m3 | E15: Masser | G15: Massetetthet | L15: Beholde | M15: 2650 | N15: kg/m3 | O15: Metoderapport s. 32
A16: OK | B16: Masser fra grøfterensk massetetthet | C16: 1600 | D16: kg/m3 | E16: Drift | G16: Massetetthet | L16: Oppdatere | M16: 1300 | N16: kg/m3 | O16: Metoderapport s. 32
B17: Materialtykkelser/-mengder
A18: OK | B18: Slitelag tykkelse | C18: 0.045 | D18: m | E18: Vei, tunnel (begge), bru (begge), asfalt annet | F18: Beregning av materialforbruk og transport m.m. | G18: Materialtykkelse | H18: N200 | I18: IR | J18: - | L18: Beholde | M18: 0.045 | N18: m | O18: N200
A19: OK | B19: Bindlag tykkelse | C19: 0.035 | D19: m | E19: Vei, tunnel (begge), bru (begge), asfalt annet | F19: Beregning av materialforbruk og transport m.m. | G19: Materialtykkelse | H19: N200 | I19: IR | J19: - | L19: Beholde | M19: 0.035 | N19: m | O19: N200
A20: OK | B20: Bærelag tykkelse | C20: 0.13 | D20: m | E20: Vei, tunnel (begge), bru (begge), asfalt annet | F20: Beregning av materialforbruk og transport m.m. | G20: Materialtykkelse | H20: N200 | I20: IR | J20: - | L20: Beholde | M20: 0.13 | N20: m | O20: N200
A21: OK | B21: Forsterkningslag tykkelse | C21: 0.45 | D21: m | E21: Vei, tunnel (begge), bru (begge), asfalt annet | F21: Beregning av materialforbruk og transport m.m. | G21: Materialtykkelse | H21: N200 | I21: IR | J21: - | L21: Beholde | M21: 0.45 | N21: m | O21: N200
A22: OK | B22: Frostsikringslag vei tykkelse | C22: 1,74 eller 1,09 | D22: m | E22: Vei, asfalt annet | F22: Beregning av materialforbruk og transport m.m. | G22: Materialtykkelse | H22: N200 | I22: IR | J22: - | K22: Avhenger av andel av veien plassert på fjell. Dersom fjell: 1,09. Foreslår å heller sette standard tykkelse 1,74 og evt. redusere i hht. N200 basert på klimasone og telefarlighetsklasse | L22: Oppdatere | M22: 1.74 | N22: m | O22: N200
A23: OK | B23: Topeka tykkelse | C23: IR | D23: m | E23: Bru | F23: Beregning av materialforbruk og transport m.m. | G23: Materialtykkelse | H23: - | I23: 0.012 | J23: Ikke kommentert | K23: VegLCA bruker det samme i beregningene, men det er ikke eksplisitt | L23: Legge til | M23: 0.012 | N23: m | O23: SVV Håndbok R762 | P23: R: endret fra 0,12 til 0,012, antar at det var en skrivefeil?
A24: OK | B24: Frostsikringselement tunnel tykkelse | C24: 0.2 | D24: m | E24: Tunnel (begge) | F24: Beregning av materialforbruk og transport m.m. | G24: Materialtykkelse | H24: EPD for element fra Ølen Betong | I24: IR | J24: - | K24: Standardelement til frostsikring av tunnel fra Ølen Betong, basert på EPD: Element for samferdselstunneler med 150 mm tykkelse i betong og 50 mm XPS 200 kpa isolasjon. | L24: Beholde | M24: 0.2 | N24: m | O24: EPD for element fra Ølen Betong
A25: OK | B25: Mengde sprengstoff sprengning i dagen | C25: 1 | D25: kg/fm3 | E25: Bru (begge), masser | F25: Beregning av utslipp knyttet sprenging | G25: Materialmengde | H25: Metoderapport | I25: IR | J25: =IF(I25="IR","-","") -> - | L25: Beholde | M25: =IF(L25="Beholde",C25,IF(L25="Fjerne","-","")) -> 1 | N25: kg/fm3 | O25: Metoderapport og dokumentasjon EFFEKT 2015 (SVV Rapport 358) | P25: EFFEKT og Metoderapport oppgir ikke kilden de har brukt, og verdien bør derfor sokumenteres bedre i samtlige verktøy
A26: OK | B26: Mengde sprengstoff sprengning tunnel | C26: 2.2 | D26: kg/fm3 | E26: Masser | F26: Beregning av utslipp knyttet sprenging | G26: Materialmengde | H26: NIRAS erfaringstall og rapport fra 2009 mener 2,2 kg sprengstoff | I26: IR | J26: =IF(I26="IR","-","") -> - | K26: "200% høyere sprengstofforbruk i tunnel. Antar dobbelt så mye arbeid som for vei i dagen" - stemmer ikke helt? | L26: Beholde | M26: =IF(L26="Beholde",C26,IF(L26="Fjerne","-","")) -> 2.2 | N26: kg/fm3 | O26: Metoderapport og dokumentasjon EFFEKT 2015 (SVV Rapport 358). | P26: Dette tallet ser ut til å være noe høyt sammenliknet med andre kilder på nett. EFFEKT og Metoderapport oppgir ikke kilden de har brukt, og verdien bør derfor sokumenteres bedre i samtlige verktøy
A27: OK | B27: Asfaltbetong bru tykkelse | C27: 0.08 | D27: m | E27: Bru (begge) | F27: Beregning av materialforbruk og transport m.m. | G27: Materialtykkelse | H27: Ingen | I27: IR | J27: - | K27: Naturlig å anta samme tykkelse som slitelag + bindlag på vei --> 0,08 m. Legger ikke inn en egen faktor for dette. | L27: Fjerne | M27: =IF(L27="Beholde",C27,IF(L27="Fjerne","-","")) -> - | N27: - | O27: N200 (i N400 henvises det til N200 for bindlag og slitelag)
A28: OK | B28: Fuktisolering bru mengde | C28: 1.9 | D28: kg/m2 | E28: Bru (begge) | F28: Beregning av materialforbruk og transport m.m. | G28: Materialmengde | H28: Samkjøringsprosjekt | I28: IR | J28: - | K28: Samkjøringsprosjektet sier 0,94 m2 fuktisolering per m2 bru og at laget består av polymermodifisert bitumen og sand. Erstatter med Topeka | L28: Fjerne | M28: - | N28: - | O28: =IF(OR(L28="Fjerne",L28="Bake inn i annen faktor"),"-","") -> -
A29: OK | B29: Frostsikring bru tykkelse | C29: 0.035 | D29: m | E29: Bru (begge) | F29: Beregning av materialforbruk og transport m.m. | G29: Materialtykkelse | H29: Ingen | I29: IR | J29: - | K29: "Frostsikringslag med plater av ekstrudert polystyren (XPS) Antatt tykkelse 100 mm. Tetthet: 25 kg/m3". Erstatter med Topeka | L29: Fjerne | M29: - | N29: - | O29: -
A30: OK | B30: Betongmengde til betongbru | C30: 1.14 | D30: m3/m2 | E30: Betongbru | F30: Material- og transportutslipp forbundet med betong | G30: Materialmengde | H30: Fra samkjørings-prosjekt og Metoderapport | I30: IR | J30: - | K30: Verdi ser ut til å være basert på gjennomsnitt for 10 betongbruer i fellesprosjektet E16. Finner ikke dokumentasjon på dette og velger derfor å benytte gjennomsnitt fra samtlige 12 betongbruer i Metoderapporten | L30: Oppdatere | M30: 1.29 | N30: m3/m2 | O30: Metoderapport s. 47, gjennomsnitt for samtlige betongbruer, ikke vektet etter areal av bru
A31: OK | B31: Betongmengde til stålbru | C31: 0.00094 | D31: m3/m2 | E31: Stålbru | F31: Material- og transportutslipp forbundet med betong | G31: Materialmengde | H31: Fra samkjørings-prosjekt og Metoderapport | I31: IR | J31: - | K31: Verdi ser ut til å være basert på gjennomsnitt for 10 betongbruer i fellesprosjektet E16. Finner ikke dokumentasjon på dette og velger derfor å benytte gjennomsnitt fra samtlige 8 stålbruer i Metoderapporten | L31: Oppdatere | M31: 0.743 | N31: m3/m2 | O31: Metoderapport s. 47, gjennomsnitt for samtlige stålbruer, ikke vektet etter areal av bru
A32: OK | B32: Mengde armeringsstål til betongbru | C32: 180 | D32: kg/m2 | E32: Betongbru | F32: Material- og transportutslipp forbundet med stål | G32: Materialmengde | H32: Samkjøringsprosjekt | I32: IR | J32: - | K32: Verdi ser ut til å være basert på gjennomsnitt for 10 betongbruer i fellesprosjektet E16. Finner ikke dokumentasjon på dette og velger derfor å benytte gjennomsnitt fra samtlige 12 betongbruer i Metoderapporten | L32: Oppdatere | M32: 231 | N32: kg/m2 | O32: Metoderapport s. 47, gjennomsnitt for samtlige betongbruer, ikke vektet etter areal av bru
A33: OK | B33: Mengde armeringsstål til stålbru | C33: 90 | D33: kg/m2 | E33: Stålbru | F33: Material- og transportutslipp forbundet med stål | G33: Materialmengde | H33: Samkjøringsprosjekt | I33: IR | J33: - | K33: Verdi ser ut til å være basert på gjennomsnitt for 10 betongbruer i fellesprosjektet E16. Finner ikke dokumentasjon på dette og velger derfor å benytte gjennomsnitt fra samtlige 8 stålbruer i Metoderapporten | L33: Oppdatere | M33: 125 | N33: kg/m2 | O33: Metoderapport s. 47, gjennomsnitt for samtlige stålbruer, ikke vektet etter areal av bru
A34: OK | B34: Mengde konstruksjonsstål til betongbru | C34: 18 | D34: kg/m2 | E34: Betongbru | F34: Material- og transportutslipp forbundet med stål | G34: Materialmengde | H34: Samkjøringsprosjekt | I34: IR | J34: - | K34: Verdi ser ut til å være basert på gjennomsnitt for 10 betongbruer i fellesprosjektet E16. Finner ikke dokumentasjon på dette og velger derfor å benytte gjennomsnitt fra samtlige 12 betongbruer i Metoderapporten | L34: Oppdatere | M34: 0 | N34: kg/m2 | O34: Metoderapport s. 47, gjennomsnitt for samtlige betongbruer, ikke vektet etter areal av bru
A35: OK | B35: Mengde konstruksjonsstål til stålbru | C35: 300 | D35: kg/m2 | E35: Stålbru | F35: Material- og transportutslipp forbundet med stål | G35: Materialmengde | H35: Samkjøringsprosjekt | I35: IR | J35: - | K35: Usikker på dokumentasjon på dette. Velger derfor å benytte gjennomsnitt fra samtlige 8 stålbruer i Metoderapporten | L35: Oppdatere | M35: 219 | N35: kg/m2 | O35: Metoderapport s. 47, gjennomsnitt for samtlige stålbruer, ikke vektet etter areal av bru
A36: OK | B36: Masse som må sprenges for bygging av bru | C36: 0.02 | D36: m3/m2 | E36: Bru (begge) | F36: Beregning av utslipp knyttet sprenging | G36: Materialmengde | H36: Ingen | I36: IR | J36: - | K36: Gitt i samkjøringsprosjekt, trolig basert på gjennomsnitt for 10 betongbruer i fellesprosjektet E16. Finner ikke dokumentasjon for å verifisere dette, men i mangel på andre tilgjengelige data, beholdes tallet. | L36: Fjerne | M36: =IF(L36="Beholde",C36,IF(L36="Fjerne","-","")) -> - | N36: - | O36: Samkjøring, bør verifiseres
A37: OK | B37: Mengde stål støttevegger og forankringer bru | C37: 28.7 | D37: kg/m2 | E37: Bru (begge) | F37: Material- og transportutslipp forbundet med stål | G37: Materialmengde | H37: Samkjøringsprosjekt | I37: IR | J37: - | K37: Gitt i samkjøringsprosjekt, trolig basert på gjennomsnitt for 10 betongbruer i fellesprosjektet E16. Finner ikke dokumentasjon for å verifisere dette, men i mangel på andre tilgjengelige data, beholdes tallet. Antas i samkjøringsprosjekt å være i resirkulert stål | L37: Fjerne | M37: =IF(L37="Beholde",C37,IF(L37="Fjerne","-","")) -> - | N37: - | O37: Samkjøring, bør verifiseres
A38: OK | B38: Mengde stål autovern | C38: 16.5 | D38: kg/m | E38: Vei, tunnel (begge) | F38: Material- og transportutslipp forbundet med stål | G38: Materialmengde | H38: Autovern: Håndbok N101 kriterier for valg av rekkverk. Styrkeklasse: Tabell 3,1 s. 38. Rundskriv endring N101 fartsgrense 110 km/t. Vekt: Ørsta Vik sine Vik W3-rekkverk | I38: 20 | J38: Klimodul i EFFEKT | K38: "Forutsetter styrkeklasse H1 ihht tabell 3.1 i Håndbok N101 og rundskriv om rekkverk 110 km/t. Forenkler til å beregne med samme rekkverkstandard på bruer. Ørsta Vik sine Vik W3-rekkverk veier 12,5 kg/m + 16 kg per stolpe. jf telefonsamtale representant Ørsta Vik desember 2016. Vanligvis stolper per 2 meter, men framover skal det holde med stolper per 4 meter. Stålet har krav til fasthet, men gjenvinningsgrad og leverandør kan variere da de handler inn stål i bulk på et stort stålmarked. Ikke noe "finere" kvalitet på stålet til rekkverk enn stålet på autovern Altså 12,5+4= 16,5 kg/meter. Ganget med 4 for firefelts: 66 kg/m". VegLCA er ikke oppdatert etter samkjøringsprosjekt. | L38: Beholde | M38: =IF(L38="Beholde",C38,IF(L38="Fjerne","-","")) -> 16.5 | N38: kg/m | O38: Forutsetter styrkeklasse H1 ihht. tabell 3.1 og rundskriv om rekkverk 110 km/t. Forenkler til å beregne med samme rekkverkstandard på bruer. Tar utgangspunkt i Vik Ørsta W3 siderekkverk, med vekt 12,5 kg/m + 16 kg per stolpe. jf telefonsamtale representant Ørsta Vik desember 2016. Rekkverket Vik EP H1 CC4 har stolpeavstand på 4 m -> Samlet vekt blir 12,5 + 16/4 = 16,5 kg/m. | P38: Stålet har krav til fasthet, men gjenvinningsgrad og leverandør kan variere da de handler inn stål i bulk på et stort stålmarked. Ikke noe "finere" kvalitet på stålet til rekkverk enn stålet på autovern. For firefeltsvei må rekkverkmengden ganges med 4. | Q38: https://www.vikorsta.no/vegrekkverk/vegrekkverk/vik-ep-h1-cc4/
A39: OK | B39: Vekt lyktestolper | C39: 261 | D39: kg | E39: Vei, tunnel (begge), bru (begge) | F39: Material- og transportutslipp forbundet med stål | G39: Materialmengde | H39: Høyde- og vektinformasjon om mast fra Euromast, vektinformasjon om fundament fra Vik Ørsta | I39: 90 | J39: Leverandører | K39: Verdi er summen av vekt til mast (210 kg) og fundament (51 kg). Mast er 12 m høy. Ifølge samkjøringsprosjekt skulle VegLCA oppdateres med NIRAS' verdi. Euromast finnes ikke lenger - bruker mast fra VikØrsta i tillegg til fundament. Denne veier 176 kg -> totalt 227 kg. Anbefaler at VegLCA øker sin verdi noe. | L39: Oppdatere | M39: 227 | N39: kg | O39: Produsentinformasjon fra Vik Ørsta AS. Produktkatalog 2020 s. 17 og s. 44 | Q39: https://ipaper.ipapercms.dk/Saferoad/vik-oersta/produktkatalog-lysmast/?page=22#/
A40: OK | B40: Sikringsbolter tunnel | C40: 44 | D40: kg/m | E40: Tunnel | F40: Materialutslipp forbundet med stål | G40: Materialmengde | H40: Metoderapport s. 33 | L40: Beholde | M40: 44 | N40: kg/m | O40: Metoderapport s. 8 i vedlegg 1
A41: OK | B41: Kulvertelementer tykkelse | C41: 1.18 | D41: m3/m2 | E41: Kulvert | F41: Materialutslipp forbundet med betong og stål | G41: Materialmengde | H41: Ingen | I41: IR | J41: - | K41: "Tverrsnittvolum = 31,15 m2. ref. Tegning typisk kulvert. V/A = 1,18 m3/m2. Bruker tetthet bettong 2,3 tonn/m3". Her er det mye rart. Oppdaterer verdien. Oppdaterer til å bruke tykkelse på elementer istedenfor totalt betongvolum per m2 (som inkluderer tak, gulv og vegger) | L41: Oppdatere | M41: 0.24 | N41: m3/m2 | O41: Prefabrikkerte kulvertelementer, Statens vegvesen | Q41: https://www.vegvesen.no/fag/teknologi/bruer/bruprosjektering/prefabrikkerte-kulvertelementer/_attachment/1361322?_ts=15d081de438&fast_title=Grunnlag%2C+beregningsforutsetninger+og+eksempel.pdf
A42: OK | B42: Høyde på kulvert | C42: IR | D42: m | E42: Kulvert | F42: Materialutslipp forbundet med betong og stål | G42: Materialmengde | H42: IR | I42: IR | J42: - | L42: Legge til | M42: 3.2 | N42: m | O42: Prefabrikkerte kulvertelementer, Statens vegvesen | Q42: https://www.vegvesen.no/fag/teknologi/bruer/bruprosjektering/prefabrikkerte-kulvertelementer/_attachment/1361322?_ts=15d081de438&fast_title=Grunnlag%2C+beregningsforutsetninger+og+eksempel.pdf
A43: OK | B43: Forholdstall mellom betong og armering i kulvertelementer | C43: 12.3 | D43: kg/kg | E43: Kulvert | F43: Materialutslipp forbundet med stål | G43: Materialmengde | H43: IR | I43: IR | J43: - | L43: Oppdatere | M43: 13 | N43: kg/kg | O43: Tar utgangspunkt i Metoderapprt s. 8 i vedlegg 1, der andelen betong er 13 ganger høyere enn andelen armering for samme volum.
B44: Arbeidshastigheter
B45: Arbeidshastighet veivals | C45: 300 | D45: t/h | E45: Vei, tunnel (begge), bru (begge), asfalt annet | F45: Beregning av drivstofforbruk valsing av bærelag, bindlag og slitelag | G45: Arbeidshastighet | H45: Ingen | K45: Brukes til bærelag, bindlag og slitelag -> 2,4*0,13+2,5*(0,035+0,045) = 0,512 tonn/m2 | O45: =IF(OR(L45="Fjerne",L45="Bake inn i annen faktor"),"-","") -> 
B46: Arbeidshastighet traktor | C46: 300 | D46: t/h | E46: Vei, tunnel (begge), bru (begge), asfalt annet | F46: Beregning av drivstofforbruk traktor for bærelag, bindlag og slitelag | G46: Arbeidshastighet | H46: Ingen | K46: Brukes til bærelag, bindlag og slitelag -> 2,4*0,13+2,5*(0,035+0,045) = 0,512 tonn/m2
B47: Arbeidshastighet asfaltutlegger | C47: 300 | D47: t/h | E47: Vei, tunnel (begge), bru (begge), asfalt annet | F47: Beregning av drivstofforbruk utlegging av bærelag, bindlag og slitelag | G47: Arbeidshastighet | H47: Ingen | K47: Brukes til bærelag, bindlag og slitelag -> 2,4*0,13+2,5*(0,035+0,045) = 0,512 tonn/m2
B48: Arbeidshastighet gravemaskin | C48: 150 | D48: t/h | E48: Vei, tunnel (begge), bru (begge), asfalt annet | F48: Beregning av drivstofforbruk til anlegging av forsterkningslag | G48: Arbeidshastighet | H48: Ingen | K48: Brukes til forsterkningslag -> 0,45*1,5 = 0,675 tonn/m2. Endres med endret massetetthet pukk: 0,45*1,55 =0,6975 tonn/m2
B49: Arbeidshastighet grovknuser | C49: 125 | D49: t/h | E49: Vei, tunnel (begge), bru (begge), asfalt annet | F49: Beregning av drivstofforbruk til anlegging av forsterkningslag | G49: Arbeidshastighet | H49: Ingen | K49: Brukes til forsterkningslag -> 0,45*1,5 = 0,675 tonn/m2. Endres med endret massetetthet pukk: 0,45*1,55 =0,6975 tonn/m2
B50: Arbeidshastighet finknuser | C50: 250 | D50: t/h | E50: Vei, asfalt annet | F50: Beregning av drivstofforbruk frostsikringslag | G50: Arbeidshastighet | H50: Ingen | K50: Burde denne brukes på forsterkningslag fremfor frostsikringslag?
A51: OK | B51: Arbeidshastighet tårnkran ved bygging av første 400 m2 av bru | C51: =400/240 -> 1.666666667 | D51: m2/h | E51: Bru (begge) | F51: Beregning av strømforbruk anleggsarbeid | G51: Arbeidshastighet | H51: "Niras erfaringstall" | I51: IR | L51: Beholde | M51: 1.666666667 | N51: m2/h | O51: NIRAS' erfaringstall | P51: Verdi burde verifiseres med flere kilder. Store variasjoner avhengig av brutype, fundamenteringsforhold (geologi) og bruens størrelse. Faktoren kan sannsynligvis variere med pluss/minus 60 % avhengig av forholdene
A52: OK | B52: Arbeidshastighet tårnkran ved bygging av resterende lengde bru | C52: =400/120 -> 3.333333333 | D52: m2/h | E52: Bru (begge) | F52: Beregning av strømforbruk anleggsarbeid | G52: Arbeidshastighet | H52: "Niras erfaringstall" | I52: IR | L52: Beholde | M52: 3.333333333 | N52: m2/h | O52: NIRAS' erfaringstall | P52: Verdi burde verifiseres med flere kilder. Store variasjoner avhengig av brutype, fundamenteringsforhold (geologi) og bruens størrelse. Faktoren kan sannsynligvis variere med pluss/minus 60 % avhengig av forholdene
A53: OK | B53: Arbeidshastighet tårnkran ved bygging av kulvert | C53: 18 | D53: h/kulvert | E53: Kulvert | F53: Beregning av strømforbruk anleggsarbeid | G53: Arbeidshastighet | H53: "Niras erfaringstall" | I53: IR | K53: "For en prefabrikert elementkulvert ca. 10 timer. For en plasstøpt ca 25 timer. Bruker 18 timer som et gjennomsnitt" | L53: Beholde | M53: 18 | N53: h/kulvert | O53: NIRAS' erfaringstall | P53: For en prefabrikert elementkulvert ca. 10 timer. For en plasstøpt ca 25 timer. Bruker 18 timer som et gjennomsnitt. Verdi burde verifiseres med flere kilder.
A54: OK | B54: Arbeidshastighet kantklipper | C54: 0.15625 | D54: km/h | E54: Drift | F54: Beregning av drivstofforbruk | G54: Arbeidshastighet | H54: "Niras erfaringstall" | I54: IR | K54: Antok hjullaster i gammel utgave, med en arbeidshastighet på 1250 m/dag, én dag = 8 h --> 1250/8=156,25 m/h. Virker veldig lav og er ikke dokumentert. Brukes til å beregne drivstofforbruk, og med hjullasterforbruk på 7,5 L/h, blir det 48 L/km, noe samkjøringsprosjektet kommenterer at er veldig høyt | L54: Oppdatere | M54: 7.5 | N54: km/h | O54: Gjennomsnitt av verdier oppgitt av Maskinimportøren den 15.04.20, som sier deres traktor til kantklipping bruker ca. 8 min på å klippe 1-1,25 m kant i 1 km
A55: OK | B55: Arbeidshastighet anleggsarbeid autovern | C55: 10 | D55: m/h | E55: Vei, tunnel (begge), bru (begge), asfalt annet, drift | F55: Beregning av drivstofforbruk | G55: Arbeidshastighet | H55: "Niras erfaringstall" | I55: IR | J55: - | K55: "Antar at aggregat bakpå en lastebil bruker 4 L/t på utsetting av autovern, og at det legges 80 m overn. per dag for fire-felts vei. Én dag defineres som 8 timer." Ser ut til at antakelsen om 80 m/dag gjelder for både enkeltløps- og dobbeltløpstunnel samt alle veityper. Fjerner denne mellomregningsfaktoren og baker det direkte inn i faktoren for dieselforbruk i l/m rekkverk/autovern. | L55: Bake inn i annen faktor | M55: 10 | N55: m/h | O55: =IF(OR(L55="Fjerne",L55="Bake inn i annen faktor"),"-","") -> -
A56: OK | B56: Arbeidshastighet gravemaskin grøfterensk | C56: 300 | D56: m/h | E56: Drift | F56: Beregning av drivstofforbruk | G56: Arbeidshastighet | H56: "Niras erfaringstall" | I56: IR | J56: - | K56: "Grøfterensk skjer også ca hvert 3. år, lastebil for bortkjøring og gravemaskin ca 300 m i timen i snitt. Gravemaskin 20 liter/time =>0,067 liter/meter eller 66,67 liter/km renska grøft" | L56: Beholde | M56: 300 | N56: m/h | O56: NIRAS' erfaringstall. Bør verifiseres.
B57: Arbeidshastighet hjullaster til feiing | C57: 2000 | D57: m/h | E57: Drift | F57: Beregning av drivstofforbruk | G57: Arbeidshastighet | H57: "Niras erfaringstall" | I57: IR | J57: - | L57: Beholde | M57: 2000 | N57: m/h | O57: NIRAS' erfaringstall. Bør verifiseres.
B58: Energiforbruk
B59: Dieseforbruk lastebil | C59: 0.6 | D59: l/km | E59: Drift | F59: Utslipp transport | G59: Energiforbruk | H59: "Niras erfaringstall" | K59: Saltbil bruker 0,45. Bøytebil ler oppgitt å bruke 20 % mer enn lastebil, så det tilsvarer også lastebil = 0,45.
B60: Dieselforbruk veivals | C60: 3 | D60: l/h | E60: Vei, tunnel (begge), bru (begge), asfalt annet | F60: Utslipp anleggsarbeid | G60: Energiforbruk | O60: =IF(OR(L60="Fjerne",L60="Bake inn i annen faktor"),"-","") -> 
B61: Dieselforbruk traktor | C61: 5 | D61: l/h | E61: Vei, tunnel (begge), bru (begge), asfalt annet | F61: Utslipp anleggsarbeid | G61: Energiforbruk | L61: Beholde | M61: 5 | N61: l/h | O61: =IF(OR(L61="Fjerne",L61="Bake inn i annen faktor"),"-","") -> 
B62: Dieselforbruk asfaltutlegger | C62: 3 | D62: l/h | E62: Vei, tunnel (begge), bru (begge), asfalt annet | F62: Utslipp anleggsarbeid | G62: Energiforbruk
B63: Dieselforbruk veimerking | C63: 0.0059 | D63: l/m | E63: Vei, tunnel (begge), bru (begge), asfalt annet | F63: Utslipp anleggsarbeid | G63: Energiforbruk | K63: Regneverktøyet antar enhets arbeidshastighet for veimerking, altså at det merkes i en hastighet på 1 m2/h. I nytt verktøy: ikke gjøre denne antakelsen, heller bare regne ut dieselforbruk basert på total strekningslengde
B64: Dieselforbruk gravemaskin | C64: 20 | D64: l/h | E64: Vei, tunnel (begge), bru (begge), asfalt annet | F64: Utslipp anleggsarbeid | G64: Energiforbruk
B65: Dieselforbruk grovknuser | C65: 25 | D65: l/h | E65: Vei, tunnel (begge), bru (begge), asfalt annet | F65: Utslipp anleggsarbeid | G65: Energiforbruk
B66: Dieselforbruk finknuser | C66: 25 | D66: l/h | E66: Vei, asfalt annet | F66: Utslipp anleggsarbeid | G66: Energiforbruk
